Workbook

Sheet Sign Off
B2: Sign Off's
B4: Accounting
C6: Name | D6: Title | E6: Date
B7: Preparer | C7: Belen Villalba | D7: Temp Analyst | E7: 2019-12-12
B8: Reviewer | C8: William Adams | D8: Financial Analysis Manager | E8: 2020-01-14
B9: Approver | C9: N/A | D9: N/A | E9: N/A
B11: Audit Services
C13: Name | D13: Title | E13: Date
B14: Preparer
B16: Energy Delivery
C18: Name | D18: Title | E18: Date
B19: Final Reviewer

Sheet A - Contractor Summary
B2: Contractor Summary
B4: Test Plan: (A) Using the drop down list, select the vendor. (B) Ensure address agrees to invoice(s). (C) Enter the distance between vendor address to Plant City, FL. (D) Determine if vendor is part of the SEE (see tab A.1 for listing). (E) Determine if other agreements exist. (F) Using the drop down list, select the Incident Base that the vendor was initially assigned. (G) If the contractor includes multiple crews with different timelines, utilize the '+' symbol at the top of columns 'H' and 'K' (if necessary) to unhide the vendor summary. (H) Click the button to populate the second (and third, if necessary) set of tabs for documentation of those expenses. (I) Complete steps (A) through (F).
F14: G | I14: G
C15: Vendor #02 | F15: Vendor #2 | I15: Vendor #3
G17: H | J17: H
B19: Contractor/Company | C19: ARC American Inc | D19: A | G19: A | J19: A
B20: SAP Vendor# | F20: 10044004 | I20: =VLOOKUP(I19,#REF!,2,FALSE) -> 
B21: Service Type | C21: Distribution | F21: Transmission | I21: =VLOOKUP($I$19,#REF!,4,FALSE) -> 
B23: Address | C23: 311 South Indiana Ave | D23: B | G23: B | I23: =VLOOKUP($I$19,#REF!,13,FALSE) ->  | J23: B
B24: City | C24: Wakarusa | I24: =VLOOKUP($I$19,#REF!,14,FALSE) -> 
B25: State/Providence | C25: IN | I25: =VLOOKUP($I$19,#REF!,15,FALSE) -> 
B26: Zip | C26: 46573 | I26: =VLOOKUP($I$19,#REF!,16,FALSE) -> 
B27: Country | C27: USA | F27: US | I27: =VLOOKUP($I$19,#REF!,17,FALSE) -> 
B29: Distance from FL (in miles) | C29: 663 | D29: C | F29: 815 | G29: C | I29: 800 | J29: C
B30: Travel Days (500 m/per day) | C30: 2 | F30: =ROUNDUP(F29/500,0) -> 2 | I30: =ROUNDUP(I29/500,0) -> 2
B32: Member of the SEE | D32: D | F32: NO | G32: D | I32: NO | J32: D
B33: Other Agreement/Contract (Y/N) | D33: E | F33: NO | G33: E | I33: NO | J33: E
B34: Incident Base | D34: F | F34: Winter Haven | G34: F | I34: Winter Haven | J34: F
B36: Date Secured | C36: 10/11/18-11/05/18 | F36: 2017-09-04 | I36: =VLOOKUP($I$19,#REF!,6,FALSE) -> 
B37: Start Travel | C37: Wakarusa, IN | F37: N/A | I37: =VLOOKUP($I$19,#REF!,7,FALSE) -> 
B38: Date Arrived | C38: 2018-10-12 | F38: 2017-09-12 | I38: =VLOOKUP($I$19,#REF!,8,FALSE) -> 
B39: Date Released | C39: 2018-11-05 | F39: 2017-09-13 | I39: =VLOOKUP($I$19,#REF!,9,FALSE) -> 
B40: Time Released | F40: 16:27 | I40: =VLOOKUP($I$19,#REF!,10,FALSE) -> 
B41: Released To | C41: Wakarusa, IN | F41: Home | I41: =VLOOKUP($I$19,#REF!,11,FALSE) -> 
B42: Arrived Home/Utility* | C42: 2018-11-05 | F42: 2017-09-15 | I42: =IF(I41="home",SUM(IF(I29>500,I39+I30,I39)),I39) -> 
F47: C.1 - Rate Sheets (2) | I47: C.1 - Rate Sheets (3)
F48: C.2 - Timesheets - Labor (2) | I48: C.2 - Timesheets - Labor (3)
F49: C.4 - Timesheets - Equipmen (2) | I49: C.4 - Timesheets - Equipmen (3)
F50: D - Lodging (2) | I50: D - Lodging (3)
F51: E - Fuel (2) | I51: E - Fuel (3)
F52: F - Meals (2) | I52: F - Meals (3)
F53: G - Per Diem (2) | I53: G - Per Diem (3)
F54: H - Mileage (2) | I54: H - Mileage (3)
F55: I - Other (2) | I55: I - Other (3)
B59: *Estimates reasonable arrival time
B61: Tickmark Explanation:

Sheet A.1 SEE Members
A1: RMAG | B1: RESPONDING COMPANY | C1: COMPANY NAME
A2: SEE
A3: SEE
A4: SEE
A5: SEE
A6: SEE
A7: SEE
A8: SEE
A9: SEE
A10: SEE
A11: SEE
A12: SEE
A13: SEE
A14: SEE
A15: SEE
A16: SEE
A17: SEE
A18: SEE
A19: SEE
A24: SEE
A25: SEE
A26: SEE
A27: SEE
A28: SEE
A29: SEE
A31: SEE
A32: SEE
A33: SEE
A34: SEE
A35: SEE
A40: SEE
A41: SEE
A42: SEE
A43: SEE
A47: SEE
A55: SEE
A56: SEE
A57: SEE
A61: SEE
A64: SEE
A65: SEE

Sheet B - Summary Expenses
B2: Summary of Expenses
B4: Test Plan: (A) Calculate Total Amount Invoiced for each expense category. (B) Using SAP t-code FBL1N, list Vendor Invoices Paid. (C) Ensure there are no differences between the Total Expense Amount and the Total Paid Amount. (D) Ensure there are no difference between Total Invoiced Amount and Total Expense Amount. (E) If applicable, identify difference due to Foreign currency exchange rates.
C9: A
C10: Total Invoiced | D10: Total Calculated | E10: Allowable | F10: Reviewed - Allowed | G10: Reviewed - Not Allowable | H10: Not Allowable
B11: Labor Expense Total | C11: 4461229.93 | D11: ='C.2 - Timesheets - Labor'!FR486 -> 4461229.93 | E11: ='C.2 - Timesheets - Labor'!FS486 -> 4461229.93 | F11: ='C.2 - Timesheets - Labor'!FV486 -> 0 | G11: ='C.2 - Timesheets - Labor'!FW486 -> 0 | H11: =D11-(E11+F11+G11) -> 0
B12: Equipment Expense Total | C12: 1540068.01 | D12: ='C.4 - Timesheets - Equipment'!AV522 -> 1540068.01 | E12: ='C.4 - Timesheets - Equipment'!AV522 -> 1540068.01 | F12: ='C.4 - Timesheets - Equipment'!AY522 -> 0 | G12: ='C.4 - Timesheets - Equipment'!AZ522 -> 0 | H12: =D12-(E12+F12+G12) -> 0
B13: Lodging Expense Total | C13: 10640.5 | D13: ='D - Lodging'!L19 -> 10640.5 | E13: ='D - Lodging'!T19 -> 10640.5 | F13: ='D - Lodging'!V19 -> 0 | G13: ='D - Lodging'!W19 -> 0 | H13: =D13-(E13+F13+G13) -> 0
B14: Fuel/Transport Expense Total | C14: 26688.73 | D14: ='E - Fuel'!J360 -> 26688.73 | E14: ='E - Fuel'!Q360 -> 26688.73 | F14: ='E - Fuel'!S360 -> 0 | G14: ='E - Fuel'!T360 -> 0 | H14: 0
B15: Meal Expense Total | D15: ='F - Meals'!K141 -> 0 | E15: ='F - Meals'!R141 -> 0 | F15: ='F - Meals'!T141 -> 0 | G15: ='F - Meals'!U141 -> 0 | H15: 0
B16: Per Diem Expense Total | C16: 28566 | D16: ='G - Per Diem'!I36 -> 28566 | E16: ='G - Per Diem'!N36 -> 0 | F16: ='G - Per Diem'!P36 -> 28566 | G16: ='G - Per Diem'!Q36 -> 0 | H16: 0
B17: Mileage Expense Total | D17: ='H - Mileage'!L36 -> 0 | E17: ='H - Mileage'!R36 -> 0 | F17: ='H - Mileage'!T36 -> 0 | G17: ='H - Mileage'!U36 -> 0 | H17: 0
B18: Other Expense | D18: ='I - Other'!K16 -> 0 | E18: ='I - Other'!R16 -> 0 | F18: ='I - Other'!T16 -> 0 | G18: ='I - Other'!U16 -> 0 | H18: =D18-(E18+F18+G18) -> 0
B20: Total Expense per tabs | C20: =SUM(C11:C18) -> 6067193.17 | D20: =SUM(D11:D18) -> 6067193.17 | E20: =SUM(E11:E18) -> 6038627.17 | F20: =SUM(F11:F18) -> 28566 | G20: =SUM(G11:G18) -> 0 | H20: 0
B21: Difference | C21: =IF(D21=0,"","1") ->  | D21: =C20-D20 -> 0 | E21: D
B23: Total Expense | D23: =+D20 -> 6067193.17 | E23: (from Total SAP Summary)
B24: Total Paid | D24: =-D60 -> -6067193.17 | E24: (from FBL1N in SAP)
B25: Difference | C25: =IF(D25=0,"",SUM(C21,1)) ->  | D25: =+D23+D24 -> 0 | E25: C
B27: Exchange Rate
B28: Fx Adjusted to USD
B29: Difference | C29: =IF(D29=0,"","3") ->  | E29: E
B31: B
B33: Document No | C33: Doc Date | D33: Amount | E33: Reference
B34: MIFPUC-1 | C34: 2018-10-13 | D34: 396398.99 | E34: 674796
B35: MIFPUC-3 | C35: 2018-10-31 | D35: 1798601.95 | E35: 674797
B36: MIFPUC-2 | C36: 2018-11-12 | D36: 1509543.47 | E36: 674798
B37: MIFPUC-5 | C37: 2018-11-12 | D37: 556837.99 | E37: 674799
B38: MIFPUC-4 | C38: 2018-11-12 | D38: 1805810.77 | E38: 674800
D60: =SUM(D34:D59) -> 6067193.17
B62: Tickmark Explanation:
B63: =IFERROR(C21,"") -> 
B65: =IFERROR(C25,"") -> 

Sheet C.1 - Rate Sheets
B2: Labor Charges - Rate Sheet
B4: Test Plan: (A) Using the vendor rate sheet, ensure that a rate was provided for all Positions and Equipment types.
B6: Labor Types:
B7: ST | C7: Straight Time
B8: OT | C8: Over Time
B9: DT | C9: Double Time
B10: MOB/DMOB | C10: Mobilization/Demobilization Time
B13: Labor per Man Hour | H13: Labor per Equipment Hour
B14: A | H14: A
B15: POSITION | C15: ST | D15: OT | E15: DT | F15: MOB/DMOB | H15: Type | I15: $/HOUR
B16: General Foreman | D16: 160.21 | E16: 208.18 | H16: Rear Property Machine | I16: 50 | J16: 1
B17: Foreman | D17: 148.21 | E17: 192.19 | H17: Bucket Truck Up to 55' | I17: 50
B18: Senior Lineman/Journeyman Lineman | D18: 136.22 | E18: 176.19 | H18: Digger Derrick Up to 50' | I18: 50
B19: Equipment Operator | D19: 116.87 | E19: 151.13 | H19: Digger Derrick Greater Than 50' | I19: 60
B20: Line Tech C | D20: 110.51 | E20: 136.23 | H20: Mechanic Truck | I20: 45
B21: Line Tech B | D21: 118.24 | E21: 152.22 | H21: Mini Excavator | I21: 35
B22: Groundman | D22: 99.27 | E22: 117.21 | H22: Pick Up Truck | I22: 20
B23: Safety | D23: 148.21 | E23: 192.19 | H23: Pole Trailer | I23: 15
B24: Mechanic | D24: 116.87 | E24: 151.13 | H24: Bucket Truck over 65' | I24: 65
B25: Apprentice Helper | D25: 102.25 | E25: 130.74 | H25: Bucket Truck Tracked | I25: 70
H26: Digger Tracked | I26: 70
H27: Rope Rig (puller) | I27: 55
H28: X100 Blocks | I28: 2
H29: 45 Ton Crane | I29: 145
H30: Low Boy | I30: 38
H31: Wire Cart | I31: 20
H32: Tractor( Semi) | I32: 45
H33: Air Compressor | I33: 15
H34: Hydrovac Excavation Truck(Vac Truck) | I34: 165
H35: Flat Bed Truck | I35: 35
H36: 40' Tri Cam Container | I36: 804.17
H37: Excavator Rental | I37: 2253.84
B54: Tickmark Explanation:
B55: 1

Sheet C.2 - Timesheets - Labor
B2: Labor Charges - Time Card
B4: Test Plan: | C4: Obtain the time cards. (A) Using the Asset by Company tab (C.3), populate the crew members names and positions (if provided). Find additional information regarding individual crew member from related invoice. (B) Enter hours worked from time card(s). (C) Confirm that the dates per the time cards fall between dates provided per 'A - Contractor Summary' tab. (D) Confirm the labor type charged agrees to the rate sheet. (E) Identify any labor charges to be reviewed (manually enter amounts based on reasonability of time period labor was charged, discrepancies between timecards and invoice, etc. (F) For charges which required further review, document review (include why it was determined to be allowed/disallowed via a tickmark).
B10: Rx | C10: Recalculated.
B11: a | C11: Provided from tab 'C.1 - Rate Sheets'.
B12: b | C12: Check figure should equal $0. Cell will appear yellow if discrepancies are noted.
C14: A | H14: Rx | J14: C | K14: a | O14: B | V14: B | AC14: B | AJ14: B | FI14: Rx | FN14: Rx | FS14: Rx | FU14: E | FV14: F
B15: # | C15: Name | D15: Position | E15: Company | F15: Crew# | G15: Invoice# | H15: Start Date | I15: End Date | J15: Dates Worked Reasonable? | K15: Rates | O15: 2019-10-11 | T15: 2019-10-12 | Y15: 2019-10-13 | AD15: 2019-10-14 | AI15: 2019-10-15 | AN15: 2019-10-16 | AS15: 2019-10-17 | AX15: 2019-10-18 | BC15: 2019-10-19 | BH15: 2019-10-20 | BM15: 2019-10-21 | BR15: 2019-10-22 | BW15: 2019-10-23 | CB15: 2019-10-24 | CG15: 2019-10-25 | CL15: 2019-10-26 | CQ15: 2019-10-27 | CV15: 2019-10-28 | DA15: 2019-10-29 | DF15: 2019-10-30 | DK15: 2019-10-31 | DP15: 2019-11-01 | DU15: 2019-11-02 | DZ15: 2019-11-03 | EE15: 2019-11-04 | EJ15: 2019-11-05 | EO15: 2019-11-06 | ET15: 2019-11-07 | EY15: 2019-11-08 | FD15: 2019-11-09 | FI15: Total Labor Hours | FN15: Total Labor $ | FS15: Allowable Charges | FT15: Labor Type Appropriate? | FU15: To Be Reviewed | FV15: Reviewed - Allowable Charge | FW15: Reviewed - Unallowable Charge | FX15: Tickmarks
O16: =O15 -> 2019-10-11 | P16: =O15 -> 2019-10-11 | Q16: =O15 -> 2019-10-11 | R16: =O15 -> 2019-10-11 | S16: =O15 -> 2019-10-11 | T16: =T15 -> 2019-10-12 | U16: =T15 -> 2019-10-12 | V16: =T15 -> 2019-10-12 | W16: =T15 -> 2019-10-12 | X16: =T15 -> 2019-10-12 | Y16: =Y15 -> 2019-10-13 | Z16: =Y15 -> 2019-10-13 | AA16: =Y15 -> 2019-10-13 | AB16: =Y15 -> 2019-10-13 | AC16: =Y15 -> 2019-10-13 | AD16: =AD15 -> 2019-10-14 | AE16: =AD15 -> 2019-10-14 | AF16: =AD15 -> 2019-10-14 | AG16: =AD15 -> 2019-10-14 | AH16: =AD15 -> 2019-10-14 | AI16: =AI15 -> 2019-10-15 | AJ16: =AI15 -> 2019-10-15 | AK16: =AI15 -> 2019-10-15 | AL16: =AI15 -> 2019-10-15 | AM16: =AI15 -> 2019-10-15 | AN16: =AN15 -> 2019-10-16 | AO16: =AN15 -> 2019-10-16 | AP16: =AN15 -> 2019-10-16 | AQ16: =AN15 -> 2019-10-16 | AR16: =AN15 -> 2019-10-16 | AS16: =AS15 -> 2019-10-17 | AT16: =AS15 -> 2019-10-17 | AU16: =AS15 -> 2019-10-17 | AV16: =AS15 -> 2019-10-17 | AW16: =AS15 -> 2019-10-17 | AX16: =AX15 -> 2019-10-18 | AY16: =AX15 -> 2019-10-18 | AZ16: =AX15 -> 2019-10-18 | BA16: =AX15 -> 2019-10-18 | BB16: =AX15 -> 2019-10-18 | BC16: =BC15 -> 2019-10-19 | BD16: =BC15 -> 2019-10-19 | BE16: =BC15 -> 2019-10-19 | BF16: =BC15 -> 2019-10-19 | BG16: =BC15 -> 2019-10-19 | BH16: =BH15 -> 2019-10-20 | BI16: =BH15 -> 2019-10-20 | BJ16: =BH15 -> 2019-10-20 | BK16: =BH15 -> 2019-10-20 | BL16: =BH15 -> 2019-10-20 | BM16: =BM15 -> 2019-10-21 | BN16: =BM15 -> 2019-10-21 | BO16: =BM15 -> 2019-10-21 | BP16: =BM15 -> 2019-10-21 | BQ16: =BM15 -> 2019-10-21 | BR16: =BR15 -> 2019-10-22 | BS16: =BR15 -> 2019-10-22 | BT16: =BR15 -> 2019-10-22 | BU16: =BR15 -> 2019-10-22 | BV16: =BR15 -> 2019-10-22 | BW16: =BW15 -> 2019-10-23 | BX16: =BW15 -> 2019-10-23 | BY16: =BW15 -> 2019-10-23 | BZ16: =BW15 -> 2019-10-23 | CA16: =BW15 -> 2019-10-23 | CB16: =CB15 -> 2019-10-24 | CC16: =CB15 -> 2019-10-24 | CD16: =CB15 -> 2019-10-24 | CE16: =CB15 -> 2019-10-24 | CF16: =CB15 -> 2019-10-24 | CG16: =CG15 -> 2019-10-25 | CH16: =CG15 -> 2019-10-25 | CI16: =CG15 -> 2019-10-25 | CJ16: =CG15 -> 2019-10-25 | CK16: =CG15 -> 2019-10-25 | CL16: =CL15 -> 2019-10-26 | CM16: =CL15 -> 2019-10-26 | CN16: =CL15 -> 2019-10-26 | CO16: =CL15 -> 2019-10-26 | CP16: =CL15 -> 2019-10-26 | CQ16: =CQ15 -> 2019-10-27 | CR16: =CQ15 -> 2019-10-27 | CS16: =CQ15 -> 2019-10-27 | CT16: =CQ15 -> 2019-10-27 | CU16: =CQ15 -> 2019-10-27 | CV16: =CV15 -> 2019-10-28 | CW16: =CV15 -> 2019-10-28 | CX16: =CV15 -> 2019-10-28 | CY16: =CV15 -> 2019-10-28 | CZ16: =CV15 -> 2019-10-28 | DA16: =DA15 -> 2019-10-29 | DB16: =DA15 -> 2019-10-29 | DC16: =DA15 -> 2019-10-29 | DD16: =DA15 -> 2019-10-29 | DE16: =DA15 -> 2019-10-29 | DF16: =DF15 -> 2019-10-30 | DG16: =DF15 -> 2019-10-30 | DH16: =DF15 -> 2019-10-30 | DI16: =DF15 -> 2019-10-30 | DJ16: =DF15 -> 2019-10-30 | DK16: =DK15 -> 2019-10-31 | DL16: =DK15 -> 2019-10-31 | DM16: =DK15 -> 2019-10-31 | DN16: =DK15 -> 2019-10-31 | DO16: =DK15 -> 2019-10-31 | DP16: =DP15 -> 2019-11-01 | DQ16: =DP15 -> 2019-11-01 | DR16: =DP15 -> 2019-11-01 | DS16: =DP15 -> 2019-11-01 | DT16: =DP15 -> 2019-11-01 | DU16: =DU15 -> 2019-11-02 | DV16: =DU15 -> 2019-11-02 | DW16: =DU15 -> 2019-11-02 | DX16: =DU15 -> 2019-11-02 | DY16: =DU15 -> 2019-11-02 | DZ16: =DZ15 -> 2019-11-03 | EA16: =DZ15 -> 2019-11-03 | EB16: =DZ15 -> 2019-11-03 | EC16: =DZ15 -> 2019-11-03 | ED16: =DZ15 -> 2019-11-03 | EE16: =EE15 -> 2019-11-04 | EF16: =EE15 -> 2019-11-04 | EG16: =EE15 -> 2019-11-04 | EH16: =EE15 -> 2019-11-04 | EI16: =EE15 -> 2019-11-04 | EJ16: =EJ15 -> 2019-11-05 | EK16: =EJ15 -> 2019-11-05 | EL16: =EJ15 -> 2019-11-05 | EM16: =EJ15 -> 2019-11-05 | EN16: =EJ15 -> 2019-11-05 | EO16: =EO15 -> 2019-11-06 | EP16: =EO15 -> 2019-11-06 | EQ16: =EO15 -> 2019-11-06 | ER16: =EO15 -> 2019-11-06 | ES16: =EO15 -> 2019-11-06 | ET16: =ET15 -> 2019-11-07 | EU16: =ET15 -> 2019-11-07 | EV16: =ET15 -> 2019-11-07 | EW16: =ET15 -> 2019-11-07 | EX16: =ET15 -> 2019-11-07 | EY16: =EY15 -> 2019-11-08 | EZ16: =EY15 -> 2019-11-08 | FA16: =EY15 -> 2019-11-08 | FB16: =EY15 -> 2019-11-08 | FC16: =EY15 -> 2019-11-08 | FD16: =FD15 -> 2019-11-09 | FE16: =FD15 -> 2019-11-09 | FF16: =FD15 -> 2019-11-09 | FG16: =FD15 -> 2019-11-09 | FH16: =FD15 -> 2019-11-09 | FI16: Total ST | FJ16: OT | FK16: DT | FL16: MOB/DMOB | FM16: Total Hours | FN16: Total ST $ | FO16: Total OT $ | FP16: Total DT $ | FQ16: Total MOB/DMOB $ | FR16: Total Labor $
O17: Wednesday | T17: Thursday | Y17: Friday | AD17: Monday | AI17: Tuesday | AN17: Wednesday | AS17: Thursday | AX17: Friday | BC17: Monday | BH17: Tuesday | BM17: Wednesday | BR17: Thursday | BW17: Friday | CB17: Monday | CG17: Tuesday | CL17: Wednesday | CQ17: Thursday | CV17: Friday | DA17: Monday | DF17: Tuesday | DK17: Wednesday | DP17: Thursday | DU17: Friday | DZ17: Monday | EE17: Tuesday | EJ17: Wednesday | EO17: Thursday | ET17: Friday | EY17: Wednesday | FD17: Wednesday
K18: ST | L18: OT | M18: DT | N18: MOB/DMOB | O18: ST | P18: OT | Q18: DT | R18: MOB/DMOB | S18: Total | T18: ST | U18: OT | V18: DT | W18: MOB/DMOB | X18: Total | Y18: ST | Z18: OT | AA18: DT | AB18: MOB/DMOB | AC18: Total | AD18: ST | AE18: OT | AF18: DT | AG18: MOB/DMOB | AH18: Total | AI18: ST | AJ18: OT | AK18: DT | AL18: MOB/DMOB | AM18: Total | AN18: ST | AO18: OT | AP18: DT | AQ18: MOB/DMOB | AR18: Total | AS18: ST | AT18: OT | AU18: DT | AV18: MOB/DMOB | AW18: Total | AX18: ST | AY18: OT | AZ18: DT | BA18: MOB/DMOB | BB18: Total | BC18: ST | BD18: OT | BE18: DT | BF18: MOB/DMOB | BG18: Total | BH18: ST | BI18: OT | BJ18: DT | BK18: MOB/DMOB | BL18: Total | BM18: ST | BN18: OT | BO18: DT | BP18: MOB/DMOB | BQ18: Total | BR18: ST | BS18: OT | BT18: DT | BU18: MOB/DMOB | BV18: Total | BW18: ST | BX18: OT | BY18: DT | BZ18: MOB/DMOB | CA18: Total | CB18: ST | CC18: OT | CD18: DT | CE18: MOB/DMOB | CF18: Total | CG18: ST | CH18: OT | CI18: DT | CJ18: MOB/DMOB | CK18: Total | CL18: ST | CM18: OT | CN18: DT | CO18: MOB/DMOB | CP18: Total | CQ18: ST | CR18: OT | CS18: DT | CT18: MOB/DMOB | CU18: Total | CV18: ST | CW18: OT | CX18: DT | CY18: MOB/DMOB | CZ18: Total | DA18: ST | DB18: OT | DC18: DT | DD18: MOB/DMOB | DE18: Total | DF18: ST | DG18: OT | DH18: DT | DI18: MOB/DMOB | DJ18: Total | DK18: ST | DL18: OT | DM18: DT | DN18: MOB/DMOB | DO18: Total | DP18: ST | DQ18: OT | DR18: DT | DS18: MOB/DMOB | DT18: Total | DU18: ST | DV18: OT | DW18: DT | DX18: MOB/DMOB | DY18: Total | DZ18: ST | EA18: OT | EB18: DT | EC18: MOB/DMOB | ED18: Total | EE18: ST | EF18: OT | EG18: DT | EH18: MOB/DMOB | EI18: Total | EJ18: ST | EK18: OT | EL18: DT | EM18: MOB/DMOB | EN18: Total | EO18: ST | EP18: OT | EQ18: DT | ER18: MOB/DMOB | ES18: Total | ET18: ST | EU18: OT | EV18: DT | EW18: MOB/DMOB | EX18: Total | EY18: ST | EZ18: OT | FA18: DT | FB18: MOB/DMOB | FC18: Total | FD18: ST | FE18: OT | FF18: DT | FG18: MOB/DMOB | FH18: Total
B19: 1 | C19: Gustavo Monteagudo | D19: Foreman | E19: Vendor No.02 | G19: MIFPUC-1 | H19: 2018-10-11 | I19: 2018-10-13 | J19: Yes | K19: =VLOOKUP($D19,'C.1 - Rate Sheets'!B:F,2,FALSE) -> 0 | L19: =VLOOKUP($D19,'C.1 - Rate Sheets'!B:F,3,FALSE) -> 148.21 | M19: =VLOOKUP($D19,'C.1 - Rate Sheets'!B:F,4,FALSE) -> 192.19 | N19: =VLOOKUP($D19,'C.1 - Rate Sheets'!B:F,5,FALSE) -> 0 | P19: 9 | U19: 16 | Z19: 16 | FI19: =FD19+EY19+ET19+EO19+EJ19+EE19+DZ19+DU19+DP19+DK19+DF19+DA19+CV19+CQ19+CL19+CG19+CB19+BW19+BR19+BM19+BH19+BC19+AX19+AS19+AN19+AI19+AD19+Y19+T19+O19 -> 0 | FJ19: 41 | FK19: 0 | FM19: =SUM(FI19:FL19) -> 41 | FN19: =FI19*K19 -> 0 | FO19: 6076.61 | FP19: 0 | FQ19: 0 | FR19: =SUM(FN19:FQ19) -> 6076.61 | FS19: =FR19-FU19 -> 6076.61 | FT19: Yes | FU19: 0 | FV19: 0 | FW19: 0
B20: 2 | C20: Aroy Fildalgo | D20: Senior Lineman/Journeyman Lineman | E20: Vendor No.02 | G20: MIFPUC-1 | H20: 2018-10-11 | I20: 2018-10-13 | J20: Yes | K20: =VLOOKUP($D20,'C.1 - Rate Sheets'!B:F,2,FALSE) -> 0 | L20: =VLOOKUP($D20,'C.1 - Rate Sheets'!B:F,3,FALSE) -> 136.22 | M20: =VLOOKUP($D20,'C.1 - Rate Sheets'!B:F,4,FALSE) -> 176.19 | N20: =VLOOKUP($D20,'C.1 - Rate Sheets'!B:F,5,FALSE) -> 0 | P20: 9 | U20: 16 | Z20: 16 | FI20: 0 | FJ20: 41 | FK20: 0 | FM20: =SUM(FI20:FL20) -> 41 | FN20: 0 | FO20: 5585.02 | FP20: 0 | FQ20: 0 | FR20: =SUM(FN20:FQ20) -> 5585.02 | FS20: =FR20-FU20 -> 5585.02 | FT20: Yes | FU20: 0 | FV20: 0 | FW20: 0
B21: 3 | C21: Addiel DeCardenas | D21: Senior Lineman/Journeyman Lineman | E21: Vendor No.02 | G21: MIFPUC-1 | H21: 2018-10-11 | I21: 2018-10-13 | J21: Yes | K21: =VLOOKUP($D21,'C.1 - Rate Sheets'!B:F,2,FALSE) -> 0 | L21: =VLOOKUP($D21,'C.1 - Rate Sheets'!B:F,3,FALSE) -> 136.22 | M21: =VLOOKUP($D21,'C.1 - Rate Sheets'!B:F,4,FALSE) -> 176.19 | N21: =VLOOKUP($D21,'C.1 - Rate Sheets'!B:F,5,FALSE) -> 0 | P21: 9 | U21: 16 | Z21: 16 | FI21: =FD21+EY21+ET21+EO21+EJ21+EE21+DZ21+DU21+DP21+DK21+DF21+DA21+CV21+CQ21+CL21+CG21+CB21+BW21+BR21+BM21+BH21+BC21+AX21+AS21+AN21+AI21+AD21+Y21+T21+O21 -> 0 | FJ21: =FE21+EZ21+EU21+EP21+EK21+EF21+EA21+DV21+DQ21+DL21+DG21+DB21+CW21+CR21+CM21+CH21+CC21+BX21+BS21+BN21+BI21+BD21+AY21+AT21+AO21+AJ21+AE21+Z21+U21+P21 -> 41 | FK21: =FF21+FA21+EV21+EQ21+EL21+EG21+EB21+DW21+DR21+DM21+DH21+DC21+CX21+CS21+CN21+CI21+CD21+BY21+BT21+BO21+BJ21+BE21+AZ21+AU21+AP21+AK21+AF21+AA21+V21+Q21 -> 0 | FM21: =SUM(FI21:FL21) -> 41 | FN21: =FI21*K21 -> 0 | FO21: =FJ21*L21 -> 5585.02 | FP21: =FK21*M21 -> 0 | FQ21: =FL21*N21 -> 0 | FR21: =SUM(FN21:FQ21) -> 5585.02 | FS21: =FR21-FU21 -> 5585.02 | FT21: Yes | FU21: 0 | FV21: 0 | FW21: 0
B22: 4 | C22: Bruno Thiago | D22: Senior Lineman/Journeyman Lineman | E22: Vendor No.02 | G22: MIFPUC-1 | H22: 2018-10-11 | I22: 2018-10-13 | J22: Yes | K22: =VLOOKUP($D22,'C.1 - Rate Sheets'!B:F,2,FALSE) -> 0 | L22: =VLOOKUP($D22,'C.1 - Rate Sheets'!B:F,3,FALSE) -> 136.22 | M22: =VLOOKUP($D22,'C.1 - Rate Sheets'!B:F,4,FALSE) -> 176.19 | N22: =VLOOKUP($D22,'C.1 - Rate Sheets'!B:F,5,FALSE) -> 0 | U22: 16 | Z22: 16 | FI22: 0 | FJ22: 32 | FK22: 0 | FM22: 32 | FN22: 0 | FO22: 4359.04 | FP22: 0 | FQ22: 0 | FR22: 4359.04 | FS22: 4359.04 | FT22: Yes | FU22: 0 | FV22: 0 | FW22: 0
B23: 5 | C23: Iran Fernandez | D23: Groundman | E23: Vendor No.02 | G23: MIFPUC-1 | H23: 2018-10-11 | I23: 2018-10-13 | J23: Yes | K23: =VLOOKUP($D23,'C.1 - Rate Sheets'!B:F,2,FALSE) -> 0 | L23: =VLOOKUP($D23,'C.1 - Rate Sheets'!B:F,3,FALSE) -> 99.27 | M23: =VLOOKUP($D23,'C.1 - Rate Sheets'!B:F,4,FALSE) -> 117.21 | N23: =VLOOKUP($D23,'C.1 - Rate Sheets'!B:F,5,FALSE) -> 0 | P23: 9 | U23: 16 | Z23: 16 | FI23: 0 | FJ23: 41 | FK23: 0 | FM23: 41 | FN23: 0 | FO23: 4070.07 | FP23: 0 | FQ23: 0 | FR23: 4070.07 | FS23: 4070.07 | FT23: Yes | FU23: 0 | FV23: 0 | FW23: 0
B24: 6 | C24: Deatrick Forbes | D24: Foreman | E24: Vendor No.02 | G24: MIFPUC-1 | H24: 2018-10-11 | I24: 2018-10-13 | J24: Yes | K24: =VLOOKUP($D24,'C.1 - Rate Sheets'!B:F,2,FALSE) -> 0 | L24: =VLOOKUP($D24,'C.1 - Rate Sheets'!B:F,3,FALSE) -> 148.21 | M24: =VLOOKUP($D24,'C.1 - Rate Sheets'!B:F,4,FALSE) -> 192.19 | N24: =VLOOKUP($D24,'C.1 - Rate Sheets'!B:F,5,FALSE) -> 0 | P24: 9 | U24: 16 | Z24: 16 | FI24: 0 | FJ24: 41 | FK24: 0 | FM24: 41 | FN24: 0 | FO24: 6076.61 | FP24: 0 | FQ24: 0 | FR24: 6076.61 | FS24: 6076.61 | FT24: Yes | FU24: 0 | FV24: 0 | FW24: 0
B25: 7 | C25: Guilermo Arias | D25: Senior Lineman/Journeyman Lineman | E25: Vendor No.02 | G25: MIFPUC-1 | H25: 2018-10-11 | I25: 2018-10-13 | J25: Yes | K25: =VLOOKUP($D25,'C.1 - Rate Sheets'!B:F,2,FALSE) -> 0 | L25: =VLOOKUP($D25,'C.1 - Rate Sheets'!B:F,3,FALSE) -> 136.22 | M25: =VLOOKUP($D25,'C.1 - Rate Sheets'!B:F,4,FALSE) -> 176.19 | N25: =VLOOKUP($D25,'C.1 - Rate Sheets'!B:F,5,FALSE) -> 0 | P25: 9 | U25: 16 | Z25: 16 | FI25: 0 | FJ25: 41 | FK25: 0 | FM25: 41 | FN25: 0 | FO25: 5585.02 | FP25: 0 | FQ25: 0 | FR25: 5585.02 | FS25: 5585.02 | FT25: Yes | FU25: 0 | FV25: 0 | FW25: 0
B26: 8 | C26: Mark Machado | D26: Senior Lineman/Journeyman Lineman | E26: Vendor No.02 | G26: MIFPUC-1 | H26: 2018-10-11 | I26: 2018-10-13 | J26: Yes | K26: =VLOOKUP($D26,'C.1 - Rate Sheets'!B:F,2,FALSE) -> 0 | L26: =VLOOKUP($D26,'C.1 - Rate Sheets'!B:F,3,FALSE) -> 136.22 | M26: =VLOOKUP($D26,'C.1 - Rate Sheets'!B:F,4,FALSE) -> 176.19 | N26: =VLOOKUP($D26,'C.1 - Rate Sheets'!B:F,5,FALSE) -> 0 | U26: 16 | Z26: 16 | FI26: 0 | FJ26: 32 | FK26: 0 | FM26: 32 | FN26: 0 | FO26: 4359.04 | FP26: 0 | FQ26: 0 | FR26: 4359.04 | FS26: 4359.04 | FT26: Yes | FU26: 0 | FV26: 0 | FW26: 0
B27: 9 | C27: Andrew Wilson | D27: Line Tech C | E27: Vendor No.02 | G27: MIFPUC-1 | H27: 2018-10-11 | I27: 2018-10-13 | J27: Yes | K27: =VLOOKUP($D27,'C.1 - Rate Sheets'!B:F,2,FALSE) -> 0 | L27: =VLOOKUP($D27,'C.1 - Rate Sheets'!B:F,3,FALSE) -> 110.51 | M27: =VLOOKUP($D27,'C.1 - Rate Sheets'!B:F,4,FALSE) -> 136.23 | N27: =VLOOKUP($D27,'C.1 - Rate Sheets'!B:F,5,FALSE) -> 0 | P27: 9 | U27: 16 | Z27: 16 | FI27: 0 | FJ27: 41 | FK27: 0 | FM27: 41 | FN27: 0 | FO27: 4530.91 | FP27: 0 | FQ27: 0 | FR27: 4530.91 | FS27: 4530.91 | FT27: Yes | FU27: 0 | FV27: 0 | FW27: 0
B28: 10 | C28: Aaron Bessent | D28: Groundman | E28: Vendor No.02 | G28: MIFPUC-1 | H28: 2018-10-11 | I28: 2018-10-13 | J28: Yes | K28: =VLOOKUP($D28,'C.1 - Rate Sheets'!B:F,2,FALSE) -> 0 | L28: =VLOOKUP($D28,'C.1 - Rate Sheets'!B:F,3,FALSE) -> 99.27 | M28: =VLOOKUP($D28,'C.1 - Rate Sheets'!B:F,4,FALSE) -> 117.21 | N28: =VLOOKUP($D28,'C.1 - Rate Sheets'!B:F,5,FALSE) -> 0 | U28: 16 | Z28: 16 | FI28: 0 | FJ28: 32 | FK28: 0 | FM28: 32 | FN28: 0 | FO28: 3176.64 | FP28: 0 | FQ28: 0 | FR28: 3176.64 | FS28: 3176.64 | FT28: Yes | FU28: 0 | FV28: 0 | FW28: 0
B29: 11 | C29: Kevin Leon | D29: General Foreman | E29: Vendor No.02 | G29: MIFPUC-1 | H29: 2018-10-11 | I29: 2018-10-13 | J29: Yes | K29: =VLOOKUP($D29,'C.1 - Rate Sheets'!B:F,2,FALSE) -> 0 | L29: =VLOOKUP($D29,'C.1 - Rate Sheets'!B:F,3,FALSE) -> 160.21 | M29: =VLOOKUP($D29,'C.1 - Rate Sheets'!B:F,4,FALSE) -> 208.18 | N29: =VLOOKUP($D29,'C.1 - Rate Sheets'!B:F,5,FALSE) -> 0 | P29: 9 | U29: 16 | Z29: 16 | FI29: 0 | FJ29: 41 | FK29: 0 | FM29: 41 | FN29: 0 | FO29: 6568.61 | FP29: 0 | FQ29: 0 | FR29: 6568.61 | FS29: 6568.61
B30: 12 | C30: Joe Preilezo | D30: Safety | E30: Vendor No.02 | G30: MIFPUC-1 | H30: 2018-10-11 | I30: 2018-10-13 | J30: Yes | K30: =VLOOKUP($D30,'C.1 - Rate Sheets'!B:F,2,FALSE) -> 0 | L30: =VLOOKUP($D30,'C.1 - Rate Sheets'!B:F,3,FALSE) -> 148.21 | M30: =VLOOKUP($D30,'C.1 - Rate Sheets'!B:F,4,FALSE) -> 192.19 | N30: =VLOOKUP($D30,'C.1 - Rate Sheets'!B:F,5,FALSE) -> 0 | P30: 9 | U30: 16 | Z30: 16 | FI30: 0 | FJ30: 41 | FK30: 0 | FM30: 41 | FN30: 0 | FO30: 6076.61 | FP30: 0 | FQ30: 0 | FR30: 6076.61 | FS30: 6076.61 | FT30: Yes | FU30: 0 | FV30: 0 | FW30: 0
B31: 13 | C31: Jon Morey | D31: Safety | E31: Vendor No.02 | G31: MIFPUC-1 | H31: 2018-10-11 | I31: 2018-10-13 | J31: Yes | K31: =VLOOKUP($D31,'C.1 - Rate Sheets'!B:F,2,FALSE) -> 0 | L31: =VLOOKUP($D31,'C.1 - Rate Sheets'!B:F,3,FALSE) -> 148.21 | M31: =VLOOKUP($D31,'C.1 - Rate Sheets'!B:F,4,FALSE) -> 192.19 | N31: =VLOOKUP($D31,'C.1 - Rate Sheets'!B:F,5,FALSE) -> 0 | P31: 9 | U31: 16 | Z31: 16 | FI31: 0 | FJ31: 41 | FK31: 0 | FM31: 41 | FN31: 0 | FO31: 6076.61 | FP31: 0 | FQ31: 0 | FR31: 6076.61 | FS31: 6076.61 | FT31: Yes | FU31: 0 | FV31: 0 | FW31: 0
B32: 14 | C32: Reymond Ugalde | D32: Mechanic | E32: Vendor No.02 | G32: MIFPUC-1 | H32: 2018-10-11 | I32: 2018-10-13 | J32: Yes | K32: =VLOOKUP($D32,'C.1 - Rate Sheets'!B:F,2,FALSE) -> 0 | L32: =VLOOKUP($D32,'C.1 - Rate Sheets'!B:F,3,FALSE) -> 116.87 | M32: =VLOOKUP($D32,'C.1 - Rate Sheets'!B:F,4,FALSE) -> 151.13 | N32: =VLOOKUP($D32,'C.1 - Rate Sheets'!B:F,5,FALSE) -> 0 | P32: 9 | U32: 16 | Z32: 16 | FI32: 0 | FJ32: 41 | FK32: 0 | FM32: 41 | FN32: 0 | FO32: 4791.67 | FP32: 0 | FQ32: 0 | FR32: 4791.67 | FS32: 4791.67 | FT32: Yes | FU32: 0 | FV32: 0 | FW32: 0
B33: 15 | C33: Nate Wells | D33: Foreman | E33: Vendor No.02 | G33: MIFPUC-1 | H33: 2018-10-11 | I33: 2018-10-13 | J33: Yes | K33: =VLOOKUP($D33,'C.1 - Rate Sheets'!B:F,2,FALSE) -> 0 | L33: =VLOOKUP($D33,'C.1 - Rate Sheets'!B:F,3,FALSE) -> 148.21 | M33: =VLOOKUP($D33,'C.1 - Rate Sheets'!B:F,4,FALSE) -> 192.19 | N33: =VLOOKUP($D33,'C.1 - Rate Sheets'!B:F,5,FALSE) -> 0 | P33: 9 | U33: 16 | Z33: 16 | FI33: 0 | FJ33: 41 | FK33: 0 | FM33: 41 | FN33: 0 | FO33: 6076.61 | FP33: 0 | FQ33: 0 | FR33: 6076.61 | FS33: 6076.61 | FT33: Yes | FU33: 0 | FV33: 0 | FW33: 0
B34: 16 | C34: Emir Alvarado | D34: Senior Lineman/Journeyman Lineman | E34: Vendor No.02 | G34: MIFPUC-1 | H34: 2018-10-11 | I34: 2018-10-13 | J34: Yes | K34: =VLOOKUP($D34,'C.1 - Rate Sheets'!B:F,2,FALSE) -> 0 | L34: =VLOOKUP($D34,'C.1 - Rate Sheets'!B:F,3,FALSE) -> 136.22 | M34: =VLOOKUP($D34,'C.1 - Rate Sheets'!B:F,4,FALSE) -> 176.19 | N34: =VLOOKUP($D34,'C.1 - Rate Sheets'!B:F,5,FALSE) -> 0 | P34: 9 | U34: 16 | Z34: 16 | FI34: 0 | FJ34: 41 | FK34: 0 | FM34: 41 | FN34: 0 | FO34: 5585.02 | FP34: 0 | FQ34: 0 | FR34: 5585.02 | FS34: 5585.02 | FT34: Yes | FU34: 0 | FV34: 0 | FW34: 0
B35: 17 | C35: Doyle Rondtree | D35: Senior Lineman/Journeyman Lineman | E35: Vendor No.02 | G35: MIFPUC-1 | H35: 2018-10-11 | I35: 2018-10-13 | J35: Yes | K35: =VLOOKUP($D35,'C.1 - Rate Sheets'!B:F,2,FALSE) -> 0 | L35: =VLOOKUP($D35,'C.1 - Rate Sheets'!B:F,3,FALSE) -> 136.22 | M35: =VLOOKUP($D35,'C.1 - Rate Sheets'!B:F,4,FALSE) -> 176.19 | N35: =VLOOKUP($D35,'C.1 - Rate Sheets'!B:F,5,FALSE) -> 0 | P35: 9 | U35: 16 | Z35: 16 | FI35: 0 | FJ35: 41 | FK35: 0 | FM35: 41 | FN35: 0 | FO35: 5585.02 | FP35: 0 | FQ35: 0 | FR35: 5585.02 | FS35: 5585.02 | FT35: Yes | FU35: 0 | FV35: 0 | FW35: 0
B36: 18 | C36: Dominick Hernandez | D36: Apprentice Helper | E36: Vendor No.02 | G36: MIFPUC-1 | H36: 2018-10-11 | I36: 2018-10-13 | J36: Yes | K36: =VLOOKUP($D36,'C.1 - Rate Sheets'!B:F,2,FALSE) -> 0 | L36: =VLOOKUP($D36,'C.1 - Rate Sheets'!B:F,3,FALSE) -> 102.25 | M36: =VLOOKUP($D36,'C.1 - Rate Sheets'!B:F,4,FALSE) -> 130.74 | N36: =VLOOKUP($D36,'C.1 - Rate Sheets'!B:F,5,FALSE) -> 0 | P36: 9 | U36: 16 | Z36: 16 | FI36: 0 | FJ36: 41 | FK36: 0 | FM36: 41 | FN36: 0 | FO36: 4192.25 | FP36: 0 | FQ36: 0 | FR36: 4192.25 | FS36: 4192.25 | FT36: Yes | FU36: 0 | FV36: 0 | FW36: 0
B37: 19 | C37: Brian Abbate | D37: Groundman | E37: Vendor No.02 | G37: MIFPUC-1 | H37: 2018-10-11 | I37: 2018-10-13 | J37: Yes | K37: =VLOOKUP($D37,'C.1 - Rate Sheets'!B:F,2,FALSE) -> 0 | L37: =VLOOKUP($D37,'C.1 - Rate Sheets'!B:F,3,FALSE) -> 99.27 | M37: =VLOOKUP($D37,'C.1 - Rate Sheets'!B:F,4,FALSE) -> 117.21 | N37: =VLOOKUP($D37,'C.1 - Rate Sheets'!B:F,5,FALSE) -> 0 | P37: 9 | U37: 16 | Z37: 16 | FI37: 0 | FJ37: 41 | FK37: 0 | FM37: 41 | FN37: 0 | FO37: 4070.07 | FP37: 0 | FQ37: 0 | FR37: 4070.07 | FS37: 4070.07 | FT37: Yes | FU37: 0 | FV37: 0 | FW37: 0
B38: 20 | C38: Jose De Jesus | D38: Foreman | E38: Vendor No.02 | G38: MIFPUC-1 | H38: 2018-10-11 | I38: 2018-10-13 | J38: Yes | K38: =VLOOKUP($D38,'C.1 - Rate Sheets'!B:F,2,FALSE) -> 0 | L38: =VLOOKUP($D38,'C.1 - Rate Sheets'!B:F,3,FALSE) -> 148.21 | M38: =VLOOKUP($D38,'C.1 - Rate Sheets'!B:F,4,FALSE) -> 192.19 | N38: =VLOOKUP($D38,'C.1 - Rate Sheets'!B:F,5,FALSE) -> 0 | P38: 9 | U38: 16 | Z38: 16 | FI38: 0 | FJ38: 41 | FK38: 0 | FM38: 41 | FN38: 0 | FO38: 6076.61 | FP38: 0 | FQ38: 0 | FR38: 6076.61 | FS38: 6076.61 | FT38: Yes | FU38: 0 | FV38: 0 | FW38: 0
B39: 21 | C39: Hector Rodriguez | D39: Senior Lineman/Journeyman Lineman | E39: Vendor No.02 | G39: MIFPUC-1 | H39: 2018-10-11 | I39: 2018-10-13 | J39: Yes | K39: =VLOOKUP($D39,'C.1 - Rate Sheets'!B:F,2,FALSE) -> 0 | L39: =VLOOKUP($D39,'C.1 - Rate Sheets'!B:F,3,FALSE) -> 136.22 | M39: =VLOOKUP($D39,'C.1 - Rate Sheets'!B:F,4,FALSE) -> 176.19 | N39: =VLOOKUP($D39,'C.1 - Rate Sheets'!B:F,5,FALSE) -> 0 | P39: 9 | U39: 16 | Z39: 16 | FI39: 0 | FJ39: 41 | FK39: 0 | FM39: 41 | FN39: 0 | FO39: 5585.02 | FP39: 0 | FQ39: 0 | FR39: 5585.02 | FS39: 5585.02 | FT39: Yes | FU39: 0 | FV39: 0 | FW39: 0
B40: 22 | C40: Randal Osteen | D40: Line Tech B | E40: Vendor No.02 | G40: MIFPUC-1 | H40: 2018-10-11 | I40: 2018-10-13 | J40: Yes | K40: =VLOOKUP($D40,'C.1 - Rate Sheets'!B:F,2,FALSE) -> 0 | L40: =VLOOKUP($D40,'C.1 - Rate Sheets'!B:F,3,FALSE) -> 118.24 | M40: =VLOOKUP($D40,'C.1 - Rate Sheets'!B:F,4,FALSE) -> 152.22 | N40: =VLOOKUP($D40,'C.1 - Rate Sheets'!B:F,5,FALSE) -> 0 | P40: 9 | U40: 16 | Z40: 16 | FI40: 0 | FJ40: 41 | FK40: 0 | FM40: 41 | FN40: 0 | FO40: 4847.84 | FP40: 0 | FQ40: 0 | FR40: 4847.84 | FS40: 4847.84 | FT40: Yes | FU40: 0 | FV40: 0 | FW40: 0
B41: 23 | C41: Jorge Barroso | D41: Senior Lineman/Journeyman Lineman | E41: Vendor No.02 | G41: MIFPUC-1 | H41: 2018-10-11 | I41: 2018-10-13 | J41: Yes | K41: =VLOOKUP($D41,'C.1 - Rate Sheets'!B:F,2,FALSE) -> 0 | L41: =VLOOKUP($D41,'C.1 - Rate Sheets'!B:F,3,FALSE) -> 136.22 | M41: =VLOOKUP($D41,'C.1 - Rate Sheets'!B:F,4,FALSE) -> 176.19 | N41: =VLOOKUP($D41,'C.1 - Rate Sheets'!B:F,5,FALSE) -> 0 | P41: 9 | U41: 16 | Z41: 16 | FI41: 0 | FJ41: 41 | FK41: 0 | FM41: 41 | FN41: 0 | FO41: 5585.02 | FP41: 0 | FQ41: 0 | FR41: 5585.02 | FS41: 5585.02 | FT41: Yes | FU41: 0 | FV41: 0 | FW41: 0
B42: 24 | C42: Chadwick Kern | D42: Groundman | E42: Vendor No.02 | G42: MIFPUC-1 | H42: 2018-10-11 | I42: 2018-10-13 | J42: Yes | K42: =VLOOKUP($D42,'C.1 - Rate Sheets'!B:F,2,FALSE) -> 0 | L42: =VLOOKUP($D42,'C.1 - Rate Sheets'!B:F,3,FALSE) -> 99.27 | M42: =VLOOKUP($D42,'C.1 - Rate Sheets'!B:F,4,FALSE) -> 117.21 | N42: =VLOOKUP($D42,'C.1 - Rate Sheets'!B:F,5,FALSE) -> 0 | P42: 9 | U42: 16 | Z42: 16 | FI42: 0 | FJ42: 41 | FK42: 0 | FM42: 41 | FN42: 0 | FO42: 4070.07 | FP42: 0 | FQ42: 0 | FR42: 4070.07 | FS42: 4070.07 | FT42: Yes | FU42: 0 | FV42: 0 | FW42: 0
B43: 25 | C43: John Harn | D43: General Foreman | E43: Vendor No.02 | G43: MIFPUC-1 | H43: 2018-10-11 | I43: 2018-10-13 | J43: Yes | K43: =VLOOKUP($D43,'C.1 - Rate Sheets'!B:F,2,FALSE) -> 0 | L43: =VLOOKUP($D43,'C.1 - Rate Sheets'!B:F,3,FALSE) -> 160.21 | M43: =VLOOKUP($D43,'C.1 - Rate Sheets'!B:F,4,FALSE) -> 208.18 | N43: =VLOOKUP($D43,'C.1 - Rate Sheets'!B:F,5,FALSE) -> 0 | P43: 9 | U43: 16 | Z43: 16 | FI43: 0 | FJ43: 41 | FK43: 0 | FM43: 41 | FN43: 0 | FO43: 6568.61 | FP43: 0 | FQ43: 0 | FR43: 6568.61 | FS43: 6568.61 | FT43: Yes | FU43: 0 | FV43: 0 | FW43: 0
B44: 26 | C44: Bonnie Knopf | D44: Safety | E44: Vendor No.02 | G44: MIFPUC-1 | H44: 2018-10-11 | I44: 2018-10-13 | J44: Yes | K44: =VLOOKUP($D44,'C.1 - Rate Sheets'!B:F,2,FALSE) -> 0 | L44: =VLOOKUP($D44,'C.1 - Rate Sheets'!B:F,3,FALSE) -> 148.21 | M44: =VLOOKUP($D44,'C.1 - Rate Sheets'!B:F,4,FALSE) -> 192.19 | N44: =VLOOKUP($D44,'C.1 - Rate Sheets'!B:F,5,FALSE) -> 0 | P44: 9 | U44: 16 | Z44: 16 | FI44: 0 | FJ44: 41 | FK44: 0 | FM44: 41 | FN44: 0 | FO44: 6076.61 | FP44: 0 | FQ44: 0 | FR44: 6076.61 | FS44: 6076.61 | FT44: Yes | FU44: 0 | FV44: 0 | FW44: 0
B45: 27 | C45: John Cour | D45: General Foreman | E45: Vendor No.02 | G45: MIFPUC-1 | H45: 2018-10-11 | I45: 2018-10-13 | J45: Yes | K45: =VLOOKUP($D45,'C.1 - Rate Sheets'!B:F,2,FALSE) -> 0 | L45: =VLOOKUP($D45,'C.1 - Rate Sheets'!B:F,3,FALSE) -> 160.21 | M45: =VLOOKUP($D45,'C.1 - Rate Sheets'!B:F,4,FALSE) -> 208.18 | N45: =VLOOKUP($D45,'C.1 - Rate Sheets'!B:F,5,FALSE) -> 0 | P45: 9 | U45: 16 | Z45: 16 | FI45: 0 | FJ45: 41 | FK45: 0 | FM45: 41 | FN45: 0 | FO45: 6568.61 | FP45: 0 | FQ45: 0 | FR45: 6568.61 | FS45: 6568.61 | FT45: Yes | FU45: 0 | FV45: 0 | FW45: 0
B46: 28 | C46: Kinsey Winstead | D46: Senior Lineman/Journeyman Lineman | E46: Vendor No.02 | G46: MIFPUC-1 | H46: 2018-10-11 | I46: 2018-10-13 | J46: Yes | K46: =VLOOKUP($D46,'C.1 - Rate Sheets'!B:F,2,FALSE) -> 0 | L46: =VLOOKUP($D46,'C.1 - Rate Sheets'!B:F,3,FALSE) -> 136.22 | M46: =VLOOKUP($D46,'C.1 - Rate Sheets'!B:F,4,FALSE) -> 176.19 | N46: =VLOOKUP($D46,'C.1 - Rate Sheets'!B:F,5,FALSE) -> 0 | P46: 9 | U46: 16 | Z46: 16 | FI46: 0 | FJ46: 41 | FK46: 0 | FM46: 41 | FN46: 0 | FO46: 5585.02 | FP46: 0 | FQ46: 0 | FR46: 5585.02 | FS46: 5585.02 | FT46: Yes | FU46: 0 | FV46: 0 | FW46: 0
B47: 29 | C47: Sigfrido Chiong | D47: Foreman | E47: Vendor No.02 | G47: MIFPUC-1 | H47: 2018-10-11 | I47: 2018-10-13 | J47: Yes | K47: =VLOOKUP($D47,'C.1 - Rate Sheets'!B:F,2,FALSE) -> 0 | L47: =VLOOKUP($D47,'C.1 - Rate Sheets'!B:F,3,FALSE) -> 148.21 | M47: =VLOOKUP($D47,'C.1 - Rate Sheets'!B:F,4,FALSE) -> 192.19 | N47: =VLOOKUP($D47,'C.1 - Rate Sheets'!B:F,5,FALSE) -> 0 | P47: 9 | U47: 16 | Z47: 16 | FI47: 0 | FJ47: 41 | FK47: 0 | FM47: 41 | FN47: 0 | FO47: 6076.61 | FP47: 0 | FQ47: 0 | FR47: 6076.61 | FS47: 6076.61 | FT47: Yes | FU47: 0 | FV47: 0 | FW47: 0
B48: 30 | C48: Jose Guttierez | D48: Senior Lineman/Journeyman Lineman | E48: Vendor No.02 | G48: MIFPUC-1 | H48: 2018-10-11 | I48: 2018-10-13 | J48: Yes | K48: =VLOOKUP($D48,'C.1 - Rate Sheets'!B:F,2,FALSE) -> 0 | L48: =VLOOKUP($D48,'C.1 - Rate Sheets'!B:F,3,FALSE) -> 136.22 | M48: =VLOOKUP($D48,'C.1 - Rate Sheets'!B:F,4,FALSE) -> 176.19 | N48: =VLOOKUP($D48,'C.1 - Rate Sheets'!B:F,5,FALSE) -> 0 | P48: 9 | U48: 16 | Z48: 16 | FI48: 0 | FJ48: 41 | FK48: 0 | FM48: 41 | FN48: 0 | FO48: 5585.02 | FP48: 0 | FQ48: 0 | FR48: 5585.02 | FS48: 5585.02 | FT48: Yes | FU48: 0 | FV48: 0 | FW48: 0
B49: 31 | C49: Dakota Pickup | D49: Apprentice Helper | E49: Vendor No.02 | G49: MIFPUC-1 | H49: 2018-10-11 | I49: 2018-10-13 | J49: Yes | K49: =VLOOKUP($D49,'C.1 - Rate Sheets'!B:F,2,FALSE) -> 0 | L49: =VLOOKUP($D49,'C.1 - Rate Sheets'!B:F,3,FALSE) -> 102.25 | M49: =VLOOKUP($D49,'C.1 - Rate Sheets'!B:F,4,FALSE) -> 130.74 | N49: =VLOOKUP($D49,'C.1 - Rate Sheets'!B:F,5,FALSE) -> 0 | P49: 9 | U49: 16 | Z49: 16 | FI49: 0 | FJ49: 41 | FK49: 0 | FM49: 41 | FN49: 0 | FO49: 4192.25 | FP49: 0 | FQ49: 0 | FR49: 4192.25 | FS49: 4192.25 | FT49: Yes | FU49: 0 | FV49: 0 | FW49: 0
B50: 32 | C50: Jeremy Minkler | D50: Groundman | E50: Vendor No.02 | G50: MIFPUC-1 | H50: 2018-10-11 | I50: 2018-10-13 | J50: Yes | K50: =VLOOKUP($D50,'C.1 - Rate Sheets'!B:F,2,FALSE) -> 0 | L50: =VLOOKUP($D50,'C.1 - Rate Sheets'!B:F,3,FALSE) -> 99.27 | M50: =VLOOKUP($D50,'C.1 - Rate Sheets'!B:F,4,FALSE) -> 117.21 | N50: =VLOOKUP($D50,'C.1 - Rate Sheets'!B:F,5,FALSE) -> 0 | P50: 9 | U50: 16 | Z50: 16 | FI50: 0 | FJ50: 41 | FK50: 0 | FM50: 41 | FN50: 0 | FO50: 4070.07 | FP50: 0 | FQ50: 0 | FR50: 4070.07 | FS50: 4070.07
B51: 33 | C51: Billy Dillashaw | D51: Equipment Operator | E51: Vendor No.02 | G51: MIFPUC-1 | H51: 2018-10-11 | I51: 2018-10-13 | J51: Yes | K51: =VLOOKUP($D51,'C.1 - Rate Sheets'!B:F,2,FALSE) -> 0 | L51: =VLOOKUP($D51,'C.1 - Rate Sheets'!B:F,3,FALSE) -> 116.87 | M51: =VLOOKUP($D51,'C.1 - Rate Sheets'!B:F,4,FALSE) -> 151.13 | N51: =VLOOKUP($D51,'C.1 - Rate Sheets'!B:F,5,FALSE) -> 0 | U51: 16 | Z51: 16 | FI51: 0 | FJ51: 32 | FK51: 0 | FM51: 32 | FN51: 0 | FO51: 3739.84 | FP51: 0 | FQ51: 0 | FR51: 3739.84 | FS51: 3739.84 | FT51: Yes | FU51: 0 | FV51: 0 | FW51: 0
B52: 34 | C52: Mike Katulka | D52: Foreman | E52: Vendor No.02 | G52: MIFPUC-1 | H52: 2018-10-11 | I52: 2018-10-13 | J52: Yes | K52: =VLOOKUP($D52,'C.1 - Rate Sheets'!B:F,2,FALSE) -> 0 | L52: =VLOOKUP($D52,'C.1 - Rate Sheets'!B:F,3,FALSE) -> 148.21 | M52: =VLOOKUP($D52,'C.1 - Rate Sheets'!B:F,4,FALSE) -> 192.19 | N52: =VLOOKUP($D52,'C.1 - Rate Sheets'!B:F,5,FALSE) -> 0 | P52: 9 | U52: 16 | Z52: 16 | FI52: 0 | FJ52: 41 | FK52: 0 | FM52: 41 | FN52: 0 | FO52: 6076.61 | FP52: 0 | FQ52: 0 | FR52: 6076.61 | FS52: 6076.61 | FT52: Yes | FU52: 0 | FV52: 0 | FW52: 0
B53: 35 | C53: Yonielt Alfonso | D53: Senior Lineman/Journeyman Lineman | E53: Vendor No.02 | G53: MIFPUC-1 | H53: 2018-10-11 | I53: 2018-10-13 | J53: Yes | K53: =VLOOKUP($D53,'C.1 - Rate Sheets'!B:F,2,FALSE) -> 0 | L53: =VLOOKUP($D53,'C.1 - Rate Sheets'!B:F,3,FALSE) -> 136.22 | M53: =VLOOKUP($D53,'C.1 - Rate Sheets'!B:F,4,FALSE) -> 176.19 | N53: =VLOOKUP($D53,'C.1 - Rate Sheets'!B:F,5,FALSE) -> 0 | P53: 9 | U53: 16 | Z53: 16 | FI53: 0 | FJ53: 41 | FK53: 0 | FM53: 41 | FN53: 0 | FO53: 5585.02 | FP53: 0 | FQ53: 0 | FR53: 5585.02 | FS53: 5585.02 | FT53: Yes | FU53: 0 | FV53: 0 | FW53: 0
B54: 36 | C54: Joseph Kelly | D54: Line Tech B | E54: Vendor No.02 | G54: MIFPUC-1 | H54: 2018-10-11 | I54: 2018-10-13 | J54: Yes | K54: =VLOOKUP($D54,'C.1 - Rate Sheets'!B:F,2,FALSE) -> 0 | L54: =VLOOKUP($D54,'C.1 - Rate Sheets'!B:F,3,FALSE) -> 118.24 | M54: =VLOOKUP($D54,'C.1 - Rate Sheets'!B:F,4,FALSE) -> 152.22 | N54: =VLOOKUP($D54,'C.1 - Rate Sheets'!B:F,5,FALSE) -> 0 | P54: 9 | U54: 16 | Z54: 16 | FI54: 0 | FJ54: 41 | FK54: 0 | FM54: 41 | FN54: 0 | FO54: 4847.84 | FP54: 0 | FQ54: 0 | FR54: 4847.84 | FS54: 4847.84 | FT54: Yes | FU54: 0 | FV54: 0 | FW54: 0
B55: 37 | C55: Chris Miller | D55: Apprentice Helper | E55: Vendor No.02 | G55: MIFPUC-1 | H55: 2018-10-11 | I55: 2018-10-13 | J55: Yes | K55: =VLOOKUP($D55,'C.1 - Rate Sheets'!B:F,2,FALSE) -> 0 | L55: =VLOOKUP($D55,'C.1 - Rate Sheets'!B:F,3,FALSE) -> 102.25 | M55: =VLOOKUP($D55,'C.1 - Rate Sheets'!B:F,4,FALSE) -> 130.74 | N55: =VLOOKUP($D55,'C.1 - Rate Sheets'!B:F,5,FALSE) -> 0 | P55: 9 | U55: 16 | Z55: 16 | FI55: 0 | FJ55: 41 | FK55: 0 | FM55: 41 | FN55: 0 | FO55: 4192.25 | FP55: 0 | FQ55: 0 | FR55: 4192.25 | FS55: 4192.25 | FT55: Yes | FU55: 0 | FV55: 0 | FW55: 0
B56: 38 | C56: Anthony Quay | D56: Equipment Operator | E56: Vendor No.02 | G56: MIFPUC-1 | H56: 2018-10-11 | I56: 2018-10-13 | J56: Yes | K56: =VLOOKUP($D56,'C.1 - Rate Sheets'!B:F,2,FALSE) -> 0 | L56: =VLOOKUP($D56,'C.1 - Rate Sheets'!B:F,3,FALSE) -> 116.87 | M56: =VLOOKUP($D56,'C.1 - Rate Sheets'!B:F,4,FALSE) -> 151.13 | N56: =VLOOKUP($D56,'C.1 - Rate Sheets'!B:F,5,FALSE) -> 0 | U56: 16 | Z56: 16 | FI56: 0 | FJ56: 32 | FK56: 0 | FM56: 32 | FN56: 0 | FO56: 3739.84 | FP56: 0 | FQ56: 0 | FR56: 3739.84 | FS56: 3739.84 | FT56: Yes | FU56: 0 | FV56: 0 | FW56: 0
B57: 39 | C57: Ismael Rivera | D57: Foreman | E57: Vendor No.02 | G57: MIFPUC-1 | H57: 2018-10-11 | I57: 2018-10-13 | J57: Yes | K57: =VLOOKUP($D57,'C.1 - Rate Sheets'!B:F,2,FALSE) -> 0 | L57: =VLOOKUP($D57,'C.1 - Rate Sheets'!B:F,3,FALSE) -> 148.21 | M57: =VLOOKUP($D57,'C.1 - Rate Sheets'!B:F,4,FALSE) -> 192.19 | N57: =VLOOKUP($D57,'C.1 - Rate Sheets'!B:F,5,FALSE) -> 0 | P57: 9 | U57: 16 | Z57: 16 | FI57: 0 | FJ57: 41 | FK57: 0 | FM57: 41 | FN57: 0 | FO57: 6076.61 | FP57: 0 | FQ57: 0 | FR57: 6076.61 | FS57: 6076.61 | FT57: Yes | FU57: 0 | FV57: 0 | FW57: 0
B58: 40 | C58: Cesar Bello | D58: Senior Lineman/Journeyman Lineman | E58: Vendor No.02 | G58: MIFPUC-1 | H58: 2018-10-11 | I58: 2018-10-13 | J58: Yes | K58: =VLOOKUP($D58,'C.1 - Rate Sheets'!B:F,2,FALSE) -> 0 | L58: =VLOOKUP($D58,'C.1 - Rate Sheets'!B:F,3,FALSE) -> 136.22 | M58: =VLOOKUP($D58,'C.1 - Rate Sheets'!B:F,4,FALSE) -> 176.19 | N58: =VLOOKUP($D58,'C.1 - Rate Sheets'!B:F,5,FALSE) -> 0 | P58: 9 | U58: 16 | Z58: 16 | FI58: 0 | FJ58: 41 | FK58: 0 | FM58: 41 | FN58: 0 | FO58: 5585.02 | FP58: 0 | FQ58: 0 | FR58: 5585.02 | FS58: 5585.02 | FT58: Yes | FU58: 0 | FV58: 0 | FW58: 0
B59: 41 | C59: Pedro Rico | D59: Senior Lineman/Journeyman Lineman | E59: Vendor No.02 | G59: MIFPUC-1 | H59: 2018-10-11 | I59: 2018-10-13 | J59: Yes | K59: =VLOOKUP($D59,'C.1 - Rate Sheets'!B:F,2,FALSE) -> 0 | L59: =VLOOKUP($D59,'C.1 - Rate Sheets'!B:F,3,FALSE) -> 136.22 | M59: =VLOOKUP($D59,'C.1 - Rate Sheets'!B:F,4,FALSE) -> 176.19 | N59: =VLOOKUP($D59,'C.1 - Rate Sheets'!B:F,5,FALSE) -> 0 | P59: 9 | U59: 16 | Z59: 16 | FI59: 0 | FJ59: 41 | FK59: 0 | FM59: 41 | FN59: 0 | FO59: 5585.02 | FP59: 0 | FQ59: 0 | FR59: 5585.02 | FS59: 5585.02 | FT59: Yes | FU59: 0 | FV59: 0 | FW59: 0
B60: 42 | C60: Giovanni Febus | D60: Senior Lineman/Journeyman Lineman | E60: Vendor No.02 | G60: MIFPUC-1 | H60: 2018-10-11 | I60: 2018-10-13 | J60: Yes | K60: =VLOOKUP($D60,'C.1 - Rate Sheets'!B:F,2,FALSE) -> 0 | L60: =VLOOKUP($D60,'C.1 - Rate Sheets'!B:F,3,FALSE) -> 136.22 | M60: =VLOOKUP($D60,'C.1 - Rate Sheets'!B:F,4,FALSE) -> 176.19 | N60: =VLOOKUP($D60,'C.1 - Rate Sheets'!B:F,5,FALSE) -> 0 | P60: 9 | U60: 16 | Z60: 16 | FI60: 0 | FJ60: 41 | FK60: 0 | FM60: 41 | FN60: 0 | FO60: 5585.02 | FP60: 0 | FQ60: 0 | FR60: 5585.02 | FS60: 5585.02 | FT60: Yes | FU60: 0 | FV60: 0 | FW60: 0
B61: 43 | C61: Tanner Lewis | D61: Apprentice Helper | E61: Vendor No.02 | G61: MIFPUC-1 | H61: 2018-10-11 | I61: 2018-10-13 | J61: Yes | K61: =VLOOKUP($D61,'C.1 - Rate Sheets'!B:F,2,FALSE) -> 0 | L61: =VLOOKUP($D61,'C.1 - Rate Sheets'!B:F,3,FALSE) -> 102.25 | M61: =VLOOKUP($D61,'C.1 - Rate Sheets'!B:F,4,FALSE) -> 130.74 | N61: =VLOOKUP($D61,'C.1 - Rate Sheets'!B:F,5,FALSE) -> 0 | P61: 9 | U61: 16 | Z61: 16 | FI61: 0 | FJ61: 41 | FK61: 0 | FM61: 41 | FN61: 0 | FO61: 4192.25 | FP61: 0 | FQ61: 0 | FR61: 4192.25 | FS61: 4192.25 | FT61: No | FU61: 0 | FV61: 0 | FW61: 0
B62: 44 | C62: Yeudiel Rivera | D62: Foreman | E62: Vendor No.02 | G62: MIFPUC-1 | H62: 2018-10-11 | I62: 2018-10-13 | J62: Yes | K62: =VLOOKUP($D62,'C.1 - Rate Sheets'!B:F,2,FALSE) -> 0 | L62: =VLOOKUP($D62,'C.1 - Rate Sheets'!B:F,3,FALSE) -> 148.21 | M62: =VLOOKUP($D62,'C.1 - Rate Sheets'!B:F,4,FALSE) -> 192.19 | N62: =VLOOKUP($D62,'C.1 - Rate Sheets'!B:F,5,FALSE) -> 0 | P62: 9 | U62: 16 | Z62: 16 | FI62: 0 | FJ62: 41 | FK62: 0 | FM62: 41 | FN62: 0 | FO62: 6076.61 | FP62: 0 | FQ62: 0 | FR62: 6076.61 | FS62: 6076.61 | FT62: Yes | FU62: 0 | FV62: 0 | FW62: 0
B63: 45 | C63: Angel Calo | D63: Senior Lineman/Journeyman Lineman | E63: Vendor No.02 | G63: MIFPUC-1 | H63: 2018-10-11 | I63: 2018-10-13 | J63: Yes | K63: =VLOOKUP($D63,'C.1 - Rate Sheets'!B:F,2,FALSE) -> 0 | L63: =VLOOKUP($D63,'C.1 - Rate Sheets'!B:F,3,FALSE) -> 136.22 | M63: =VLOOKUP($D63,'C.1 - Rate Sheets'!B:F,4,FALSE) -> 176.19 | N63: =VLOOKUP($D63,'C.1 - Rate Sheets'!B:F,5,FALSE) -> 0 | P63: 9 | U63: 16 | Z63: 16 | FI63: 0 | FJ63: 41 | FK63: 0 | FM63: 41 | FN63: 0 | FO63: 5585.02 | FP63: 0 | FQ63: 0 | FR63: 5585.02 | FS63: 5585.02 | FT63: Yes | FU63: 0 | FV63: 0 | FW63: 0
B64: 46 | C64: Jose Clinton | D64: Senior Lineman/Journeyman Lineman | E64: Vendor No.02 | G64: MIFPUC-1 | H64: 2018-10-11 | I64: 2018-10-13 | J64: Yes | K64: =VLOOKUP($D64,'C.1 - Rate Sheets'!B:F,2,FALSE) -> 0 | L64: =VLOOKUP($D64,'C.1 - Rate Sheets'!B:F,3,FALSE) -> 136.22 | M64: =VLOOKUP($D64,'C.1 - Rate Sheets'!B:F,4,FALSE) -> 176.19 | N64: =VLOOKUP($D64,'C.1 - Rate Sheets'!B:F,5,FALSE) -> 0 | P64: 9 | U64: 16 | Z64: 16 | FI64: 0 | FJ64: 41 | FK64: 0 | FM64: 41 | FN64: 0 | FO64: 5585.02 | FP64: 0 | FQ64: 0 | FR64: 5585.02 | FS64: 5585.02 | FT64: Yes | FU64: 0 | FV64: 0 | FW64: 0
B65: 47 | C65: Joseph Febus | D65: Groundman | E65: Vendor No.02 | G65: MIFPUC-1 | H65: 2018-10-11 | I65: 2018-10-13 | J65: Yes | K65: =VLOOKUP($D65,'C.1 - Rate Sheets'!B:F,2,FALSE) -> 0 | L65: =VLOOKUP($D65,'C.1 - Rate Sheets'!B:F,3,FALSE) -> 99.27 | M65: =VLOOKUP($D65,'C.1 - Rate Sheets'!B:F,4,FALSE) -> 117.21 | N65: =VLOOKUP($D65,'C.1 - Rate Sheets'!B:F,5,FALSE) -> 0 | P65: 9 | U65: 16 | Z65: 16 | FI65: 0 | FJ65: 41 | FK65: 0 | FM65: 41 | FN65: 0 | FO65: 4070.07 | FP65: 0 | FQ65: 0 | FR65: 4070.07 | FS65: 4070.07 | FT65: Yes | FU65: 0 | FV65: 0 | FW65: 0
B66: 48 | C66: Scotty Hogan | D66: Equipment Operator | E66: Vendor No.02 | G66: MIFPUC-1 | H66: 2018-10-11 | I66: 2018-10-13 | J66: Yes | K66: =VLOOKUP($D66,'C.1 - Rate Sheets'!B:F,2,FALSE) -> 0 | L66: =VLOOKUP($D66,'C.1 - Rate Sheets'!B:F,3,FALSE) -> 116.87 | M66: =VLOOKUP($D66,'C.1 - Rate Sheets'!B:F,4,FALSE) -> 151.13 | N66: =VLOOKUP($D66,'C.1 - Rate Sheets'!B:F,5,FALSE) -> 0 | U66: 16 | Z66: 16 | FI66: 0 | FJ66: 32 | FK66: 0 | FM66: 32 | FN66: 0 | FO66: 3739.84 | FP66: 0 | FQ66: 0 | FR66: 3739.84 | FS66: 3739.84 | FT66: Yes | FU66: 0 | FV66: 0 | FW66: 0
B67: 49 | C67: John Davis | D67: Foreman | E67: Vendor No.02 | G67: MIFPUC-1 | H67: 2018-10-11 | I67: 2018-10-13 | J67: Yes | K67: =VLOOKUP($D67,'C.1 - Rate Sheets'!B:F,2,FALSE) -> 0 | L67: =VLOOKUP($D67,'C.1 - Rate Sheets'!B:F,3,FALSE) -> 148.21 | M67: =VLOOKUP($D67,'C.1 - Rate Sheets'!B:F,4,FALSE) -> 192.19 | N67: =VLOOKUP($D67,'C.1 - Rate Sheets'!B:F,5,FALSE) -> 0 | U67: 16 | Z67: 16 | FI67: 0 | FJ67: 32 | FK67: 0 | FM67: 32 | FN67: 0 | FO67: 4742.72 | FP67: 0 | FQ67: 0 | FR67: 4742.72 | FS67: 4742.72 | FT67: Yes | FU67: 0 | FV67: 0 | FW67: 0
B68: 50 | C68: Matthew Breiling | D68: Senior Lineman/Journeyman Lineman | E68: Vendor No.02 | G68: MIFPUC-1 | H68: 2018-10-11 | I68: 2018-10-13 | J68: Yes | K68: =VLOOKUP($D68,'C.1 - Rate Sheets'!B:F,2,FALSE) -> 0 | L68: =VLOOKUP($D68,'C.1 - Rate Sheets'!B:F,3,FALSE) -> 136.22 | M68: =VLOOKUP($D68,'C.1 - Rate Sheets'!B:F,4,FALSE) -> 176.19 | N68: =VLOOKUP($D68,'C.1 - Rate Sheets'!B:F,5,FALSE) -> 0 | U68: 16 | Z68: 16 | FI68: 0 | FJ68: 32 | FK68: 0 | FM68: 32 | FN68: 0 | FO68: 4359.04 | FP68: 0 | FQ68: 0 | FR68: 4359.04 | FS68: 4359.04 | FT68: Yes | FU68: 0 | FV68: 0 | FW68: 0
B69: 51 | C69: Michael Donnellan | D69: Groundman | E69: Vendor No.02 | G69: MIFPUC-1 | H69: 2018-10-11 | I69: 2018-10-13 | J69: Yes | K69: =VLOOKUP($D69,'C.1 - Rate Sheets'!B:F,2,FALSE) -> 0 | L69: =VLOOKUP($D69,'C.1 - Rate Sheets'!B:F,3,FALSE) -> 99.27 | M69: =VLOOKUP($D69,'C.1 - Rate Sheets'!B:F,4,FALSE) -> 117.21 | N69: =VLOOKUP($D69,'C.1 - Rate Sheets'!B:F,5,FALSE) -> 0 | U69: 16 | Z69: 16 | FI69: 0 | FJ69: 32 | FK69: 0 | FM69: 32 | FN69: 0 | FO69: 3176.64 | FP69: 0 | FQ69: 0 | FR69: 3176.64 | FS69: 3176.64 | FT69: Yes | FU69: 0 | FV69: 0 | FW69: 0
B70: 52 | C70: Emanuel Gonzalez | D70: Senior Lineman/Journeyman Lineman | E70: Vendor No.02 | G70: MIFPUC-1 | H70: 2018-10-11 | I70: 2018-10-13 | J70: Yes | K70: =VLOOKUP($D70,'C.1 - Rate Sheets'!B:F,2,FALSE) -> 0 | L70: =VLOOKUP($D70,'C.1 - Rate Sheets'!B:F,3,FALSE) -> 136.22 | M70: =VLOOKUP($D70,'C.1 - Rate Sheets'!B:F,4,FALSE) -> 176.19 | N70: =VLOOKUP($D70,'C.1 - Rate Sheets'!B:F,5,FALSE) -> 0 | U70: 16 | Z70: 16 | FI70: 0 | FJ70: 32 | FK70: 0 | FM70: 32 | FN70: 0 | FO70: 4359.04 | FP70: 0 | FQ70: 0 | FR70: 4359.04 | FS70: 4359.04 | FT70: Yes | FU70: 0 | FV70: 0 | FW70: 0
B71: 53 | C71: Bobby Bahrami | D71: Senior Lineman/Journeyman Lineman | E71: Vendor No.02 | G71: MIFPUC-1 | H71: 2018-10-11 | I71: 2018-10-13 | J71: Yes | K71: =VLOOKUP($D71,'C.1 - Rate Sheets'!B:F,2,FALSE) -> 0 | L71: =VLOOKUP($D71,'C.1 - Rate Sheets'!B:F,3,FALSE) -> 136.22 | M71: =VLOOKUP($D71,'C.1 - Rate Sheets'!B:F,4,FALSE) -> 176.19 | N71: =VLOOKUP($D71,'C.1 - Rate Sheets'!B:F,5,FALSE) -> 0 | U71: 16 | Z71: 16 | FI71: 0 | FJ71: 32 | FK71: 0 | FM71: 32 | FN71: 0 | FO71: 4359.04 | FP71: 0 | FQ71: 0 | FR71: 4359.04 | FS71: 4359.04
B72: 54 | C72: Mark Monaboe | D72: Apprentice Helper | E72: Vendor No.02 | G72: MIFPUC-1 | H72: 2018-10-11 | I72: 2018-10-13 | J72: Yes | K72: =VLOOKUP($D72,'C.1 - Rate Sheets'!B:F,2,FALSE) -> 0 | L72: =VLOOKUP($D72,'C.1 - Rate Sheets'!B:F,3,FALSE) -> 102.25 | M72: =VLOOKUP($D72,'C.1 - Rate Sheets'!B:F,4,FALSE) -> 130.74 | N72: =VLOOKUP($D72,'C.1 - Rate Sheets'!B:F,5,FALSE) -> 0 | U72: 16 | Z72: 16 | FI72: 0 | FJ72: 32 | FK72: 0 | FM72: 32 | FN72: 0 | FO72: 3272 | FP72: 0 | FQ72: 0 | FR72: 3272 | FS72: 3272 | FT72: Yes | FU72: 0 | FV72: 0 | FW72: 0
B73: 55 | C73: James Pinson | D73: Foreman | E73: Vendor No.02 | G73: MIFPUC-1 | H73: 2018-10-11 | I73: 2018-10-13 | J73: Yes | K73: =VLOOKUP($D73,'C.1 - Rate Sheets'!B:F,2,FALSE) -> 0 | L73: =VLOOKUP($D73,'C.1 - Rate Sheets'!B:F,3,FALSE) -> 148.21 | M73: =VLOOKUP($D73,'C.1 - Rate Sheets'!B:F,4,FALSE) -> 192.19 | N73: =VLOOKUP($D73,'C.1 - Rate Sheets'!B:F,5,FALSE) -> 0 | U73: 16 | Z73: 16 | FI73: 0 | FJ73: 32 | FK73: 0 | FM73: 32 | FN73: 0 | FO73: 4742.72 | FP73: 0 | FQ73: 0 | FR73: 4742.72 | FS73: 4742.72 | FT73: Yes | FU73: 0 | FV73: 0 | FW73: 0
B74: 56 | C74: Jorge Sotolongo | D74: Groundman | E74: Vendor No.02 | G74: MIFPUC-1 | H74: 2018-10-11 | I74: 2018-10-13 | J74: Yes | K74: =VLOOKUP($D74,'C.1 - Rate Sheets'!B:F,2,FALSE) -> 0 | L74: =VLOOKUP($D74,'C.1 - Rate Sheets'!B:F,3,FALSE) -> 99.27 | M74: =VLOOKUP($D74,'C.1 - Rate Sheets'!B:F,4,FALSE) -> 117.21 | N74: =VLOOKUP($D74,'C.1 - Rate Sheets'!B:F,5,FALSE) -> 0 | U74: 16 | Z74: 16 | FI74: 0 | FJ74: 32 | FK74: 0 | FM74: 32 | FN74: 0 | FO74: 3176.64 | FP74: 0 | FQ74: 0 | FR74: 3176.64 | FS74: 3176.64 | FT74: Yes | FU74: 0 | FV74: 0 | FW74: 0
B75: 57 | C75: Alex Herrnandez | D75: Senior Lineman/Journeyman Lineman | E75: Vendor No.02 | G75: MIFPUC-1 | H75: 2018-10-11 | I75: 2018-10-13 | J75: Yes | K75: =VLOOKUP($D75,'C.1 - Rate Sheets'!B:F,2,FALSE) -> 0 | L75: =VLOOKUP($D75,'C.1 - Rate Sheets'!B:F,3,FALSE) -> 136.22 | M75: =VLOOKUP($D75,'C.1 - Rate Sheets'!B:F,4,FALSE) -> 176.19 | N75: =VLOOKUP($D75,'C.1 - Rate Sheets'!B:F,5,FALSE) -> 0 | U75: 16 | Z75: 16 | FI75: 0 | FJ75: 32 | FK75: 0 | FM75: 32 | FN75: 0 | FO75: 4359.04 | FP75: 0 | FQ75: 0 | FR75: 4359.04 | FS75: 4359.04 | FT75: Yes | FU75: 0 | FV75: 0 | FW75: 0
B76: 58 | C76: Garrett McDonald | D76: Groundman | E76: Vendor No.02 | G76: MIFPUC-1 | H76: 2018-10-11 | I76: 2018-10-13 | J76: Yes | K76: =VLOOKUP($D76,'C.1 - Rate Sheets'!B:F,2,FALSE) -> 0 | L76: =VLOOKUP($D76,'C.1 - Rate Sheets'!B:F,3,FALSE) -> 99.27 | M76: =VLOOKUP($D76,'C.1 - Rate Sheets'!B:F,4,FALSE) -> 117.21 | N76: =VLOOKUP($D76,'C.1 - Rate Sheets'!B:F,5,FALSE) -> 0 | U76: 16 | Z76: 16 | FI76: 0 | FJ76: 32 | FK76: 0 | FM76: 32 | FN76: 0 | FO76: 3176.64 | FP76: 0 | FQ76: 0 | FR76: 3176.64 | FS76: 3176.64 | FT76: Yes | FU76: 0 | FV76: 0 | FW76: 0
B77: 59 | C77: Joel Molina | D77: Senior Lineman/Journeyman Lineman | E77: Vendor No.02 | G77: MIFPUC-1 | H77: 2018-10-11 | I77: 2018-10-13 | J77: Yes | K77: =VLOOKUP($D77,'C.1 - Rate Sheets'!B:F,2,FALSE) -> 0 | L77: =VLOOKUP($D77,'C.1 - Rate Sheets'!B:F,3,FALSE) -> 136.22 | M77: =VLOOKUP($D77,'C.1 - Rate Sheets'!B:F,4,FALSE) -> 176.19 | N77: =VLOOKUP($D77,'C.1 - Rate Sheets'!B:F,5,FALSE) -> 0 | U77: 16 | Z77: 16 | FI77: 0 | FJ77: 32 | FK77: 0 | FM77: 32 | FN77: 0 | FO77: 4359.04 | FP77: 0 | FQ77: 0 | FR77: 4359.04 | FS77: 4359.04 | FT77: Yes | FU77: 0 | FV77: 0 | FW77: 0
B78: 60 | C78: Vincent Miller | D78: Apprentice Helper | E78: Vendor No.02 | G78: MIFPUC-1 | H78: 2018-10-11 | I78: 2018-10-13 | J78: Yes | K78: =VLOOKUP($D78,'C.1 - Rate Sheets'!B:F,2,FALSE) -> 0 | L78: =VLOOKUP($D78,'C.1 - Rate Sheets'!B:F,3,FALSE) -> 102.25 | M78: =VLOOKUP($D78,'C.1 - Rate Sheets'!B:F,4,FALSE) -> 130.74 | N78: =VLOOKUP($D78,'C.1 - Rate Sheets'!B:F,5,FALSE) -> 0 | U78: 16 | Z78: 16 | FI78: 0 | FJ78: 32 | FK78: 0 | FM78: 32 | FN78: 0 | FO78: 3272 | FP78: 0 | FQ78: 0 | FR78: 3272 | FS78: 3272 | FT78: Yes | FU78: 0 | FV78: 0 | FW78: 0
B79: 61 | C79: Shannon Williams | D79: Equipment Operator | E79: Vendor No.02 | G79: MIFPUC-1 | H79: 2018-10-11 | I79: 2018-10-13 | J79: Yes | K79: =VLOOKUP($D79,'C.1 - Rate Sheets'!B:F,2,FALSE) -> 0 | L79: =VLOOKUP($D79,'C.1 - Rate Sheets'!B:F,3,FALSE) -> 116.87 | M79: =VLOOKUP($D79,'C.1 - Rate Sheets'!B:F,4,FALSE) -> 151.13 | N79: =VLOOKUP($D79,'C.1 - Rate Sheets'!B:F,5,FALSE) -> 0 | FI79: 0 | FJ79: 0 | FK79: 0 | FM79: 0 | FN79: 0 | FO79: 0 | FP79: 0 | FQ79: 0 | FR79: 0 | FS79: 0 | FT79: Yes | FU79: 0 | FV79: 0 | FW79: 0
B80: 62 | C80: Lino Carreras | D80: Equipment Operator | E80: Vendor No.02 | G80: MIFPUC-1 | H80: 2018-10-11 | I80: 2018-10-13 | J80: Yes | K80: =VLOOKUP($D80,'C.1 - Rate Sheets'!B:F,2,FALSE) -> 0 | L80: =VLOOKUP($D80,'C.1 - Rate Sheets'!B:F,3,FALSE) -> 116.87 | M80: =VLOOKUP($D80,'C.1 - Rate Sheets'!B:F,4,FALSE) -> 151.13 | N80: =VLOOKUP($D80,'C.1 - Rate Sheets'!B:F,5,FALSE) -> 0 | FI80: 0 | FJ80: 0 | FK80: 0 | FM80: 0 | FN80: 0 | FO80: 0 | FP80: 0 | FQ80: 0 | FR80: 0 | FS80: 0 | FT80: Yes | FU80: 0 | FV80: 0 | FW80: 0
B81: 63 | C81: Richard Byrd | D81: Line Tech C | E81: Vendor No.02 | G81: MIFPUC-1 | H81: 2018-10-11 | I81: 2018-10-13 | J81: Yes | K81: =VLOOKUP($D81,'C.1 - Rate Sheets'!B:F,2,FALSE) -> 0 | L81: =VLOOKUP($D81,'C.1 - Rate Sheets'!B:F,3,FALSE) -> 110.51 | M81: =VLOOKUP($D81,'C.1 - Rate Sheets'!B:F,4,FALSE) -> 136.23 | N81: =VLOOKUP($D81,'C.1 - Rate Sheets'!B:F,5,FALSE) -> 0 | FI81: 0 | FJ81: 0 | FK81: 0 | FM81: 0 | FN81: 0 | FO81: 0 | FP81: 0 | FQ81: 0 | FR81: 0 | FS81: 0 | FT81: Yes | FU81: 0 | FV81: 0 | FW81: 0
B82: 64 | C82: Zeb Mondrella | D82: Senior Lineman/Journeyman Lineman | E82: Vendor No.02 | G82: MIFPUC-1 | H82: 2018-10-11 | I82: 2018-10-13 | J82: Yes | K82: =VLOOKUP($D82,'C.1 - Rate Sheets'!B:F,2,FALSE) -> 0 | L82: =VLOOKUP($D82,'C.1 - Rate Sheets'!B:F,3,FALSE) -> 136.22 | M82: =VLOOKUP($D82,'C.1 - Rate Sheets'!B:F,4,FALSE) -> 176.19 | N82: =VLOOKUP($D82,'C.1 - Rate Sheets'!B:F,5,FALSE) -> 0 | FI82: 0 | FJ82: 0 | FK82: 0 | FM82: 0 | FN82: 0 | FO82: 0 | FP82: 0 | FQ82: 0 | FR82: 0 | FS82: 0 | FT82: Yes | FU82: 0 | FV82: 0 | FW82: 0
B83: 65 | C83: James Morrel | D83: Senior Lineman/Journeyman Lineman | E83: Vendor No.02 | G83: MIFPUC-1 | H83: 2018-10-11 | I83: 2018-10-13 | J83: Yes | K83: =VLOOKUP($D83,'C.1 - Rate Sheets'!B:F,2,FALSE) -> 0 | L83: =VLOOKUP($D83,'C.1 - Rate Sheets'!B:F,3,FALSE) -> 136.22 | M83: =VLOOKUP($D83,'C.1 - Rate Sheets'!B:F,4,FALSE) -> 176.19 | N83: =VLOOKUP($D83,'C.1 - Rate Sheets'!B:F,5,FALSE) -> 0 | FI83: 0 | FJ83: 0 | FK83: 0 | FM83: 0 | FN83: 0 | FO83: 0 | FP83: 0 | FQ83: 0 | FR83: 0 | FS83: 0 | FT83: Yes | FU83: 0 | FV83: 0 | FW83: 0
B84: 66 | C84: Gregory Race | D84: Line Tech C | E84: Vendor No.02 | G84: MIFPUC-1 | H84: 2018-10-11 | I84: 2018-10-13 | J84: Yes | K84: =VLOOKUP($D84,'C.1 - Rate Sheets'!B:F,2,FALSE) -> 0 | L84: =VLOOKUP($D84,'C.1 - Rate Sheets'!B:F,3,FALSE) -> 110.51 | M84: =VLOOKUP($D84,'C.1 - Rate Sheets'!B:F,4,FALSE) -> 136.23 | N84: =VLOOKUP($D84,'C.1 - Rate Sheets'!B:F,5,FALSE) -> 0 | FI84: 0 | FJ84: 0 | FK84: 0 | FM84: 0 | FN84: 0 | FO84: 0 | FP84: 0 | FQ84: 0 | FR84: 0 | FS84: 0 | FT84: Yes | FU84: 0 | FV84: 0 | FW84: 0
B85: 67 | C85: Neil Springman | D85: Mechanic | E85: Vendor No.02 | G85: MIFPUC-1 | H85: 2018-10-11 | I85: 2018-10-13 | J85: Yes | K85: =VLOOKUP($D85,'C.1 - Rate Sheets'!B:F,2,FALSE) -> 0 | L85: =VLOOKUP($D85,'C.1 - Rate Sheets'!B:F,3,FALSE) -> 116.87 | M85: =VLOOKUP($D85,'C.1 - Rate Sheets'!B:F,4,FALSE) -> 151.13 | N85: =VLOOKUP($D85,'C.1 - Rate Sheets'!B:F,5,FALSE) -> 0 | FI85: =FD85+EY85+ET85+EO85+EJ85+EE85+DZ85+DU85+DP85+DK85+DF85+DA85+CV85+CQ85+CL85+CG85+CB85+BW85+BR85+BM85+BH85+BC85+AX85+AS85+AN85+AI85+AD85+Y85+T85+O85 -> 0 | FJ85: =FE85+EZ85+EU85+EP85+EK85+EF85+EA85+DV85+DQ85+DL85+DG85+DB85+CW85+CR85+CM85+CH85+CC85+BX85+BS85+BN85+BI85+BD85+AY85+AT85+AO85+AJ85+AE85+Z85+U85+P85 -> 0 | FK85: =FF85+FA85+EV85+EQ85+EL85+EG85+EB85+DW85+DR85+DM85+DH85+DC85+CX85+CS85+CN85+CI85+CD85+BY85+BT85+BO85+BJ85+BE85+AZ85+AU85+AP85+AK85+AF85+AA85+V85+Q85 -> 0 | FM85: =SUM(FI85:FL85) -> 0 | FN85: =FI85*K85 -> 0 | FO85: =FJ85*L85 -> 0 | FP85: =FK85*M85 -> 0 | FQ85: =FL85*N85 -> 0 | FR85: =SUM(FN85:FQ85) -> 0 | FS85: =FR85-FU85 -> 0 | FT85: Yes | FU85: 0 | FV85: 0 | FW85: 0
B86: 68 | C86: Ron Roush | D86: General Foreman | E86: Vendor No.02 | G86: MIFPUC-1 | H86: 2018-10-11 | I86: 2018-10-13 | J86: Yes | K86: =VLOOKUP($D86,'C.1 - Rate Sheets'!B:F,2,FALSE) -> 0 | L86: =VLOOKUP($D86,'C.1 - Rate Sheets'!B:F,3,FALSE) -> 160.21 | M86: =VLOOKUP($D86,'C.1 - Rate Sheets'!B:F,4,FALSE) -> 208.18 | N86: =VLOOKUP($D86,'C.1 - Rate Sheets'!B:F,5,FALSE) -> 0 | FI86: 0 | FJ86: 0 | FK86: 0 | FM86: 0 | FN86: 0 | FO86: 0 | FP86: 0 | FQ86: 0 | FR86: 0 | FS86: 0 | FT86: Yes | FU86: 0 | FV86: 0 | FW86: 0
B87: 69 | C87: Ryan Timms | D87: Foreman | E87: Vendor No.02 | G87: MIFPUC-1 | H87: 2018-10-11 | I87: 2018-10-13 | J87: Yes | K87: =VLOOKUP($D87,'C.1 - Rate Sheets'!B:F,2,FALSE) -> 0 | L87: =VLOOKUP($D87,'C.1 - Rate Sheets'!B:F,3,FALSE) -> 148.21 | M87: =VLOOKUP($D87,'C.1 - Rate Sheets'!B:F,4,FALSE) -> 192.19 | N87: =VLOOKUP($D87,'C.1 - Rate Sheets'!B:F,5,FALSE) -> 0 | FI87: 0 | FJ87: 0 | FK87: 0 | FM87: 0 | FN87: 0 | FO87: 0 | FP87: 0 | FQ87: 0 | FR87: 0 | FS87: 0 | FT87: Yes | FU87: 0 | FV87: 0 | FW87: 0
B88: 70 | C88: Aaron Mays | D88: Senior Lineman/Journeyman Lineman | E88: Vendor No.02 | G88: MIFPUC-1 | H88: 2018-10-11 | I88: 2018-10-13 | J88: Yes | K88: =VLOOKUP($D88,'C.1 - Rate Sheets'!B:F,2,FALSE) -> 0 | L88: =VLOOKUP($D88,'C.1 - Rate Sheets'!B:F,3,FALSE) -> 136.22 | M88: =VLOOKUP($D88,'C.1 - Rate Sheets'!B:F,4,FALSE) -> 176.19 | N88: =VLOOKUP($D88,'C.1 - Rate Sheets'!B:F,5,FALSE) -> 0 | FI88: 0 | FJ88: 0 | FK88: 0 | FM88: 0 | FN88: 0 | FO88: 0 | FP88: 0 | FQ88: 0 | FR88: 0 | FS88: 0 | FT88: Yes | FU88: 0 | FV88: 0 | FW88: 0
B89: 71 | C89: Keith Kiphard | D89: Apprentice Helper | E89: Vendor No.02 | G89: MIFPUC-1 | H89: 2018-10-11 | I89: 2018-10-13 | J89: Yes | K89: =VLOOKUP($D89,'C.1 - Rate Sheets'!B:F,2,FALSE) -> 0 | L89: =VLOOKUP($D89,'C.1 - Rate Sheets'!B:F,3,FALSE) -> 102.25 | M89: =VLOOKUP($D89,'C.1 - Rate Sheets'!B:F,4,FALSE) -> 130.74 | N89: =VLOOKUP($D89,'C.1 - Rate Sheets'!B:F,5,FALSE) -> 0 | FI89: 0 | FJ89: 0 | FK89: 0 | FM89: 0 | FN89: 0 | FO89: 0 | FP89: 0 | FQ89: 0 | FR89: 0 | FS89: 0 | FT89: Yes | FU89: 0 | FV89: 0 | FW89: 0
B90: 72 | C90: Evan Bryson | D90: Groundman | E90: Vendor No.02 | G90: MIFPUC-1 | H90: 2018-10-11 | I90: 2018-10-13 | J90: Yes | K90: =VLOOKUP($D90,'C.1 - Rate Sheets'!B:F,2,FALSE) -> 0 | L90: =VLOOKUP($D90,'C.1 - Rate Sheets'!B:F,3,FALSE) -> 99.27 | M90: =VLOOKUP($D90,'C.1 - Rate Sheets'!B:F,4,FALSE) -> 117.21 | N90: =VLOOKUP($D90,'C.1 - Rate Sheets'!B:F,5,FALSE) -> 0 | FI90: 0 | FJ90: 0 | FK90: 0 | FM90: 0 | FN90: 0 | FO90: 0 | FP90: 0 | FQ90: 0 | FR90: 0 | FS90: 0 | FT90: Yes | FU90: 0 | FV90: 0 | FW90: 0
B91: 73 | C91: Cory Farris | D91: Foreman | E91: Vendor No.02 | G91: MIFPUC-1 | H91: 2018-10-11 | I91: 2018-10-13 | J91: Yes | K91: =VLOOKUP($D91,'C.1 - Rate Sheets'!B:F,2,FALSE) -> 0 | L91: =VLOOKUP($D91,'C.1 - Rate Sheets'!B:F,3,FALSE) -> 148.21 | M91: =VLOOKUP($D91,'C.1 - Rate Sheets'!B:F,4,FALSE) -> 192.19 | N91: =VLOOKUP($D91,'C.1 - Rate Sheets'!B:F,5,FALSE) -> 0 | FI91: 0 | FJ91: 0 | FK91: 0 | FM91: 0 | FN91: 0 | FO91: 0 | FP91: 0 | FQ91: 0 | FR91: 0 | FS91: 0 | FT91: Yes | FU91: 0 | FV91: 0 | FW91: 0
B92: 74 | C92: Josh Parker | D92: Senior Lineman/Journeyman Lineman | E92: Vendor No.02 | G92: MIFPUC-1 | H92: 2018-10-11 | I92: 2018-10-13 | J92: Yes | K92: =VLOOKUP($D92,'C.1 - Rate Sheets'!B:F,2,FALSE) -> 0 | L92: =VLOOKUP($D92,'C.1 - Rate Sheets'!B:F,3,FALSE) -> 136.22 | M92: =VLOOKUP($D92,'C.1 - Rate Sheets'!B:F,4,FALSE) -> 176.19 | N92: =VLOOKUP($D92,'C.1 - Rate Sheets'!B:F,5,FALSE) -> 0 | FI92: 0 | FJ92: 0 | FK92: 0 | FM92: 0 | FN92: 0 | FO92: 0 | FP92: 0 | FQ92: 0 | FR92: 0 | FS92: 0
B93: 75 | C93: Rodney Breedlove | D93: Equipment Operator | E93: Vendor No.02 | G93: MIFPUC-1 | H93: 2018-10-11 | I93: 2018-10-13 | J93: Yes | K93: =VLOOKUP($D93,'C.1 - Rate Sheets'!B:F,2,FALSE) -> 0 | L93: =VLOOKUP($D93,'C.1 - Rate Sheets'!B:F,3,FALSE) -> 116.87 | M93: =VLOOKUP($D93,'C.1 - Rate Sheets'!B:F,4,FALSE) -> 151.13 | N93: =VLOOKUP($D93,'C.1 - Rate Sheets'!B:F,5,FALSE) -> 0 | FI93: 0 | FJ93: 0 | FK93: 0 | FM93: 0 | FN93: 0 | FO93: 0 | FP93: 0 | FQ93: 0 | FR93: 0 | FS93: 0 | FT93: Yes | FU93: 0 | FV93: 0 | FW93: 0
B94: 76 | C94: Ken Gardner | D94: Groundman | E94: Vendor No.02 | G94: MIFPUC-1 | H94: 2018-10-11 | I94: 2018-10-13 | J94: Yes | K94: =VLOOKUP($D94,'C.1 - Rate Sheets'!B:F,2,FALSE) -> 0 | L94: =VLOOKUP($D94,'C.1 - Rate Sheets'!B:F,3,FALSE) -> 99.27 | M94: =VLOOKUP($D94,'C.1 - Rate Sheets'!B:F,4,FALSE) -> 117.21 | N94: =VLOOKUP($D94,'C.1 - Rate Sheets'!B:F,5,FALSE) -> 0 | FI94: 0 | FJ94: 0 | FK94: 0 | FM94: 0 | FN94: 0 | FO94: 0 | FP94: 0 | FQ94: 0 | FR94: 0 | FS94: 0 | FT94: Yes | FU94: 0 | FV94: 0 | FW94: 0
B95: 77 | C95: Nate McDonough | D95: Foreman | E95: Vendor No.02 | G95: MIFPUC-1 | H95: 2018-10-11 | I95: 2018-10-13 | J95: Yes | K95: =VLOOKUP($D95,'C.1 - Rate Sheets'!B:F,2,FALSE) -> 0 | L95: =VLOOKUP($D95,'C.1 - Rate Sheets'!B:F,3,FALSE) -> 148.21 | M95: =VLOOKUP($D95,'C.1 - Rate Sheets'!B:F,4,FALSE) -> 192.19 | N95: =VLOOKUP($D95,'C.1 - Rate Sheets'!B:F,5,FALSE) -> 0 | FI95: 0 | FJ95: 0 | FK95: 0 | FM95: 0 | FN95: 0 | FO95: 0 | FP95: 0 | FQ95: 0 | FR95: 0 | FS95: 0 | FT95: Yes | FU95: 0 | FV95: 0 | FW95: 0
B96: 78 | C96: Will Magard | D96: Senior Lineman/Journeyman Lineman | E96: Vendor No.02 | G96: MIFPUC-1 | H96: 2018-10-11 | I96: 2018-10-13 | J96: Yes | K96: =VLOOKUP($D96,'C.1 - Rate Sheets'!B:F,2,FALSE) -> 0 | L96: =VLOOKUP($D96,'C.1 - Rate Sheets'!B:F,3,FALSE) -> 136.22 | M96: =VLOOKUP($D96,'C.1 - Rate Sheets'!B:F,4,FALSE) -> 176.19 | N96: =VLOOKUP($D96,'C.1 - Rate Sheets'!B:F,5,FALSE) -> 0 | FI96: 0 | FJ96: 0 | FK96: 0 | FM96: 0 | FN96: 0 | FO96: 0 | FP96: 0 | FQ96: 0 | FR96: 0 | FS96: 0 | FT96: Yes | FU96: 0 | FV96: 0 | FW96: 0
B97: 79 | C97: Cody Delotell | D97: Apprentice Helper | E97: Vendor No.02 | G97: MIFPUC-1 | H97: 2018-10-11 | I97: 2018-10-13 | J97: Yes | K97: =VLOOKUP($D97,'C.1 - Rate Sheets'!B:F,2,FALSE) -> 0 | L97: =VLOOKUP($D97,'C.1 - Rate Sheets'!B:F,3,FALSE) -> 102.25 | M97: =VLOOKUP($D97,'C.1 - Rate Sheets'!B:F,4,FALSE) -> 130.74 | N97: =VLOOKUP($D97,'C.1 - Rate Sheets'!B:F,5,FALSE) -> 0 | FI97: 0 | FJ97: 0 | FK97: 0 | FM97: 0 | FN97: 0 | FO97: 0 | FP97: 0 | FQ97: 0 | FR97: 0 | FS97: 0 | FT97: Yes | FU97: 0 | FV97: 0 | FW97: 0
B98: 80 | C98: Rusty Breedlove | D98: Groundman | E98: Vendor No.02 | G98: MIFPUC-1 | H98: 2018-10-11 | I98: 2018-10-13 | J98: Yes | K98: =VLOOKUP($D98,'C.1 - Rate Sheets'!B:F,2,FALSE) -> 0 | L98: =VLOOKUP($D98,'C.1 - Rate Sheets'!B:F,3,FALSE) -> 99.27 | M98: =VLOOKUP($D98,'C.1 - Rate Sheets'!B:F,4,FALSE) -> 117.21 | N98: =VLOOKUP($D98,'C.1 - Rate Sheets'!B:F,5,FALSE) -> 0 | FI98: 0 | FJ98: 0 | FK98: 0 | FM98: 0 | FN98: 0 | FO98: 0 | FP98: 0 | FQ98: 0 | FR98: 0 | FS98: 0 | FT98: Yes | FU98: 0 | FV98: 0 | FW98: 0
B99: 81 | C99: Kelly Drummond | D99: Foreman | E99: Vendor No.02 | G99: MIFPUC-1 | H99: 2018-10-11 | I99: 2018-10-13 | J99: Yes | K99: =VLOOKUP($D99,'C.1 - Rate Sheets'!B:F,2,FALSE) -> 0 | L99: =VLOOKUP($D99,'C.1 - Rate Sheets'!B:F,3,FALSE) -> 148.21 | M99: =VLOOKUP($D99,'C.1 - Rate Sheets'!B:F,4,FALSE) -> 192.19 | N99: =VLOOKUP($D99,'C.1 - Rate Sheets'!B:F,5,FALSE) -> 0 | FI99: 0 | FJ99: 0 | FK99: 0 | FM99: 0 | FN99: 0 | FO99: 0 | FP99: 0 | FQ99: 0 | FR99: 0 | FS99: 0 | FT99: Yes | FU99: 0 | FV99: 0 | FW99: 0
B100: 82 | C100: Selwyn Sampson | D100: Senior Lineman/Journeyman Lineman | E100: Vendor No.02 | G100: MIFPUC-1 | H100: 2018-10-11 | I100: 2018-10-13 | J100: Yes | K100: =VLOOKUP($D100,'C.1 - Rate Sheets'!B:F,2,FALSE) -> 0 | L100: =VLOOKUP($D100,'C.1 - Rate Sheets'!B:F,3,FALSE) -> 136.22 | M100: =VLOOKUP($D100,'C.1 - Rate Sheets'!B:F,4,FALSE) -> 176.19 | N100: =VLOOKUP($D100,'C.1 - Rate Sheets'!B:F,5,FALSE) -> 0 | FI100: 0 | FJ100: 0 | FK100: 0 | FM100: 0 | FN100: 0 | FO100: 0 | FP100: 0 | FQ100: 0 | FR100: 0 | FS100: 0 | FT100: Yes | FU100: 0 | FV100: 0 | FW100: 0
B101: 83 | C101: Cody Maddox | D101: Line Tech C | E101: Vendor No.02 | G101: MIFPUC-1 | H101: 2018-10-11 | I101: 2018-10-13 | J101: Yes | K101: =VLOOKUP($D101,'C.1 - Rate Sheets'!B:F,2,FALSE) -> 0 | L101: =VLOOKUP($D101,'C.1 - Rate Sheets'!B:F,3,FALSE) -> 110.51 | M101: =VLOOKUP($D101,'C.1 - Rate Sheets'!B:F,4,FALSE) -> 136.23 | N101: =VLOOKUP($D101,'C.1 - Rate Sheets'!B:F,5,FALSE) -> 0 | FI101: 0 | FJ101: 0 | FK101: 0 | FM101: 0 | FN101: 0 | FO101: 0 | FP101: 0 | FQ101: 0 | FR101: 0 | FS101: 0 | FT101: Yes | FU101: 0 | FV101: 0 | FW101: 0
B102: 84 | C102: Ray Campbell | D102: Foreman | E102: Vendor No.02 | G102: MIFPUC-1 | H102: 2018-10-11 | I102: 2018-10-13 | J102: Yes | K102: =VLOOKUP($D102,'C.1 - Rate Sheets'!B:F,2,FALSE) -> 0 | L102: =VLOOKUP($D102,'C.1 - Rate Sheets'!B:F,3,FALSE) -> 148.21 | M102: =VLOOKUP($D102,'C.1 - Rate Sheets'!B:F,4,FALSE) -> 192.19 | N102: =VLOOKUP($D102,'C.1 - Rate Sheets'!B:F,5,FALSE) -> 0 | FI102: 0 | FJ102: 0 | FK102: 0 | FM102: 0 | FN102: 0 | FO102: 0 | FP102: 0 | FQ102: 0 | FR102: 0 | FS102: 0 | FT102: Yes | FU102: 0 | FV102: 0 | FW102: 0
B103: 85 | C103: Scotty Sansone | D103: Senior Lineman/Journeyman Lineman | E103: Vendor No.02 | G103: MIFPUC-1 | H103: 2018-10-11 | I103: 2018-10-13 | J103: Yes | K103: =VLOOKUP($D103,'C.1 - Rate Sheets'!B:F,2,FALSE) -> 0 | L103: =VLOOKUP($D103,'C.1 - Rate Sheets'!B:F,3,FALSE) -> 136.22 | M103: =VLOOKUP($D103,'C.1 - Rate Sheets'!B:F,4,FALSE) -> 176.19 | N103: =VLOOKUP($D103,'C.1 - Rate Sheets'!B:F,5,FALSE) -> 0 | FI103: 0 | FJ103: 0 | FK103: 0 | FM103: 0 | FN103: 0 | FO103: 0 | FP103: 0 | FQ103: 0 | FR103: 0 | FS103: 0 | FT103: Yes | FU103: 0 | FV103: 0 | FW103: 0
B104: 86 | C104: Nick Schwarz | D104: Apprentice Helper | E104: Vendor No.02 | G104: MIFPUC-1 | H104: 2018-10-11 | I104: 2018-10-13 | J104: Yes | K104: =VLOOKUP($D104,'C.1 - Rate Sheets'!B:F,2,FALSE) -> 0 | L104: =VLOOKUP($D104,'C.1 - Rate Sheets'!B:F,3,FALSE) -> 102.25 | M104: =VLOOKUP($D104,'C.1 - Rate Sheets'!B:F,4,FALSE) -> 130.74 | N104: =VLOOKUP($D104,'C.1 - Rate Sheets'!B:F,5,FALSE) -> 0 | FI104: 0 | FJ104: 0 | FK104: 0 | FM104: 0 | FN104: 0 | FO104: 0 | FP104: 0 | FQ104: 0 | FR104: 0 | FS104: 0 | FT104: Yes | FU104: 0 | FV104: 0 | FW104: 0
B105: 87 | C105: Mike Wellman | D105: Groundman | E105: Vendor No.02 | G105: MIFPUC-1 | H105: 2018-10-11 | I105: 2018-10-13 | J105: Yes | K105: =VLOOKUP($D105,'C.1 - Rate Sheets'!B:F,2,FALSE) -> 0 | L105: =VLOOKUP($D105,'C.1 - Rate Sheets'!B:F,3,FALSE) -> 99.27 | M105: =VLOOKUP($D105,'C.1 - Rate Sheets'!B:F,4,FALSE) -> 117.21 | N105: =VLOOKUP($D105,'C.1 - Rate Sheets'!B:F,5,FALSE) -> 0 | FI105: 0 | FJ105: 0 | FK105: 0 | FM105: 0 | FN105: 0 | FO105: 0 | FP105: 0 | FQ105: 0 | FR105: 0 | FS105: 0 | FT105: Yes | FU105: 0 | FV105: 0 | FW105: 0
B106: 88 | C106: Larry Potter | D106: Groundman | E106: Vendor No.02 | G106: MIFPUC-1 | H106: 2018-10-11 | I106: 2018-10-13 | J106: Yes | K106: =VLOOKUP($D106,'C.1 - Rate Sheets'!B:F,2,FALSE) -> 0 | L106: =VLOOKUP($D106,'C.1 - Rate Sheets'!B:F,3,FALSE) -> 99.27 | M106: =VLOOKUP($D106,'C.1 - Rate Sheets'!B:F,4,FALSE) -> 117.21 | N106: =VLOOKUP($D106,'C.1 - Rate Sheets'!B:F,5,FALSE) -> 0 | FI106: 0 | FJ106: 0 | FK106: 0 | FM106: 0 | FN106: 0 | FO106: 0 | FP106: 0 | FQ106: 0 | FR106: 0 | FS106: 0 | FT106: Yes | FU106: 0 | FV106: 0 | FW106: 0
B107: 89 | C107: Alex Rogers | D107: Line Tech B | E107: Vendor No.02 | G107: MIFPUC-1 | H107: 2018-10-11 | I107: 2018-10-13 | J107: Yes | K107: =VLOOKUP($D107,'C.1 - Rate Sheets'!B:F,2,FALSE) -> 0 | L107: =VLOOKUP($D107,'C.1 - Rate Sheets'!B:F,3,FALSE) -> 118.24 | M107: =VLOOKUP($D107,'C.1 - Rate Sheets'!B:F,4,FALSE) -> 152.22 | N107: =VLOOKUP($D107,'C.1 - Rate Sheets'!B:F,5,FALSE) -> 0 | FI107: 0 | FJ107: 0 | FK107: 0 | FM107: 0 | FN107: 0 | FO107: 0 | FP107: 0 | FQ107: 0 | FR107: 0 | FS107: 0 | FT107: Yes | FU107: 0 | FV107: 0 | FW107: 0
B108: 90 | C108: Matt Montes | D108: Groundman | E108: Vendor No.02 | G108: MIFPUC-1 | H108: 2018-10-11 | I108: 2018-10-13 | J108: Yes | K108: =VLOOKUP($D108,'C.1 - Rate Sheets'!B:F,2,FALSE) -> 0 | L108: =VLOOKUP($D108,'C.1 - Rate Sheets'!B:F,3,FALSE) -> 99.27 | M108: =VLOOKUP($D108,'C.1 - Rate Sheets'!B:F,4,FALSE) -> 117.21 | N108: =VLOOKUP($D108,'C.1 - Rate Sheets'!B:F,5,FALSE) -> 0 | FI108: 0 | FJ108: 0 | FK108: 0 | FM108: 0 | FN108: 0 | FO108: 0 | FP108: 0 | FQ108: 0 | FR108: 0 | FS108: 0 | FT108: Yes | FU108: 0 | FV108: 0 | FW108: 0
B109: 91 | C109: Jose De Jesus | D109: Groundman | E109: Vendor No.02 | G109: MIFPUC-1 | H109: 2018-10-11 | I109: 2018-10-13 | J109: Yes | K109: =VLOOKUP($D109,'C.1 - Rate Sheets'!B:F,2,FALSE) -> 0 | L109: =VLOOKUP($D109,'C.1 - Rate Sheets'!B:F,3,FALSE) -> 99.27 | M109: =VLOOKUP($D109,'C.1 - Rate Sheets'!B:F,4,FALSE) -> 117.21 | N109: =VLOOKUP($D109,'C.1 - Rate Sheets'!B:F,5,FALSE) -> 0 | FI109: 0 | FJ109: 0 | FK109: 0 | FM109: 0 | FN109: 0 | FO109: 0 | FP109: 0 | FQ109: 0 | FR109: 0 | FS109: 0 | FT109: Yes | FU109: 0 | FV109: 0 | FW109: 0
B110: 92 | C110: Perry Chaffin | D110: Senior Lineman/Journeyman Lineman | E110: Vendor No.02 | G110: MIFPUC-1 | H110: 2018-10-11 | I110: 2018-10-13 | J110: Yes | K110: =VLOOKUP($D110,'C.1 - Rate Sheets'!B:F,2,FALSE) -> 0 | L110: =VLOOKUP($D110,'C.1 - Rate Sheets'!B:F,3,FALSE) -> 136.22 | M110: =VLOOKUP($D110,'C.1 - Rate Sheets'!B:F,4,FALSE) -> 176.19 | N110: =VLOOKUP($D110,'C.1 - Rate Sheets'!B:F,5,FALSE) -> 0 | FI110: 0 | FJ110: 0 | FK110: 0 | FM110: 0 | FN110: 0 | FO110: 0 | FP110: 0 | FQ110: 0 | FR110: 0 | FS110: 0 | FT110: Yes | FU110: 0 | FV110: 0 | FW110: 0
B111: 93 | FI111: 0 | FJ111: 0 | FK111: 0 | FM111: 0 | FN111: 0 | FO111: 0 | FP111: 0 | FQ111: 0 | FR111: 0 | FS111: 0 | FT111: Yes | FU111: 0 | FV111: 0 | FW111: 0
B112: 94 | C112: Gustavo Monteagudo | D112: Foreman | E112: Vendor No.02 | G112: MIFPUC-2 | H112: 2018-10-14 | I112: 2018-10-20 | J112: Yes | K112: =VLOOKUP($D112,'C.1 - Rate Sheets'!B:F,2,FALSE) -> 0 | L112: =VLOOKUP($D112,'C.1 - Rate Sheets'!B:F,3,FALSE) -> 148.21 | M112: =VLOOKUP($D112,'C.1 - Rate Sheets'!B:F,4,FALSE) -> 192.19 | N112: =VLOOKUP($D112,'C.1 - Rate Sheets'!B:F,5,FALSE) -> 0 | AF112: 16 | AJ112: 16 | AO112: 16 | AT112: 16 | AY112: 16 | BD112: 16 | BI112: 16 | FI112: 0 | FJ112: 96 | FK112: 16 | FM112: 112 | FN112: 0 | FO112: 14228.16 | FP112: 3075.04 | FQ112: 0 | FR112: 17303.2 | FS112: 17303.2 | FT112: Yes | FU112: 0 | FV112: 0 | FW112: 0
B113: 95 | C113: Aroy Fildalgo | D113: Senior Lineman/Journeyman Lineman | E113: Vendor No.02 | G113: MIFPUC-2 | H113: 2018-10-14 | I113: 2018-10-20 | J113: Yes | K113: =VLOOKUP($D113,'C.1 - Rate Sheets'!B:F,2,FALSE) -> 0 | L113: =VLOOKUP($D113,'C.1 - Rate Sheets'!B:F,3,FALSE) -> 136.22 | M113: =VLOOKUP($D113,'C.1 - Rate Sheets'!B:F,4,FALSE) -> 176.19 | N113: =VLOOKUP($D113,'C.1 - Rate Sheets'!B:F,5,FALSE) -> 0 | AF113: 16 | AJ113: 16 | AO113: 16 | AT113: 16 | AY113: 16 | BD113: 16 | BI113: 16 | FI113: 0 | FJ113: 96 | FK113: 16 | FM113: 112 | FN113: 0 | FO113: 13077.12 | FP113: 2819.04 | FQ113: 0 | FR113: 15896.16 | FS113: 15896.16 | FT113: Yes | FU113: 0 | FV113: 0 | FW113: 0
B114: 96 | C114: Addiel DeCardenas | D114: Senior Lineman/Journeyman Lineman | E114: Vendor No.02 | G114: MIFPUC-2 | H114: 2018-10-14 | I114: 2018-10-20 | J114: Yes | K114: =VLOOKUP($D114,'C.1 - Rate Sheets'!B:F,2,FALSE) -> 0 | L114: =VLOOKUP($D114,'C.1 - Rate Sheets'!B:F,3,FALSE) -> 136.22 | M114: =VLOOKUP($D114,'C.1 - Rate Sheets'!B:F,4,FALSE) -> 176.19 | N114: =VLOOKUP($D114,'C.1 - Rate Sheets'!B:F,5,FALSE) -> 0 | AF114: 16 | AJ114: 16 | AO114: 16 | AT114: 16 | AY114: 16 | BD114: 16 | BI114: 16 | FI114: 0 | FJ114: 96 | FK114: 16 | FM114: 112 | FN114: 0 | FO114: 13077.12 | FP114: 2819.04 | FQ114: 0 | FR114: 15896.16 | FS114: 15896.16 | FT114: Yes | FU114: 0 | FV114: 0 | FW114: 0
B115: 97 | C115: Bruno Thiago | D115: Senior Lineman/Journeyman Lineman | E115: Vendor No.02 | G115: MIFPUC-2 | H115: 2018-10-14 | I115: 2018-10-20 | J115: Yes | K115: =VLOOKUP($D115,'C.1 - Rate Sheets'!B:F,2,FALSE) -> 0 | L115: =VLOOKUP($D115,'C.1 - Rate Sheets'!B:F,3,FALSE) -> 136.22 | M115: =VLOOKUP($D115,'C.1 - Rate Sheets'!B:F,4,FALSE) -> 176.19 | N115: =VLOOKUP($D115,'C.1 - Rate Sheets'!B:F,5,FALSE) -> 0 | AF115: 16 | AJ115: 16 | AO115: 16 | AT115: 16 | AY115: 16 | BD115: 16 | BI115: 16 | FI115: 0 | FJ115: 96 | FK115: 16 | FM115: 112 | FN115: 0 | FO115: 13077.12 | FP115: 2819.04 | FQ115: 0 | FR115: 15896.16 | FS115: 15896.16 | FT115: Yes | FU115: 0 | FV115: 0 | FW115: 0
B116: 98 | C116: Iran Fernandez | D116: Groundman | E116: Vendor No.02 | G116: MIFPUC-2 | H116: 2018-10-14 | I116: 2018-10-20 | J116: Yes | K116: =VLOOKUP($D116,'C.1 - Rate Sheets'!B:F,2,FALSE) -> 0 | L116: =VLOOKUP($D116,'C.1 - Rate Sheets'!B:F,3,FALSE) -> 99.27 | M116: =VLOOKUP($D116,'C.1 - Rate Sheets'!B:F,4,FALSE) -> 117.21 | N116: =VLOOKUP($D116,'C.1 - Rate Sheets'!B:F,5,FALSE) -> 0 | AF116: 16 | AJ116: 16 | AO116: 16 | AT116: 16 | AY116: 16 | BD116: 16 | BI116: 16 | FI116: 0 | FJ116: 96 | FK116: 16 | FM116: 112 | FN116: 0 | FO116: 9529.92 | FP116: 1875.36 | FQ116: 0 | FR116: 11405.28 | FS116: 11405.28 | FT116: Yes | FU116: 0 | FV116: 0 | FW116: 0
B117: 99 | C117: Deatrick Forbes | D117: Foreman | E117: Vendor No.02 | G117: MIFPUC-2 | H117: 2018-10-14 | I117: 2018-10-20 | J117: Yes | K117: =VLOOKUP($D117,'C.1 - Rate Sheets'!B:F,2,FALSE) -> 0 | L117: =VLOOKUP($D117,'C.1 - Rate Sheets'!B:F,3,FALSE) -> 148.21 | M117: =VLOOKUP($D117,'C.1 - Rate Sheets'!B:F,4,FALSE) -> 192.19 | N117: =VLOOKUP($D117,'C.1 - Rate Sheets'!B:F,5,FALSE) -> 0 | AF117: 16 | AJ117: 16 | AO117: 16 | AT117: 16 | AY117: 16 | BD117: 16 | BI117: 16 | FI117: 0 | FJ117: 96 | FK117: 16 | FM117: 112 | FN117: 0 | FO117: 14228.16 | FP117: 3075.04 | FQ117: 0 | FR117: 17303.2 | FS117: 17303.2 | FT117: Yes | FU117: 0 | FV117: 0 | FW117: 0
B118: 100 | C118: Guilermo Arias | D118: Senior Lineman/Journeyman Lineman | E118: Vendor No.02 | G118: MIFPUC-2 | H118: 2018-10-14 | I118: 2018-10-20 | J118: Yes | K118: =VLOOKUP($D118,'C.1 - Rate Sheets'!B:F,2,FALSE) -> 0 | L118: =VLOOKUP($D118,'C.1 - Rate Sheets'!B:F,3,FALSE) -> 136.22 | M118: =VLOOKUP($D118,'C.1 - Rate Sheets'!B:F,4,FALSE) -> 176.19 | N118: =VLOOKUP($D118,'C.1 - Rate Sheets'!B:F,5,FALSE) -> 0 | AF118: 16 | AJ118: 16 | AO118: 16 | AT118: 16 | AY118: 16 | BD118: 16 | BI118: 16 | FI118: 0 | FJ118: 96 | FK118: 16 | FM118: 112 | FN118: 0 | FO118: 13077.12 | FP118: 2819.04 | FQ118: 0 | FR118: 15896.16 | FS118: 15896.16 | FT118: Yes | FU118: 0 | FV118: 0 | FW118: 0
B119: 101 | C119: Mark Machado | D119: Senior Lineman/Journeyman Lineman | E119: Vendor No.02 | G119: MIFPUC-2 | H119: 2018-10-14 | I119: 2018-10-20 | J119: Yes | K119: =VLOOKUP($D119,'C.1 - Rate Sheets'!B:F,2,FALSE) -> 0 | L119: =VLOOKUP($D119,'C.1 - Rate Sheets'!B:F,3,FALSE) -> 136.22 | M119: =VLOOKUP($D119,'C.1 - Rate Sheets'!B:F,4,FALSE) -> 176.19 | N119: =VLOOKUP($D119,'C.1 - Rate Sheets'!B:F,5,FALSE) -> 0 | AF119: 16 | AJ119: 16 | AO119: 16 | AT119: 16 | AY119: 16 | BD119: 16 | BI119: 16 | FI119: 0 | FJ119: 96 | FK119: 16 | FM119: 112 | FN119: 0 | FO119: 13077.12 | FP119: 2819.04 | FQ119: 0 | FR119: 15896.16 | FS119: 15896.16 | FT119: Yes | FU119: 0 | FV119: 0 | FW119: 0
B120: 102 | C120: Andrew Wilson | D120: Line Tech C | E120: Vendor No.02 | G120: MIFPUC-2 | H120: 2018-10-14 | I120: 2018-10-20 | J120: Yes | K120: =VLOOKUP($D120,'C.1 - Rate Sheets'!B:F,2,FALSE) -> 0 | L120: =VLOOKUP($D120,'C.1 - Rate Sheets'!B:F,3,FALSE) -> 110.51 | M120: =VLOOKUP($D120,'C.1 - Rate Sheets'!B:F,4,FALSE) -> 136.23 | N120: =VLOOKUP($D120,'C.1 - Rate Sheets'!B:F,5,FALSE) -> 0 | AF120: 16 | AJ120: 16 | AO120: 16 | AT120: 16 | AY120: 16 | BD120: 16 | BI120: 16 | FI120: 0 | FJ120: 96 | FK120: 16 | FM120: 112 | FN120: 0 | FO120: 10608.96 | FP120: 2179.68 | FQ120: 0 | FR120: 12788.64 | FS120: 12788.64 | FT120: Yes | FU120: 0 | FV120: 0 | FW120: 0
B121: 103 | C121: Aaron Bessent | D121: Groundman | E121: Vendor No.02 | G121: MIFPUC-2 | H121: 2018-10-14 | I121: 2018-10-20 | J121: Yes | K121: =VLOOKUP($D121,'C.1 - Rate Sheets'!B:F,2,FALSE) -> 0 | L121: =VLOOKUP($D121,'C.1 - Rate Sheets'!B:F,3,FALSE) -> 99.27 | M121: =VLOOKUP($D121,'C.1 - Rate Sheets'!B:F,4,FALSE) -> 117.21 | N121: =VLOOKUP($D121,'C.1 - Rate Sheets'!B:F,5,FALSE) -> 0 | AF121: 16 | AJ121: 16 | AO121: 16 | AT121: 16 | AY121: 16 | BD121: 16 | BI121: 16 | FI121: 0 | FJ121: 96 | FK121: 16 | FM121: 112 | FN121: 0 | FO121: 9529.92 | FP121: 1875.36 | FQ121: 0 | FR121: 11405.28 | FS121: 11405.28 | FT121: Yes | FU121: 0 | FV121: 0 | FW121: 0
B122: 104 | C122: Kevin Leon | D122: General Foreman | E122: Vendor No.02 | G122: MIFPUC-2 | H122: 2018-10-14 | I122: 2018-10-20 | J122: Yes | K122: =VLOOKUP($D122,'C.1 - Rate Sheets'!B:F,2,FALSE) -> 0 | L122: =VLOOKUP($D122,'C.1 - Rate Sheets'!B:F,3,FALSE) -> 160.21 | M122: =VLOOKUP($D122,'C.1 - Rate Sheets'!B:F,4,FALSE) -> 208.18 | N122: =VLOOKUP($D122,'C.1 - Rate Sheets'!B:F,5,FALSE) -> 0 | AF122: 16 | AJ122: 16 | AO122: 16 | AT122: 16 | AY122: 16 | BD122: 16 | BI122: 16 | FI122: 0 | FJ122: 96 | FK122: 16 | FM122: 112 | FN122: 0 | FO122: 15380.16 | FP122: 3330.88 | FQ122: 0 | FR122: 18711.04 | FS122: 18711.04 | FT122: Yes | FU122: 0 | FV122: 0 | FW122: 0
B123: 105 | C123: Joe Preilezo | D123: Safety | E123: Vendor No.02 | G123: MIFPUC-2 | H123: 2018-10-14 | I123: 2018-10-20 | J123: Yes | K123: =VLOOKUP($D123,'C.1 - Rate Sheets'!B:F,2,FALSE) -> 0 | L123: =VLOOKUP($D123,'C.1 - Rate Sheets'!B:F,3,FALSE) -> 148.21 | M123: =VLOOKUP($D123,'C.1 - Rate Sheets'!B:F,4,FALSE) -> 192.19 | N123: =VLOOKUP($D123,'C.1 - Rate Sheets'!B:F,5,FALSE) -> 0 | AF123: 16 | AJ123: 16 | AO123: 16 | AT123: 16 | AY123: 16 | BD123: 16 | BI123: 16 | FI123: 0 | FJ123: 96 | FK123: 16 | FM123: 112 | FN123: 0 | FO123: 14228.16 | FP123: 3075.04 | FQ123: 0 | FR123: 17303.2 | FS123: 17303.2 | FT123: Yes | FU123: 0 | FV123: 0 | FW123: 0
B124: 106 | C124: Jon Morey | D124: Safety | E124: Vendor No.02 | G124: MIFPUC-2 | H124: 2018-10-14 | I124: 2018-10-20 | J124: Yes | K124: =VLOOKUP($D124,'C.1 - Rate Sheets'!B:F,2,FALSE) -> 0 | L124: =VLOOKUP($D124,'C.1 - Rate Sheets'!B:F,3,FALSE) -> 148.21 | M124: =VLOOKUP($D124,'C.1 - Rate Sheets'!B:F,4,FALSE) -> 192.19 | N124: =VLOOKUP($D124,'C.1 - Rate Sheets'!B:F,5,FALSE) -> 0 | AF124: 16 | AJ124: 16 | AO124: 16 | AT124: 16 | AY124: 16 | BD124: 16 | BI124: 16 | FI124: 0 | FJ124: 96 | FK124: 16 | FM124: 112 | FN124: 0 | FO124: 14228.16 | FP124: 3075.04 | FQ124: 0 | FR124: 17303.2 | FS124: 17303.2 | FT124: Yes | FU124: 0 | FV124: 0 | FW124: 0
B125: 107 | C125: Reymond Ugalde | D125: Mechanic | E125: Vendor No.02 | G125: MIFPUC-2 | H125: 2018-10-14 | I125: 2018-10-20 | J125: Yes | K125: =VLOOKUP($D125,'C.1 - Rate Sheets'!B:F,2,FALSE) -> 0 | L125: =VLOOKUP($D125,'C.1 - Rate Sheets'!B:F,3,FALSE) -> 116.87 | M125: =VLOOKUP($D125,'C.1 - Rate Sheets'!B:F,4,FALSE) -> 151.13 | N125: =VLOOKUP($D125,'C.1 - Rate Sheets'!B:F,5,FALSE) -> 0 | AF125: 16 | AJ125: 16 | AO125: 16 | AT125: 16 | AY125: 16 | BD125: 16 | BI125: 16 | FI125: 0 | FJ125: 96 | FK125: 16 | FM125: 112 | FN125: 0 | FO125: 11219.52 | FP125: 2418.08 | FQ125: 0 | FR125: 13637.6 | FS125: 13637.6 | FT125: Yes | FU125: 0 | FV125: 0 | FW125: 0
B126: 108 | C126: Nate Wells | D126: Foreman | E126: Vendor No.02 | G126: MIFPUC-2 | H126: 2018-10-14 | I126: 2018-10-20 | J126: Yes | K126: =VLOOKUP($D126,'C.1 - Rate Sheets'!B:F,2,FALSE) -> 0 | L126: =VLOOKUP($D126,'C.1 - Rate Sheets'!B:F,3,FALSE) -> 148.21 | M126: =VLOOKUP($D126,'C.1 - Rate Sheets'!B:F,4,FALSE) -> 192.19 | N126: =VLOOKUP($D126,'C.1 - Rate Sheets'!B:F,5,FALSE) -> 0 | AF126: 16 | AJ126: 16 | AO126: 16 | AT126: 16 | AY126: 16 | BD126: 16 | BI126: 16 | FI126: 0 | FJ126: 96 | FK126: 16 | FM126: 112 | FN126: 0 | FO126: 14228.16 | FP126: 3075.04 | FQ126: 0 | FR126: 17303.2 | FS126: 17303.2 | FT126: Yes | FU126: 0 | FV126: 0 | FW126: 0
B127: 109 | C127: Emir Alvarado | D127: Senior Lineman/Journeyman Lineman | E127: Vendor No.02 | G127: MIFPUC-2 | H127: 2018-10-14 | I127: 2018-10-20 | J127: Yes | K127: =VLOOKUP($D127,'C.1 - Rate Sheets'!B:F,2,FALSE) -> 0 | L127: =VLOOKUP($D127,'C.1 - Rate Sheets'!B:F,3,FALSE) -> 136.22 | M127: =VLOOKUP($D127,'C.1 - Rate Sheets'!B:F,4,FALSE) -> 176.19 | N127: =VLOOKUP($D127,'C.1 - Rate Sheets'!B:F,5,FALSE) -> 0 | AF127: 16 | AJ127: 16 | AO127: 16 | AT127: 16 | AY127: 16 | BD127: 16 | BI127: 16 | FI127: 0 | FJ127: 96 | FK127: 16 | FM127: 112 | FN127: 0 | FO127: 13077.12 | FP127: 2819.04 | FQ127: 0 | FR127: 15896.16 | FS127: 15896.16 | FT127: Yes | FU127: 0 | FV127: 0 | FW127: 0
B128: 110 | C128: Doyle Rondtree | D128: Senior Lineman/Journeyman Lineman | E128: Vendor No.02 | G128: MIFPUC-2 | H128: 2018-10-14 | I128: 2018-10-20 | J128: Yes | K128: =VLOOKUP($D128,'C.1 - Rate Sheets'!B:F,2,FALSE) -> 0 | L128: =VLOOKUP($D128,'C.1 - Rate Sheets'!B:F,3,FALSE) -> 136.22 | M128: =VLOOKUP($D128,'C.1 - Rate Sheets'!B:F,4,FALSE) -> 176.19 | N128: =VLOOKUP($D128,'C.1 - Rate Sheets'!B:F,5,FALSE) -> 0 | AF128: 16 | AJ128: 16 | AO128: 16 | AT128: 16 | AY128: 16 | BD128: 16 | BI128: 16 | FI128: 0 | FJ128: 96 | FK128: 16 | FM128: 112 | FN128: 0 | FO128: 13077.12 | FP128: 2819.04 | FQ128: 0 | FR128: 15896.16 | FS128: 15896.16 | FT128: Yes | FU128: 0 | FV128: 0 | FW128: 0
B129: 111 | C129: Dominick Hernandez | D129: Apprentice Helper | E129: Vendor No.02 | G129: MIFPUC-2 | H129: 2018-10-14 | I129: 2018-10-20 | J129: Yes | K129: =VLOOKUP($D129,'C.1 - Rate Sheets'!B:F,2,FALSE) -> 0 | L129: =VLOOKUP($D129,'C.1 - Rate Sheets'!B:F,3,FALSE) -> 102.25 | M129: =VLOOKUP($D129,'C.1 - Rate Sheets'!B:F,4,FALSE) -> 130.74 | N129: =VLOOKUP($D129,'C.1 - Rate Sheets'!B:F,5,FALSE) -> 0 | AF129: 16 | AJ129: 16 | AO129: 16 | AT129: 16 | AY129: 16 | BD129: 16 | BI129: 16 | FI129: 0 | FJ129: 96 | FK129: 16 | FM129: 112 | FN129: 0 | FO129: 9816 | FP129: 2091.84 | FQ129: 0 | FR129: 11907.84 | FS129: 11907.84 | FT129: Yes | FU129: 0 | FV129: 0 | FW129: 0
B130: 112 | C130: Brian Abbate | D130: Groundman | E130: Vendor No.02 | G130: MIFPUC-2 | H130: 2018-10-14 | I130: 2018-10-20 | J130: Yes | K130: =VLOOKUP($D130,'C.1 - Rate Sheets'!B:F,2,FALSE) -> 0 | L130: =VLOOKUP($D130,'C.1 - Rate Sheets'!B:F,3,FALSE) -> 99.27 | M130: =VLOOKUP($D130,'C.1 - Rate Sheets'!B:F,4,FALSE) -> 117.21 | N130: =VLOOKUP($D130,'C.1 - Rate Sheets'!B:F,5,FALSE) -> 0 | AF130: 16 | AJ130: 16 | AO130: 16 | AT130: 16 | AY130: 16 | BD130: 16 | BI130: 16 | FI130: 0 | FJ130: 96 | FK130: 16 | FM130: 112 | FN130: 0 | FO130: 9529.92 | FP130: 1875.36 | FQ130: 0 | FR130: 11405.28 | FS130: 11405.28 | FT130: Yes | FU130: 0 | FV130: 0 | FW130: 0
B131: 113 | C131: Jose De Jesus | D131: Foreman | E131: Vendor No.02 | G131: MIFPUC-2 | H131: 2018-10-14 | I131: 2018-10-20 | J131: Yes | K131: =VLOOKUP($D131,'C.1 - Rate Sheets'!B:F,2,FALSE) -> 0 | L131: =VLOOKUP($D131,'C.1 - Rate Sheets'!B:F,3,FALSE) -> 148.21 | M131: =VLOOKUP($D131,'C.1 - Rate Sheets'!B:F,4,FALSE) -> 192.19 | N131: =VLOOKUP($D131,'C.1 - Rate Sheets'!B:F,5,FALSE) -> 0 | AF131: 16 | AJ131: 16 | AO131: 16 | AT131: 16 | AY131: 16 | BD131: 16 | BI131: 16 | FI131: 0 | FJ131: 96 | FK131: 16 | FM131: 112 | FN131: 0 | FO131: 14228.16 | FP131: 3075.04 | FQ131: 0 | FR131: 17303.2 | FS131: 17303.2 | FT131: Yes | FU131: 0 | FV131: 0 | FW131: 0
B132: 114 | C132: Hector Rodriguez | D132: Senior Lineman/Journeyman Lineman | E132: Vendor No.02 | G132: MIFPUC-2 | H132: 2018-10-14 | I132: 2018-10-20 | J132: Yes | K132: =VLOOKUP($D132,'C.1 - Rate Sheets'!B:F,2,FALSE) -> 0 | L132: =VLOOKUP($D132,'C.1 - Rate Sheets'!B:F,3,FALSE) -> 136.22 | M132: =VLOOKUP($D132,'C.1 - Rate Sheets'!B:F,4,FALSE) -> 176.19 | N132: =VLOOKUP($D132,'C.1 - Rate Sheets'!B:F,5,FALSE) -> 0 | AF132: 16 | AJ132: 16 | AO132: 16 | AT132: 16 | AY132: 16 | BD132: 16 | BI132: 16 | FI132: 0 | FJ132: 96 | FK132: 16 | FM132: 112 | FN132: 0 | FO132: 13077.12 | FP132: 2819.04 | FQ132: 0 | FR132: 15896.16 | FS132: 15896.16 | FT132: Yes | FU132: 0 | FV132: 0 | FW132: 0
B133: 115 | C133: Randal Osteen | D133: Line Tech B | E133: Vendor No.02 | G133: MIFPUC-2 | H133: 2018-10-14 | I133: 2018-10-20 | J133: Yes | K133: =VLOOKUP($D133,'C.1 - Rate Sheets'!B:F,2,FALSE) -> 0 | L133: =VLOOKUP($D133,'C.1 - Rate Sheets'!B:F,3,FALSE) -> 118.24 | M133: =VLOOKUP($D133,'C.1 - Rate Sheets'!B:F,4,FALSE) -> 152.22 | N133: =VLOOKUP($D133,'C.1 - Rate Sheets'!B:F,5,FALSE) -> 0 | AF133: 16 | AJ133: 16 | AO133: 16 | AT133: 16 | AY133: 16 | BD133: 16 | BI133: 16 | FI133: 0 | FJ133: 96 | FK133: 16 | FM133: 112 | FN133: 0 | FO133: 11351.04 | FP133: 2435.52 | FQ133: 0 | FR133: 13786.56 | FS133: 13786.56 | FT133: Yes | FU133: 0 | FV133: 0 | FW133: 0
B134: 116 | C134: Jorge Barroso | D134: Senior Lineman/Journeyman Lineman | E134: Vendor No.02 | G134: MIFPUC-2 | H134: 2018-10-14 | I134: 2018-10-20 | J134: Yes | K134: =VLOOKUP($D134,'C.1 - Rate Sheets'!B:F,2,FALSE) -> 0 | L134: =VLOOKUP($D134,'C.1 - Rate Sheets'!B:F,3,FALSE) -> 136.22 | M134: =VLOOKUP($D134,'C.1 - Rate Sheets'!B:F,4,FALSE) -> 176.19 | N134: =VLOOKUP($D134,'C.1 - Rate Sheets'!B:F,5,FALSE) -> 0 | AF134: 16 | AJ134: 16 | AO134: 16 | AT134: 16 | AY134: 16 | BD134: 16 | BI134: 16 | FI134: 0 | FJ134: 96 | FK134: 16 | FM134: 112 | FN134: 0 | FO134: 13077.12 | FP134: 2819.04 | FQ134: 0 | FR134: 15896.16 | FS134: 15896.16 | FT134: Yes | FU134: 0 | FV134: 0 | FW134: 0
B135: 117 | C135: Chadwick Kern | D135: Groundman | E135: Vendor No.02 | G135: MIFPUC-2 | H135: 2018-10-14 | I135: 2018-10-20 | J135: Yes | K135: =VLOOKUP($D135,'C.1 - Rate Sheets'!B:F,2,FALSE) -> 0 | L135: =VLOOKUP($D135,'C.1 - Rate Sheets'!B:F,3,FALSE) -> 99.27 | M135: =VLOOKUP($D135,'C.1 - Rate Sheets'!B:F,4,FALSE) -> 117.21 | N135: =VLOOKUP($D135,'C.1 - Rate Sheets'!B:F,5,FALSE) -> 0 | AF135: 16 | AJ135: 16 | AO135: 16 | AT135: 16 | AY135: 16 | BD135: 16 | BI135: 16 | FI135: 0 | FJ135: 96 | FK135: 16 | FM135: 112 | FN135: 0 | FO135: 9529.92 | FP135: 1875.36 | FQ135: 0 | FR135: 11405.28 | FS135: 11405.28 | FT135: Yes | FU135: 0 | FV135: 0 | FW135: 0
B136: 118 | C136: John Harn | D136: General Foreman | E136: Vendor No.02 | G136: MIFPUC-2 | H136: 2018-10-14 | I136: 2018-10-20 | J136: Yes | K136: =VLOOKUP($D136,'C.1 - Rate Sheets'!B:F,2,FALSE) -> 0 | L136: =VLOOKUP($D136,'C.1 - Rate Sheets'!B:F,3,FALSE) -> 160.21 | M136: =VLOOKUP($D136,'C.1 - Rate Sheets'!B:F,4,FALSE) -> 208.18 | N136: =VLOOKUP($D136,'C.1 - Rate Sheets'!B:F,5,FALSE) -> 0 | AF136: 16 | AJ136: 16 | AO136: 16 | AT136: 16 | AY136: 16 | BD136: 16 | BI136: 16 | FI136: 0 | FJ136: 96 | FK136: 16 | FM136: 112 | FN136: 0 | FO136: 15380.16 | FP136: 3330.88 | FQ136: 0 | FR136: 18711.04 | FS136: 18711.04 | FT136: Yes | FU136: 0 | FV136: 0 | FW136: 0
B137: 119 | C137: Bonnie Knopf | D137: Safety | E137: Vendor No.02 | G137: MIFPUC-2 | H137: 2018-10-14 | I137: 2018-10-20 | J137: Yes | K137: =VLOOKUP($D137,'C.1 - Rate Sheets'!B:F,2,FALSE) -> 0 | L137: =VLOOKUP($D137,'C.1 - Rate Sheets'!B:F,3,FALSE) -> 148.21 | M137: =VLOOKUP($D137,'C.1 - Rate Sheets'!B:F,4,FALSE) -> 192.19 | N137: =VLOOKUP($D137,'C.1 - Rate Sheets'!B:F,5,FALSE) -> 0 | AF137: 16 | AJ137: 16 | AO137: 16 | AT137: 16 | AY137: 16 | BD137: 16 | BI137: 16 | FI137: 0 | FJ137: 96 | FK137: 16 | FM137: 112 | FN137: 0 | FO137: 14228.16 | FP137: 3075.04 | FQ137: 0 | FR137: 17303.2 | FS137: 17303.2 | FT137: Yes | FU137: 0 | FV137: 0 | FW137: 0
B138: 120 | C138: John Cour | D138: General Foreman | E138: Vendor No.02 | G138: MIFPUC-2 | H138: 2018-10-14 | I138: 2018-10-20 | J138: Yes | K138: =VLOOKUP($D138,'C.1 - Rate Sheets'!B:F,2,FALSE) -> 0 | L138: =VLOOKUP($D138,'C.1 - Rate Sheets'!B:F,3,FALSE) -> 160.21 | M138: =VLOOKUP($D138,'C.1 - Rate Sheets'!B:F,4,FALSE) -> 208.18 | N138: =VLOOKUP($D138,'C.1 - Rate Sheets'!B:F,5,FALSE) -> 0 | AF138: 16 | AJ138: 16 | AO138: 16 | AT138: 16 | AY138: 16 | BD138: 16 | BI138: 16 | FI138: 0 | FJ138: 96 | FK138: 16 | FM138: 112 | FN138: 0 | FO138: 15380.16 | FP138: 3330.88 | FQ138: 0 | FR138: 18711.04 | FS138: 18711.04 | FT138: Yes | FU138: 0 | FV138: 0 | FW138: 0
B139: 121 | C139: Kinsey Winstead | D139: Senior Lineman/Journeyman Lineman | E139: Vendor No.02 | G139: MIFPUC-2 | H139: 2018-10-14 | I139: 2018-10-20 | J139: Yes | K139: =VLOOKUP($D139,'C.1 - Rate Sheets'!B:F,2,FALSE) -> 0 | L139: =VLOOKUP($D139,'C.1 - Rate Sheets'!B:F,3,FALSE) -> 136.22 | M139: =VLOOKUP($D139,'C.1 - Rate Sheets'!B:F,4,FALSE) -> 176.19 | N139: =VLOOKUP($D139,'C.1 - Rate Sheets'!B:F,5,FALSE) -> 0 | AF139: 16 | AJ139: 16 | AO139: 16 | AT139: 16 | AY139: 16 | BD139: 16 | BI139: 16 | FI139: 0 | FJ139: 96 | FK139: 16 | FM139: 112 | FN139: 0 | FO139: 13077.12 | FP139: 2819.04 | FQ139: 0 | FR139: 15896.16 | FS139: 15896.16 | FT139: Yes | FU139: 0 | FV139: 0 | FW139: 0
B140: 122 | C140: Sigfrido Chiong | D140: Foreman | E140: Vendor No.02 | G140: MIFPUC-2 | H140: 2018-10-14 | I140: 2018-10-20 | J140: Yes | K140: =VLOOKUP($D140,'C.1 - Rate Sheets'!B:F,2,FALSE) -> 0 | L140: =VLOOKUP($D140,'C.1 - Rate Sheets'!B:F,3,FALSE) -> 148.21 | M140: =VLOOKUP($D140,'C.1 - Rate Sheets'!B:F,4,FALSE) -> 192.19 | N140: =VLOOKUP($D140,'C.1 - Rate Sheets'!B:F,5,FALSE) -> 0 | AF140: 16 | AJ140: 16 | AO140: 16 | AT140: 16 | AY140: 16 | BD140: 16 | BI140: 16 | FI140: 0 | FJ140: 96 | FK140: 16 | FM140: 112 | FN140: 0 | FO140: 14228.16 | FP140: 3075.04 | FQ140: 0 | FR140: 17303.2 | FS140: 17303.2 | FT140: Yes | FU140: 0 | FV140: 0 | FW140: 0
B141: 123 | C141: Jose Guttierez | D141: Senior Lineman/Journeyman Lineman | E141: Vendor No.02 | G141: MIFPUC-2 | H141: 2018-10-14 | I141: 2018-10-20 | J141: Yes | K141: =VLOOKUP($D141,'C.1 - Rate Sheets'!B:F,2,FALSE) -> 0 | L141: =VLOOKUP($D141,'C.1 - Rate Sheets'!B:F,3,FALSE) -> 136.22 | M141: =VLOOKUP($D141,'C.1 - Rate Sheets'!B:F,4,FALSE) -> 176.19 | N141: =VLOOKUP($D141,'C.1 - Rate Sheets'!B:F,5,FALSE) -> 0 | AF141: 16 | AJ141: 16 | AO141: 16 | AT141: 16 | AY141: 16 | BD141: 16 | BI141: 16 | FI141: 0 | FJ141: 96 | FK141: 16 | FM141: 112 | FN141: 0 | FO141: 13077.12 | FP141: 2819.04 | FQ141: 0 | FR141: 15896.16 | FS141: 15896.16 | FT141: Yes | FU141: 0 | FV141: 0 | FW141: 0
B142: 124 | C142: Dakota Pickup | D142: Apprentice Helper | E142: Vendor No.02 | G142: MIFPUC-2 | H142: 2018-10-14 | I142: 2018-10-20 | J142: Yes | K142: =VLOOKUP($D142,'C.1 - Rate Sheets'!B:F,2,FALSE) -> 0 | L142: =VLOOKUP($D142,'C.1 - Rate Sheets'!B:F,3,FALSE) -> 102.25 | M142: =VLOOKUP($D142,'C.1 - Rate Sheets'!B:F,4,FALSE) -> 130.74 | N142: =VLOOKUP($D142,'C.1 - Rate Sheets'!B:F,5,FALSE) -> 0 | AF142: 16 | AJ142: 16 | AO142: 16 | AT142: 16 | AY142: 16 | BD142: 16 | BI142: 16 | FI142: 0 | FJ142: 96 | FK142: 16 | FM142: 112 | FN142: 0 | FO142: 9816 | FP142: 2091.84 | FQ142: 0 | FR142: 11907.84 | FS142: 11907.84 | FT142: Yes | FU142: 0 | FV142: 0 | FW142: 0
B143: 125 | C143: Jeremy Minkler | D143: Groundman | E143: Vendor No.02 | G143: MIFPUC-2 | H143: 2018-10-14 | I143: 2018-10-20 | J143: Yes | K143: =VLOOKUP($D143,'C.1 - Rate Sheets'!B:F,2,FALSE) -> 0 | L143: =VLOOKUP($D143,'C.1 - Rate Sheets'!B:F,3,FALSE) -> 99.27 | M143: =VLOOKUP($D143,'C.1 - Rate Sheets'!B:F,4,FALSE) -> 117.21 | N143: =VLOOKUP($D143,'C.1 - Rate Sheets'!B:F,5,FALSE) -> 0 | AF143: 16 | AJ143: 16 | AO143: 16 | AT143: 16 | AY143: 16 | BD143: 16 | BI143: 16 | FI143: 0 | FJ143: 96 | FK143: 16 | FM143: 112 | FN143: 0 | FO143: 9529.92 | FP143: 1875.36 | FQ143: 0 | FR143: 11405.28 | FS143: 11405.28 | FT143: Yes | FU143: 0 | FV143: 0 | FW143: 0
B144: 126 | C144: Billy Dillashaw | D144: Equipment Operator | E144: Vendor No.02 | G144: MIFPUC-2 | H144: 2018-10-14 | I144: 2018-10-20 | J144: Yes | K144: =VLOOKUP($D144,'C.1 - Rate Sheets'!B:F,2,FALSE) -> 0 | L144: =VLOOKUP($D144,'C.1 - Rate Sheets'!B:F,3,FALSE) -> 116.87 | M144: =VLOOKUP($D144,'C.1 - Rate Sheets'!B:F,4,FALSE) -> 151.13 | N144: =VLOOKUP($D144,'C.1 - Rate Sheets'!B:F,5,FALSE) -> 0 | AF144: 16 | AJ144: 16 | AO144: 16 | AT144: 16 | AY144: 16 | BD144: 16 | BI144: 16 | FI144: 0 | FJ144: 96 | FK144: 16 | FM144: 112 | FN144: 0 | FO144: 11219.52 | FP144: 2418.08 | FQ144: 0 | FR144: 13637.6 | FS144: 13637.6 | FT144: Yes | FU144: 0 | FV144: 0 | FW144: 0
B145: 127 | C145: Mike Katulka | D145: Foreman | E145: Vendor No.02 | G145: MIFPUC-2 | H145: 2018-10-14 | I145: 2018-10-20 | J145: Yes | K145: =VLOOKUP($D145,'C.1 - Rate Sheets'!B:F,2,FALSE) -> 0 | L145: =VLOOKUP($D145,'C.1 - Rate Sheets'!B:F,3,FALSE) -> 148.21 | M145: =VLOOKUP($D145,'C.1 - Rate Sheets'!B:F,4,FALSE) -> 192.19 | N145: =VLOOKUP($D145,'C.1 - Rate Sheets'!B:F,5,FALSE) -> 0 | AF145: 16 | AJ145: 16 | AO145: 16 | AT145: 16 | AY145: 16 | BD145: 16 | BI145: 16 | FI145: 0 | FJ145: 96 | FK145: 16 | FM145: 112 | FN145: 0 | FO145: 14228.16 | FP145: 3075.04 | FQ145: 0 | FR145: 17303.2 | FS145: 17303.2 | FT145: Yes | FU145: 0 | FV145: 0 | FW145: 0
B146: 128 | C146: Yonielt Alfonso | D146: Senior Lineman/Journeyman Lineman | E146: Vendor No.02 | G146: MIFPUC-2 | H146: 2018-10-14 | I146: 2018-10-20 | J146: Yes | K146: =VLOOKUP($D146,'C.1 - Rate Sheets'!B:F,2,FALSE) -> 0 | L146: =VLOOKUP($D146,'C.1 - Rate Sheets'!B:F,3,FALSE) -> 136.22 | M146: =VLOOKUP($D146,'C.1 - Rate Sheets'!B:F,4,FALSE) -> 176.19 | N146: =VLOOKUP($D146,'C.1 - Rate Sheets'!B:F,5,FALSE) -> 0 | AF146: 16 | AJ146: 16 | AO146: 16 | AT146: 16 | AY146: 16 | BD146: 16 | BI146: 16 | FI146: 0 | FJ146: 96 | FK146: 16 | FM146: 112 | FN146: 0 | FO146: 13077.12 | FP146: 2819.04 | FQ146: 0 | FR146: 15896.16 | FS146: 15896.16 | FT146: Yes | FU146: 0 | FV146: 0 | FW146: 0
B147: 129 | C147: Joseph Kelly | D147: Line Tech B | E147: Vendor No.02 | G147: MIFPUC-2 | H147: 2018-10-14 | I147: 2018-10-20 | J147: Yes | K147: =VLOOKUP($D147,'C.1 - Rate Sheets'!B:F,2,FALSE) -> 0 | L147: =VLOOKUP($D147,'C.1 - Rate Sheets'!B:F,3,FALSE) -> 118.24 | M147: =VLOOKUP($D147,'C.1 - Rate Sheets'!B:F,4,FALSE) -> 152.22 | N147: =VLOOKUP($D147,'C.1 - Rate Sheets'!B:F,5,FALSE) -> 0 | AF147: 16 | AJ147: 16 | AO147: 16 | AT147: 16 | AY147: 16 | BD147: 16 | BI147: 16 | FI147: 0 | FJ147: 96 | FK147: 16 | FM147: 112 | FN147: 0 | FO147: 11351.04 | FP147: 2435.52 | FQ147: 0 | FR147: 13786.56 | FS147: 13786.56 | FT147: Yes | FU147: 0 | FV147: 0 | FW147: 0
B148: 130 | C148: Chris Miller | D148: Apprentice Helper | E148: Vendor No.02 | G148: MIFPUC-2 | H148: 2018-10-14 | I148: 2018-10-20 | J148: Yes | K148: =VLOOKUP($D148,'C.1 - Rate Sheets'!B:F,2,FALSE) -> 0 | L148: =VLOOKUP($D148,'C.1 - Rate Sheets'!B:F,3,FALSE) -> 102.25 | M148: =VLOOKUP($D148,'C.1 - Rate Sheets'!B:F,4,FALSE) -> 130.74 | N148: =VLOOKUP($D148,'C.1 - Rate Sheets'!B:F,5,FALSE) -> 0 | AF148: 16 | AJ148: 16 | AO148: 16 | AT148: 16 | AY148: 16 | BD148: 16 | BI148: 16 | FI148: 0 | FJ148: 96 | FK148: 16 | FM148: 112 | FN148: 0 | FO148: 9816 | FP148: 2091.84 | FQ148: 0 | FR148: 11907.84 | FS148: 11907.84 | FT148: Yes | FU148: 0 | FV148: 0 | FW148: 0
B149: 131 | C149: Anthony Quay | D149: Equipment Operator | E149: Vendor No.02 | G149: MIFPUC-2 | H149: 2018-10-14 | I149: 2018-10-20 | J149: Yes | K149: =VLOOKUP($D149,'C.1 - Rate Sheets'!B:F,2,FALSE) -> 0 | L149: =VLOOKUP($D149,'C.1 - Rate Sheets'!B:F,3,FALSE) -> 116.87 | M149: =VLOOKUP($D149,'C.1 - Rate Sheets'!B:F,4,FALSE) -> 151.13 | N149: =VLOOKUP($D149,'C.1 - Rate Sheets'!B:F,5,FALSE) -> 0 | AF149: 16 | AJ149: 16 | AO149: 16 | AT149: 16 | AY149: 16 | BD149: 16 | BI149: 16 | FI149: =FD149+EY149+ET149+EO149+EJ149+EE149+DZ149+DU149+DP149+DK149+DF149+DA149+CV149+CQ149+CL149+CG149+CB149+BW149+BR149+BM149+BH149+BC149+AX149+AS149+AN149+AI149+AD149+Y149+T149+O149 -> 0 | FJ149: =FE149+EZ149+EU149+EP149+EK149+EF149+EA149+DV149+DQ149+DL149+DG149+DB149+CW149+CR149+CM149+CH149+CC149+BX149+BS149+BN149+BI149+BD149+AY149+AT149+AO149+AJ149+AE149+Z149+U149+P149 -> 96 | FK149: =FF149+FA149+EV149+EQ149+EL149+EG149+EB149+DW149+DR149+DM149+DH149+DC149+CX149+CS149+CN149+CI149+CD149+BY149+BT149+BO149+BJ149+BE149+AZ149+AU149+AP149+AK149+AF149+AA149+V149+Q149 -> 16 | FM149: =SUM(FI149:FL149) -> 112 | FN149: =FI149*K149 -> 0 | FO149: =FJ149*L149 -> 11219.52 | FP149: =FK149*M149 -> 2418.08 | FQ149: =FL149*N149 -> 0 | FR149: =SUM(FN149:FQ149) -> 13637.6 | FS149: =FR149-FU149 -> 13637.6 | FT149: Yes | FU149: 0 | FV149: 0 | FW149: 0
B150: 132 | C150: Ismael Rivera | D150: Foreman | E150: Vendor No.02 | G150: MIFPUC-2 | H150: 2018-10-14 | I150: 2018-10-20 | J150: Yes | K150: =VLOOKUP($D150,'C.1 - Rate Sheets'!B:F,2,FALSE) -> 0 | L150: =VLOOKUP($D150,'C.1 - Rate Sheets'!B:F,3,FALSE) -> 148.21 | M150: =VLOOKUP($D150,'C.1 - Rate Sheets'!B:F,4,FALSE) -> 192.19 | N150: =VLOOKUP($D150,'C.1 - Rate Sheets'!B:F,5,FALSE) -> 0 | AF150: 16 | AJ150: 16 | AO150: 16 | AT150: 16 | AY150: 16 | BD150: 16 | BI150: 16 | FI150: 0 | FJ150: 96 | FK150: 16 | FM150: 112 | FN150: 0 | FO150: 14228.16 | FP150: 3075.04 | FQ150: 0 | FR150: 17303.2 | FS150: 17303.2 | FT150: Yes | FU150: 0 | FV150: 0 | FW150: 0
B151: 133 | C151: Cesar Bello | D151: Senior Lineman/Journeyman Lineman | E151: Vendor No.02 | G151: MIFPUC-2 | H151: 2018-10-14 | I151: 2018-10-20 | J151: Yes | K151: =VLOOKUP($D151,'C.1 - Rate Sheets'!B:F,2,FALSE) -> 0 | L151: =VLOOKUP($D151,'C.1 - Rate Sheets'!B:F,3,FALSE) -> 136.22 | M151: =VLOOKUP($D151,'C.1 - Rate Sheets'!B:F,4,FALSE) -> 176.19 | N151: =VLOOKUP($D151,'C.1 - Rate Sheets'!B:F,5,FALSE) -> 0 | AF151: 16 | AJ151: 16 | AO151: 16 | AT151: 16 | AY151: 16 | BD151: 16 | BI151: 16 | FI151: 0 | FJ151: 96 | FK151: 16 | FM151: 112 | FN151: 0 | FO151: 13077.12 | FP151: 2819.04 | FQ151: 0 | FR151: 15896.16 | FS151: 15896.16 | FT151: Yes | FU151: 0 | FV151: 0 | FW151: 0
B152: 134 | C152: Pedro Rico | D152: Senior Lineman/Journeyman Lineman | E152: Vendor No.02 | G152: MIFPUC-2 | H152: 2018-10-14 | I152: 2018-10-20 | J152: Yes | K152: =VLOOKUP($D152,'C.1 - Rate Sheets'!B:F,2,FALSE) -> 0 | L152: =VLOOKUP($D152,'C.1 - Rate Sheets'!B:F,3,FALSE) -> 136.22 | M152: =VLOOKUP($D152,'C.1 - Rate Sheets'!B:F,4,FALSE) -> 176.19 | N152: =VLOOKUP($D152,'C.1 - Rate Sheets'!B:F,5,FALSE) -> 0 | AF152: 16 | AJ152: 16 | AO152: 16 | AT152: 16 | AY152: 16 | BD152: 16 | BI152: 16 | FI152: 0 | FJ152: 96 | FK152: 16 | FM152: 112 | FN152: 0 | FO152: 13077.12 | FP152: 2819.04 | FQ152: 0 | FR152: 15896.16 | FS152: 15896.16 | FT152: Yes | FU152: 0 | FV152: 0 | FW152: 0
B153: 135 | C153: Giovanni Febus | D153: Senior Lineman/Journeyman Lineman | E153: Vendor No.02 | G153: MIFPUC-2 | H153: 2018-10-14 | I153: 2018-10-20 | J153: Yes | K153: =VLOOKUP($D153,'C.1 - Rate Sheets'!B:F,2,FALSE) -> 0 | L153: =VLOOKUP($D153,'C.1 - Rate Sheets'!B:F,3,FALSE) -> 136.22 | M153: =VLOOKUP($D153,'C.1 - Rate Sheets'!B:F,4,FALSE) -> 176.19 | N153: =VLOOKUP($D153,'C.1 - Rate Sheets'!B:F,5,FALSE) -> 0 | AF153: 16 | AJ153: 16 | AO153: 16 | AT153: 16 | AY153: 16 | BD153: 16 | BI153: 16 | FI153: 0 | FJ153: 96 | FK153: 16 | FM153: 112 | FN153: 0 | FO153: 13077.12 | FP153: 2819.04 | FQ153: 0 | FR153: 15896.16 | FS153: 15896.16 | FT153: Yes | FU153: 0 | FV153: 0 | FW153: 0
B154: 136 | C154: Tanner Lewis | D154: Apprentice Helper | E154: Vendor No.02 | G154: MIFPUC-2 | H154: 2018-10-14 | I154: 2018-10-20 | J154: Yes | K154: =VLOOKUP($D154,'C.1 - Rate Sheets'!B:F,2,FALSE) -> 0 | L154: =VLOOKUP($D154,'C.1 - Rate Sheets'!B:F,3,FALSE) -> 102.25 | M154: =VLOOKUP($D154,'C.1 - Rate Sheets'!B:F,4,FALSE) -> 130.74 | N154: =VLOOKUP($D154,'C.1 - Rate Sheets'!B:F,5,FALSE) -> 0 | AF154: 16 | AJ154: 16 | AO154: 16 | AT154: 16 | AY154: 16 | BD154: 16 | BI154: 16 | FI154: 0 | FJ154: 96 | FK154: 16 | FM154: 112 | FN154: 0 | FO154: 9816 | FP154: 2091.84 | FQ154: 0 | FR154: 11907.84 | FS154: 11907.84 | FT154: Yes | FU154: 0 | FV154: 0 | FW154: 0
B155: 137 | C155: Yeudiel Rivera | D155: Foreman | E155: Vendor No.02 | G155: MIFPUC-2 | H155: 2018-10-14 | I155: 2018-10-20 | J155: Yes | K155: =VLOOKUP($D155,'C.1 - Rate Sheets'!B:F,2,FALSE) -> 0 | L155: =VLOOKUP($D155,'C.1 - Rate Sheets'!B:F,3,FALSE) -> 148.21 | M155: =VLOOKUP($D155,'C.1 - Rate Sheets'!B:F,4,FALSE) -> 192.19 | N155: =VLOOKUP($D155,'C.1 - Rate Sheets'!B:F,5,FALSE) -> 0 | AF155: 16 | AJ155: 16 | AO155: 16 | AT155: 16 | AY155: 16 | BD155: 16 | BI155: 16 | FI155: 0 | FJ155: 96 | FK155: 16 | FM155: 112 | FN155: 0 | FO155: 14228.16 | FP155: 3075.04 | FQ155: 0 | FR155: 17303.2 | FS155: 17303.2 | FT155: Yes | FU155: 0 | FV155: 0 | FW155: 0
B156: 138 | C156: Angel Calo | D156: Senior Lineman/Journeyman Lineman | E156: Vendor No.02 | G156: MIFPUC-2 | H156: 2018-10-14 | I156: 2018-10-20 | J156: Yes | K156: =VLOOKUP($D156,'C.1 - Rate Sheets'!B:F,2,FALSE) -> 0 | L156: =VLOOKUP($D156,'C.1 - Rate Sheets'!B:F,3,FALSE) -> 136.22 | M156: =VLOOKUP($D156,'C.1 - Rate Sheets'!B:F,4,FALSE) -> 176.19 | N156: =VLOOKUP($D156,'C.1 - Rate Sheets'!B:F,5,FALSE) -> 0 | AF156: 16 | AJ156: 16 | AO156: 16 | AT156: 16 | AY156: 16 | BD156: 16 | BI156: 16 | FI156: 0 | FJ156: 96 | FK156: 16 | FM156: 112 | FN156: 0 | FO156: 13077.12 | FP156: 2819.04 | FQ156: 0 | FR156: 15896.16 | FS156: 15896.16 | FT156: Yes | FU156: 0 | FV156: 0 | FW156: 0
B157: 139 | C157: Jose Clinton | D157: Senior Lineman/Journeyman Lineman | E157: Vendor No.02 | G157: MIFPUC-2 | H157: 2018-10-14 | I157: 2018-10-20 | J157: Yes | K157: =VLOOKUP($D157,'C.1 - Rate Sheets'!B:F,2,FALSE) -> 0 | L157: =VLOOKUP($D157,'C.1 - Rate Sheets'!B:F,3,FALSE) -> 136.22 | M157: =VLOOKUP($D157,'C.1 - Rate Sheets'!B:F,4,FALSE) -> 176.19 | N157: =VLOOKUP($D157,'C.1 - Rate Sheets'!B:F,5,FALSE) -> 0 | AF157: 16 | AJ157: 16 | AO157: 16 | AT157: 16 | AY157: 16 | BD157: 16 | BI157: 16 | FI157: 0 | FJ157: 96 | FK157: 16 | FM157: 112 | FN157: 0 | FO157: 13077.12 | FP157: 2819.04 | FQ157: 0 | FR157: 15896.16 | FS157: 15896.16 | FT157: Yes | FU157: 0 | FV157: 0 | FW157: 0
B158: 140 | C158: Joseph Febus | D158: Groundman | E158: Vendor No.02 | G158: MIFPUC-2 | H158: 2018-10-14 | I158: 2018-10-20 | J158: Yes | K158: =VLOOKUP($D158,'C.1 - Rate Sheets'!B:F,2,FALSE) -> 0 | L158: =VLOOKUP($D158,'C.1 - Rate Sheets'!B:F,3,FALSE) -> 99.27 | M158: =VLOOKUP($D158,'C.1 - Rate Sheets'!B:F,4,FALSE) -> 117.21 | N158: =VLOOKUP($D158,'C.1 - Rate Sheets'!B:F,5,FALSE) -> 0 | AF158: 16 | AJ158: 16 | AO158: 16 | AT158: 16 | AY158: 16 | BD158: 16 | BI158: 16 | FI158: 0 | FJ158: 96 | FK158: 16 | FM158: 112 | FN158: 0 | FO158: 9529.92 | FP158: 1875.36 | FQ158: 0 | FR158: 11405.28 | FS158: 11405.28 | FT158: Yes | FU158: 0 | FV158: 0 | FW158: 0
B159: 141 | C159: Scotty Hogan | D159: Equipment Operator | E159: Vendor No.02 | G159: MIFPUC-2 | H159: 2018-10-14 | I159: 2018-10-20 | J159: Yes | K159: =VLOOKUP($D159,'C.1 - Rate Sheets'!B:F,2,FALSE) -> 0 | L159: =VLOOKUP($D159,'C.1 - Rate Sheets'!B:F,3,FALSE) -> 116.87 | M159: =VLOOKUP($D159,'C.1 - Rate Sheets'!B:F,4,FALSE) -> 151.13 | N159: =VLOOKUP($D159,'C.1 - Rate Sheets'!B:F,5,FALSE) -> 0 | AF159: 16 | AJ159: 16 | AO159: 16 | AT159: 16 | AY159: 16 | BD159: 16 | BI159: 16 | FI159: 0 | FJ159: 96 | FK159: 16 | FM159: 112 | FN159: 0 | FO159: 11219.52 | FP159: 2418.08 | FQ159: 0 | FR159: 13637.6 | FS159: 13637.6 | FT159: Yes | FU159: 0 | FV159: 0 | FW159: 0
B160: 142 | C160: John Davis | D160: Foreman | E160: Vendor No.02 | G160: MIFPUC-2 | H160: 2018-10-14 | I160: 2018-10-20 | J160: Yes | K160: =VLOOKUP($D160,'C.1 - Rate Sheets'!B:F,2,FALSE) -> 0 | L160: =VLOOKUP($D160,'C.1 - Rate Sheets'!B:F,3,FALSE) -> 148.21 | M160: =VLOOKUP($D160,'C.1 - Rate Sheets'!B:F,4,FALSE) -> 192.19 | N160: =VLOOKUP($D160,'C.1 - Rate Sheets'!B:F,5,FALSE) -> 0 | AF160: 16 | BI160: 16 | FI160: 0 | FJ160: 16 | FK160: 16 | FM160: 32 | FN160: 0 | FO160: 2371.36 | FP160: 3075.04 | FQ160: 0 | FR160: 5446.4 | FS160: 5446.4 | FT160: Yes | FU160: 0 | FV160: 0 | FW160: 0
B161: 143 | C161: Matthew Breiling | D161: Senior Lineman/Journeyman Lineman | E161: Vendor No.02 | G161: MIFPUC-2 | H161: 2018-10-14 | I161: 2018-10-20 | J161: Yes | K161: =VLOOKUP($D161,'C.1 - Rate Sheets'!B:F,2,FALSE) -> 0 | L161: =VLOOKUP($D161,'C.1 - Rate Sheets'!B:F,3,FALSE) -> 136.22 | M161: =VLOOKUP($D161,'C.1 - Rate Sheets'!B:F,4,FALSE) -> 176.19 | N161: =VLOOKUP($D161,'C.1 - Rate Sheets'!B:F,5,FALSE) -> 0 | AF161: 16 | AJ161: 16 | AO161: 16 | AT161: 16 | AY161: 16 | BD161: 16 | BI161: 16 | FI161: 0 | FJ161: 96 | FK161: 16 | FM161: 112 | FN161: 0 | FO161: 13077.12 | FP161: 2819.04 | FQ161: 0 | FR161: 15896.16 | FS161: 15896.16 | FT161: Yes | FU161: 0 | FV161: 0 | FW161: 0
B162: 144 | C162: Michael Donnellan | D162: Groundman | E162: Vendor No.02 | G162: MIFPUC-2 | H162: 2018-10-14 | I162: 2018-10-20 | J162: Yes | K162: =VLOOKUP($D162,'C.1 - Rate Sheets'!B:F,2,FALSE) -> 0 | L162: =VLOOKUP($D162,'C.1 - Rate Sheets'!B:F,3,FALSE) -> 99.27 | M162: =VLOOKUP($D162,'C.1 - Rate Sheets'!B:F,4,FALSE) -> 117.21 | N162: =VLOOKUP($D162,'C.1 - Rate Sheets'!B:F,5,FALSE) -> 0 | AF162: 16 | AJ162: 16 | AO162: 16 | AT162: 16 | AY162: 16 | BD162: 16 | BI162: 16 | FI162: 0 | FJ162: 96 | FK162: 16 | FM162: 112 | FN162: 0 | FO162: 9529.92 | FP162: 1875.36 | FQ162: 0 | FR162: 11405.28 | FS162: 11405.28 | FT162: Yes | FU162: 0 | FV162: 0 | FW162: 0
B163: 145 | C163: Emanuel Gonzalez | D163: Senior Lineman/Journeyman Lineman | E163: Vendor No.02 | G163: MIFPUC-2 | H163: 2018-10-14 | I163: 2018-10-20 | J163: Yes | K163: =VLOOKUP($D163,'C.1 - Rate Sheets'!B:F,2,FALSE) -> 0 | L163: =VLOOKUP($D163,'C.1 - Rate Sheets'!B:F,3,FALSE) -> 136.22 | M163: =VLOOKUP($D163,'C.1 - Rate Sheets'!B:F,4,FALSE) -> 176.19 | N163: =VLOOKUP($D163,'C.1 - Rate Sheets'!B:F,5,FALSE) -> 0 | AF163: 16 | AJ163: 16 | AO163: 16 | AT163: 16 | AY163: 16 | BD163: 16 | BI163: 16 | FI163: 0 | FJ163: 96 | FK163: 16 | FM163: 112 | FN163: 0 | FO163: 13077.12 | FP163: 2819.04 | FQ163: 0 | FR163: 15896.16 | FS163: 15896.16 | FT163: Yes | FU163: 0 | FV163: 0 | FW163: 0
B164: 146 | C164: Bobby Bahrami | D164: Senior Lineman/Journeyman Lineman | E164: Vendor No.02 | G164: MIFPUC-2 | H164: 2018-10-14 | I164: 2018-10-20 | J164: Yes | K164: =VLOOKUP($D164,'C.1 - Rate Sheets'!B:F,2,FALSE) -> 0 | L164: =VLOOKUP($D164,'C.1 - Rate Sheets'!B:F,3,FALSE) -> 136.22 | M164: =VLOOKUP($D164,'C.1 - Rate Sheets'!B:F,4,FALSE) -> 176.19 | N164: =VLOOKUP($D164,'C.1 - Rate Sheets'!B:F,5,FALSE) -> 0 | AF164: 16 | AJ164: 16 | AO164: 16 | AT164: 16 | AY164: 16 | BD164: 16 | BI164: 16 | FI164: 0 | FJ164: 96 | FK164: 16 | FM164: 112 | FN164: 0 | FO164: 13077.12 | FP164: 2819.04 | FQ164: 0 | FR164: 15896.16 | FS164: 15896.16 | FT164: Yes | FU164: 0 | FV164: 0 | FW164: 0
B165: 147 | C165: Mark Monaboe | D165: Apprentice Helper | E165: Vendor No.02 | G165: MIFPUC-2 | H165: 2018-10-14 | I165: 2018-10-20 | J165: Yes | K165: =VLOOKUP($D165,'C.1 - Rate Sheets'!B:F,2,FALSE) -> 0 | L165: =VLOOKUP($D165,'C.1 - Rate Sheets'!B:F,3,FALSE) -> 102.25 | M165: =VLOOKUP($D165,'C.1 - Rate Sheets'!B:F,4,FALSE) -> 130.74 | N165: =VLOOKUP($D165,'C.1 - Rate Sheets'!B:F,5,FALSE) -> 0 | AF165: 16 | AJ165: 16 | AO165: 16 | AT165: 16 | AY165: 16 | BD165: 16 | BI165: 16 | FI165: 0 | FJ165: 96 | FK165: 16 | FM165: 112 | FN165: 0 | FO165: 9816 | FP165: 2091.84 | FQ165: 0 | FR165: 11907.84 | FS165: 11907.84 | FT165: Yes | FU165: 0 | FV165: 0 | FW165: 0
B166: 148 | C166: James Pinson | D166: Foreman | E166: Vendor No.02 | G166: MIFPUC-2 | H166: 2018-10-14 | I166: 2018-10-20 | J166: Yes | K166: =VLOOKUP($D166,'C.1 - Rate Sheets'!B:F,2,FALSE) -> 0 | L166: =VLOOKUP($D166,'C.1 - Rate Sheets'!B:F,3,FALSE) -> 148.21 | M166: =VLOOKUP($D166,'C.1 - Rate Sheets'!B:F,4,FALSE) -> 192.19 | N166: =VLOOKUP($D166,'C.1 - Rate Sheets'!B:F,5,FALSE) -> 0 | AF166: 16 | AJ166: 16 | AO166: 16 | AT166: 16 | AY166: 16 | BD166: 16 | BI166: 16 | FI166: 0 | FJ166: 96 | FK166: 16 | FM166: 112 | FN166: 0 | FO166: 14228.16 | FP166: 3075.04 | FQ166: 0 | FR166: 17303.2 | FS166: 17303.2 | FT166: Yes | FU166: 0 | FV166: 0 | FW166: 0
B167: 149 | C167: Jorge Sotolongo | D167: Groundman | E167: Vendor No.02 | G167: MIFPUC-2 | H167: 2018-10-14 | I167: 2018-10-20 | J167: Yes | K167: =VLOOKUP($D167,'C.1 - Rate Sheets'!B:F,2,FALSE) -> 0 | L167: =VLOOKUP($D167,'C.1 - Rate Sheets'!B:F,3,FALSE) -> 99.27 | M167: =VLOOKUP($D167,'C.1 - Rate Sheets'!B:F,4,FALSE) -> 117.21 | N167: =VLOOKUP($D167,'C.1 - Rate Sheets'!B:F,5,FALSE) -> 0 | AF167: 16 | AJ167: 16 | AO167: 16 | AT167: 16 | AY167: 16 | BD167: 16 | BI167: 16 | FI167: 0 | FJ167: 96 | FK167: 16 | FM167: 112 | FN167: 0 | FO167: 9529.92 | FP167: 1875.36 | FQ167: 0 | FR167: 11405.28 | FS167: 11405.28 | FT167: Yes | FU167: 0 | FV167: 0 | FW167: 0
B168: 150 | C168: Alex Herrnandez | D168: Senior Lineman/Journeyman Lineman | E168: Vendor No.02 | G168: MIFPUC-2 | H168: 2018-10-14 | I168: 2018-10-20 | J168: Yes | K168: =VLOOKUP($D168,'C.1 - Rate Sheets'!B:F,2,FALSE) -> 0 | L168: =VLOOKUP($D168,'C.1 - Rate Sheets'!B:F,3,FALSE) -> 136.22 | M168: =VLOOKUP($D168,'C.1 - Rate Sheets'!B:F,4,FALSE) -> 176.19 | N168: =VLOOKUP($D168,'C.1 - Rate Sheets'!B:F,5,FALSE) -> 0 | AF168: 16 | AJ168: 16 | AO168: 16 | AT168: 16 | AY168: 16 | BD168: 16 | BI168: 16 | FI168: 0 | FJ168: 96 | FK168: 16 | FM168: 112 | FN168: 0 | FO168: 13077.12 | FP168: 2819.04 | FQ168: 0 | FR168: 15896.16 | FS168: 15896.16 | FT168: Yes | FU168: 0 | FV168: 0 | FW168: 0
B169: 151 | C169: Garrett McDonald | D169: Groundman | E169: Vendor No.02 | G169: MIFPUC-2 | H169: 2018-10-14 | I169: 2018-10-20 | J169: Yes | K169: =VLOOKUP($D169,'C.1 - Rate Sheets'!B:F,2,FALSE) -> 0 | L169: =VLOOKUP($D169,'C.1 - Rate Sheets'!B:F,3,FALSE) -> 99.27 | M169: =VLOOKUP($D169,'C.1 - Rate Sheets'!B:F,4,FALSE) -> 117.21 | N169: =VLOOKUP($D169,'C.1 - Rate Sheets'!B:F,5,FALSE) -> 0 | AF169: 16 | AJ169: 16 | AO169: 16 | AT169: 16 | AY169: 16 | BD169: 16 | BI169: 16 | FI169: 0 | FJ169: 96 | FK169: 16 | FM169: 112 | FN169: 0 | FO169: 9529.92 | FP169: 1875.36 | FQ169: 0 | FR169: 11405.28 | FS169: 11405.28 | FT169: Yes | FU169: 0 | FV169: 0 | FW169: 0
B170: 152 | C170: Joel Molina | D170: Senior Lineman/Journeyman Lineman | E170: Vendor No.02 | G170: MIFPUC-2 | H170: 2018-10-14 | I170: 2018-10-20 | J170: Yes | K170: =VLOOKUP($D170,'C.1 - Rate Sheets'!B:F,2,FALSE) -> 0 | L170: =VLOOKUP($D170,'C.1 - Rate Sheets'!B:F,3,FALSE) -> 136.22 | M170: =VLOOKUP($D170,'C.1 - Rate Sheets'!B:F,4,FALSE) -> 176.19 | N170: =VLOOKUP($D170,'C.1 - Rate Sheets'!B:F,5,FALSE) -> 0 | AF170: 16 | AJ170: 16 | AO170: 16 | AT170: 16 | AY170: 16 | BD170: 16 | BI170: 16 | FI170: 0 | FJ170: 96 | FK170: 16 | FM170: 112 | FN170: 0 | FO170: 13077.12 | FP170: 2819.04 | FQ170: 0 | FR170: 15896.16 | FS170: 15896.16 | FT170: Yes | FU170: 0 | FV170: 0 | FW170: 0
B171: 153 | C171: Vincent Miller | D171: Apprentice Helper | E171: Vendor No.02 | G171: MIFPUC-2 | H171: 2018-10-14 | I171: 2018-10-20 | J171: Yes | K171: =VLOOKUP($D171,'C.1 - Rate Sheets'!B:F,2,FALSE) -> 0 | L171: =VLOOKUP($D171,'C.1 - Rate Sheets'!B:F,3,FALSE) -> 102.25 | M171: =VLOOKUP($D171,'C.1 - Rate Sheets'!B:F,4,FALSE) -> 130.74 | N171: =VLOOKUP($D171,'C.1 - Rate Sheets'!B:F,5,FALSE) -> 0 | AF171: 16 | AJ171: 16 | AO171: 16 | AT171: 16 | AY171: 16 | BD171: 16 | BI171: 16 | FI171: 0 | FJ171: 96 | FK171: 16 | FM171: 112 | FN171: 0 | FO171: 9816 | FP171: 2091.84 | FQ171: 0 | FR171: 11907.84 | FS171: 11907.84 | FT171: Yes | FU171: 0 | FV171: 0 | FW171: 0
B172: 154 | C172: Shannon Williams | D172: Equipment Operator | E172: Vendor No.02 | G172: MIFPUC-2 | H172: 2018-10-14 | I172: 2018-10-20 | J172: Yes | K172: =VLOOKUP($D172,'C.1 - Rate Sheets'!B:F,2,FALSE) -> 0 | L172: =VLOOKUP($D172,'C.1 - Rate Sheets'!B:F,3,FALSE) -> 116.87 | M172: =VLOOKUP($D172,'C.1 - Rate Sheets'!B:F,4,FALSE) -> 151.13 | N172: =VLOOKUP($D172,'C.1 - Rate Sheets'!B:F,5,FALSE) -> 0 | AJ172: 16 | AO172: 16 | AT172: 16 | AY172: 16 | BD172: 16 | BI172: 16 | FI172: 0 | FJ172: 96 | FK172: 0 | FM172: 96 | FN172: 0 | FO172: 11219.52 | FP172: 0 | FQ172: 0 | FR172: 11219.52 | FS172: 11219.52 | FT172: Yes | FU172: 0 | FV172: 0 | FW172: 0
B173: 155 | C173: Lino Carreras | D173: Equipment Operator | E173: Vendor No.02 | G173: MIFPUC-2 | H173: 2018-10-14 | I173: 2018-10-20 | J173: Yes | K173: =VLOOKUP($D173,'C.1 - Rate Sheets'!B:F,2,FALSE) -> 0 | L173: =VLOOKUP($D173,'C.1 - Rate Sheets'!B:F,3,FALSE) -> 116.87 | M173: =VLOOKUP($D173,'C.1 - Rate Sheets'!B:F,4,FALSE) -> 151.13 | N173: =VLOOKUP($D173,'C.1 - Rate Sheets'!B:F,5,FALSE) -> 0 | AJ173: 16 | AO173: 16 | AT173: 16 | AY173: 16 | BD173: 16 | BI173: 16 | FI173: 0 | FJ173: 96 | FK173: 0 | FM173: 96 | FN173: 0 | FO173: 11219.52 | FP173: 0 | FQ173: 0 | FR173: 11219.52 | FS173: 11219.52 | FT173: Yes | FU173: 0 | FV173: 0 | FW173: 0
B174: 156 | C174: Richard Byrd | D174: Line Tech C | E174: Vendor No.02 | G174: MIFPUC-2 | H174: 2018-10-14 | I174: 2018-10-20 | J174: Yes | K174: =VLOOKUP($D174,'C.1 - Rate Sheets'!B:F,2,FALSE) -> 0 | L174: =VLOOKUP($D174,'C.1 - Rate Sheets'!B:F,3,FALSE) -> 110.51 | M174: =VLOOKUP($D174,'C.1 - Rate Sheets'!B:F,4,FALSE) -> 136.23 | N174: =VLOOKUP($D174,'C.1 - Rate Sheets'!B:F,5,FALSE) -> 0 | AO174: 16 | AT174: 16 | AY174: 16 | BD174: 16 | BI174: 16 | FI174: 0 | FJ174: 80 | FK174: 0 | FM174: 80 | FN174: 0 | FO174: 8840.8 | FP174: 0 | FQ174: 0 | FR174: 8840.8 | FS174: 8840.8 | FT174: Yes | FU174: 0 | FV174: 0 | FW174: 0
B175: 157 | C175: Zeb Mondrella | D175: Senior Lineman/Journeyman Lineman | E175: Vendor No.02 | G175: MIFPUC-2 | H175: 2018-10-14 | I175: 2018-10-20 | J175: Yes | K175: =VLOOKUP($D175,'C.1 - Rate Sheets'!B:F,2,FALSE) -> 0 | L175: =VLOOKUP($D175,'C.1 - Rate Sheets'!B:F,3,FALSE) -> 136.22 | M175: =VLOOKUP($D175,'C.1 - Rate Sheets'!B:F,4,FALSE) -> 176.19 | N175: =VLOOKUP($D175,'C.1 - Rate Sheets'!B:F,5,FALSE) -> 0 | AO175: 16 | AT175: 16 | AY175: 16 | BD175: 16 | BI175: 16 | FI175: 0 | FJ175: 80 | FK175: 0 | FM175: 80 | FN175: 0 | FO175: 10897.6 | FP175: 0 | FQ175: 0 | FR175: 10897.6 | FS175: 10897.6 | FT175: Yes | FU175: 0 | FV175: 0 | FW175: 0
B176: 158 | C176: James Morrel | D176: Senior Lineman/Journeyman Lineman | E176: Vendor No.02 | G176: MIFPUC-2 | H176: 2018-10-14 | I176: 2018-10-20 | J176: Yes | K176: =VLOOKUP($D176,'C.1 - Rate Sheets'!B:F,2,FALSE) -> 0 | L176: =VLOOKUP($D176,'C.1 - Rate Sheets'!B:F,3,FALSE) -> 136.22 | M176: =VLOOKUP($D176,'C.1 - Rate Sheets'!B:F,4,FALSE) -> 176.19 | N176: =VLOOKUP($D176,'C.1 - Rate Sheets'!B:F,5,FALSE) -> 0 | AO176: 16 | AT176: 16 | AY176: 16 | BD176: 16 | BI176: 16 | FI176: 0 | FJ176: 80 | FK176: 0 | FM176: 80 | FN176: 0 | FO176: 10897.6 | FP176: 0 | FQ176: 0 | FR176: 10897.6 | FS176: 10897.6 | FT176: Yes | FU176: 0 | FV176: 0 | FW176: 0
B177: 159 | C177: Gregory Race | D177: Line Tech C | E177: Vendor No.02 | G177: MIFPUC-2 | H177: 2018-10-14 | I177: 2018-10-20 | J177: Yes | K177: =VLOOKUP($D177,'C.1 - Rate Sheets'!B:F,2,FALSE) -> 0 | L177: =VLOOKUP($D177,'C.1 - Rate Sheets'!B:F,3,FALSE) -> 110.51 | M177: =VLOOKUP($D177,'C.1 - Rate Sheets'!B:F,4,FALSE) -> 136.23 | N177: =VLOOKUP($D177,'C.1 - Rate Sheets'!B:F,5,FALSE) -> 0 | AO177: 16 | AT177: 16 | AY177: 16 | BD177: 16 | BI177: 16 | FI177: 0 | FJ177: 80 | FK177: 0 | FM177: 80 | FN177: 0 | FO177: 8840.8 | FP177: 0 | FQ177: 0 | FR177: 8840.8 | FS177: 8840.8 | FT177: Yes | FU177: 0 | FV177: 0 | FW177: 0
B178: 160 | C178: Neil Springman | D178: Mechanic | E178: Vendor No.02 | G178: MIFPUC-2 | H178: 2018-10-14 | I178: 2018-10-20 | J178: Yes | K178: =VLOOKUP($D178,'C.1 - Rate Sheets'!B:F,2,FALSE) -> 0 | L178: =VLOOKUP($D178,'C.1 - Rate Sheets'!B:F,3,FALSE) -> 116.87 | M178: =VLOOKUP($D178,'C.1 - Rate Sheets'!B:F,4,FALSE) -> 151.13 | N178: =VLOOKUP($D178,'C.1 - Rate Sheets'!B:F,5,FALSE) -> 0 | AT178: 16 | AY178: 16 | BD178: 16 | BI178: 16 | FI178: 0 | FJ178: 64 | FK178: 0 | FM178: 64 | FN178: 0 | FO178: 7479.68 | FP178: 0 | FQ178: 0 | FR178: 7479.68 | FS178: 7479.68 | FT178: Yes | FU178: 0 | FV178: 0 | FW178: 0
B179: 161 | C179: Ron Roush | D179: General Foreman | E179: Vendor No.02 | G179: MIFPUC-2 | H179: 2018-10-14 | I179: 2018-10-20 | J179: Yes | K179: =VLOOKUP($D179,'C.1 - Rate Sheets'!B:F,2,FALSE) -> 0 | L179: =VLOOKUP($D179,'C.1 - Rate Sheets'!B:F,3,FALSE) -> 160.21 | M179: =VLOOKUP($D179,'C.1 - Rate Sheets'!B:F,4,FALSE) -> 208.18 | N179: =VLOOKUP($D179,'C.1 - Rate Sheets'!B:F,5,FALSE) -> 0 | AT179: 16 | AY179: 16 | BD179: 16 | BI179: 16 | FI179: 0 | FJ179: 64 | FK179: 0 | FM179: 64 | FN179: 0 | FO179: 10253.44 | FP179: 0 | FQ179: 0 | FR179: 10253.44 | FS179: 10253.44 | FT179: Yes | FU179: 0 | FV179: 0 | FW179: 0
B180: 162 | C180: Ryan Timms | D180: Foreman | E180: Vendor No.02 | G180: MIFPUC-2 | H180: 2018-10-14 | I180: 2018-10-20 | J180: Yes | K180: =VLOOKUP($D180,'C.1 - Rate Sheets'!B:F,2,FALSE) -> 0 | L180: =VLOOKUP($D180,'C.1 - Rate Sheets'!B:F,3,FALSE) -> 148.21 | M180: =VLOOKUP($D180,'C.1 - Rate Sheets'!B:F,4,FALSE) -> 192.19 | N180: =VLOOKUP($D180,'C.1 - Rate Sheets'!B:F,5,FALSE) -> 0 | AT180: 16 | AY180: 16 | BD180: 16 | BI180: 16 | FI180: 0 | FJ180: 64 | FK180: 0 | FM180: 64 | FN180: 0 | FO180: 9485.44 | FP180: 0 | FQ180: 0 | FR180: 9485.44 | FS180: 9485.44 | FT180: Yes | FU180: 0 | FV180: 0 | FW180: 0
B181: 163 | C181: Aaron Mays | D181: Senior Lineman/Journeyman Lineman | E181: Vendor No.02 | G181: MIFPUC-2 | H181: 2018-10-14 | I181: 2018-10-20 | J181: Yes | K181: =VLOOKUP($D181,'C.1 - Rate Sheets'!B:F,2,FALSE) -> 0 | L181: =VLOOKUP($D181,'C.1 - Rate Sheets'!B:F,3,FALSE) -> 136.22 | M181: =VLOOKUP($D181,'C.1 - Rate Sheets'!B:F,4,FALSE) -> 176.19 | N181: =VLOOKUP($D181,'C.1 - Rate Sheets'!B:F,5,FALSE) -> 0 | AT181: 16 | AY181: 16 | BD181: 16 | BI181: 16 | FI181: 0 | FJ181: 64 | FK181: 0 | FM181: 64 | FN181: 0 | FO181: 8718.08 | FP181: 0 | FQ181: 0 | FR181: 8718.08 | FS181: 8718.08 | FT181: Yes | FU181: 0 | FV181: 0 | FW181: 0
B182: 164 | C182: Keith Kiphard | D182: Apprentice Helper | E182: Vendor No.02 | G182: MIFPUC-2 | H182: 2018-10-14 | I182: 2018-10-20 | J182: Yes | K182: =VLOOKUP($D182,'C.1 - Rate Sheets'!B:F,2,FALSE) -> 0 | L182: =VLOOKUP($D182,'C.1 - Rate Sheets'!B:F,3,FALSE) -> 102.25 | M182: =VLOOKUP($D182,'C.1 - Rate Sheets'!B:F,4,FALSE) -> 130.74 | N182: =VLOOKUP($D182,'C.1 - Rate Sheets'!B:F,5,FALSE) -> 0 | AT182: 16 | AY182: 16 | BD182: 16 | BI182: 16 | FI182: 0 | FJ182: 64 | FK182: 0 | FM182: 64 | FN182: 0 | FO182: 6544 | FP182: 0 | FQ182: 0 | FR182: 6544 | FS182: 6544 | FT182: Yes | FU182: 0 | FV182: 0 | FW182: 0
B183: 165 | C183: Evan Bryson | D183: Groundman | E183: Vendor No.02 | G183: MIFPUC-2 | H183: 2018-10-14 | I183: 2018-10-20 | J183: Yes | K183: =VLOOKUP($D183,'C.1 - Rate Sheets'!B:F,2,FALSE) -> 0 | L183: =VLOOKUP($D183,'C.1 - Rate Sheets'!B:F,3,FALSE) -> 99.27 | M183: =VLOOKUP($D183,'C.1 - Rate Sheets'!B:F,4,FALSE) -> 117.21 | N183: =VLOOKUP($D183,'C.1 - Rate Sheets'!B:F,5,FALSE) -> 0 | AT183: 16 | AY183: 16 | BD183: 16 | BI183: 16 | FI183: 0 | FJ183: 64 | FK183: 0 | FM183: 64 | FN183: 0 | FO183: 6353.28 | FP183: 0 | FQ183: 0 | FR183: 6353.28 | FS183: 6353.28 | FT183: Yes | FU183: 0 | FV183: 0 | FW183: 0
B184: 166 | C184: Cory Farris | D184: Foreman | E184: Vendor No.02 | G184: MIFPUC-2 | H184: 2018-10-14 | I184: 2018-10-20 | J184: Yes | K184: =VLOOKUP($D184,'C.1 - Rate Sheets'!B:F,2,FALSE) -> 0 | L184: =VLOOKUP($D184,'C.1 - Rate Sheets'!B:F,3,FALSE) -> 148.21 | M184: =VLOOKUP($D184,'C.1 - Rate Sheets'!B:F,4,FALSE) -> 192.19 | N184: =VLOOKUP($D184,'C.1 - Rate Sheets'!B:F,5,FALSE) -> 0 | AT184: 16 | AY184: 16 | BD184: 16 | BI184: 16 | FI184: 0 | FJ184: 64 | FK184: 0 | FM184: 64 | FN184: 0 | FO184: 9485.44 | FP184: 0 | FQ184: 0 | FR184: 9485.44 | FS184: 9485.44 | FT184: Yes | FU184: 0 | FV184: 0 | FW184: 0
B185: 167 | C185: Josh Parker | D185: Senior Lineman/Journeyman Lineman | E185: Vendor No.02 | G185: MIFPUC-2 | H185: 2018-10-14 | I185: 2018-10-20 | J185: Yes | K185: =VLOOKUP($D185,'C.1 - Rate Sheets'!B:F,2,FALSE) -> 0 | L185: =VLOOKUP($D185,'C.1 - Rate Sheets'!B:F,3,FALSE) -> 136.22 | M185: =VLOOKUP($D185,'C.1 - Rate Sheets'!B:F,4,FALSE) -> 176.19 | N185: =VLOOKUP($D185,'C.1 - Rate Sheets'!B:F,5,FALSE) -> 0 | AT185: 16 | AY185: 16 | BD185: 16 | BI185: 16 | FI185: 0 | FJ185: 64 | FK185: 0 | FM185: 64 | FN185: 0 | FO185: 8718.08 | FP185: 0 | FQ185: 0 | FR185: 8718.08 | FS185: 8718.08 | FT185: Yes | FU185: 0 | FV185: 0 | FW185: 0
B186: 168 | C186: Rodney Breedlove | D186: Equipment Operator | E186: Vendor No.02 | G186: MIFPUC-2 | H186: 2018-10-14 | I186: 2018-10-20 | J186: Yes | K186: =VLOOKUP($D186,'C.1 - Rate Sheets'!B:F,2,FALSE) -> 0 | L186: =VLOOKUP($D186,'C.1 - Rate Sheets'!B:F,3,FALSE) -> 116.87 | M186: =VLOOKUP($D186,'C.1 - Rate Sheets'!B:F,4,FALSE) -> 151.13 | N186: =VLOOKUP($D186,'C.1 - Rate Sheets'!B:F,5,FALSE) -> 0 | AT186: 16 | AY186: 16 | BD186: 16 | BI186: 16 | FI186: 0 | FJ186: 64 | FK186: 0 | FM186: 64 | FN186: 0 | FO186: 7479.68 | FP186: 0 | FQ186: 0 | FR186: 7479.68 | FS186: 7479.68 | FT186: Yes | FU186: 0 | FV186: 0 | FW186: 0
B187: 169 | C187: Ken Gardner | D187: Groundman | E187: Vendor No.02 | G187: MIFPUC-2 | H187: 2018-10-14 | I187: 2018-10-20 | J187: Yes | K187: =VLOOKUP($D187,'C.1 - Rate Sheets'!B:F,2,FALSE) -> 0 | L187: =VLOOKUP($D187,'C.1 - Rate Sheets'!B:F,3,FALSE) -> 99.27 | M187: =VLOOKUP($D187,'C.1 - Rate Sheets'!B:F,4,FALSE) -> 117.21 | N187: =VLOOKUP($D187,'C.1 - Rate Sheets'!B:F,5,FALSE) -> 0 | AT187: 16 | AY187: 16 | BD187: 16 | BI187: 16 | FI187: 0 | FJ187: 64 | FK187: 0 | FM187: 64 | FN187: 0 | FO187: 6353.28 | FP187: 0 | FQ187: 0 | FR187: 6353.28 | FS187: 6353.28 | FT187: Yes | FU187: 0 | FV187: 0 | FW187: 0
B188: 170 | C188: Nate McDonough | D188: Foreman | E188: Vendor No.02 | G188: MIFPUC-2 | H188: 2018-10-14 | I188: 2018-10-20 | J188: Yes | K188: =VLOOKUP($D188,'C.1 - Rate Sheets'!B:F,2,FALSE) -> 0 | L188: =VLOOKUP($D188,'C.1 - Rate Sheets'!B:F,3,FALSE) -> 148.21 | M188: =VLOOKUP($D188,'C.1 - Rate Sheets'!B:F,4,FALSE) -> 192.19 | N188: =VLOOKUP($D188,'C.1 - Rate Sheets'!B:F,5,FALSE) -> 0 | AT188: 16 | AY188: 16 | BD188: 16 | BI188: 16 | FI188: 0 | FJ188: 64 | FK188: 0 | FM188: 64 | FN188: 0 | FO188: 9485.44 | FP188: 0 | FQ188: 0 | FR188: 9485.44 | FS188: 9485.44 | FT188: Yes | FU188: 0 | FV188: 0 | FW188: 0
B189: 171 | C189: Will Magard | D189: Senior Lineman/Journeyman Lineman | E189: Vendor No.02 | G189: MIFPUC-2 | H189: 2018-10-14 | I189: 2018-10-20 | J189: Yes | K189: =VLOOKUP($D189,'C.1 - Rate Sheets'!B:F,2,FALSE) -> 0 | L189: =VLOOKUP($D189,'C.1 - Rate Sheets'!B:F,3,FALSE) -> 136.22 | M189: =VLOOKUP($D189,'C.1 - Rate Sheets'!B:F,4,FALSE) -> 176.19 | N189: =VLOOKUP($D189,'C.1 - Rate Sheets'!B:F,5,FALSE) -> 0 | AT189: 16 | AY189: 16 | BD189: 16 | BI189: 16 | FI189: 0 | FJ189: 64 | FK189: 0 | FM189: 64 | FN189: 0 | FO189: 8718.08 | FP189: 0 | FQ189: 0 | FR189: 8718.08 | FS189: 8718.08 | FT189: Yes | FU189: 0 | FV189: 0 | FW189: 0
B190: 172 | C190: Cody Delotell | D190: Apprentice Helper | E190: Vendor No.02 | G190: MIFPUC-2 | H190: 2018-10-14 | I190: 2018-10-20 | J190: Yes | K190: =VLOOKUP($D190,'C.1 - Rate Sheets'!B:F,2,FALSE) -> 0 | L190: =VLOOKUP($D190,'C.1 - Rate Sheets'!B:F,3,FALSE) -> 102.25 | M190: =VLOOKUP($D190,'C.1 - Rate Sheets'!B:F,4,FALSE) -> 130.74 | N190: =VLOOKUP($D190,'C.1 - Rate Sheets'!B:F,5,FALSE) -> 0 | AT190: 16 | AY190: 16 | BD190: 16 | BI190: 16 | FI190: 0 | FJ190: 64 | FK190: 0 | FM190: 64 | FN190: 0 | FO190: 6544 | FP190: 0 | FQ190: 0 | FR190: 6544 | FS190: 6544 | FT190: Yes | FU190: 0 | FV190: 0 | FW190: 0
B191: 173 | C191: Rusty Breedlove | D191: Groundman | E191: Vendor No.02 | G191: MIFPUC-2 | H191: 2018-10-14 | I191: 2018-10-20 | J191: Yes | K191: =VLOOKUP($D191,'C.1 - Rate Sheets'!B:F,2,FALSE) -> 0 | L191: =VLOOKUP($D191,'C.1 - Rate Sheets'!B:F,3,FALSE) -> 99.27 | M191: =VLOOKUP($D191,'C.1 - Rate Sheets'!B:F,4,FALSE) -> 117.21 | N191: =VLOOKUP($D191,'C.1 - Rate Sheets'!B:F,5,FALSE) -> 0 | AT191: 16 | AY191: 16 | BD191: 16 | BI191: 16 | FI191: 0 | FJ191: 64 | FK191: 0 | FM191: 64 | FN191: 0 | FO191: 6353.28 | FP191: 0 | FQ191: 0 | FR191: 6353.28 | FS191: 6353.28 | FT191: Yes | FU191: 0 | FV191: 0 | FW191: 0
B192: 174 | C192: Kelly Drummond | D192: Foreman | E192: Vendor No.02 | G192: MIFPUC-2 | H192: 2018-10-14 | I192: 2018-10-20 | J192: Yes | K192: =VLOOKUP($D192,'C.1 - Rate Sheets'!B:F,2,FALSE) -> 0 | L192: =VLOOKUP($D192,'C.1 - Rate Sheets'!B:F,3,FALSE) -> 148.21 | M192: =VLOOKUP($D192,'C.1 - Rate Sheets'!B:F,4,FALSE) -> 192.19 | N192: =VLOOKUP($D192,'C.1 - Rate Sheets'!B:F,5,FALSE) -> 0 | AT192: 16 | AY192: 16 | BD192: 16 | BI192: 16 | FI192: 0 | FJ192: 64 | FK192: 0 | FM192: 64 | FN192: 0 | FO192: 9485.44 | FP192: 0 | FQ192: 0 | FR192: 9485.44 | FS192: 9485.44 | FT192: Yes | FU192: 0 | FV192: 0 | FW192: 0
B193: 175 | C193: Selwyn Sampson | D193: Senior Lineman/Journeyman Lineman | E193: Vendor No.02 | G193: MIFPUC-2 | H193: 2018-10-14 | I193: 2018-10-20 | J193: Yes | K193: =VLOOKUP($D193,'C.1 - Rate Sheets'!B:F,2,FALSE) -> 0 | L193: =VLOOKUP($D193,'C.1 - Rate Sheets'!B:F,3,FALSE) -> 136.22 | M193: =VLOOKUP($D193,'C.1 - Rate Sheets'!B:F,4,FALSE) -> 176.19 | N193: =VLOOKUP($D193,'C.1 - Rate Sheets'!B:F,5,FALSE) -> 0 | AT193: 16 | AY193: 16 | BD193: 16 | BI193: 16 | FI193: 0 | FJ193: 64 | FK193: 0 | FM193: 64 | FN193: 0 | FO193: 8718.08 | FP193: 0 | FQ193: 0 | FR193: 8718.08 | FS193: 8718.08 | FT193: Yes | FU193: 0 | FV193: 0 | FW193: 0
B194: 176 | C194: Cody Maddox | D194: Line Tech C | E194: Vendor No.02 | G194: MIFPUC-2 | H194: 2018-10-14 | I194: 2018-10-20 | J194: Yes | K194: =VLOOKUP($D194,'C.1 - Rate Sheets'!B:F,2,FALSE) -> 0 | L194: =VLOOKUP($D194,'C.1 - Rate Sheets'!B:F,3,FALSE) -> 110.51 | M194: =VLOOKUP($D194,'C.1 - Rate Sheets'!B:F,4,FALSE) -> 136.23 | N194: =VLOOKUP($D194,'C.1 - Rate Sheets'!B:F,5,FALSE) -> 0 | AT194: 16 | AY194: 16 | BD194: 16 | BI194: 16 | FI194: 0 | FJ194: 64 | FK194: 0 | FM194: 64 | FN194: 0 | FO194: 7072.64 | FP194: 0 | FQ194: 0 | FR194: 7072.64 | FS194: 7072.64 | FT194: Yes | FU194: 0 | FV194: 0 | FW194: 0
B195: 177 | C195: Ray Campbell | D195: Foreman | E195: Vendor No.02 | G195: MIFPUC-2 | H195: 2018-10-14 | I195: 2018-10-20 | J195: Yes | K195: =VLOOKUP($D195,'C.1 - Rate Sheets'!B:F,2,FALSE) -> 0 | L195: =VLOOKUP($D195,'C.1 - Rate Sheets'!B:F,3,FALSE) -> 148.21 | M195: =VLOOKUP($D195,'C.1 - Rate Sheets'!B:F,4,FALSE) -> 192.19 | N195: =VLOOKUP($D195,'C.1 - Rate Sheets'!B:F,5,FALSE) -> 0 | AT195: 16 | AY195: 16 | BD195: 16 | BI195: 16 | FI195: 0 | FJ195: 64 | FK195: 0 | FM195: 64 | FN195: 0 | FO195: 9485.44 | FP195: 0 | FQ195: 0 | FR195: 9485.44 | FS195: 9485.44 | FT195: Yes | FU195: 0 | FV195: 0 | FW195: 0
B196: 178 | C196: Scotty Sansone | D196: Senior Lineman/Journeyman Lineman | E196: Vendor No.02 | G196: MIFPUC-2 | H196: 2018-10-14 | I196: 2018-10-20 | J196: Yes | K196: =VLOOKUP($D196,'C.1 - Rate Sheets'!B:F,2,FALSE) -> 0 | L196: =VLOOKUP($D196,'C.1 - Rate Sheets'!B:F,3,FALSE) -> 136.22 | M196: =VLOOKUP($D196,'C.1 - Rate Sheets'!B:F,4,FALSE) -> 176.19 | N196: =VLOOKUP($D196,'C.1 - Rate Sheets'!B:F,5,FALSE) -> 0 | AT196: 16 | AY196: 16 | BD196: 16 | BI196: 16 | FI196: 0 | FJ196: 64 | FK196: 0 | FM196: 64 | FN196: 0 | FO196: 8718.08 | FP196: 0 | FQ196: 0 | FR196: 8718.08 | FS196: 8718.08 | FT196: Yes | FU196: 0 | FV196: 0 | FW196: 0
B197: 179 | C197: Nick Schwarz | D197: Apprentice Helper | E197: Vendor No.02 | G197: MIFPUC-2 | H197: 2018-10-14 | I197: 2018-10-20 | J197: Yes | K197: =VLOOKUP($D197,'C.1 - Rate Sheets'!B:F,2,FALSE) -> 0 | L197: =VLOOKUP($D197,'C.1 - Rate Sheets'!B:F,3,FALSE) -> 102.25 | M197: =VLOOKUP($D197,'C.1 - Rate Sheets'!B:F,4,FALSE) -> 130.74 | N197: =VLOOKUP($D197,'C.1 - Rate Sheets'!B:F,5,FALSE) -> 0 | AT197: 16 | AY197: 16 | BD197: 16 | BI197: 16 | FI197: 0 | FJ197: 64 | FK197: 0 | FM197: 64 | FN197: 0 | FO197: 6544 | FP197: 0 | FQ197: 0 | FR197: 6544 | FS197: 6544 | FT197: Yes | FU197: 0 | FV197: 0 | FW197: 0
B198: 180 | C198: Mike Wellman | D198: Groundman | E198: Vendor No.02 | G198: MIFPUC-2 | H198: 2018-10-14 | I198: 2018-10-20 | J198: Yes | K198: =VLOOKUP($D198,'C.1 - Rate Sheets'!B:F,2,FALSE) -> 0 | L198: =VLOOKUP($D198,'C.1 - Rate Sheets'!B:F,3,FALSE) -> 99.27 | M198: =VLOOKUP($D198,'C.1 - Rate Sheets'!B:F,4,FALSE) -> 117.21 | N198: =VLOOKUP($D198,'C.1 - Rate Sheets'!B:F,5,FALSE) -> 0 | AT198: 16 | AY198: 16 | BD198: 16 | BI198: 16 | FI198: 0 | FJ198: 64 | FK198: 0 | FM198: 64 | FN198: 0 | FO198: 6353.28 | FP198: 0 | FQ198: 0 | FR198: 6353.28 | FS198: 6353.28 | FT198: Yes | FU198: 0 | FV198: 0 | FW198: 0
B199: 181 | C199: Larry Potter | D199: Groundman | E199: Vendor No.02 | G199: MIFPUC-2 | H199: 2018-10-14 | I199: 2018-10-20 | J199: Yes | K199: =VLOOKUP($D199,'C.1 - Rate Sheets'!B:F,2,FALSE) -> 0 | L199: =VLOOKUP($D199,'C.1 - Rate Sheets'!B:F,3,FALSE) -> 99.27 | M199: =VLOOKUP($D199,'C.1 - Rate Sheets'!B:F,4,FALSE) -> 117.21 | N199: =VLOOKUP($D199,'C.1 - Rate Sheets'!B:F,5,FALSE) -> 0 | AT199: 16 | AY199: 16 | BD199: 16 | BI199: 16 | FI199: 0 | FJ199: 64 | FK199: 0 | FM199: 64 | FN199: 0 | FO199: 6353.28 | FP199: 0 | FQ199: 0 | FR199: 6353.28 | FS199: 6353.28 | FT199: Yes | FU199: 0 | FV199: 0 | FW199: 0
B200: 182 | C200: Alex Rogers | D200: Line Tech B | E200: Vendor No.02 | G200: MIFPUC-2 | H200: 2018-10-14 | I200: 2018-10-20 | J200: Yes | K200: =VLOOKUP($D200,'C.1 - Rate Sheets'!B:F,2,FALSE) -> 0 | L200: =VLOOKUP($D200,'C.1 - Rate Sheets'!B:F,3,FALSE) -> 118.24 | M200: =VLOOKUP($D200,'C.1 - Rate Sheets'!B:F,4,FALSE) -> 152.22 | N200: =VLOOKUP($D200,'C.1 - Rate Sheets'!B:F,5,FALSE) -> 0 | AT200: 16 | AY200: 16 | BD200: 16 | BI200: 16 | FI200: 0 | FJ200: 64 | FK200: 0 | FM200: 64 | FN200: 0 | FO200: 7567.36 | FP200: 0 | FQ200: 0 | FR200: 7567.36 | FS200: 7567.36 | FT200: Yes | FU200: 0 | FV200: 0 | FW200: 0
B201: 183 | C201: Matt Montes | D201: Groundman | E201: Vendor No.02 | G201: MIFPUC-2 | H201: 2018-10-14 | I201: 2018-10-20 | J201: Yes | K201: =VLOOKUP($D201,'C.1 - Rate Sheets'!B:F,2,FALSE) -> 0 | L201: =VLOOKUP($D201,'C.1 - Rate Sheets'!B:F,3,FALSE) -> 99.27 | M201: =VLOOKUP($D201,'C.1 - Rate Sheets'!B:F,4,FALSE) -> 117.21 | N201: =VLOOKUP($D201,'C.1 - Rate Sheets'!B:F,5,FALSE) -> 0 | AT201: 16 | AY201: 16 | BD201: 16 | BI201: 16 | FI201: 0 | FJ201: 64 | FK201: 0 | FM201: 64 | FN201: 0 | FO201: 6353.28 | FP201: 0 | FQ201: 0 | FR201: 6353.28 | FS201: 6353.28 | FT201: Yes | FU201: 0 | FV201: 0 | FW201: 0
B202: 184 | C202: Jose De Jesus | D202: Groundman | E202: Vendor No.02 | G202: MIFPUC-2 | H202: 2018-10-14 | I202: 2018-10-20 | J202: Yes | K202: =VLOOKUP($D202,'C.1 - Rate Sheets'!B:F,2,FALSE) -> 0 | L202: =VLOOKUP($D202,'C.1 - Rate Sheets'!B:F,3,FALSE) -> 99.27 | M202: =VLOOKUP($D202,'C.1 - Rate Sheets'!B:F,4,FALSE) -> 117.21 | N202: =VLOOKUP($D202,'C.1 - Rate Sheets'!B:F,5,FALSE) -> 0 | BI202: 16 | FI202: 0 | FJ202: 16 | FK202: 0 | FM202: 16 | FN202: 0 | FO202: 1588.32 | FP202: 0 | FQ202: 0 | FR202: 1588.32 | FS202: 1588.32 | FT202: Yes | FU202: 0 | FV202: 0 | FW202: 0
B203: 185 | C203: Perry Chaffin | D203: Senior Lineman/Journeyman Lineman | E203: Vendor No.02 | G203: MIFPUC-2 | H203: 2018-10-14 | I203: 2018-10-20 | J203: Yes | K203: =VLOOKUP($D203,'C.1 - Rate Sheets'!B:F,2,FALSE) -> 0 | L203: =VLOOKUP($D203,'C.1 - Rate Sheets'!B:F,3,FALSE) -> 136.22 | M203: =VLOOKUP($D203,'C.1 - Rate Sheets'!B:F,4,FALSE) -> 176.19 | N203: =VLOOKUP($D203,'C.1 - Rate Sheets'!B:F,5,FALSE) -> 0 | FI203: 0 | FJ203: 0 | FK203: 0 | FM203: 0 | FN203: 0 | FO203: 0 | FP203: 0 | FQ203: 0 | FR203: 0 | FS203: 0 | FT203: Yes | FU203: 0 | FV203: 0 | FW203: 0
B204: 186 | FI204: 0 | FJ204: 0 | FK204: 0 | FM204: 0 | FN204: 0 | FO204: 0 | FP204: 0 | FQ204: 0 | FR204: 0 | FS204: 0 | FT204: Yes | FU204: 0 | FV204: 0 | FW204: 0
B205: 187 | C205: Gustavo Monteagudo | D205: Foreman | E205: Vendor No.02 | G205: MIFPUC-3 | H205: 2018-10-21 | I205: 2018-10-27 | J205: Yes | K205: =VLOOKUP($D205,'C.1 - Rate Sheets'!B:F,2,FALSE) -> 0 | L205: =VLOOKUP($D205,'C.1 - Rate Sheets'!B:F,3,FALSE) -> 148.21 | M205: =VLOOKUP($D205,'C.1 - Rate Sheets'!B:F,4,FALSE) -> 192.19 | N205: =VLOOKUP($D205,'C.1 - Rate Sheets'!B:F,5,FALSE) -> 0 | BO205: 16 | BS205: 16 | BX205: 16 | CC205: 16 | CH205: 16 | CM205: 16 | CR205: 16 | FI205: 0 | FJ205: 96 | FK205: 16 | FM205: 112 | FN205: 0 | FO205: 14228.16 | FP205: 3075.04 | FQ205: 0 | FR205: 17303.2 | FS205: 17303.2 | FT205: Yes | FU205: 0 | FV205: 0 | FW205: 0
B206: 188 | C206: Aroy Fildalgo | D206: Senior Lineman/Journeyman Lineman | E206: Vendor No.02 | G206: MIFPUC-3 | H206: 2018-10-21 | I206: 2018-10-27 | J206: Yes | K206: =VLOOKUP($D206,'C.1 - Rate Sheets'!B:F,2,FALSE) -> 0 | L206: =VLOOKUP($D206,'C.1 - Rate Sheets'!B:F,3,FALSE) -> 136.22 | M206: =VLOOKUP($D206,'C.1 - Rate Sheets'!B:F,4,FALSE) -> 176.19 | N206: =VLOOKUP($D206,'C.1 - Rate Sheets'!B:F,5,FALSE) -> 0 | BO206: 16 | BS206: 16 | BX206: 16 | CC206: 16 | CH206: 16 | CM206: 16 | CR206: 16 | FI206: 0 | FJ206: 96 | FK206: 16 | FM206: 112 | FN206: 0 | FO206: 13077.12 | FP206: 2819.04 | FQ206: 0 | FR206: 15896.16 | FS206: 15896.16 | FT206: Yes | FU206: 0 | FV206: 0 | FW206: 0
B207: 189 | C207: Addiel DeCardenas | D207: Senior Lineman/Journeyman Lineman | E207: Vendor No.02 | G207: MIFPUC-3 | H207: 2018-10-21 | I207: 2018-10-27 | J207: Yes | K207: =VLOOKUP($D207,'C.1 - Rate Sheets'!B:F,2,FALSE) -> 0 | L207: =VLOOKUP($D207,'C.1 - Rate Sheets'!B:F,3,FALSE) -> 136.22 | M207: =VLOOKUP($D207,'C.1 - Rate Sheets'!B:F,4,FALSE) -> 176.19 | N207: =VLOOKUP($D207,'C.1 - Rate Sheets'!B:F,5,FALSE) -> 0 | BO207: 16 | BS207: 16 | BX207: 16 | CC207: 16 | CH207: 16 | CM207: 16 | CR207: 16 | FI207: 0 | FJ207: 96 | FK207: 16 | FM207: 112 | FN207: 0 | FO207: 13077.12 | FP207: 2819.04 | FQ207: 0 | FR207: 15896.16 | FS207: 15896.16 | FT207: Yes | FU207: 0 | FV207: 0 | FW207: 0
B208: 190 | C208: Bruno Thiago | D208: Senior Lineman/Journeyman Lineman | E208: Vendor No.02 | G208: MIFPUC-3 | H208: 2018-10-21 | I208: 2018-10-27 | J208: Yes | K208: =VLOOKUP($D208,'C.1 - Rate Sheets'!B:F,2,FALSE) -> 0 | L208: =VLOOKUP($D208,'C.1 - Rate Sheets'!B:F,3,FALSE) -> 136.22 | M208: =VLOOKUP($D208,'C.1 - Rate Sheets'!B:F,4,FALSE) -> 176.19 | N208: =VLOOKUP($D208,'C.1 - Rate Sheets'!B:F,5,FALSE) -> 0 | BO208: 16 | BS208: 16 | BX208: 16 | CC208: 16 | CH208: 16 | CM208: 16 | CR208: 16 | FI208: 0 | FJ208: 96 | FK208: 16 | FM208: 112 | FN208: 0 | FO208: 13077.12 | FP208: 2819.04 | FQ208: 0 | FR208: 15896.16 | FS208: 15896.16 | FT208: Yes | FU208: 0 | FV208: 0 | FW208: 0
... 283 more rows

Sheet C.3 - Asset by Company
A1: Asset Tag | B1: Position | C1: Name

Sheet C.4 - Timesheets - Equipment
B2: Equipment Charges - Time Card
B4: Test Plan: | C4: Obtain the time cards. (A) Populate the equipment names and types (if provided). Find additional information regarding individual equipment charge from related invoice. (B) Enter hours worked from time card(s). (C) Confirm that the dates per the time cards fall between dates provided per 'A - Contractor Summary' tab. (D) Identify any equipment charges to be reviewed. (E) For charges which required further review, document review (include why it was determined to be allowed/disallowed via a tickmark).
B10: Rx | C10: Recalculated.
B11: a | C11: Provided from tab 'C.1 - Rate Sheets'.
B12: b | C12: Check figure should equal $0. Cell will appear yellow if discrepancies are noted.
C14: A | H14: Rx | J14: C | K14: a | L14: B | S14: B | AO14: B | AX14: D | AY14: E
B15: # | C15: Equipment Name | D15: Equipment ID | E15: Company | F15: Crew# | G15: Invoice | H15: Start Date | I15: End Date | J15: Dates Worked Reasonable? | K15: Rates | L15: 2018-10-07 | M15: 2018-10-08 | N15: 2018-10-09 | O15: 2018-10-10 | P15: 2018-10-11 | Q15: 2018-10-12 | R15: 2018-10-13 | S15: 2018-10-14 | T15: 2018-10-15 | U15: 2018-10-16 | V15: 2018-10-17 | W15: 2018-10-18 | X15: 2018-10-19 | Y15: 2018-10-20 | Z15: 2018-10-21 | AA15: 2018-10-22 | AB15: 2018-10-23 | AC15: 2018-10-24 | AD15: 2018-10-25 | AE15: 2018-10-26 | AF15: 2018-10-27 | AG15: 2018-10-28 | AH15: 2018-10-29 | AI15: 2018-10-30 | AJ15: 2018-10-31 | AK15: 2018-11-01 | AL15: 2018-11-02 | AM15: 2018-11-03 | AN15: 2018-11-04 | AO15: 2018-11-05 | AP15: 2018-11-06 | AQ15: 2018-11-07 | AR15: 2018-11-08 | AS15: 2018-11-09 | AT15: 2018-11-10 | AU15: Total Hours | AV15: Total Equipment | AW15: Allowable Charges | AX15: To Be Reviewed | AY15: Reviewed - Allowable Charge | AZ15: Reviewed - Unallowable Charge | BA15: Tickmarks
L16: Sunday | M16: Monday | N16: Tuesday | O16: Wednesday | P16: Thursday | Q16: Friday | R16: Saturday | S16: Sunday | T16: Monday | U16: Tuesday | V16: Wednesday | W16: Thursday | X16: Friday | Y16: Saturday | Z16: Sunday | AA16: Monday | AB16: Tuesday | AC16: Wednesday | AD16: Thursday | AE16: Friday | AF16: Saturday | AG16: Sunday | AH16: Monday | AI16: Tuesday | AJ16: Wednesday | AK16: Thursday | AL16: Friday | AM16: Saturday | AN16: Sunday | AO16: Monday | AP16: Tuesday | AQ16: Wednesday | AR16: Thursday | AS16: Friday | AT16: Saturday
L17: Hours | M17: Hours | N17: Hours | O17: Hours | P17: Hours | Q17: Hours | R17: Hours | S17: Hours | T17: Hours | U17: Hours | V17: Hours | W17: Hours | X17: Hours | Y17: Hours | AN17: Hours | AO17: Hours | AP17: Hours | AQ17: Hours | AR17: Hours | AS17: Hours | AT17: Hours
B18: 1 | C18: Pick Up Truck | E18: Vendor No 2 | G18: MIFPUC-1 | H18: 2018-10-11 | I18: 2018-10-13 | J18: =IF(AND(H18>='A - Contractor Summary'!$C$36,I18<='A - Contractor Summary'!$C$42),"Yes","No") -> No | K18: =VLOOKUP(C18,'C.1 - Rate Sheets'!$H$15:$I$46,2,FALSE) -> 20 | P18: 9 | Q18: 16 | R18: 16 | AU18: =SUM(L18:AT18) -> 41 | AV18: =AU18*K18 -> 820 | AW18: =AV18-AX18 -> 820 | AX18: 0 | AY18: 0 | AZ18: 0
B19: 2 | C19: Bucket Truck Up to 55' | E19: Vendor No 2 | G19: MIFPUC-1 | H19: 2018-10-11 | I19: 2018-10-13 | J19: =IF(AND(H19>='A - Contractor Summary'!$C$36,I19<='A - Contractor Summary'!$C$42),"Yes","No") -> No | K19: =VLOOKUP(C19,'C.1 - Rate Sheets'!$H$15:$I$46,2,FALSE) -> 50 | P19: 9 | Q19: 16 | R19: 16 | AU19: =SUM(L19:AT19) -> 41 | AV19: =AU19*K19 -> 2050 | AW19: =AV19-AX19 -> 2050 | AX19: 0 | AY19: 0 | AZ19: 0
B20: 3 | C20: Digger Derrick Greater Than 50' | E20: Vendor No 2 | G20: MIFPUC-1 | H20: 2018-10-11 | I20: 2018-10-13 | J20: =IF(AND(H20>='A - Contractor Summary'!$C$36,I20<='A - Contractor Summary'!$C$42),"Yes","No") -> No | K20: =VLOOKUP(C20,'C.1 - Rate Sheets'!$H$15:$I$46,2,FALSE) -> 60 | P20: 9 | Q20: 16 | R20: 16 | AU20: =SUM(L20:AT20) -> 41 | AV20: =AU20*K20 -> 2460 | AW20: =AV20-AX20 -> 2460 | AX20: 0 | AY20: 0 | AZ20: 0
B21: 4 | C21: Mechanic Truck | E21: Vendor No 2 | G21: MIFPUC-1 | H21: 2018-10-11 | I21: 2018-10-13 | J21: =IF(AND(H21>='A - Contractor Summary'!$C$36,I21<='A - Contractor Summary'!$C$42),"Yes","No") -> No | K21: =VLOOKUP(C21,'C.1 - Rate Sheets'!$H$15:$I$46,2,FALSE) -> 45 | Q21: 16 | R21: 16 | AU21: 32 | AV21: 1440 | AW21: 1440 | AX21: 0 | AY21: 0 | AZ21: 0
B22: 5 | C22: - | E22: Vendor No 2 | G22: MIFPUC-1 | H22: 2018-10-11 | I22: 2018-10-13 | J22: =IF(AND(H22>='A - Contractor Summary'!$C$36,I22<='A - Contractor Summary'!$C$42),"Yes","No") -> No | AU22: 0 | AV22: 0 | AW22: 0 | AX22: 0 | AY22: 0 | AZ22: 0
B23: 6 | C23: Pick Up Truck | E23: Vendor No 2 | G23: MIFPUC-1 | H23: 2018-10-11 | I23: 2018-10-13 | J23: =IF(AND(H23>='A - Contractor Summary'!$C$36,I23<='A - Contractor Summary'!$C$42),"Yes","No") -> No | K23: =VLOOKUP(C23,'C.1 - Rate Sheets'!$H$15:$I$46,2,FALSE) -> 20 | P23: 9 | Q23: 16 | R23: 16 | AU23: 41 | AV23: 820 | AW23: 820 | AX23: 0 | AY23: 0 | AZ23: 0
B24: 7 | C24: Bucket Truck Up to 55' | E24: Vendor No 2 | G24: MIFPUC-1 | H24: 2018-10-11 | I24: 2018-10-13 | J24: =IF(AND(H24>='A - Contractor Summary'!$C$36,I24<='A - Contractor Summary'!$C$42),"Yes","No") -> No | K24: =VLOOKUP(C24,'C.1 - Rate Sheets'!$H$15:$I$46,2,FALSE) -> 50 | P24: 9 | Q24: 16 | R24: 16 | AU24: 41 | AV24: 2050 | AW24: 2050 | AX24: 0 | AY24: 0 | AZ24: 0
B25: 8 | C25: Mechanic Truck | E25: Vendor No 2 | G25: MIFPUC-1 | H25: 2018-10-11 | I25: 2018-10-13 | J25: =IF(AND(H25>='A - Contractor Summary'!$C$36,I25<='A - Contractor Summary'!$C$42),"Yes","No") -> No | K25: =VLOOKUP(C25,'C.1 - Rate Sheets'!$H$15:$I$46,2,FALSE) -> 45 | Q25: 16 | R25: 16 | AU25: 32 | AV25: 1440 | AW25: 1440 | AX25: 0 | AY25: 0 | AZ25: 0
B26: 9 | C26: Bucket Truck Up to 55' | E26: Vendor No 2 | G26: MIFPUC-1 | H26: 2018-10-11 | I26: 2018-10-13 | J26: =IF(AND(H26>='A - Contractor Summary'!$C$36,I26<='A - Contractor Summary'!$C$42),"Yes","No") -> No | K26: =VLOOKUP(C26,'C.1 - Rate Sheets'!$H$15:$I$46,2,FALSE) -> 50 | P26: 9 | Q26: 16 | R26: 16 | AU26: 41 | AV26: 2050 | AW26: 2050
B27: 10 | C27: Digger Derrick Greater Than 50' | E27: Vendor No 2 | G27: MIFPUC-1 | H27: 2018-10-11 | I27: 2018-10-13 | J27: =IF(AND(H27>='A - Contractor Summary'!$C$36,I27<='A - Contractor Summary'!$C$42),"Yes","No") -> No | K27: =VLOOKUP(C27,'C.1 - Rate Sheets'!$H$15:$I$46,2,FALSE) -> 60 | Q27: 16 | R27: 16 | AU27: 32 | AV27: 1920 | AW27: 1920 | AX27: 0 | AY27: 0 | AZ27: 0
B28: 11 | C28: Pick Up Truck | E28: Vendor No 2 | G28: MIFPUC-1 | H28: 2018-10-11 | I28: 2018-10-13 | J28: =IF(AND(H28>='A - Contractor Summary'!$C$36,I28<='A - Contractor Summary'!$C$42),"Yes","No") -> No | K28: =VLOOKUP(C28,'C.1 - Rate Sheets'!$H$15:$I$46,2,FALSE) -> 20 | P28: 9 | Q28: 16 | R28: 16 | AU28: 41 | AV28: 820 | AW28: 820 | AX28: 0 | AY28: 0 | AZ28: 0
B29: 12 | C29: Pick Up Truck | E29: Vendor No 2 | G29: MIFPUC-1 | H29: 2018-10-11 | I29: 2018-10-13 | J29: =IF(AND(H29>='A - Contractor Summary'!$C$36,I29<='A - Contractor Summary'!$C$42),"Yes","No") -> No | K29: =VLOOKUP(C29,'C.1 - Rate Sheets'!$H$15:$I$46,2,FALSE) -> 20 | P29: 9 | Q29: 16 | R29: 16 | AU29: 41 | AV29: 820 | AW29: 820 | AX29: 0 | AY29: 0 | AZ29: 0
B30: 13 | C30: Pick Up Truck | E30: Vendor No 2 | G30: MIFPUC-1 | H30: 2018-10-11 | I30: 2018-10-13 | J30: =IF(AND(H30>='A - Contractor Summary'!$C$36,I30<='A - Contractor Summary'!$C$42),"Yes","No") -> No | K30: =VLOOKUP(C30,'C.1 - Rate Sheets'!$H$15:$I$46,2,FALSE) -> 20 | P30: 9 | Q30: 16 | R30: 16 | AU30: 41 | AV30: 820 | AW30: 820 | AX30: 0 | AY30: 0 | AZ30: 0
B31: 14 | C31: Mechanic Truck | E31: Vendor No 2 | G31: MIFPUC-1 | H31: 2018-10-11 | I31: 2018-10-13 | J31: =IF(AND(H31>='A - Contractor Summary'!$C$36,I31<='A - Contractor Summary'!$C$42),"Yes","No") -> No | K31: =VLOOKUP(C31,'C.1 - Rate Sheets'!$H$15:$I$46,2,FALSE) -> 45 | P31: 9 | Q31: 16 | R31: 16 | AU31: 41 | AV31: 1845 | AW31: 1845 | AX31: 0 | AY31: 0 | AZ31: 0
B32: 15 | C32: Pick Up Truck | E32: Vendor No 2 | G32: MIFPUC-1 | H32: 2018-10-11 | I32: 2018-10-13 | J32: =IF(AND(H32>='A - Contractor Summary'!$C$36,I32<='A - Contractor Summary'!$C$42),"Yes","No") -> No | K32: =VLOOKUP(C32,'C.1 - Rate Sheets'!$H$15:$I$46,2,FALSE) -> 20 | P32: 9 | Q32: 16 | R32: 16 | AU32: 41 | AV32: 820 | AW32: 820 | AX32: 0 | AY32: 0 | AZ32: 0
B33: 16 | C33: Bucket Truck Up to 55' | E33: Vendor No 2 | G33: MIFPUC-1 | H33: 2018-10-11 | I33: 2018-10-13 | J33: =IF(AND(H33>='A - Contractor Summary'!$C$36,I33<='A - Contractor Summary'!$C$42),"Yes","No") -> No | K33: =VLOOKUP(C33,'C.1 - Rate Sheets'!$H$15:$I$46,2,FALSE) -> 50 | P33: 9 | Q33: 16 | R33: 16 | AU33: 41 | AV33: 2050 | AW33: 2050 | AX33: 0 | AY33: 0 | AZ33: 0
B34: 17 | C34: Bucket Truck Up to 55' | E34: Vendor No 2 | G34: MIFPUC-1 | H34: 2018-10-11 | I34: 2018-10-13 | J34: =IF(AND(H34>='A - Contractor Summary'!$C$36,I34<='A - Contractor Summary'!$C$42),"Yes","No") -> No | K34: =VLOOKUP(C34,'C.1 - Rate Sheets'!$H$15:$I$46,2,FALSE) -> 50 | P34: 9 | Q34: 16 | R34: 16 | AU34: 41 | AV34: 2050 | AW34: 2050 | AX34: 0 | AY34: 0 | AZ34: 0
B35: 18 | C35: Digger Derrick Up to 50' | E35: Vendor No 2 | G35: MIFPUC-1 | H35: 2018-10-11 | I35: 2018-10-13 | J35: =IF(AND(H35>='A - Contractor Summary'!$C$36,I35<='A - Contractor Summary'!$C$42),"Yes","No") -> No | K35: =VLOOKUP(C35,'C.1 - Rate Sheets'!$H$15:$I$46,2,FALSE) -> 50 | P35: 9 | Q35: 16 | R35: 16 | AU35: 41 | AV35: 2050 | AW35: 2050 | AX35: 0 | AY35: 0 | AZ35: 0
B36: 19 | C36: Rear Property Machine | E36: Vendor No 2 | G36: MIFPUC-1 | H36: 2018-10-11 | I36: 2018-10-13 | J36: =IF(AND(H36>='A - Contractor Summary'!$C$36,I36<='A - Contractor Summary'!$C$42),"Yes","No") -> No | K36: =VLOOKUP(C36,'C.1 - Rate Sheets'!$H$15:$I$46,2,FALSE) -> 50 | P36: 9 | Q36: 16 | R36: 16 | AU36: 41 | AV36: 2050 | AW36: 2050 | AX36: 0 | AY36: 0 | AZ36: 0
B37: 20 | C37: Pick Up Truck | E37: Vendor No 2 | G37: MIFPUC-1 | H37: 2018-10-11 | I37: 2018-10-13 | J37: =IF(AND(H37>='A - Contractor Summary'!$C$36,I37<='A - Contractor Summary'!$C$42),"Yes","No") -> No | K37: =VLOOKUP(C37,'C.1 - Rate Sheets'!$H$15:$I$46,2,FALSE) -> 20 | P37: 9 | Q37: 16 | R37: 16 | AU37: 41 | AV37: 820 | AW37: 820 | AX37: 0 | AY37: 0 | AZ37: 0
B38: 21 | C38: Bucket Truck Up to 55' | E38: Vendor No 2 | G38: MIFPUC-1 | H38: 2018-10-11 | I38: 2018-10-13 | J38: =IF(AND(H38>='A - Contractor Summary'!$C$36,I38<='A - Contractor Summary'!$C$42),"Yes","No") -> No | K38: =VLOOKUP(C38,'C.1 - Rate Sheets'!$H$15:$I$46,2,FALSE) -> 50 | P38: 9 | Q38: 16 | R38: 16 | AU38: 41 | AV38: 2050 | AW38: 2050 | AX38: 0 | AY38: 0 | AZ38: 0
B39: 22 | C39: Bucket Truck Up to 55' | E39: Vendor No 2 | G39: MIFPUC-1 | H39: 2018-10-11 | I39: 2018-10-13 | J39: =IF(AND(H39>='A - Contractor Summary'!$C$36,I39<='A - Contractor Summary'!$C$42),"Yes","No") -> No | K39: =VLOOKUP(C39,'C.1 - Rate Sheets'!$H$15:$I$46,2,FALSE) -> 50 | P39: 9 | Q39: 16 | R39: 16 | AU39: 41 | AV39: 2050 | AW39: 2050 | AX39: 0 | AY39: 0 | AZ39: 0
B40: 23 | C40: Digger Derrick Up to 50' | E40: Vendor No 2 | G40: MIFPUC-1 | H40: 2018-10-11 | I40: 2018-10-13 | J40: =IF(AND(H40>='A - Contractor Summary'!$C$36,I40<='A - Contractor Summary'!$C$42),"Yes","No") -> No | K40: =VLOOKUP(C40,'C.1 - Rate Sheets'!$H$15:$I$46,2,FALSE) -> 50 | P40: 9 | Q40: 16 | R40: 16 | AU40: 41 | AV40: 2050 | AW40: 2050 | AX40: 0 | AY40: 0 | AZ40: 0
B41: 24 | C41: Pole Trailer | E41: Vendor No 2 | G41: MIFPUC-1 | H41: 2018-10-11 | I41: 2018-10-13 | J41: =IF(AND(H41>='A - Contractor Summary'!$C$36,I41<='A - Contractor Summary'!$C$42),"Yes","No") -> No | K41: =VLOOKUP(C41,'C.1 - Rate Sheets'!$H$15:$I$46,2,FALSE) -> 15 | P41: 9 | Q41: 16 | R41: 16 | AU41: 41 | AV41: 615 | AW41: 615 | AX41: 0 | AY41: 0 | AZ41: 0
B42: 25 | C42: Pick Up Truck | E42: Vendor No 2 | G42: MIFPUC-1 | H42: 2018-10-11 | I42: 2018-10-13 | J42: =IF(AND(H42>='A - Contractor Summary'!$C$36,I42<='A - Contractor Summary'!$C$42),"Yes","No") -> No | K42: =VLOOKUP(C42,'C.1 - Rate Sheets'!$H$15:$I$46,2,FALSE) -> 20 | P42: 9 | Q42: 16 | R42: 16 | AU42: 41 | AV42: 820 | AW42: 820 | AX42: 0 | AY42: 0 | AZ42: 0
B43: 26 | C43: Pick Up Truck | E43: Vendor No 2 | G43: MIFPUC-1 | H43: 2018-10-11 | I43: 2018-10-13 | J43: =IF(AND(H43>='A - Contractor Summary'!$C$36,I43<='A - Contractor Summary'!$C$42),"Yes","No") -> No | K43: =VLOOKUP(C43,'C.1 - Rate Sheets'!$H$15:$I$46,2,FALSE) -> 20 | P43: 9 | Q43: 16 | R43: 16 | AU43: 41 | AV43: 820 | AW43: 820 | AX43: 0 | AY43: 0 | AZ43: 0
B44: 27 | C44: Pick Up Truck | E44: Vendor No 2 | G44: MIFPUC-1 | H44: 2018-10-11 | I44: 2018-10-13 | J44: =IF(AND(H44>='A - Contractor Summary'!$C$36,I44<='A - Contractor Summary'!$C$42),"Yes","No") -> No | K44: =VLOOKUP(C44,'C.1 - Rate Sheets'!$H$15:$I$46,2,FALSE) -> 20 | P44: 9 | Q44: 16 | R44: 16 | AU44: 41 | AV44: 820 | AW44: 820 | AX44: 0 | AY44: 0 | AZ44: 0
B45: 28 | C45: Pick Up Truck | E45: Vendor No 2 | G45: MIFPUC-1 | H45: 2018-10-11 | I45: 2018-10-13 | J45: =IF(AND(H45>='A - Contractor Summary'!$C$36,I45<='A - Contractor Summary'!$C$42),"Yes","No") -> No | K45: =VLOOKUP(C45,'C.1 - Rate Sheets'!$H$15:$I$46,2,FALSE) -> 20 | P45: 9 | Q45: 16 | R45: 16 | AU45: 41 | AV45: 820 | AW45: 820 | AX45: 0 | AY45: 0 | AZ45: 0
B46: 29 | C46: Pick Up Truck | E46: Vendor No 2 | G46: MIFPUC-1 | H46: 2018-10-11 | I46: 2018-10-13 | J46: =IF(AND(H46>='A - Contractor Summary'!$C$36,I46<='A - Contractor Summary'!$C$42),"Yes","No") -> No | K46: =VLOOKUP(C46,'C.1 - Rate Sheets'!$H$15:$I$46,2,FALSE) -> 20 | P46: 9 | Q46: 16 | R46: 16 | AU46: 41 | AV46: 820 | AW46: 820 | AX46: 0 | AY46: 0 | AZ46: 0
B47: 30 | C47: Bucket Truck Up to 55' | E47: Vendor No 2 | G47: MIFPUC-1 | H47: 2018-10-11 | I47: 2018-10-13 | J47: =IF(AND(H47>='A - Contractor Summary'!$C$36,I47<='A - Contractor Summary'!$C$42),"Yes","No") -> No | K47: =VLOOKUP(C47,'C.1 - Rate Sheets'!$H$15:$I$46,2,FALSE) -> 50 | P47: 9 | Q47: 16 | R47: 16 | AU47: 41 | AV47: 2050 | AW47: 2050 | AX47: 0 | AY47: 0 | AZ47: 0
B48: 31 | C48: Bucket Truck Up to 55' | E48: Vendor No 2 | G48: MIFPUC-1 | H48: 2018-10-11 | I48: 2018-10-13 | J48: =IF(AND(H48>='A - Contractor Summary'!$C$36,I48<='A - Contractor Summary'!$C$42),"Yes","No") -> No | K48: =VLOOKUP(C48,'C.1 - Rate Sheets'!$H$15:$I$46,2,FALSE) -> 50 | P48: 9 | Q48: 16 | R48: 16 | AU48: 41 | AV48: 2050 | AW48: 2050
B49: 32 | C49: - | E49: Vendor No 2 | G49: MIFPUC-1 | H49: 2018-10-11 | I49: 2018-10-13 | J49: =IF(AND(H49>='A - Contractor Summary'!$C$36,I49<='A - Contractor Summary'!$C$42),"Yes","No") -> No | AU49: 0 | AV49: 0 | AW49: 0 | AX49: 0 | AY49: 0 | AZ49: 0
B50: 33 | C50: Mini Excavator | E50: Vendor No 2 | G50: MIFPUC-1 | H50: 2018-10-11 | I50: 2018-10-13 | J50: =IF(AND(H50>='A - Contractor Summary'!$C$36,I50<='A - Contractor Summary'!$C$42),"Yes","No") -> No | K50: =VLOOKUP(C50,'C.1 - Rate Sheets'!$H$15:$I$46,2,FALSE) -> 35 | Q50: 16 | R50: 16 | AU50: 32 | AV50: 1120 | AW50: 1120 | AX50: 0 | AY50: 0 | AZ50: 0
B51: 34 | C51: Pick Up Truck | E51: Vendor No 2 | G51: MIFPUC-1 | H51: 2018-10-11 | I51: 2018-10-13 | J51: =IF(AND(H51>='A - Contractor Summary'!$C$36,I51<='A - Contractor Summary'!$C$42),"Yes","No") -> No | K51: =VLOOKUP(C51,'C.1 - Rate Sheets'!$H$15:$I$46,2,FALSE) -> 20 | P51: 9 | Q51: 16 | R51: 16 | AU51: 41 | AV51: 820 | AW51: 820 | AX51: 0 | AY51: 0 | AZ51: 0
B52: 35 | C52: Bucket Truck Up to 55' | E52: Vendor No 2 | G52: MIFPUC-1 | H52: 2018-10-11 | I52: 2018-10-13 | J52: =IF(AND(H52>='A - Contractor Summary'!$C$36,I52<='A - Contractor Summary'!$C$42),"Yes","No") -> No | K52: =VLOOKUP(C52,'C.1 - Rate Sheets'!$H$15:$I$46,2,FALSE) -> 50 | P52: 9 | Q52: 16 | R52: 16 | AU52: 41 | AV52: 2050 | AW52: 2050 | AX52: 0 | AY52: 0 | AZ52: 0
B53: 36 | C53: Digger Derrick Greater Than 50' | E53: Vendor No 2 | G53: MIFPUC-1 | H53: 2018-10-11 | I53: 2018-10-13 | J53: =IF(AND(H53>='A - Contractor Summary'!$C$36,I53<='A - Contractor Summary'!$C$42),"Yes","No") -> No | K53: =VLOOKUP(C53,'C.1 - Rate Sheets'!$H$15:$I$46,2,FALSE) -> 60 | P53: 9 | Q53: 16 | R53: 16 | AU53: 41 | AV53: 2460 | AW53: 2460 | AX53: 0 | AY53: 0 | AZ53: 0
B54: 37 | C54: Rear Property Machine | E54: Vendor No 2 | G54: MIFPUC-1 | H54: 2018-10-11 | I54: 2018-10-13 | J54: =IF(AND(H54>='A - Contractor Summary'!$C$36,I54<='A - Contractor Summary'!$C$42),"Yes","No") -> No | K54: =VLOOKUP(C54,'C.1 - Rate Sheets'!$H$15:$I$46,2,FALSE) -> 50 | P54: 9 | Q54: 16 | R54: 16 | AU54: 41 | AV54: 2050 | AW54: 2050 | AX54: 0 | AY54: 0 | AZ54: 0
B55: 38 | C55: Bucket Truck Up to 55' | E55: Vendor No 2 | G55: MIFPUC-1 | H55: 2018-10-11 | I55: 2018-10-13 | J55: =IF(AND(H55>='A - Contractor Summary'!$C$36,I55<='A - Contractor Summary'!$C$42),"Yes","No") -> No | K55: =VLOOKUP(C55,'C.1 - Rate Sheets'!$H$15:$I$46,2,FALSE) -> 50 | Q55: 16 | R55: 16 | AU55: 32 | AV55: 1600 | AW55: 1600 | AX55: 0 | AY55: 0 | AZ55: 0
B56: 39 | C56: Digger Derrick Greater Than 50' | E56: Vendor No 2 | G56: MIFPUC-1 | H56: 2018-10-11 | I56: 2018-10-13 | J56: =IF(AND(H56>='A - Contractor Summary'!$C$36,I56<='A - Contractor Summary'!$C$42),"Yes","No") -> No | K56: =VLOOKUP(C56,'C.1 - Rate Sheets'!$H$15:$I$46,2,FALSE) -> 60 | P56: 9 | Q56: 16 | R56: 16 | AU56: 41 | AV56: 2460 | AW56: 2460 | AX56: 0 | AY56: 0 | AZ56: 0
B57: 40 | C57: Bucket Truck Up to 55' | E57: Vendor No 2 | G57: MIFPUC-1 | H57: 2018-10-11 | I57: 2018-10-13 | J57: =IF(AND(H57>='A - Contractor Summary'!$C$36,I57<='A - Contractor Summary'!$C$42),"Yes","No") -> No | K57: =VLOOKUP(C57,'C.1 - Rate Sheets'!$H$15:$I$46,2,FALSE) -> 50 | P57: 9 | Q57: 16 | R57: 16 | AU57: 41 | AV57: 2050 | AW57: 2050 | AX57: 0 | AY57: 0 | AZ57: 0
B58: 41 | C58: Bucket Truck Up to 55' | E58: Vendor No 2 | G58: MIFPUC-1 | H58: 2018-10-11 | I58: 2018-10-13 | J58: =IF(AND(H58>='A - Contractor Summary'!$C$36,I58<='A - Contractor Summary'!$C$42),"Yes","No") -> No | K58: =VLOOKUP(C58,'C.1 - Rate Sheets'!$H$15:$I$46,2,FALSE) -> 50 | P58: 9 | Q58: 16 | R58: 16 | AU58: 41 | AV58: 2050 | AW58: 2050 | AX58: 0 | AY58: 0 | AZ58: 0
B59: 42 | C59: Pick Up Truck | E59: Vendor No 2 | G59: MIFPUC-1 | H59: 2018-10-11 | I59: 2018-10-13 | J59: =IF(AND(H59>='A - Contractor Summary'!$C$36,I59<='A - Contractor Summary'!$C$42),"Yes","No") -> No | K59: =VLOOKUP(C59,'C.1 - Rate Sheets'!$H$15:$I$46,2,FALSE) -> 20 | P59: 9 | Q59: 16 | R59: 16 | AU59: 41 | AV59: 820 | AW59: 820 | AX59: 0 | AY59: 0 | AZ59: 0
B60: 43 | C60: - | E60: Vendor No 2 | G60: MIFPUC-1 | H60: 2018-10-11 | I60: 2018-10-13 | J60: =IF(AND(H60>='A - Contractor Summary'!$C$36,I60<='A - Contractor Summary'!$C$42),"Yes","No") -> No | AU60: 0 | AV60: 0 | AW60: 0 | AX60: 0 | AY60: 0 | AZ60: 0
B61: 44 | C61: Pick Up Truck | E61: Vendor No 2 | G61: MIFPUC-1 | H61: 2018-10-11 | I61: 2018-10-13 | J61: =IF(AND(H61>='A - Contractor Summary'!$C$36,I61<='A - Contractor Summary'!$C$42),"Yes","No") -> No | K61: =VLOOKUP(C61,'C.1 - Rate Sheets'!$H$15:$I$46,2,FALSE) -> 20 | P61: 9 | Q61: 16 | R61: 16 | AU61: 41 | AV61: 820 | AW61: 820 | AX61: 0 | AY61: 0 | AZ61: 0
B62: 45 | C62: Digger Derrick Up to 50' | E62: Vendor No 2 | G62: MIFPUC-1 | H62: 2018-10-11 | I62: 2018-10-13 | J62: =IF(AND(H62>='A - Contractor Summary'!$C$36,I62<='A - Contractor Summary'!$C$42),"Yes","No") -> No | K62: =VLOOKUP(C62,'C.1 - Rate Sheets'!$H$15:$I$46,2,FALSE) -> 50 | P62: 9 | Q62: 16 | R62: 16 | AU62: 41 | AV62: 2050 | AW62: 2050 | AX62: 0 | AY62: 0 | AZ62: 0
B63: 46 | C63: Bucket Truck Up to 55' | E63: Vendor No 2 | G63: MIFPUC-1 | H63: 2018-10-11 | I63: 2018-10-13 | J63: =IF(AND(H63>='A - Contractor Summary'!$C$36,I63<='A - Contractor Summary'!$C$42),"Yes","No") -> No | K63: =VLOOKUP(C63,'C.1 - Rate Sheets'!$H$15:$I$46,2,FALSE) -> 50 | P63: 9 | Q63: 16 | R63: 16 | AU63: 41 | AV63: 2050 | AW63: 2050 | AX63: 0 | AY63: 0 | AZ63: 0
B64: 47 | C64: Bucket Truck Up to 55' | E64: Vendor No 2 | G64: MIFPUC-1 | H64: 2018-10-11 | I64: 2018-10-13 | J64: =IF(AND(H64>='A - Contractor Summary'!$C$36,I64<='A - Contractor Summary'!$C$42),"Yes","No") -> No | K64: =VLOOKUP(C64,'C.1 - Rate Sheets'!$H$15:$I$46,2,FALSE) -> 50 | P64: 9 | Q64: 16 | R64: 16 | AU64: 41 | AV64: 2050 | AW64: 2050 | AX64: 0 | AY64: 0 | AZ64: 0
B65: 48 | C65: Bucket Truck Up to 55' | E65: Vendor No 2 | G65: MIFPUC-1 | H65: 2018-10-11 | I65: 2018-10-13 | J65: =IF(AND(H65>='A - Contractor Summary'!$C$36,I65<='A - Contractor Summary'!$C$42),"Yes","No") -> No | K65: =VLOOKUP(C65,'C.1 - Rate Sheets'!$H$15:$I$46,2,FALSE) -> 50 | Q65: 16 | R65: 16 | AU65: 32 | AV65: 1600 | AW65: 1600 | AX65: 0 | AY65: 0 | AZ65: 0
B66: 49 | C66: Pick Up Truck | E66: Vendor No 2 | G66: MIFPUC-1 | H66: 2018-10-11 | I66: 2018-10-13 | J66: =IF(AND(H66>='A - Contractor Summary'!$C$36,I66<='A - Contractor Summary'!$C$42),"Yes","No") -> No | K66: =VLOOKUP(C66,'C.1 - Rate Sheets'!$H$15:$I$46,2,FALSE) -> 20 | Q66: 16 | R66: 16 | AU66: 32 | AV66: 640 | AW66: 640 | AX66: 0 | AY66: 0 | AZ66: 0
B67: 50 | C67: Mechanic Truck | E67: Vendor No 2 | G67: MIFPUC-1 | H67: 2018-10-11 | I67: 2018-10-13 | J67: =IF(AND(H67>='A - Contractor Summary'!$C$36,I67<='A - Contractor Summary'!$C$42),"Yes","No") -> No | K67: =VLOOKUP(C67,'C.1 - Rate Sheets'!$H$15:$I$46,2,FALSE) -> 45 | Q67: 16 | R67: 16 | AU67: 32 | AV67: 1440 | AW67: 1440 | AX67: 0 | AY67: 0 | AZ67: 0
B68: 51 | C68: Mini Excavator | E68: Vendor No 2 | G68: MIFPUC-1 | H68: 2018-10-11 | I68: 2018-10-13 | J68: =IF(AND(H68>='A - Contractor Summary'!$C$36,I68<='A - Contractor Summary'!$C$42),"Yes","No") -> No | K68: =VLOOKUP(C68,'C.1 - Rate Sheets'!$H$15:$I$46,2,FALSE) -> 35 | Q68: 16 | R68: 16 | AU68: 32 | AV68: 1120 | AW68: 1120 | AX68: 0 | AY68: 0 | AZ68: 0
B69: 52 | C69: Mechanic Truck | E69: Vendor No 2 | G69: MIFPUC-1 | H69: 2018-10-11 | I69: 2018-10-13 | J69: =IF(AND(H69>='A - Contractor Summary'!$C$36,I69<='A - Contractor Summary'!$C$42),"Yes","No") -> No | K69: =VLOOKUP(C69,'C.1 - Rate Sheets'!$H$15:$I$46,2,FALSE) -> 45 | Q69: 16 | R69: 16 | AU69: 32 | AV69: 1440 | AW69: 1440
B70: 53 | C70: Mechanic Truck | E70: Vendor No 2 | G70: MIFPUC-1 | H70: 2018-10-11 | I70: 2018-10-13 | J70: =IF(AND(H70>='A - Contractor Summary'!$C$36,I70<='A - Contractor Summary'!$C$42),"Yes","No") -> No | K70: =VLOOKUP(C70,'C.1 - Rate Sheets'!$H$15:$I$46,2,FALSE) -> 45 | Q70: 16 | R70: 16 | AU70: 32 | AV70: 1440 | AW70: 1440 | AX70: 0 | AY70: 0 | AZ70: 0
B71: 54 | C71: Tractor( Semi) | E71: Vendor No 2 | G71: MIFPUC-1 | H71: 2018-10-11 | I71: 2018-10-13 | J71: =IF(AND(H71>='A - Contractor Summary'!$C$36,I71<='A - Contractor Summary'!$C$42),"Yes","No") -> No | K71: =VLOOKUP(C71,'C.1 - Rate Sheets'!$H$15:$I$46,2,FALSE) -> 45 | AU71: 0 | AV71: 0 | AW71: 0 | AX71: 0 | AY71: 0 | AZ71: 0
B72: 55 | C72: Mechanic Truck | E72: Vendor No 2 | G72: MIFPUC-1 | H72: 2018-10-11 | I72: 2018-10-13 | J72: =IF(AND(H72>='A - Contractor Summary'!$C$36,I72<='A - Contractor Summary'!$C$42),"Yes","No") -> No | K72: =VLOOKUP(C72,'C.1 - Rate Sheets'!$H$15:$I$46,2,FALSE) -> 45 | Q72: 16 | R72: 16 | AU72: 32 | AV72: 1440 | AW72: 1440 | AX72: 0 | AY72: 0 | AZ72: 0
B73: 56 | C73: Tractor( Semi) | E73: Vendor No 2 | G73: MIFPUC-1 | H73: 2018-10-11 | I73: 2018-10-13 | J73: =IF(AND(H73>='A - Contractor Summary'!$C$36,I73<='A - Contractor Summary'!$C$42),"Yes","No") -> No | K73: =VLOOKUP(C73,'C.1 - Rate Sheets'!$H$15:$I$46,2,FALSE) -> 45 | AU73: 0 | AV73: 0 | AW73: 0 | AX73: 0 | AY73: 0 | AZ73: 0
B74: 57 | C74: Mechanic Truck | E74: Vendor No 2 | G74: MIFPUC-1 | H74: 2018-10-11 | I74: 2018-10-13 | J74: =IF(AND(H74>='A - Contractor Summary'!$C$36,I74<='A - Contractor Summary'!$C$42),"Yes","No") -> No | K74: =VLOOKUP(C74,'C.1 - Rate Sheets'!$H$15:$I$46,2,FALSE) -> 45 | Q74: 16 | R74: 16 | AU74: 32 | AV74: 1440 | AW74: 1440 | AX74: 0 | AY74: 0 | AZ74: 0
B75: 58 | C75: Low Boy | E75: Vendor No 2 | G75: MIFPUC-1 | H75: 2018-10-11 | I75: 2018-10-13 | J75: =IF(AND(H75>='A - Contractor Summary'!$C$36,I75<='A - Contractor Summary'!$C$42),"Yes","No") -> No | K75: =VLOOKUP(C75,'C.1 - Rate Sheets'!$H$15:$I$46,2,FALSE) -> 38 | AU75: 0 | AV75: 0 | AW75: 0 | AX75: 0 | AY75: 0 | AZ75: 0
B76: 59 | C76: Low Boy | E76: Vendor No 2 | G76: MIFPUC-1 | H76: 2018-10-11 | I76: 2018-10-13 | J76: =IF(AND(H76>='A - Contractor Summary'!$C$36,I76<='A - Contractor Summary'!$C$42),"Yes","No") -> No | K76: =VLOOKUP(C76,'C.1 - Rate Sheets'!$H$15:$I$46,2,FALSE) -> 38 | AU76: 0 | AV76: 0 | AW76: 0 | AX76: 0 | AY76: 0 | AZ76: 0
B77: 60 | C77: Digger Derrick Greater Than 50' | E77: Vendor No 2 | G77: MIFPUC-1 | H77: 2018-10-11 | I77: 2018-10-13 | J77: =IF(AND(H77>='A - Contractor Summary'!$C$36,I77<='A - Contractor Summary'!$C$42),"Yes","No") -> No | K77: =VLOOKUP(C77,'C.1 - Rate Sheets'!$H$15:$I$46,2,FALSE) -> 60 | Q77: 16 | R77: 16 | AU77: 32 | AV77: 1920 | AW77: 1920 | AX77: 0 | AY77: 0 | AZ77: 0
B78: 61 | C78: Bucket Truck Tracked | E78: Vendor No 2 | G78: MIFPUC-1 | H78: 2018-10-11 | I78: 2018-10-13 | J78: =IF(AND(H78>='A - Contractor Summary'!$C$36,I78<='A - Contractor Summary'!$C$42),"Yes","No") -> No | K78: =VLOOKUP(C78,'C.1 - Rate Sheets'!$H$15:$I$46,2,FALSE) -> 70 | AU78: 0 | AV78: 0 | AW78: 0 | AX78: 0 | AY78: 0 | AZ78: 0
B79: 62 | C79: Digger Tracked | E79: Vendor No 2 | G79: MIFPUC-1 | H79: 2018-10-11 | I79: 2018-10-13 | J79: =IF(AND(H79>='A - Contractor Summary'!$C$36,I79<='A - Contractor Summary'!$C$42),"Yes","No") -> No | K79: =VLOOKUP(C79,'C.1 - Rate Sheets'!$H$15:$I$46,2,FALSE) -> 70 | AU79: 0 | AV79: 0 | AW79: 0 | AX79: 0 | AY79: 0 | AZ79: 0
B80: 63 | C80: Rope Rig (puller) | E80: Vendor No 2 | G80: MIFPUC-1 | H80: 2018-10-11 | I80: 2018-10-13 | J80: =IF(AND(H80>='A - Contractor Summary'!$C$36,I80<='A - Contractor Summary'!$C$42),"Yes","No") -> No | K80: =VLOOKUP(C80,'C.1 - Rate Sheets'!$H$15:$I$46,2,FALSE) -> 55 | AU80: 0 | AV80: 0 | AW80: 0 | AX80: 0 | AY80: 0 | AZ80: 0
B81: 64 | C81: Bucket Truck over 65' | E81: Vendor No 2 | G81: MIFPUC-1 | H81: 2018-10-11 | I81: 2018-10-13 | J81: =IF(AND(H81>='A - Contractor Summary'!$C$36,I81<='A - Contractor Summary'!$C$42),"Yes","No") -> No | K81: =VLOOKUP(C81,'C.1 - Rate Sheets'!$H$15:$I$46,2,FALSE) -> 65 | AU81: 0 | AV81: 0 | AW81: 0 | AX81: 0 | AY81: 0 | AZ81: 0
B82: 65 | C82: Bucket Truck Up to 55' | E82: Vendor No 2 | G82: MIFPUC-1 | H82: 2018-10-11 | I82: 2018-10-13 | J82: =IF(AND(H82>='A - Contractor Summary'!$C$36,I82<='A - Contractor Summary'!$C$42),"Yes","No") -> No | K82: =VLOOKUP(C82,'C.1 - Rate Sheets'!$H$15:$I$46,2,FALSE) -> 50 | AU82: 0 | AV82: 0 | AW82: 0 | AX82: 0 | AY82: 0 | AZ82: 0
B83: 66 | C83: Digger Derrick Up to 50' | E83: Vendor No 2 | G83: MIFPUC-1 | H83: 2018-10-11 | I83: 2018-10-13 | J83: =IF(AND(H83>='A - Contractor Summary'!$C$36,I83<='A - Contractor Summary'!$C$42),"Yes","No") -> No | K83: =VLOOKUP(C83,'C.1 - Rate Sheets'!$H$15:$I$46,2,FALSE) -> 50 | AU83: 0 | AV83: 0 | AW83: 0 | AX83: 0 | AY83: 0 | AZ83: 0
B84: 67 | C84: Rope Rig (puller) | E84: Vendor No 2 | G84: MIFPUC-1 | H84: 2018-10-11 | I84: 2018-10-13 | J84: =IF(AND(H84>='A - Contractor Summary'!$C$36,I84<='A - Contractor Summary'!$C$42),"Yes","No") -> No | K84: =VLOOKUP(C84,'C.1 - Rate Sheets'!$H$15:$I$46,2,FALSE) -> 55 | AU84: =SUM(L84:AT84) -> 0 | AV84: =AU84*K84 -> 0 | AW84: =AV84-AX84 -> 0 | AX84: 0 | AY84: 0 | AZ84: 0
B85: 68 | C85: Rope Rig (puller) | E85: Vendor No 2 | G85: MIFPUC-1 | H85: 2018-10-11 | I85: 2018-10-13 | J85: =IF(AND(H85>='A - Contractor Summary'!$C$36,I85<='A - Contractor Summary'!$C$42),"Yes","No") -> No | K85: =VLOOKUP(C85,'C.1 - Rate Sheets'!$H$15:$I$46,2,FALSE) -> 55 | AU85: 0 | AV85: 0 | AW85: 0 | AX85: 0 | AY85: 0 | AZ85: 0
B86: 69 | C86: 45 Ton Crane | E86: Vendor No 2 | G86: MIFPUC-1 | H86: 2018-10-11 | I86: 2018-10-13 | J86: =IF(AND(H86>='A - Contractor Summary'!$C$36,I86<='A - Contractor Summary'!$C$42),"Yes","No") -> No | K86: =VLOOKUP(C86,'C.1 - Rate Sheets'!$H$15:$I$46,2,FALSE) -> 145 | AU86: 0 | AV86: 0 | AW86: 0 | AX86: 0 | AY86: 0 | AZ86: 0
B87: 70 | C87: Mechanic Truck | E87: Vendor No 2 | G87: MIFPUC-1 | H87: 2018-10-11 | I87: 2018-10-13 | J87: =IF(AND(H87>='A - Contractor Summary'!$C$36,I87<='A - Contractor Summary'!$C$42),"Yes","No") -> No | K87: =VLOOKUP(C87,'C.1 - Rate Sheets'!$H$15:$I$46,2,FALSE) -> 45 | AU87: 0 | AV87: 0 | AW87: 0 | AX87: 0 | AY87: 0 | AZ87: 0
B88: 71 | C88: Pick Up Truck | E88: Vendor No 2 | G88: MIFPUC-1 | H88: 2018-10-11 | I88: 2018-10-13 | J88: =IF(AND(H88>='A - Contractor Summary'!$C$36,I88<='A - Contractor Summary'!$C$42),"Yes","No") -> No | K88: =VLOOKUP(C88,'C.1 - Rate Sheets'!$H$15:$I$46,2,FALSE) -> 20 | AU88: 0 | AV88: 0 | AW88: 0 | AX88: 0 | AY88: 0 | AZ88: 0
B89: 72 | C89: Bucket Truck Up to 55' | E89: Vendor No 2 | G89: MIFPUC-1 | H89: 2018-10-11 | I89: 2018-10-13 | J89: =IF(AND(H89>='A - Contractor Summary'!$C$36,I89<='A - Contractor Summary'!$C$42),"Yes","No") -> No | K89: =VLOOKUP(C89,'C.1 - Rate Sheets'!$H$15:$I$46,2,FALSE) -> 50 | AU89: 0 | AV89: 0 | AW89: 0 | AX89: 0 | AY89: 0 | AZ89: 0
B90: 73 | C90: Bucket Truck Up to 55' | E90: Vendor No 2 | G90: MIFPUC-1 | H90: 2018-10-11 | I90: 2018-10-13 | J90: =IF(AND(H90>='A - Contractor Summary'!$C$36,I90<='A - Contractor Summary'!$C$42),"Yes","No") -> No | K90: =VLOOKUP(C90,'C.1 - Rate Sheets'!$H$15:$I$46,2,FALSE) -> 50 | AU90: 0 | AV90: 0 | AW90: 0 | AX90: 0 | AY90: 0 | AZ90: 0
B91: 74 | C91: Digger Derrick Up to 50' | E91: Vendor No 2 | G91: MIFPUC-1 | H91: 2018-10-11 | I91: 2018-10-13 | J91: =IF(AND(H91>='A - Contractor Summary'!$C$36,I91<='A - Contractor Summary'!$C$42),"Yes","No") -> No | K91: =VLOOKUP(C91,'C.1 - Rate Sheets'!$H$15:$I$46,2,FALSE) -> 50 | AU91: 0 | AV91: 0 | AW91: 0
B92: 75 | C92: Rear Property Machine | E92: Vendor No 2 | G92: MIFPUC-1 | H92: 2018-10-11 | I92: 2018-10-13 | J92: =IF(AND(H92>='A - Contractor Summary'!$C$36,I92<='A - Contractor Summary'!$C$42),"Yes","No") -> No | K92: =VLOOKUP(C92,'C.1 - Rate Sheets'!$H$15:$I$46,2,FALSE) -> 50 | AU92: 0 | AV92: 0 | AW92: 0 | AX92: 0 | AY92: 0 | AZ92: 0
B93: 76 | C93: Bucket Truck Up to 55' | E93: Vendor No 2 | G93: MIFPUC-1 | H93: 2018-10-11 | I93: 2018-10-13 | J93: =IF(AND(H93>='A - Contractor Summary'!$C$36,I93<='A - Contractor Summary'!$C$42),"Yes","No") -> No | K93: =VLOOKUP(C93,'C.1 - Rate Sheets'!$H$15:$I$46,2,FALSE) -> 50 | AU93: 0 | AV93: 0 | AW93: 0 | AX93: 0 | AY93: 0 | AZ93: 0
B94: 77 | C94: Bucket Truck Up to 55' | E94: Vendor No 2 | G94: MIFPUC-1 | H94: 2018-10-11 | I94: 2018-10-13 | J94: =IF(AND(H94>='A - Contractor Summary'!$C$36,I94<='A - Contractor Summary'!$C$42),"Yes","No") -> No | K94: =VLOOKUP(C94,'C.1 - Rate Sheets'!$H$15:$I$46,2,FALSE) -> 50 | AU94: 0 | AV94: 0 | AW94: 0 | AX94: 0 | AY94: 0 | AZ94: 0
B95: 78 | C95: Digger Derrick Up to 50' | E95: Vendor No 2 | G95: MIFPUC-1 | H95: 2018-10-11 | I95: 2018-10-13 | J95: =IF(AND(H95>='A - Contractor Summary'!$C$36,I95<='A - Contractor Summary'!$C$42),"Yes","No") -> No | K95: =VLOOKUP(C95,'C.1 - Rate Sheets'!$H$15:$I$46,2,FALSE) -> 50 | AU95: 0 | AV95: 0 | AW95: 0 | AX95: 0 | AY95: 0 | AZ95: 0
B96: 79 | C96: Rear Property Machine | E96: Vendor No 2 | G96: MIFPUC-1 | H96: 2018-10-11 | I96: 2018-10-13 | J96: =IF(AND(H96>='A - Contractor Summary'!$C$36,I96<='A - Contractor Summary'!$C$42),"Yes","No") -> No | K96: =VLOOKUP(C96,'C.1 - Rate Sheets'!$H$15:$I$46,2,FALSE) -> 50 | AU96: 0 | AV96: 0 | AW96: 0 | AX96: 0 | AY96: 0 | AZ96: 0
B97: 80 | C97: Bucket Truck Up to 55' | E97: Vendor No 2 | G97: MIFPUC-1 | H97: 2018-10-11 | I97: 2018-10-13 | J97: =IF(AND(H97>='A - Contractor Summary'!$C$36,I97<='A - Contractor Summary'!$C$42),"Yes","No") -> No | K97: =VLOOKUP(C97,'C.1 - Rate Sheets'!$H$15:$I$46,2,FALSE) -> 50 | AU97: 0 | AV97: 0 | AW97: 0 | AX97: 0 | AY97: 0 | AZ97: 0
B98: 81 | C98: Bucket Truck Up to 55' | E98: Vendor No 2 | G98: MIFPUC-1 | H98: 2018-10-11 | I98: 2018-10-13 | J98: =IF(AND(H98>='A - Contractor Summary'!$C$36,I98<='A - Contractor Summary'!$C$42),"Yes","No") -> No | K98: =VLOOKUP(C98,'C.1 - Rate Sheets'!$H$15:$I$46,2,FALSE) -> 50 | AU98: 0 | AV98: 0 | AW98: 0 | AX98: 0 | AY98: 0 | AZ98: 0
B99: 82 | C99: Digger Derrick Up to 50' | E99: Vendor No 2 | G99: MIFPUC-1 | H99: 2018-10-11 | I99: 2018-10-13 | J99: =IF(AND(H99>='A - Contractor Summary'!$C$36,I99<='A - Contractor Summary'!$C$42),"Yes","No") -> No | K99: =VLOOKUP(C99,'C.1 - Rate Sheets'!$H$15:$I$46,2,FALSE) -> 50 | AU99: 0 | AV99: 0 | AW99: 0 | AX99: 0 | AY99: 0 | AZ99: 0
B100: 83 | C100: Rear Property Machine | E100: Vendor No 2 | G100: MIFPUC-1 | H100: 2018-10-11 | I100: 2018-10-13 | J100: =IF(AND(H100>='A - Contractor Summary'!$C$36,I100<='A - Contractor Summary'!$C$42),"Yes","No") -> No | K100: =VLOOKUP(C100,'C.1 - Rate Sheets'!$H$15:$I$46,2,FALSE) -> 50 | AU100: 0 | AV100: 0 | AW100: 0 | AX100: 0 | AY100: 0 | AZ100: 0
B101: 84 | C101: Pick Up Truck | E101: Vendor No 2 | G101: MIFPUC-1 | H101: 2018-10-11 | I101: 2018-10-13 | J101: =IF(AND(H101>='A - Contractor Summary'!$C$36,I101<='A - Contractor Summary'!$C$42),"Yes","No") -> No | K101: =VLOOKUP(C101,'C.1 - Rate Sheets'!$H$15:$I$46,2,FALSE) -> 20 | AU101: 0 | AV101: 0 | AW101: 0 | AX101: 0 | AY101: 0 | AZ101: 0
B102: 85 | C102: Bucket Truck Up to 55' | E102: Vendor No 2 | G102: MIFPUC-1 | H102: 2018-10-11 | I102: 2018-10-13 | J102: =IF(AND(H102>='A - Contractor Summary'!$C$36,I102<='A - Contractor Summary'!$C$42),"Yes","No") -> No | K102: =VLOOKUP(C102,'C.1 - Rate Sheets'!$H$15:$I$46,2,FALSE) -> 50 | AU102: 0 | AV102: 0 | AW102: 0 | AX102: 0 | AY102: 0 | AZ102: 0
B103: 86 | C103: Digger Derrick Up to 50' | E103: Vendor No 2 | G103: MIFPUC-1 | H103: 2018-10-11 | I103: 2018-10-13 | J103: =IF(AND(H103>='A - Contractor Summary'!$C$36,I103<='A - Contractor Summary'!$C$42),"Yes","No") -> No | K103: =VLOOKUP(C103,'C.1 - Rate Sheets'!$H$15:$I$46,2,FALSE) -> 50 | AU103: 0 | AV103: 0 | AW103: 0 | AX103: 0 | AY103: 0 | AZ103: 0
B104: 87 | C104: Pick Up Truck | E104: Vendor No 2 | G104: MIFPUC-1 | H104: 2018-10-11 | I104: 2018-10-13 | J104: =IF(AND(H104>='A - Contractor Summary'!$C$36,I104<='A - Contractor Summary'!$C$42),"Yes","No") -> No | K104: =VLOOKUP(C104,'C.1 - Rate Sheets'!$H$15:$I$46,2,FALSE) -> 20 | AU104: 0 | AV104: 0 | AW104: 0 | AX104: 0 | AY104: 0 | AZ104: 0
B105: 88 | C105: Bucket Truck Up to 55' | E105: Vendor No 2 | G105: MIFPUC-1 | H105: 2018-10-11 | I105: 2018-10-13 | J105: =IF(AND(H105>='A - Contractor Summary'!$C$36,I105<='A - Contractor Summary'!$C$42),"Yes","No") -> No | K105: =VLOOKUP(C105,'C.1 - Rate Sheets'!$H$15:$I$46,2,FALSE) -> 50 | AU105: 0 | AV105: 0 | AW105: 0 | AX105: 0 | AY105: 0 | AZ105: 0
B106: 89 | C106: Digger Derrick Up to 50' | E106: Vendor No 2 | G106: MIFPUC-1 | H106: 2018-10-11 | I106: 2018-10-13 | J106: =IF(AND(H106>='A - Contractor Summary'!$C$36,I106<='A - Contractor Summary'!$C$42),"Yes","No") -> No | K106: =VLOOKUP(C106,'C.1 - Rate Sheets'!$H$15:$I$46,2,FALSE) -> 50 | AU106: 0 | AV106: 0 | AW106: 0 | AX106: 0 | AY106: 0 | AZ106: 0
B107: 90 | C107: Digger Derrick Up to 50' | E107: Vendor No 2 | G107: MIFPUC-1 | H107: 2018-10-11 | I107: 2018-10-13 | J107: =IF(AND(H107>='A - Contractor Summary'!$C$36,I107<='A - Contractor Summary'!$C$42),"Yes","No") -> No | K107: =VLOOKUP(C107,'C.1 - Rate Sheets'!$H$15:$I$46,2,FALSE) -> 50 | AU107: 0 | AV107: 0 | AW107: 0 | AX107: 0 | AY107: 0 | AZ107: 0
B108: 91 | C108: X100 Blocks | E108: Vendor No 2 | G108: MIFPUC-1 | H108: 2018-10-11 | I108: 2018-10-13 | J108: =IF(AND(H108>='A - Contractor Summary'!$C$36,I108<='A - Contractor Summary'!$C$42),"Yes","No") -> No | K108: =VLOOKUP(C108,'C.1 - Rate Sheets'!$H$15:$I$46,2,FALSE) -> 2 | AU108: 0 | AV108: 0 | AW108: 0 | AX108: 0 | AY108: 0 | AZ108: 0
B109: 92 | C109: Wire Cart | E109: Vendor No 2 | G109: MIFPUC-1 | H109: 2018-10-11 | I109: 2018-10-13 | J109: =IF(AND(H109>='A - Contractor Summary'!$C$36,I109<='A - Contractor Summary'!$C$42),"Yes","No") -> No | K109: =VLOOKUP(C109,'C.1 - Rate Sheets'!$H$15:$I$46,2,FALSE) -> 20 | AU109: 0 | AV109: 0 | AW109: 0 | AX109: 0 | AY109: 0 | AZ109: 0
B110: 93 | C110: Air Compressor | E110: Vendor No 2 | G110: MIFPUC-1 | H110: 2018-10-11 | I110: 2018-10-13 | J110: =IF(AND(H110>='A - Contractor Summary'!$C$36,I110<='A - Contractor Summary'!$C$42),"Yes","No") -> No | K110: =VLOOKUP(C110,'C.1 - Rate Sheets'!$H$15:$I$46,2,FALSE) -> 15 | AU110: 0 | AV110: 0 | AW110: 0 | AX110: 0 | AY110: 0 | AZ110: 0
B111: 94 | C111: Hydrovac Excavation Truck(Vac Truck) | E111: Vendor No 2 | G111: MIFPUC-1 | H111: 2018-10-11 | I111: 2018-10-13 | J111: =IF(AND(H111>='A - Contractor Summary'!$C$36,I111<='A - Contractor Summary'!$C$42),"Yes","No") -> No | K111: =VLOOKUP(C111,'C.1 - Rate Sheets'!$H$15:$I$46,2,FALSE) -> 165 | AU111: 0 | AV111: 0 | AW111: 0
B112: 95 | C112: Flat Bed Truck | E112: Vendor No 2 | G112: MIFPUC-1 | H112: 2018-10-11 | I112: 2018-10-13 | J112: =IF(AND(H112>='A - Contractor Summary'!$C$36,I112<='A - Contractor Summary'!$C$42),"Yes","No") -> No | K112: =VLOOKUP(C112,'C.1 - Rate Sheets'!$H$15:$I$46,2,FALSE) -> 35 | AU112: 0 | AV112: 0 | AW112: 0
B113: 96 | C113: Wire Cart | E113: Vendor No 2 | G113: MIFPUC-1 | H113: 2018-10-11 | I113: 2018-10-13 | J113: =IF(AND(H113>='A - Contractor Summary'!$C$36,I113<='A - Contractor Summary'!$C$42),"Yes","No") -> No | K113: =VLOOKUP(C113,'C.1 - Rate Sheets'!$H$15:$I$46,2,FALSE) -> 20 | AU113: 0 | AV113: 0 | AW113: 0
B114: 97 | C114: Digger Tracked | E114: Vendor No 2 | G114: MIFPUC-1 | H114: 2018-10-11 | I114: 2018-10-13 | J114: =IF(AND(H114>='A - Contractor Summary'!$C$36,I114<='A - Contractor Summary'!$C$42),"Yes","No") -> No | K114: =VLOOKUP(C114,'C.1 - Rate Sheets'!$H$15:$I$46,2,FALSE) -> 70 | AU114: 0 | AV114: 0 | AW114: 0
B115: 98 | C115: Bucket Truck Up to 55' | E115: Vendor No 2 | G115: MIFPUC-1 | H115: 2018-10-11 | I115: 2018-10-13 | J115: =IF(AND(H115>='A - Contractor Summary'!$C$36,I115<='A - Contractor Summary'!$C$42),"Yes","No") -> No | K115: =VLOOKUP(C115,'C.1 - Rate Sheets'!$H$15:$I$46,2,FALSE) -> 50 | AU115: 0 | AV115: 0 | AW115: 0
B116: 99 | C116: Rope Rig (puller) | E116: Vendor No 2 | G116: MIFPUC-1 | H116: 2018-10-11 | I116: 2018-10-13 | J116: =IF(AND(H116>='A - Contractor Summary'!$C$36,I116<='A - Contractor Summary'!$C$42),"Yes","No") -> No | K116: =VLOOKUP(C116,'C.1 - Rate Sheets'!$H$15:$I$46,2,FALSE) -> 55 | AU116: 0 | AV116: 0 | AW116: 0
B117: 100 | C117: Excavator Rental | E117: Vendor No 2 | G117: MIFPUC-1 | H117: 2018-10-11 | I117: 2018-10-13 | J117: =IF(AND(H117>='A - Contractor Summary'!$C$36,I117<='A - Contractor Summary'!$C$42),"Yes","No") -> No | K117: =VLOOKUP(C117,'C.1 - Rate Sheets'!$H$15:$I$46,2,FALSE) -> 2253.84 | AU117: 0 | AV117: 0 | AW117: 0
B118: 101 | E118: Vendor No 2 | J118: =IF(AND(H118>='A - Contractor Summary'!$C$36,I118<='A - Contractor Summary'!$C$42),"Yes","No") -> No
B119: 102 | C119: Pick Up Truck | E119: Vendor No 2 | G119: MIFPUC-2 | H119: 2018-10-14 | I119: 2018-10-20 | J119: =IF(AND(H119>='A - Contractor Summary'!$C$36,I119<='A - Contractor Summary'!$C$42),"Yes","No") -> No | K119: =VLOOKUP(C119,'C.1 - Rate Sheets'!$H$15:$I$46,2,FALSE) -> 20 | S119: 16 | T119: 16 | U119: 16 | V119: 16 | W119: 16 | X119: 16 | Y119: 16 | AU119: 112 | AV119: 2240 | AW119: 2240
B120: 103 | C120: Bucket Truck Up to 55' | E120: Vendor No 2 | G120: MIFPUC-2 | H120: 2018-10-14 | I120: 2018-10-20 | J120: =IF(AND(H120>='A - Contractor Summary'!$C$36,I120<='A - Contractor Summary'!$C$42),"Yes","No") -> No | K120: =VLOOKUP(C120,'C.1 - Rate Sheets'!$H$15:$I$46,2,FALSE) -> 50 | S120: 16 | T120: 16 | U120: 16 | V120: 16 | W120: 16 | X120: 16 | Y120: 16 | AU120: 112 | AV120: 5600 | AW120: 5600
B121: 104 | C121: Digger Derrick Greater Than 50' | E121: Vendor No 2 | G121: MIFPUC-2 | H121: 2018-10-14 | I121: 2018-10-20 | J121: =IF(AND(H121>='A - Contractor Summary'!$C$36,I121<='A - Contractor Summary'!$C$42),"Yes","No") -> No | K121: =VLOOKUP(C121,'C.1 - Rate Sheets'!$H$15:$I$46,2,FALSE) -> 60 | S121: 16 | T121: 16 | U121: 16 | V121: 16 | W121: 16 | X121: 16 | Y121: 16 | AU121: 112 | AV121: 6720 | AW121: 6720
B122: 105 | C122: Mechanic Truck | E122: Vendor No 2 | G122: MIFPUC-2 | H122: 2018-10-14 | I122: 2018-10-20 | J122: =IF(AND(H122>='A - Contractor Summary'!$C$36,I122<='A - Contractor Summary'!$C$42),"Yes","No") -> No | K122: =VLOOKUP(C122,'C.1 - Rate Sheets'!$H$15:$I$46,2,FALSE) -> 45 | S122: 16 | T122: 16 | U122: 16 | V122: 16 | W122: 16 | X122: 16 | Y122: 16 | AU122: 112 | AV122: 5040 | AW122: 5040
B123: 106 | C123: 40' Tri Cam Container | E123: Vendor No 2 | G123: MIFPUC-2 | H123: 2018-10-14 | I123: 2018-10-20 | J123: =IF(AND(H123>='A - Contractor Summary'!$C$36,I123<='A - Contractor Summary'!$C$42),"Yes","No") -> No | K123: =VLOOKUP(C123,'C.1 - Rate Sheets'!$H$15:$I$46,2,FALSE) -> 804.17 | S123: 1 | AU123: 1 | AV123: 804.17 | AW123: 804.17
B124: 107 | C124: Pick Up Truck | E124: Vendor No 2 | G124: MIFPUC-2 | H124: 2018-10-14 | I124: 2018-10-20 | J124: =IF(AND(H124>='A - Contractor Summary'!$C$36,I124<='A - Contractor Summary'!$C$42),"Yes","No") -> No | K124: =VLOOKUP(C124,'C.1 - Rate Sheets'!$H$15:$I$46,2,FALSE) -> 20 | S124: 16 | T124: 16 | U124: 16 | V124: 16 | W124: 16 | X124: 16 | Y124: 16 | AU124: 112 | AV124: 2240 | AW124: 2240
B125: 108 | C125: Bucket Truck Up to 55' | E125: Vendor No 2 | G125: MIFPUC-2 | H125: 2018-10-14 | I125: 2018-10-20 | J125: =IF(AND(H125>='A - Contractor Summary'!$C$36,I125<='A - Contractor Summary'!$C$42),"Yes","No") -> No | K125: =VLOOKUP(C125,'C.1 - Rate Sheets'!$H$15:$I$46,2,FALSE) -> 50 | S125: 16 | T125: 16 | U125: 16 | V125: 16 | W125: 16 | X125: 16 | Y125: 16 | AU125: 112 | AV125: 5600 | AW125: 5600
B126: 109 | C126: Mechanic Truck | E126: Vendor No 2 | G126: MIFPUC-2 | H126: 2018-10-14 | I126: 2018-10-20 | J126: =IF(AND(H126>='A - Contractor Summary'!$C$36,I126<='A - Contractor Summary'!$C$42),"Yes","No") -> No | K126: =VLOOKUP(C126,'C.1 - Rate Sheets'!$H$15:$I$46,2,FALSE) -> 45 | S126: 16 | T126: 16 | U126: 16 | V126: 16 | W126: 16 | X126: 16 | Y126: 16 | AU126: 112 | AV126: 5040 | AW126: 5040
B127: 110 | C127: Bucket Truck Up to 55' | E127: Vendor No 2 | G127: MIFPUC-2 | H127: 2018-10-14 | I127: 2018-10-20 | J127: =IF(AND(H127>='A - Contractor Summary'!$C$36,I127<='A - Contractor Summary'!$C$42),"Yes","No") -> No | K127: =VLOOKUP(C127,'C.1 - Rate Sheets'!$H$15:$I$46,2,FALSE) -> 50 | S127: 16 | T127: 16 | U127: 16 | V127: 16 | W127: 16 | X127: 16 | Y127: 16 | AU127: 112 | AV127: 5600 | AW127: 5600
B128: 111 | C128: Digger Derrick Greater Than 50' | E128: Vendor No 2 | G128: MIFPUC-2 | H128: 2018-10-14 | I128: 2018-10-20 | J128: =IF(AND(H128>='A - Contractor Summary'!$C$36,I128<='A - Contractor Summary'!$C$42),"Yes","No") -> No | K128: =VLOOKUP(C128,'C.1 - Rate Sheets'!$H$15:$I$46,2,FALSE) -> 60 | S128: 16 | T128: 16 | U128: 16 | V128: 16 | W128: 16 | X128: 16 | Y128: 16 | AU128: 112 | AV128: 6720 | AW128: 6720
B129: 112 | C129: Pick Up Truck | E129: Vendor No 2 | G129: MIFPUC-2 | H129: 2018-10-14 | I129: 2018-10-20 | J129: =IF(AND(H129>='A - Contractor Summary'!$C$36,I129<='A - Contractor Summary'!$C$42),"Yes","No") -> No | K129: =VLOOKUP(C129,'C.1 - Rate Sheets'!$H$15:$I$46,2,FALSE) -> 20 | S129: 16 | T129: 16 | U129: 16 | V129: 16 | W129: 16 | X129: 16 | Y129: 16 | AU129: 112 | AV129: 2240 | AW129: 2240
B130: 113 | C130: Pick Up Truck | E130: Vendor No 2 | G130: MIFPUC-2 | H130: 2018-10-14 | I130: 2018-10-20 | J130: =IF(AND(H130>='A - Contractor Summary'!$C$36,I130<='A - Contractor Summary'!$C$42),"Yes","No") -> No | K130: =VLOOKUP(C130,'C.1 - Rate Sheets'!$H$15:$I$46,2,FALSE) -> 20 | S130: 16 | T130: 16 | U130: 16 | V130: 16 | W130: 16 | X130: 16 | Y130: 16 | AU130: 112 | AV130: 2240 | AW130: 2240
B131: 114 | C131: Pick Up Truck | E131: Vendor No 2 | G131: MIFPUC-2 | H131: 2018-10-14 | I131: 2018-10-20 | J131: =IF(AND(H131>='A - Contractor Summary'!$C$36,I131<='A - Contractor Summary'!$C$42),"Yes","No") -> No | K131: =VLOOKUP(C131,'C.1 - Rate Sheets'!$H$15:$I$46,2,FALSE) -> 20 | S131: 16 | T131: 16 | U131: 16 | V131: 16 | W131: 16 | X131: 16 | Y131: 16 | AU131: 112 | AV131: 2240 | AW131: 2240
B132: 115 | C132: Mechanic Truck | E132: Vendor No 2 | G132: MIFPUC-2 | H132: 2018-10-14 | I132: 2018-10-20 | J132: =IF(AND(H132>='A - Contractor Summary'!$C$36,I132<='A - Contractor Summary'!$C$42),"Yes","No") -> No | K132: =VLOOKUP(C132,'C.1 - Rate Sheets'!$H$15:$I$46,2,FALSE) -> 45 | S132: 16 | T132: 16 | U132: 16 | V132: 16 | W132: 16 | X132: 16 | Y132: 16 | AU132: 112 | AV132: 5040 | AW132: 5040
B133: 116 | C133: Pick Up Truck | E133: Vendor No 2 | G133: MIFPUC-2 | H133: 2018-10-14 | I133: 2018-10-20 | J133: =IF(AND(H133>='A - Contractor Summary'!$C$36,I133<='A - Contractor Summary'!$C$42),"Yes","No") -> No | K133: =VLOOKUP(C133,'C.1 - Rate Sheets'!$H$15:$I$46,2,FALSE) -> 20 | S133: 16 | T133: 16 | U133: 16 | V133: 16 | W133: 16 | X133: 16 | Y133: 16 | AU133: 112 | AV133: 2240 | AW133: 2240
B134: 117 | C134: Bucket Truck Up to 55' | E134: Vendor No 2 | G134: MIFPUC-2 | H134: 2018-10-14 | I134: 2018-10-20 | J134: =IF(AND(H134>='A - Contractor Summary'!$C$36,I134<='A - Contractor Summary'!$C$42),"Yes","No") -> No | K134: =VLOOKUP(C134,'C.1 - Rate Sheets'!$H$15:$I$46,2,FALSE) -> 50 | S134: 16 | T134: 16 | U134: 16 | V134: 16 | W134: 16 | X134: 16 | Y134: 16 | AU134: 112 | AV134: 5600 | AW134: 5600
B135: 118 | C135: Bucket Truck Up to 55' | E135: Vendor No 2 | G135: MIFPUC-2 | H135: 2018-10-14 | I135: 2018-10-20 | J135: =IF(AND(H135>='A - Contractor Summary'!$C$36,I135<='A - Contractor Summary'!$C$42),"Yes","No") -> No | K135: =VLOOKUP(C135,'C.1 - Rate Sheets'!$H$15:$I$46,2,FALSE) -> 50 | S135: 16 | T135: 16 | U135: 16 | V135: 16 | W135: 16 | X135: 16 | Y135: 16 | AU135: 112 | AV135: 5600 | AW135: 5600
B136: 119 | C136: Digger Derrick Up to 50' | E136: Vendor No 2 | G136: MIFPUC-2 | H136: 2018-10-14 | I136: 2018-10-20 | J136: =IF(AND(H136>='A - Contractor Summary'!$C$36,I136<='A - Contractor Summary'!$C$42),"Yes","No") -> No | K136: =VLOOKUP(C136,'C.1 - Rate Sheets'!$H$15:$I$46,2,FALSE) -> 50 | S136: 16 | T136: 16 | U136: 16 | V136: 16 | W136: 16 | X136: 16 | Y136: 16 | AU136: 112 | AV136: 5600 | AW136: 5600
B137: 120 | C137: Rear Property Machine | E137: Vendor No 2 | G137: MIFPUC-2 | H137: 2018-10-14 | I137: 2018-10-20 | J137: =IF(AND(H137>='A - Contractor Summary'!$C$36,I137<='A - Contractor Summary'!$C$42),"Yes","No") -> No | K137: =VLOOKUP(C137,'C.1 - Rate Sheets'!$H$15:$I$46,2,FALSE) -> 50 | S137: 16 | T137: 16 | U137: 16 | V137: 16 | W137: 16 | X137: 16 | Y137: 16 | AU137: 112 | AV137: 5600 | AW137: 5600
B138: 121 | C138: Pick Up Truck | E138: Vendor No 2 | G138: MIFPUC-2 | H138: 2018-10-14 | I138: 2018-10-20 | J138: =IF(AND(H138>='A - Contractor Summary'!$C$36,I138<='A - Contractor Summary'!$C$42),"Yes","No") -> No | K138: =VLOOKUP(C138,'C.1 - Rate Sheets'!$H$15:$I$46,2,FALSE) -> 20 | S138: 16 | T138: 16 | U138: 16 | V138: 16 | W138: 16 | X138: 16 | Y138: 16 | AU138: 112 | AV138: 2240 | AW138: 2240
B139: 122 | C139: Bucket Truck Up to 55' | E139: Vendor No 2 | G139: MIFPUC-2 | H139: 2018-10-14 | I139: 2018-10-20 | J139: =IF(AND(H139>='A - Contractor Summary'!$C$36,I139<='A - Contractor Summary'!$C$42),"Yes","No") -> No | K139: =VLOOKUP(C139,'C.1 - Rate Sheets'!$H$15:$I$46,2,FALSE) -> 50 | S139: 16 | T139: 16 | U139: 16 | V139: 16 | W139: 16 | X139: 16 | Y139: 16 | AU139: 112 | AV139: 5600 | AW139: 5600
B140: 123 | C140: Bucket Truck Up to 55' | E140: Vendor No 2 | G140: MIFPUC-2 | H140: 2018-10-14 | I140: 2018-10-20 | J140: =IF(AND(H140>='A - Contractor Summary'!$C$36,I140<='A - Contractor Summary'!$C$42),"Yes","No") -> No | K140: =VLOOKUP(C140,'C.1 - Rate Sheets'!$H$15:$I$46,2,FALSE) -> 50 | S140: 16 | T140: 16 | U140: 16 | V140: 16 | W140: 16 | X140: 16 | Y140: 16 | AU140: 112 | AV140: 5600 | AW140: 5600
B141: 124 | C141: Digger Derrick Up to 50' | E141: Vendor No 2 | G141: MIFPUC-2 | H141: 2018-10-14 | I141: 2018-10-20 | J141: =IF(AND(H141>='A - Contractor Summary'!$C$36,I141<='A - Contractor Summary'!$C$42),"Yes","No") -> No | K141: =VLOOKUP(C141,'C.1 - Rate Sheets'!$H$15:$I$46,2,FALSE) -> 50 | S141: 16 | T141: 16 | U141: 16 | V141: 16 | W141: 16 | X141: 16 | Y141: 16 | AU141: 112 | AV141: 5600 | AW141: 5600
B142: 125 | C142: Pole Trailer | E142: Vendor No 2 | G142: MIFPUC-2 | H142: 2018-10-14 | I142: 2018-10-20 | J142: =IF(AND(H142>='A - Contractor Summary'!$C$36,I142<='A - Contractor Summary'!$C$42),"Yes","No") -> No | K142: =VLOOKUP(C142,'C.1 - Rate Sheets'!$H$15:$I$46,2,FALSE) -> 15 | S142: 16 | T142: 16 | U142: 16 | V142: 16 | W142: 16 | X142: 16 | Y142: 16 | AU142: 112 | AV142: 1680 | AW142: 1680
B143: 126 | C143: Pick Up Truck | E143: Vendor No 2 | G143: MIFPUC-2 | H143: 2018-10-14 | I143: 2018-10-20 | J143: =IF(AND(H143>='A - Contractor Summary'!$C$36,I143<='A - Contractor Summary'!$C$42),"Yes","No") -> No | K143: =VLOOKUP(C143,'C.1 - Rate Sheets'!$H$15:$I$46,2,FALSE) -> 20 | S143: 16 | T143: 16 | U143: 16 | V143: 16 | W143: 16 | X143: 16 | Y143: 16 | AU143: 112 | AV143: 2240 | AW143: 2240
B144: 127 | C144: Pick Up Truck | E144: Vendor No 2 | G144: MIFPUC-2 | H144: 2018-10-14 | I144: 2018-10-20 | J144: =IF(AND(H144>='A - Contractor Summary'!$C$36,I144<='A - Contractor Summary'!$C$42),"Yes","No") -> No | K144: =VLOOKUP(C144,'C.1 - Rate Sheets'!$H$15:$I$46,2,FALSE) -> 20 | S144: 16 | T144: 16 | U144: 16 | V144: 16 | W144: 16 | X144: 16 | Y144: 16 | AU144: 112 | AV144: 2240 | AW144: 2240
B145: 128 | C145: Pick Up Truck | E145: Vendor No 2 | G145: MIFPUC-2 | H145: 2018-10-14 | I145: 2018-10-20 | J145: =IF(AND(H145>='A - Contractor Summary'!$C$36,I145<='A - Contractor Summary'!$C$42),"Yes","No") -> No | K145: =VLOOKUP(C145,'C.1 - Rate Sheets'!$H$15:$I$46,2,FALSE) -> 20 | S145: 16 | T145: 16 | U145: 16 | V145: 16 | W145: 16 | X145: 16 | Y145: 16 | AU145: 112 | AV145: 2240 | AW145: 2240
B146: 129 | C146: Pick Up Truck | E146: Vendor No 2 | G146: MIFPUC-2 | H146: 2018-10-14 | I146: 2018-10-20 | J146: =IF(AND(H146>='A - Contractor Summary'!$C$36,I146<='A - Contractor Summary'!$C$42),"Yes","No") -> No | K146: =VLOOKUP(C146,'C.1 - Rate Sheets'!$H$15:$I$46,2,FALSE) -> 20 | S146: 16 | T146: 16 | U146: 16 | V146: 16 | W146: 16 | X146: 16 | Y146: 16 | AU146: 112 | AV146: 2240 | AW146: 2240
B147: 130 | C147: Pick Up Truck | E147: Vendor No 2 | G147: MIFPUC-2 | H147: 2018-10-14 | I147: 2018-10-20 | J147: =IF(AND(H147>='A - Contractor Summary'!$C$36,I147<='A - Contractor Summary'!$C$42),"Yes","No") -> No | K147: =VLOOKUP(C147,'C.1 - Rate Sheets'!$H$15:$I$46,2,FALSE) -> 20 | S147: 16 | T147: 16 | U147: 16 | V147: 16 | W147: 16 | X147: 16 | Y147: 16 | AU147: 112 | AV147: 2240 | AW147: 2240
B148: 131 | C148: Bucket Truck Up to 55' | E148: Vendor No 2 | G148: MIFPUC-2 | H148: 2018-10-14 | I148: 2018-10-20 | J148: =IF(AND(H148>='A - Contractor Summary'!$C$36,I148<='A - Contractor Summary'!$C$42),"Yes","No") -> No | K148: =VLOOKUP(C148,'C.1 - Rate Sheets'!$H$15:$I$46,2,FALSE) -> 50 | S148: 16 | T148: 16 | U148: 16 | V148: 16 | W148: 16 | X148: 16 | Y148: 16 | AU148: 112 | AV148: 5600 | AW148: 5600
B149: 132 | C149: Bucket Truck Up to 55' | E149: Vendor No 2 | G149: MIFPUC-2 | H149: 2018-10-14 | I149: 2018-10-20 | J149: =IF(AND(H149>='A - Contractor Summary'!$C$36,I149<='A - Contractor Summary'!$C$42),"Yes","No") -> No | K149: =VLOOKUP(C149,'C.1 - Rate Sheets'!$H$15:$I$46,2,FALSE) -> 50 | S149: 16 | T149: 16 | U149: 16 | V149: 16 | W149: 16 | X149: 16 | Y149: 16 | AU149: =SUM(L149:AT149) -> 112 | AV149: =AU149*K149 -> 5600 | AW149: =AV149-AX149 -> 5600
B150: 133 | C150: - | E150: Vendor No 2 | G150: MIFPUC-2 | H150: 2018-10-14 | I150: 2018-10-20 | J150: =IF(AND(H150>='A - Contractor Summary'!$C$36,I150<='A - Contractor Summary'!$C$42),"Yes","No") -> No | AU150: 0 | AV150: 0 | AW150: 0
B151: 134 | C151: Mini Excavator | E151: Vendor No 2 | G151: MIFPUC-2 | H151: 2018-10-14 | I151: 2018-10-20 | J151: =IF(AND(H151>='A - Contractor Summary'!$C$36,I151<='A - Contractor Summary'!$C$42),"Yes","No") -> No | K151: =VLOOKUP(C151,'C.1 - Rate Sheets'!$H$15:$I$46,2,FALSE) -> 35 | S151: 16 | T151: 16 | U151: 16 | V151: 16 | W151: 16 | X151: 16 | Y151: 16 | AU151: 112 | AV151: 3920 | AW151: 3920
B152: 135 | C152: Pick Up Truck | E152: Vendor No 2 | G152: MIFPUC-2 | H152: 2018-10-14 | I152: 2018-10-20 | J152: =IF(AND(H152>='A - Contractor Summary'!$C$36,I152<='A - Contractor Summary'!$C$42),"Yes","No") -> No | K152: =VLOOKUP(C152,'C.1 - Rate Sheets'!$H$15:$I$46,2,FALSE) -> 20 | S152: 16 | T152: 16 | U152: 16 | V152: 16 | W152: 16 | X152: 16 | Y152: 16 | AU152: 112 | AV152: 2240 | AW152: 2240
B153: 136 | C153: Bucket Truck Up to 55' | E153: Vendor No 2 | G153: MIFPUC-2 | H153: 2018-10-14 | I153: 2018-10-20 | J153: =IF(AND(H153>='A - Contractor Summary'!$C$36,I153<='A - Contractor Summary'!$C$42),"Yes","No") -> No | K153: =VLOOKUP(C153,'C.1 - Rate Sheets'!$H$15:$I$46,2,FALSE) -> 50 | S153: 16 | T153: 16 | U153: 16 | V153: 16 | W153: 16 | X153: 16 | Y153: 16 | AU153: 112 | AV153: 5600 | AW153: 5600
B154: 137 | C154: Digger Derrick Greater Than 50' | E154: Vendor No 2 | G154: MIFPUC-2 | H154: 2018-10-14 | I154: 2018-10-20 | J154: =IF(AND(H154>='A - Contractor Summary'!$C$36,I154<='A - Contractor Summary'!$C$42),"Yes","No") -> No | K154: =VLOOKUP(C154,'C.1 - Rate Sheets'!$H$15:$I$46,2,FALSE) -> 60 | S154: 16 | T154: 16 | U154: 16 | V154: 16 | W154: 16 | X154: 16 | Y154: 16 | AU154: 112 | AV154: 6720 | AW154: 6720
B155: 138 | C155: Rear Property Machine | E155: Vendor No 2 | G155: MIFPUC-2 | H155: 2018-10-14 | I155: 2018-10-20 | J155: =IF(AND(H155>='A - Contractor Summary'!$C$36,I155<='A - Contractor Summary'!$C$42),"Yes","No") -> No | K155: =VLOOKUP(C155,'C.1 - Rate Sheets'!$H$15:$I$46,2,FALSE) -> 50 | S155: 16 | T155: 16 | U155: 16 | V155: 16 | W155: 16 | X155: 16 | Y155: 16 | AU155: 112 | AV155: 5600 | AW155: 5600
B156: 139 | C156: Bucket Truck Up to 55' | E156: Vendor No 2 | G156: MIFPUC-2 | H156: 2018-10-14 | I156: 2018-10-20 | J156: =IF(AND(H156>='A - Contractor Summary'!$C$36,I156<='A - Contractor Summary'!$C$42),"Yes","No") -> No | K156: =VLOOKUP(C156,'C.1 - Rate Sheets'!$H$15:$I$46,2,FALSE) -> 50 | S156: 16 | T156: 16 | U156: 16 | V156: 16 | W156: 16 | X156: 16 | Y156: 16 | AU156: 112 | AV156: 5600 | AW156: 5600
B157: 140 | C157: Digger Derrick Greater Than 50' | E157: Vendor No 2 | G157: MIFPUC-2 | H157: 2018-10-14 | I157: 2018-10-20 | J157: =IF(AND(H157>='A - Contractor Summary'!$C$36,I157<='A - Contractor Summary'!$C$42),"Yes","No") -> No | K157: =VLOOKUP(C157,'C.1 - Rate Sheets'!$H$15:$I$46,2,FALSE) -> 60 | S157: 16 | T157: 16 | U157: 16 | V157: 16 | W157: 16 | X157: 16 | Y157: 16 | AU157: 112 | AV157: 6720 | AW157: 6720
B158: 141 | C158: Bucket Truck Up to 55' | E158: Vendor No 2 | G158: MIFPUC-2 | H158: 2018-10-14 | I158: 2018-10-20 | J158: =IF(AND(H158>='A - Contractor Summary'!$C$36,I158<='A - Contractor Summary'!$C$42),"Yes","No") -> No | K158: =VLOOKUP(C158,'C.1 - Rate Sheets'!$H$15:$I$46,2,FALSE) -> 50 | S158: 16 | T158: 16 | U158: 16 | V158: 16 | W158: 16 | X158: 16 | Y158: 16 | AU158: 112 | AV158: 5600 | AW158: 5600
B159: 142 | C159: Bucket Truck Up to 55' | E159: Vendor No 2 | G159: MIFPUC-2 | H159: 2018-10-14 | I159: 2018-10-20 | J159: =IF(AND(H159>='A - Contractor Summary'!$C$36,I159<='A - Contractor Summary'!$C$42),"Yes","No") -> No | K159: =VLOOKUP(C159,'C.1 - Rate Sheets'!$H$15:$I$46,2,FALSE) -> 50 | S159: 16 | T159: 16 | U159: 16 | V159: 16 | W159: 16 | X159: 16 | Y159: 16 | AU159: 112 | AV159: 5600 | AW159: 5600
B160: 143 | C160: Pick Up Truck | E160: Vendor No 2 | G160: MIFPUC-2 | H160: 2018-10-14 | I160: 2018-10-20 | J160: =IF(AND(H160>='A - Contractor Summary'!$C$36,I160<='A - Contractor Summary'!$C$42),"Yes","No") -> No | K160: =VLOOKUP(C160,'C.1 - Rate Sheets'!$H$15:$I$46,2,FALSE) -> 20 | S160: 16 | T160: 16 | U160: 16 | V160: 16 | W160: 16 | X160: 16 | Y160: 16 | AU160: 112 | AV160: 2240 | AW160: 2240
B161: 144 | C161: - | E161: Vendor No 2 | G161: MIFPUC-2 | H161: 2018-10-14 | I161: 2018-10-20 | J161: =IF(AND(H161>='A - Contractor Summary'!$C$36,I161<='A - Contractor Summary'!$C$42),"Yes","No") -> No | AU161: 0 | AV161: 0 | AW161: 0
B162: 145 | C162: Pick Up Truck | E162: Vendor No 2 | G162: MIFPUC-2 | H162: 2018-10-14 | I162: 2018-10-20 | J162: =IF(AND(H162>='A - Contractor Summary'!$C$36,I162<='A - Contractor Summary'!$C$42),"Yes","No") -> No | K162: =VLOOKUP(C162,'C.1 - Rate Sheets'!$H$15:$I$46,2,FALSE) -> 20 | S162: 16 | T162: 16 | U162: 16 | V162: 16 | W162: 16 | X162: 16 | Y162: 16 | AU162: 112 | AV162: 2240 | AW162: 2240
B163: 146 | C163: Digger Derrick Up to 50' | E163: Vendor No 2 | G163: MIFPUC-2 | H163: 2018-10-14 | I163: 2018-10-20 | J163: =IF(AND(H163>='A - Contractor Summary'!$C$36,I163<='A - Contractor Summary'!$C$42),"Yes","No") -> No | K163: =VLOOKUP(C163,'C.1 - Rate Sheets'!$H$15:$I$46,2,FALSE) -> 50 | S163: 16 | T163: 16 | U163: 16 | V163: 16 | W163: 16 | X163: 16 | Y163: 16 | AU163: 112 | AV163: 5600 | AW163: 5600
B164: 147 | C164: Bucket Truck Up to 55' | E164: Vendor No 2 | G164: MIFPUC-2 | H164: 2018-10-14 | I164: 2018-10-20 | J164: =IF(AND(H164>='A - Contractor Summary'!$C$36,I164<='A - Contractor Summary'!$C$42),"Yes","No") -> No | K164: =VLOOKUP(C164,'C.1 - Rate Sheets'!$H$15:$I$46,2,FALSE) -> 50 | S164: 16 | T164: 16 | U164: 16 | V164: 16 | W164: 16 | X164: 16 | Y164: 16 | AU164: 112 | AV164: 5600 | AW164: 5600
B165: 148 | C165: Bucket Truck Up to 55' | E165: Vendor No 2 | G165: MIFPUC-2 | H165: 2018-10-14 | I165: 2018-10-20 | J165: =IF(AND(H165>='A - Contractor Summary'!$C$36,I165<='A - Contractor Summary'!$C$42),"Yes","No") -> No | K165: =VLOOKUP(C165,'C.1 - Rate Sheets'!$H$15:$I$46,2,FALSE) -> 50 | S165: 16 | T165: 16 | U165: 16 | V165: 16 | W165: 16 | X165: 16 | Y165: 16 | AU165: 112 | AV165: 5600 | AW165: 5600
B166: 149 | C166: Bucket Truck Up to 55' | E166: Vendor No 2 | G166: MIFPUC-2 | H166: 2018-10-14 | I166: 2018-10-20 | J166: =IF(AND(H166>='A - Contractor Summary'!$C$36,I166<='A - Contractor Summary'!$C$42),"Yes","No") -> No | K166: =VLOOKUP(C166,'C.1 - Rate Sheets'!$H$15:$I$46,2,FALSE) -> 50 | S166: 16 | T166: 16 | U166: 16 | V166: 16 | W166: 16 | X166: 16 | Y166: 16 | AU166: 112 | AV166: 5600 | AW166: 5600
B167: 150 | C167: Pick Up Truck | E167: Vendor No 2 | G167: MIFPUC-2 | H167: 2018-10-14 | I167: 2018-10-20 | J167: =IF(AND(H167>='A - Contractor Summary'!$C$36,I167<='A - Contractor Summary'!$C$42),"Yes","No") -> No | K167: =VLOOKUP(C167,'C.1 - Rate Sheets'!$H$15:$I$46,2,FALSE) -> 20 | S167: 16 | T167: 16 | U167: 16 | V167: 16 | W167: 16 | X167: 16 | Y167: 16 | AU167: 112 | AV167: 2240 | AW167: 2240
B168: 151 | C168: Mechanic Truck | E168: Vendor No 2 | G168: MIFPUC-2 | H168: 2018-10-14 | I168: 2018-10-20 | J168: =IF(AND(H168>='A - Contractor Summary'!$C$36,I168<='A - Contractor Summary'!$C$42),"Yes","No") -> No | K168: =VLOOKUP(C168,'C.1 - Rate Sheets'!$H$15:$I$46,2,FALSE) -> 45 | S168: 16 | T168: 16 | U168: 16 | V168: 16 | W168: 16 | X168: 16 | Y168: 16 | AU168: 112 | AV168: 5040 | AW168: 5040
B169: 152 | C169: Mini Excavator | E169: Vendor No 2 | G169: MIFPUC-2 | H169: 2018-10-14 | I169: 2018-10-20 | J169: =IF(AND(H169>='A - Contractor Summary'!$C$36,I169<='A - Contractor Summary'!$C$42),"Yes","No") -> No | K169: =VLOOKUP(C169,'C.1 - Rate Sheets'!$H$15:$I$46,2,FALSE) -> 35 | S169: 16 | T169: 16 | U169: 16 | V169: 16 | W169: 16 | X169: 16 | Y169: 16 | AU169: 112 | AV169: 3920 | AW169: 3920
B170: 153 | C170: Mechanic Truck | E170: Vendor No 2 | G170: MIFPUC-2 | H170: 2018-10-14 | I170: 2018-10-20 | J170: =IF(AND(H170>='A - Contractor Summary'!$C$36,I170<='A - Contractor Summary'!$C$42),"Yes","No") -> No | K170: =VLOOKUP(C170,'C.1 - Rate Sheets'!$H$15:$I$46,2,FALSE) -> 45 | S170: 16 | T170: 16 | U170: 16 | V170: 16 | W170: 16 | X170: 16 | Y170: 16 | AU170: 112 | AV170: 5040 | AW170: 5040
B171: 154 | C171: Mechanic Truck | E171: Vendor No 2 | G171: MIFPUC-2 | H171: 2018-10-14 | I171: 2018-10-20 | J171: =IF(AND(H171>='A - Contractor Summary'!$C$36,I171<='A - Contractor Summary'!$C$42),"Yes","No") -> No | K171: =VLOOKUP(C171,'C.1 - Rate Sheets'!$H$15:$I$46,2,FALSE) -> 45 | S171: 16 | T171: 16 | U171: 16 | V171: 16 | W171: 16 | X171: 16 | Y171: 16 | AU171: 112 | AV171: 5040 | AW171: 5040
B172: 155 | C172: Tractor( Semi) | E172: Vendor No 2 | G172: MIFPUC-2 | H172: 2018-10-14 | I172: 2018-10-20 | J172: =IF(AND(H172>='A - Contractor Summary'!$C$36,I172<='A - Contractor Summary'!$C$42),"Yes","No") -> No | K172: =VLOOKUP(C172,'C.1 - Rate Sheets'!$H$15:$I$46,2,FALSE) -> 45 | V172: 16 | W172: 16 | X172: 16 | Y172: 16 | AU172: 64 | AV172: 2880 | AW172: 2880
B173: 156 | C173: Mechanic Truck | E173: Vendor No 2 | G173: MIFPUC-2 | H173: 2018-10-14 | I173: 2018-10-20 | J173: =IF(AND(H173>='A - Contractor Summary'!$C$36,I173<='A - Contractor Summary'!$C$42),"Yes","No") -> No | K173: =VLOOKUP(C173,'C.1 - Rate Sheets'!$H$15:$I$46,2,FALSE) -> 45 | S173: 16 | T173: 16 | U173: 16 | V173: 16 | W173: 16 | X173: 16 | Y173: 16 | AU173: 112 | AV173: 5040 | AW173: 5040
B174: 157 | C174: Tractor( Semi) | E174: Vendor No 2 | G174: MIFPUC-2 | H174: 2018-10-14 | I174: 2018-10-20 | J174: =IF(AND(H174>='A - Contractor Summary'!$C$36,I174<='A - Contractor Summary'!$C$42),"Yes","No") -> No | K174: =VLOOKUP(C174,'C.1 - Rate Sheets'!$H$15:$I$46,2,FALSE) -> 45 | V174: 16 | W174: 16 | X174: 16 | Y174: 16 | AU174: 64 | AV174: 2880 | AW174: 2880
B175: 158 | C175: Mechanic Truck | E175: Vendor No 2 | G175: MIFPUC-2 | H175: 2018-10-14 | I175: 2018-10-20 | J175: =IF(AND(H175>='A - Contractor Summary'!$C$36,I175<='A - Contractor Summary'!$C$42),"Yes","No") -> No | K175: =VLOOKUP(C175,'C.1 - Rate Sheets'!$H$15:$I$46,2,FALSE) -> 45 | S175: 16 | T175: 16 | U175: 16 | V175: 16 | W175: 16 | X175: 16 | Y175: 16 | AU175: 112 | AV175: 5040 | AW175: 5040
B176: 159 | C176: Low Boy | E176: Vendor No 2 | G176: MIFPUC-2 | H176: 2018-10-14 | I176: 2018-10-20 | J176: =IF(AND(H176>='A - Contractor Summary'!$C$36,I176<='A - Contractor Summary'!$C$42),"Yes","No") -> No | K176: =VLOOKUP(C176,'C.1 - Rate Sheets'!$H$15:$I$46,2,FALSE) -> 38 | V176: 16 | W176: 16 | X176: 16 | Y176: 16 | AU176: 64 | AV176: 2432 | AW176: 2432
B177: 160 | C177: Low Boy | E177: Vendor No 2 | G177: MIFPUC-2 | H177: 2018-10-14 | I177: 2018-10-20 | J177: =IF(AND(H177>='A - Contractor Summary'!$C$36,I177<='A - Contractor Summary'!$C$42),"Yes","No") -> No | K177: =VLOOKUP(C177,'C.1 - Rate Sheets'!$H$15:$I$46,2,FALSE) -> 38 | V177: 16 | W177: 16 | X177: 16 | Y177: 16 | AU177: 64 | AV177: 2432 | AW177: 2432
B178: 161 | C178: Digger Derrick Greater Than 50' | E178: Vendor No 2 | G178: MIFPUC-2 | H178: 2018-10-14 | I178: 2018-10-20 | J178: =IF(AND(H178>='A - Contractor Summary'!$C$36,I178<='A - Contractor Summary'!$C$42),"Yes","No") -> No | K178: =VLOOKUP(C178,'C.1 - Rate Sheets'!$H$15:$I$46,2,FALSE) -> 60 | S178: 16 | T178: 16 | U178: 16 | V178: 16 | W178: 16 | X178: 16 | Y178: 16 | AU178: 112 | AV178: 6720 | AW178: 6720
B179: 162 | C179: Bucket Truck Tracked | E179: Vendor No 2 | G179: MIFPUC-2 | H179: 2018-10-14 | I179: 2018-10-20 | J179: =IF(AND(H179>='A - Contractor Summary'!$C$36,I179<='A - Contractor Summary'!$C$42),"Yes","No") -> No | K179: =VLOOKUP(C179,'C.1 - Rate Sheets'!$H$15:$I$46,2,FALSE) -> 70 | T179: 16 | U179: 16 | V179: 16 | W179: 16 | X179: 16 | Y179: 16 | AU179: 96 | AV179: 6720 | AW179: 6720
B180: 163 | C180: Digger Tracked | E180: Vendor No 2 | G180: MIFPUC-2 | H180: 2018-10-14 | I180: 2018-10-20 | J180: =IF(AND(H180>='A - Contractor Summary'!$C$36,I180<='A - Contractor Summary'!$C$42),"Yes","No") -> No | K180: =VLOOKUP(C180,'C.1 - Rate Sheets'!$H$15:$I$46,2,FALSE) -> 70 | T180: 16 | U180: 16 | V180: 16 | W180: 16 | X180: 16 | Y180: 16 | AU180: 96 | AV180: 6720 | AW180: 6720
B181: 164 | C181: Rope Rig (puller) | E181: Vendor No 2 | G181: MIFPUC-2 | H181: 2018-10-14 | I181: 2018-10-20 | J181: =IF(AND(H181>='A - Contractor Summary'!$C$36,I181<='A - Contractor Summary'!$C$42),"Yes","No") -> No | K181: =VLOOKUP(C181,'C.1 - Rate Sheets'!$H$15:$I$46,2,FALSE) -> 55 | Y181: 16 | AU181: 16 | AV181: 880 | AW181: 880
B182: 165 | C182: Bucket Truck over 65' | E182: Vendor No 2 | G182: MIFPUC-2 | H182: 2018-10-14 | I182: 2018-10-20 | J182: =IF(AND(H182>='A - Contractor Summary'!$C$36,I182<='A - Contractor Summary'!$C$42),"Yes","No") -> No | K182: =VLOOKUP(C182,'C.1 - Rate Sheets'!$H$15:$I$46,2,FALSE) -> 65 | U182: 16 | V182: 16 | W182: 16 | X182: 16 | Y182: 16 | AU182: 80 | AV182: 5200 | AW182: 5200
B183: 166 | C183: Bucket Truck Up to 55' | E183: Vendor No 2 | G183: MIFPUC-2 | H183: 2018-10-14 | I183: 2018-10-20 | J183: =IF(AND(H183>='A - Contractor Summary'!$C$36,I183<='A - Contractor Summary'!$C$42),"Yes","No") -> No | K183: =VLOOKUP(C183,'C.1 - Rate Sheets'!$H$15:$I$46,2,FALSE) -> 50 | U183: 16 | V183: 16 | W183: 16 | X183: 16 | Y183: 16 | AU183: 80 | AV183: 4000 | AW183: 4000
B184: 167 | C184: Digger Derrick Up to 50' | E184: Vendor No 2 | G184: MIFPUC-2 | H184: 2018-10-14 | I184: 2018-10-20 | J184: =IF(AND(H184>='A - Contractor Summary'!$C$36,I184<='A - Contractor Summary'!$C$42),"Yes","No") -> No | K184: =VLOOKUP(C184,'C.1 - Rate Sheets'!$H$15:$I$46,2,FALSE) -> 50 | AU184: 0 | AV184: 0 | AW184: 0
B185: 168 | C185: Rope Rig (puller) | E185: Vendor No 2 | G185: MIFPUC-2 | H185: 2018-10-14 | I185: 2018-10-20 | J185: =IF(AND(H185>='A - Contractor Summary'!$C$36,I185<='A - Contractor Summary'!$C$42),"Yes","No") -> No | K185: =VLOOKUP(C185,'C.1 - Rate Sheets'!$H$15:$I$46,2,FALSE) -> 55 | V185: 16 | W185: 16 | X185: 16 | Y185: 16 | AU185: 64 | AV185: 3520 | AW185: 3520
B186: 169 | C186: Rope Rig (puller) | E186: Vendor No 2 | G186: MIFPUC-2 | H186: 2018-10-14 | I186: 2018-10-20 | J186: =IF(AND(H186>='A - Contractor Summary'!$C$36,I186<='A - Contractor Summary'!$C$42),"Yes","No") -> No | K186: =VLOOKUP(C186,'C.1 - Rate Sheets'!$H$15:$I$46,2,FALSE) -> 55 | V186: 16 | W186: 16 | X186: 16 | Y186: 16 | AU186: 64 | AV186: 3520 | AW186: 3520
B187: 170 | C187: 45 Ton Crane | E187: Vendor No 2 | G187: MIFPUC-2 | H187: 2018-10-14 | I187: 2018-10-20 | J187: =IF(AND(H187>='A - Contractor Summary'!$C$36,I187<='A - Contractor Summary'!$C$42),"Yes","No") -> No | K187: =VLOOKUP(C187,'C.1 - Rate Sheets'!$H$15:$I$46,2,FALSE) -> 145 | V187: 16 | W187: 16 | X187: 16 | Y187: 16 | AU187: 64 | AV187: 9280 | AW187: 9280
B188: 171 | C188: Mechanic Truck | E188: Vendor No 2 | G188: MIFPUC-2 | H188: 2018-10-14 | I188: 2018-10-20 | J188: =IF(AND(H188>='A - Contractor Summary'!$C$36,I188<='A - Contractor Summary'!$C$42),"Yes","No") -> No | K188: =VLOOKUP(C188,'C.1 - Rate Sheets'!$H$15:$I$46,2,FALSE) -> 45 | V188: 16 | W188: 16 | X188: 16 | Y188: 16 | AU188: 64 | AV188: 2880 | AW188: 2880
B189: 172 | C189: Pick Up Truck | E189: Vendor No 2 | G189: MIFPUC-2 | H189: 2018-10-14 | I189: 2018-10-20 | J189: =IF(AND(H189>='A - Contractor Summary'!$C$36,I189<='A - Contractor Summary'!$C$42),"Yes","No") -> No | K189: =VLOOKUP(C189,'C.1 - Rate Sheets'!$H$15:$I$46,2,FALSE) -> 20 | V189: 16 | W189: 16 | X189: 16 | Y189: 16 | AU189: 64 | AV189: 1280 | AW189: 1280
B190: 173 | C190: Bucket Truck Up to 55' | E190: Vendor No 2 | G190: MIFPUC-2 | H190: 2018-10-14 | I190: 2018-10-20 | J190: =IF(AND(H190>='A - Contractor Summary'!$C$36,I190<='A - Contractor Summary'!$C$42),"Yes","No") -> No | K190: =VLOOKUP(C190,'C.1 - Rate Sheets'!$H$15:$I$46,2,FALSE) -> 50 | V190: 16 | W190: 16 | X190: 16 | Y190: 16 | AU190: 64 | AV190: 3200 | AW190: 3200
B191: 174 | C191: Bucket Truck Up to 55' | E191: Vendor No 2 | G191: MIFPUC-2 | H191: 2018-10-14 | I191: 2018-10-20 | J191: =IF(AND(H191>='A - Contractor Summary'!$C$36,I191<='A - Contractor Summary'!$C$42),"Yes","No") -> No | K191: =VLOOKUP(C191,'C.1 - Rate Sheets'!$H$15:$I$46,2,FALSE) -> 50 | V191: 16 | W191: 16 | X191: 16 | Y191: 16 | AU191: 64 | AV191: 3200 | AW191: 3200
B192: 175 | C192: Digger Derrick Up to 50' | E192: Vendor No 2 | G192: MIFPUC-2 | H192: 2018-10-14 | I192: 2018-10-20 | J192: =IF(AND(H192>='A - Contractor Summary'!$C$36,I192<='A - Contractor Summary'!$C$42),"Yes","No") -> No | K192: =VLOOKUP(C192,'C.1 - Rate Sheets'!$H$15:$I$46,2,FALSE) -> 50 | U192: 16 | V192: 16 | W192: 16 | X192: 16 | Y192: 16 | AU192: 80 | AV192: 4000 | AW192: 4000
B193: 176 | C193: Rear Property Machine | E193: Vendor No 2 | G193: MIFPUC-2 | H193: 2018-10-14 | I193: 2018-10-20 | J193: =IF(AND(H193>='A - Contractor Summary'!$C$36,I193<='A - Contractor Summary'!$C$42),"Yes","No") -> No | K193: =VLOOKUP(C193,'C.1 - Rate Sheets'!$H$15:$I$46,2,FALSE) -> 50 | V193: 16 | W193: 16 | X193: 16 | Y193: 16 | AU193: 64 | AV193: 3200 | AW193: 3200
B194: 177 | C194: Bucket Truck Up to 55' | E194: Vendor No 2 | G194: MIFPUC-2 | H194: 2018-10-14 | I194: 2018-10-20 | J194: =IF(AND(H194>='A - Contractor Summary'!$C$36,I194<='A - Contractor Summary'!$C$42),"Yes","No") -> No | K194: =VLOOKUP(C194,'C.1 - Rate Sheets'!$H$15:$I$46,2,FALSE) -> 50 | V194: 16 | W194: 16 | X194: 16 | Y194: 16 | AU194: 64 | AV194: 3200 | AW194: 3200
B195: 178 | C195: Bucket Truck Up to 55' | E195: Vendor No 2 | G195: MIFPUC-2 | H195: 2018-10-14 | I195: 2018-10-20 | J195: =IF(AND(H195>='A - Contractor Summary'!$C$36,I195<='A - Contractor Summary'!$C$42),"Yes","No") -> No | K195: =VLOOKUP(C195,'C.1 - Rate Sheets'!$H$15:$I$46,2,FALSE) -> 50 | V195: 16 | W195: 16 | X195: 16 | Y195: 16 | AU195: 64 | AV195: 3200 | AW195: 3200
B196: 179 | C196: Digger Derrick Up to 50' | E196: Vendor No 2 | G196: MIFPUC-2 | H196: 2018-10-14 | I196: 2018-10-20 | J196: =IF(AND(H196>='A - Contractor Summary'!$C$36,I196<='A - Contractor Summary'!$C$42),"Yes","No") -> No | K196: =VLOOKUP(C196,'C.1 - Rate Sheets'!$H$15:$I$46,2,FALSE) -> 50 | U196: 16 | V196: 16 | W196: 16 | X196: 16 | Y196: 16 | AU196: 80 | AV196: 4000 | AW196: 4000
B197: 180 | C197: Rear Property Machine | E197: Vendor No 2 | G197: MIFPUC-2 | H197: 2018-10-14 | I197: 2018-10-20 | J197: =IF(AND(H197>='A - Contractor Summary'!$C$36,I197<='A - Contractor Summary'!$C$42),"Yes","No") -> No | K197: =VLOOKUP(C197,'C.1 - Rate Sheets'!$H$15:$I$46,2,FALSE) -> 50 | V197: 16 | W197: 16 | X197: 16 | Y197: 16 | AU197: 64 | AV197: 3200 | AW197: 3200
B198: 181 | C198: Bucket Truck Up to 55' | E198: Vendor No 2 | G198: MIFPUC-2 | H198: 2018-10-14 | I198: 2018-10-20 | J198: =IF(AND(H198>='A - Contractor Summary'!$C$36,I198<='A - Contractor Summary'!$C$42),"Yes","No") -> No | K198: =VLOOKUP(C198,'C.1 - Rate Sheets'!$H$15:$I$46,2,FALSE) -> 50 | V198: 16 | W198: 16 | X198: 16 | Y198: 16 | AU198: 64 | AV198: 3200 | AW198: 3200
B199: 182 | C199: Bucket Truck Up to 55' | E199: Vendor No 2 | G199: MIFPUC-2 | H199: 2018-10-14 | I199: 2018-10-20 | J199: =IF(AND(H199>='A - Contractor Summary'!$C$36,I199<='A - Contractor Summary'!$C$42),"Yes","No") -> No | K199: =VLOOKUP(C199,'C.1 - Rate Sheets'!$H$15:$I$46,2,FALSE) -> 50 | V199: 16 | W199: 16 | X199: 16 | Y199: 16 | AU199: 64 | AV199: 3200 | AW199: 3200
B200: 183 | C200: Digger Derrick Up to 50' | E200: Vendor No 2 | G200: MIFPUC-2 | H200: 2018-10-14 | I200: 2018-10-20 | J200: =IF(AND(H200>='A - Contractor Summary'!$C$36,I200<='A - Contractor Summary'!$C$42),"Yes","No") -> No | K200: =VLOOKUP(C200,'C.1 - Rate Sheets'!$H$15:$I$46,2,FALSE) -> 50 | V200: 16 | W200: 16 | X200: 16 | Y200: 16 | AU200: 64 | AV200: 3200 | AW200: 3200
B201: 184 | C201: Rear Property Machine | E201: Vendor No 2 | G201: MIFPUC-2 | H201: 2018-10-14 | I201: 2018-10-20 | J201: =IF(AND(H201>='A - Contractor Summary'!$C$36,I201<='A - Contractor Summary'!$C$42),"Yes","No") -> No | K201: =VLOOKUP(C201,'C.1 - Rate Sheets'!$H$15:$I$46,2,FALSE) -> 50 | V201: 16 | W201: 16 | X201: 16 | Y201: 16 | AU201: 64 | AV201: 3200 | AW201: 3200
B202: 185 | C202: Pick Up Truck | E202: Vendor No 2 | G202: MIFPUC-2 | H202: 2018-10-14 | I202: 2018-10-20 | J202: =IF(AND(H202>='A - Contractor Summary'!$C$36,I202<='A - Contractor Summary'!$C$42),"Yes","No") -> No | K202: =VLOOKUP(C202,'C.1 - Rate Sheets'!$H$15:$I$46,2,FALSE) -> 20 | V202: 16 | W202: 16 | X202: 16 | Y202: 16 | AU202: 64 | AV202: 1280 | AW202: 1280
B203: 186 | C203: Bucket Truck Up to 55' | E203: Vendor No 2 | G203: MIFPUC-2 | H203: 2018-10-14 | I203: 2018-10-20 | J203: =IF(AND(H203>='A - Contractor Summary'!$C$36,I203<='A - Contractor Summary'!$C$42),"Yes","No") -> No | K203: =VLOOKUP(C203,'C.1 - Rate Sheets'!$H$15:$I$46,2,FALSE) -> 50 | V203: 16 | W203: 16 | X203: 16 | Y203: 16 | AU203: 64 | AV203: 3200 | AW203: 3200
B204: 187 | C204: Digger Derrick Up to 50' | E204: Vendor No 2 | G204: MIFPUC-2 | H204: 2018-10-14 | I204: 2018-10-20 | J204: =IF(AND(H204>='A - Contractor Summary'!$C$36,I204<='A - Contractor Summary'!$C$42),"Yes","No") -> No | K204: =VLOOKUP(C204,'C.1 - Rate Sheets'!$H$15:$I$46,2,FALSE) -> 50 | V204: 16 | W204: 16 | X204: 16 | Y204: 16 | AU204: 64 | AV204: 3200 | AW204: 3200
B205: 188 | C205: Pick Up Truck | E205: Vendor No 2 | G205: MIFPUC-2 | H205: 2018-10-14 | I205: 2018-10-20 | J205: =IF(AND(H205>='A - Contractor Summary'!$C$36,I205<='A - Contractor Summary'!$C$42),"Yes","No") -> No | K205: =VLOOKUP(C205,'C.1 - Rate Sheets'!$H$15:$I$46,2,FALSE) -> 20 | V205: 16 | W205: 16 | X205: 16 | Y205: 16 | AU205: 64 | AV205: 1280 | AW205: 1280
B206: 189 | C206: Bucket Truck Up to 55' | E206: Vendor No 2 | G206: MIFPUC-2 | H206: 2018-10-14 | I206: 2018-10-20 | J206: =IF(AND(H206>='A - Contractor Summary'!$C$36,I206<='A - Contractor Summary'!$C$42),"Yes","No") -> No | K206: =VLOOKUP(C206,'C.1 - Rate Sheets'!$H$15:$I$46,2,FALSE) -> 50 | V206: 16 | W206: 16 | X206: 16 | Y206: 16 | AU206: 64 | AV206: 3200 | AW206: 3200
B207: 190 | C207: Digger Derrick Greater Than 50' | E207: Vendor No 2 | G207: MIFPUC-2 | H207: 2018-10-14 | I207: 2018-10-20 | J207: =IF(AND(H207>='A - Contractor Summary'!$C$36,I207<='A - Contractor Summary'!$C$42),"Yes","No") -> No | K207: =VLOOKUP(C207,'C.1 - Rate Sheets'!$H$15:$I$46,2,FALSE) -> 60 | V207: 16 | W207: 16 | X207: 16 | Y207: 16 | AU207: 64 | AV207: 3840 | AW207: 3840
B208: 191 | C208: Digger Derrick Up to 50' | E208: Vendor No 2 | G208: MIFPUC-2 | H208: 2018-10-14 | I208: 2018-10-20 | J208: =IF(AND(H208>='A - Contractor Summary'!$C$36,I208<='A - Contractor Summary'!$C$42),"Yes","No") -> No | K208: =VLOOKUP(C208,'C.1 - Rate Sheets'!$H$15:$I$46,2,FALSE) -> 50 | V208: 16 | W208: 16 | X208: 16 | Y208: 16 | AU208: 64 | AV208: 3200 | AW208: 3200
... 315 more rows

Sheet D - Lodging
B2: Lodging Charges
B4: Test Plan: (A) Obtain support of individual charges. (B) Enter Yes/No if receipt is itemized (C) Enter Yes/No if proof of payment has been provided. (D) Ensure charges fall between the dates the vendor was mobilized and the date they arrived. (E) Ensure charges are prior to the date the vendor arrived home or was released to another utility. (F) Ensure the location of stay was reasonable (G) Determine the amount(s) to be reviewed, allowed and/or disallowed. (H) For charges which required further review, document review (include why it was determined to be allowed/disallowed via a tickmark).
B8: Rx | C8: Recalculated.
B9: a | C9: Check figure should equal $0. Cell will appear yellow if discrepancies are noted.
C11: A | M11: Rx | N11: B | O11: C | P11: D | Q11: E | R11: F | S11: G | V11: H
B12: Support Reviewed | P12: Conclusion
B13: # | C13: Type of Support | D13: Support Identifier | E13: Crew | F13: Company | G13: Check In Date | H13: Person | I13: Hotel Name | J13: Location | K13: # of Nights | L13: Total Invoice | M13: $ / Night | N13: Itemized Receipt | O13: Proof of Payment | P13: Reasonable based on Mobilization date(s) | Q13: Reasonable based on Demobilization date(s) | R13: Location Reasonable | S13: Conclusion | T13: $ Allowable Charge | U13: $ To Be Reviewed | V13: Reviewed - Allowable $ | W13: Reviewed - Unallowable $ | X13: Tickmark
B14: 1 | C14: Receipt | D14: MIFPUC-4 | F14: Vendor No. 02 | G14: 2018-11-02 | H14: Jim Murrell | I14: Quality Inn | K14: 1 | L14: 80.56 | M14: =L14/K14 -> 80.56 | P14: =IF(AND(G14>='A - Contractor Summary'!$C$36,G14<='A - Contractor Summary'!$C$38),"Yes",IF(G14<'A - Contractor Summary'!$C$36,"No",IF(G14>'A - Contractor Summary'!$C$39,"",""))) -> No | Q14: =IF(OR(P14="Yes",P14="No")*AND(G14<'A - Contractor Summary'!$C$39),"",IF(AND(G14>'A - Contractor Summary'!$C$39,G14<'A - Contractor Summary'!$C$42),"Yes",IF(G14>'A - Contractor Summary'!$C$42,"No","Needs Review"))) ->  | S14: =IF(AND(R14="YES",O14="Yes",N14="Yes")*OR(P14="Yes",Q14="Yes"),"Yes",IF(OR(N14="No",O14="No",P14="No",Q14="No",R14="No"),"No","Needs Review")) -> No | T14: =+L14 -> 80.56 | U14: =IF(S14="Needs Review",L14,0) -> 0 | X14: 1
B15: 2 | C15: Receipt | D15: MIFPUC-1 | F15: Vendor No. 02 | G15: 2018-10-09 | H15: Kelly Drummond | I15: Comfort Suites | J15: Ocala Fl | K15: 2 | L15: 308.58 | M15: 154.29 | P15: =IF(AND(G15>='A - Contractor Summary'!$C$36,G15<='A - Contractor Summary'!$C$38),"Yes",IF(G15<'A - Contractor Summary'!$C$36,"No",IF(G15>'A - Contractor Summary'!$C$39,"",""))) -> No | Q15: =IF(OR(P15="Yes",P15="No")*AND(G15<'A - Contractor Summary'!$C$39),"",IF(AND(G15>'A - Contractor Summary'!$C$39,G15<'A - Contractor Summary'!$C$42),"Yes",IF(G15>'A - Contractor Summary'!$C$42,"No","Needs Review"))) ->  | S15: No | T15: =+L15 -> 308.58 | U15: 0 | X15: 1
B16: 3 | C16: Receipt | D16: MIFPUC-1 | F16: Vendor No. 02 | G16: 2018-10-11 | H16: Bonnie Knopf | I16: Courtyard Marriott | J16: Jacksonville Beach Fl | K16: 2 | L16: 7902.09 | M16: 3951.045 | P16: =IF(AND(G16>='A - Contractor Summary'!$C$36,G16<='A - Contractor Summary'!$C$38),"Yes",IF(G16<'A - Contractor Summary'!$C$36,"No",IF(G16>'A - Contractor Summary'!$C$39,"",""))) -> No | Q16: =IF(OR(P16="Yes",P16="No")*AND(G16<'A - Contractor Summary'!$C$39),"",IF(AND(G16>'A - Contractor Summary'!$C$39,G16<'A - Contractor Summary'!$C$42),"Yes",IF(G16>'A - Contractor Summary'!$C$42,"No","Needs Review"))) ->  | S16: No | T16: 7902.09 | U16: 0 | X16: 1
B17: 4 | C17: Receipt | D17: MIFPUC-2 | F17: Vendor No. 02 | G17: 2018-10-17 | H17: Bonnie Knopf | I17: Courtyard Marriott | J17: Jacksonville Beach Fl | K17: 1 | L17: 2349.27 | M17: 2349.27 | P17: =IF(AND(G17>='A - Contractor Summary'!$C$36,G17<='A - Contractor Summary'!$C$38),"Yes",IF(G17<'A - Contractor Summary'!$C$36,"No",IF(G17>'A - Contractor Summary'!$C$39,"",""))) -> No | Q17: =IF(OR(P17="Yes",P17="No")*AND(G17<'A - Contractor Summary'!$C$39),"",IF(AND(G17>'A - Contractor Summary'!$C$39,G17<'A - Contractor Summary'!$C$42),"Yes",IF(G17>'A - Contractor Summary'!$C$42,"No","Needs Review"))) ->  | S17: No | T17: 2349.27 | U17: 0 | X17: 1
B18: 5 | F18: Vendor No. 02 | P18: =IF(AND(G18>='A - Contractor Summary'!$C$36,G18<='A - Contractor Summary'!$C$38),"Yes",IF(G18<'A - Contractor Summary'!$C$36,"No",IF(G18>'A - Contractor Summary'!$C$39,"",""))) -> No | Q18: =IF(OR(P18="Yes",P18="No")*AND(G18<'A - Contractor Summary'!$C$39),"",IF(AND(G18>'A - Contractor Summary'!$C$39,G18<'A - Contractor Summary'!$C$42),"Yes",IF(G18>'A - Contractor Summary'!$C$42,"No","Needs Review"))) ->  | S18: No | T18: 0 | U18: 0
L19: =SUM(L14:L18) -> 10640.5 | T19: =IFERROR(SUM(T14:T18),0) -> 10640.5 | U19: =IFERROR(SUM(U14:U18),0) -> 0 | V19: =IFERROR(SUM(V14:V18),0) -> 0 | W19: =IFERROR(SUM(W14:W18),0) -> 0 | X19: =U19-V19-W19 -> 0 | Y19: check (a)
B22: Tickmark Explanation:
B23: 1 Receipts Provided

Sheet E - Fuel
B2: Fuel Charges
B4: Test Plan: (A) Obtain support of individual charges. (B) Enter Yes/No if receipt is itemized (C) Enter Yes/No if proof of payment has been provided. (D) Ensure charges fall between the dates the vendor was mobilized and the date they arrived. (E) Ensure charges are prior to the date the vendor arrived home or was released to another utility. (F) Ensure the location of charge was reasonable (G) Determine the amount(s) to be reviewed, allowed and/or disallowed. (H) For charges which required further review, document review (include why it was determined to be allowed/disallowed via a tickmark).
P5: No Fuel Charges
B9: a | C9: Check figure should equal $0. Cell will appear yellow if discrepancies are noted.
C11: A | K11: B | L11: C | M11: D | N11: E | O11: F | P11: G | S11: H
B12: Support Reviewed | M12: Conclusions
B13: # | C13: Type of Support | D13: Support Identifier | E13: Company | F13: Date | G13: Person | H13: Name | I13: Location | J13: Total Charge | K13: Itemized Receipt | L13: Proof of Payment | M13: Reasonable based on Mobilization date(s) | N13: Reasonable based on Demobilization date(s) | O13: Locations Reasonable | P13: Conclusion | Q13: $ Allowable Charge | R13: $ To Be Reviewed | S13: Reviewed - Allowable Charge | T13: Reviewed - Unallowable Charge | U13: Tickmarks
B14: 1 | C14: Spreadsheet | D14: 35 | E14: Vendor No. 2 | F14: 2018-10-12 | G14: 1060 | H14: MIFPUC-1 | I14: Cocoa Fl | J14: 23.21 | M14: =IF(AND(F14>='A - Contractor Summary'!$C$36,F14<='A - Contractor Summary'!$C$38),"Yes",IF(F14<'A - Contractor Summary'!$C$36,"No",IF(F14>'A - Contractor Summary'!$C$39,"",""))) -> No | N14: =IF(OR(M14="Yes",M14="No")*AND(F14<'A - Contractor Summary'!$C$39),"",IF(AND(F14>'A - Contractor Summary'!$C$39,F14<'A - Contractor Summary'!$C$42),"Yes",IF(F14>'A - Contractor Summary'!$C$42,"No","Needs Review"))) ->  | P14: =IF(AND(O14="Yes",K14="Yes",L14="Yes")*OR(N14="Yes",M14="Yes"),"Yes",IF(OR(K14="No",M14="No",N14="No",O14="No",L14="No"),"No","Needs Review")) -> No | Q14: =+J14 -> 23.21 | R14: =IF(P14="Needs Review",J14,0) -> 0 | U14: 1
B15: 2 | C15: Spreadsheet | D15: 151 | E15: Vendor No. 2 | F15: 2018-10-12 | G15: 1060 | H15: MIFPUC-1 | I15: Miami Garden Fl | J15: 68.94 | M15: =IF(AND(F15>='A - Contractor Summary'!$C$36,F15<='A - Contractor Summary'!$C$38),"Yes",IF(F15<'A - Contractor Summary'!$C$36,"No",IF(F15>'A - Contractor Summary'!$C$39,"",""))) -> No | N15: =IF(OR(M15="Yes",M15="No")*AND(F15<'A - Contractor Summary'!$C$39),"",IF(AND(F15>'A - Contractor Summary'!$C$39,F15<'A - Contractor Summary'!$C$42),"Yes",IF(F15>'A - Contractor Summary'!$C$42,"No","Needs Review"))) ->  | P15: =IF(AND(O15="Yes",K15="Yes",L15="Yes")*OR(N15="Yes",M15="Yes"),"Yes",IF(OR(K15="No",M15="No",N15="No",O15="No",L15="No"),"No","Needs Review")) -> No | Q15: 68.94 | R15: 0 | U15: 1
B16: 3 | C16: Spreadsheet | D16: 151 | E16: Vendor No. 2 | F16: 2018-10-12 | G16: 1060 | H16: MIFPUC-1 | I16: Punta Gorda Fl | J16: 100.93 | M16: =IF(AND(F16>='A - Contractor Summary'!$C$36,F16<='A - Contractor Summary'!$C$38),"Yes",IF(F16<'A - Contractor Summary'!$C$36,"No",IF(F16>'A - Contractor Summary'!$C$39,"",""))) -> No | N16: =IF(OR(M16="Yes",M16="No")*AND(F16<'A - Contractor Summary'!$C$39),"",IF(AND(F16>'A - Contractor Summary'!$C$39,F16<'A - Contractor Summary'!$C$42),"Yes",IF(F16>'A - Contractor Summary'!$C$42,"No","Needs Review"))) ->  | P16: No | Q16: 100.93 | R16: 0 | U16: 1
B17: 4 | C17: Spreadsheet | D17: 227 | E17: Vendor No. 2 | F17: 2018-10-12 | G17: 1060 | H17: MIFPUC-1 | I17: Baldwin Fl | J17: 32.4 | M17: =IF(AND(F17>='A - Contractor Summary'!$C$36,F17<='A - Contractor Summary'!$C$38),"Yes",IF(F17<'A - Contractor Summary'!$C$36,"No",IF(F17>'A - Contractor Summary'!$C$39,"",""))) -> No | N17: =IF(OR(M17="Yes",M17="No")*AND(F17<'A - Contractor Summary'!$C$39),"",IF(AND(F17>'A - Contractor Summary'!$C$39,F17<'A - Contractor Summary'!$C$42),"Yes",IF(F17>'A - Contractor Summary'!$C$42,"No","Needs Review"))) ->  | P17: No | Q17: 32.4 | R17: 0 | U17: 1
B18: 5 | C18: Spreadsheet | D18: 275 | E18: Vendor No. 2 | F18: 2018-10-12 | G18: 1060 | H18: MIFPUC-1 | I18: Cocoa Fl | J18: 15.64 | M18: =IF(AND(F18>='A - Contractor Summary'!$C$36,F18<='A - Contractor Summary'!$C$38),"Yes",IF(F18<'A - Contractor Summary'!$C$36,"No",IF(F18>'A - Contractor Summary'!$C$39,"",""))) -> No | Q18: 15.64 | U18: 1
B19: 6 | C19: Spreadsheet | D19: 275 | E19: Vendor No. 2 | F19: 2018-10-12 | G19: 1060 | H19: MIFPUC-1 | I19: Cocoa Fl | J19: 107.09 | M19: =IF(AND(F19>='A - Contractor Summary'!$C$36,F19<='A - Contractor Summary'!$C$38),"Yes",IF(F19<'A - Contractor Summary'!$C$36,"No",IF(F19>'A - Contractor Summary'!$C$39,"",""))) -> No | Q19: 107.09 | U19: 1
B20: 7 | C20: Spreadsheet | D20: 276 | E20: Vendor No. 2 | F20: 2018-10-12 | G20: 1060 | H20: MIFPUC-1 | I20: Cocoa Fl | J20: 70 | M20: =IF(AND(F20>='A - Contractor Summary'!$C$36,F20<='A - Contractor Summary'!$C$38),"Yes",IF(F20<'A - Contractor Summary'!$C$36,"No",IF(F20>'A - Contractor Summary'!$C$39,"",""))) -> No | Q20: 70 | U20: 1
B21: 8 | C21: Spreadsheet | D21: 279 | E21: Vendor No. 2 | F21: 2018-10-12 | G21: 1060 | H21: MIFPUC-1 | I21: Cocoa Fl | J21: 65.64 | M21: =IF(AND(F21>='A - Contractor Summary'!$C$36,F21<='A - Contractor Summary'!$C$38),"Yes",IF(F21<'A - Contractor Summary'!$C$36,"No",IF(F21>'A - Contractor Summary'!$C$39,"",""))) -> No | Q21: 65.64 | U21: 1
B22: 9 | C22: Spreadsheet | D22: 289 | E22: Vendor No. 2 | F22: 2018-10-12 | G22: 1060 | H22: MIFPUC-1 | I22: Baldwin Fl | J22: 35.2 | M22: =IF(AND(F22>='A - Contractor Summary'!$C$36,F22<='A - Contractor Summary'!$C$38),"Yes",IF(F22<'A - Contractor Summary'!$C$36,"No",IF(F22>'A - Contractor Summary'!$C$39,"",""))) -> No | Q22: 35.2 | U22: 1
B23: 10 | C23: Spreadsheet | D23: 297 | E23: Vendor No. 2 | F23: 2018-10-12 | G23: 1060 | H23: MIFPUC-1 | I23: Cocoa Fl | J23: 30.95 | M23: =IF(AND(F23>='A - Contractor Summary'!$C$36,F23<='A - Contractor Summary'!$C$38),"Yes",IF(F23<'A - Contractor Summary'!$C$36,"No",IF(F23>'A - Contractor Summary'!$C$39,"",""))) -> No | Q23: 30.95 | U23: 1
B24: 11 | C24: Spreadsheet | D24: 303 | E24: Vendor No. 2 | F24: 2018-10-12 | G24: 1060 | H24: MIFPUC-1 | I24: Baldwin Fl | J24: 14.83 | M24: =IF(AND(F24>='A - Contractor Summary'!$C$36,F24<='A - Contractor Summary'!$C$38),"Yes",IF(F24<'A - Contractor Summary'!$C$36,"No",IF(F24>'A - Contractor Summary'!$C$39,"",""))) -> No | Q24: 14.83 | U24: 1
B25: 12 | C25: Spreadsheet | D25: 319 | E25: Vendor No. 2 | F25: 2018-10-12 | G25: 1060 | H25: MIFPUC-1 | I25: Baldwin Fl | J25: 39.29 | M25: =IF(AND(F25>='A - Contractor Summary'!$C$36,F25<='A - Contractor Summary'!$C$38),"Yes",IF(F25<'A - Contractor Summary'!$C$36,"No",IF(F25>'A - Contractor Summary'!$C$39,"",""))) -> No | Q25: 39.29 | U25: 1
B26: 13 | C26: Spreadsheet | D26: 130 | E26: Vendor No. 2 | F26: 2018-10-13 | G26: 1060 | H26: MIFPUC-1 | I26: Midway Fl | J26: 50.31 | M26: =IF(AND(F26>='A - Contractor Summary'!$C$36,F26<='A - Contractor Summary'!$C$38),"Yes",IF(F26<'A - Contractor Summary'!$C$36,"No",IF(F26>'A - Contractor Summary'!$C$39,"",""))) -> No | Q26: 50.31 | U26: 1
B27: 14 | C27: Spreadsheet | D27: 135 | E27: Vendor No. 2 | F27: 2018-10-13 | G27: 1060 | H27: MIFPUC-1 | I27: Baldwin Fl | J27: 99.71 | M27: =IF(AND(F27>='A - Contractor Summary'!$C$36,F27<='A - Contractor Summary'!$C$38),"Yes",IF(F27<'A - Contractor Summary'!$C$36,"No",IF(F27>'A - Contractor Summary'!$C$39,"",""))) -> No | Q27: 99.71 | U27: 1
B28: 15 | C28: Spreadsheet | D28: 135 | E28: Vendor No. 2 | F28: 2018-10-13 | G28: 1060 | H28: MIFPUC-1 | I28: Midway Fl | J28: 75.29 | M28: =IF(AND(F28>='A - Contractor Summary'!$C$36,F28<='A - Contractor Summary'!$C$38),"Yes",IF(F28<'A - Contractor Summary'!$C$36,"No",IF(F28>'A - Contractor Summary'!$C$39,"",""))) -> No | Q28: 75.29 | U28: 1
B29: 16 | C29: Spreadsheet | D29: 151 | E29: Vendor No. 2 | F29: 2018-10-13 | G29: 1060 | H29: MIFPUC-1 | I29: Baldwin Fl | J29: 55.74 | M29: =IF(AND(F29>='A - Contractor Summary'!$C$36,F29<='A - Contractor Summary'!$C$38),"Yes",IF(F29<'A - Contractor Summary'!$C$36,"No",IF(F29>'A - Contractor Summary'!$C$39,"",""))) -> No | Q29: 55.74 | U29: 1
B30: 17 | C30: Spreadsheet | D30: 151 | E30: Vendor No. 2 | F30: 2018-10-13 | G30: 1060 | H30: MIFPUC-1 | I30: Baldwin Fl | J30: 58.83 | M30: =IF(AND(F30>='A - Contractor Summary'!$C$36,F30<='A - Contractor Summary'!$C$38),"Yes",IF(F30<'A - Contractor Summary'!$C$36,"No",IF(F30>'A - Contractor Summary'!$C$39,"",""))) -> No | Q30: 58.83 | U30: 1
B31: 18 | C31: Spreadsheet | D31: 151 | E31: Vendor No. 2 | F31: 2018-10-13 | G31: 1060 | H31: MIFPUC-1 | I31: Midway Fl | J31: 350 | M31: =IF(AND(F31>='A - Contractor Summary'!$C$36,F31<='A - Contractor Summary'!$C$38),"Yes",IF(F31<'A - Contractor Summary'!$C$36,"No",IF(F31>'A - Contractor Summary'!$C$39,"",""))) -> No | Q31: 350 | U31: 1
B32: 19 | C32: Spreadsheet | D32: 275 | E32: Vendor No. 2 | F32: 2018-10-13 | G32: 1601 | H32: MIFPUC-1 | I32: Baldwin Fl | J32: 92.53 | M32: =IF(AND(F32>='A - Contractor Summary'!$C$36,F32<='A - Contractor Summary'!$C$38),"Yes",IF(F32<'A - Contractor Summary'!$C$36,"No",IF(F32>'A - Contractor Summary'!$C$39,"",""))) -> No | Q32: 92.53 | U32: 1
B33: 20 | C33: Spreadsheet | D33: 275 | E33: Vendor No. 2 | F33: 2018-10-13 | G33: 1601 | H33: MIFPUC-1 | I33: Midway Fl | J33: 40.47 | M33: =IF(AND(F33>='A - Contractor Summary'!$C$36,F33<='A - Contractor Summary'!$C$38),"Yes",IF(F33<'A - Contractor Summary'!$C$36,"No",IF(F33>'A - Contractor Summary'!$C$39,"",""))) -> No | Q33: 40.47 | U33: 1
B34: 21 | C34: Spreadsheet | D34: 276 | E34: Vendor No. 2 | F34: 2018-10-13 | G34: 1060 | H34: MIFPUC-1 | I34: Baldwin Fl | J34: 44.01 | M34: =IF(AND(F34>='A - Contractor Summary'!$C$36,F34<='A - Contractor Summary'!$C$38),"Yes",IF(F34<'A - Contractor Summary'!$C$36,"No",IF(F34>'A - Contractor Summary'!$C$39,"",""))) -> No | Q34: 44.01 | U34: 1
B35: 22 | C35: Spreadsheet | D35: 276 | E35: Vendor No. 2 | F35: 2018-10-13 | G35: 1060 | H35: MIFPUC-1 | I35: Midway Fl | J35: 55.47 | M35: =IF(AND(F35>='A - Contractor Summary'!$C$36,F35<='A - Contractor Summary'!$C$38),"Yes",IF(F35<'A - Contractor Summary'!$C$36,"No",IF(F35>'A - Contractor Summary'!$C$39,"",""))) -> No | Q35: 55.47 | U35: 1
B36: 23 | C36: Spreadsheet | D36: 279 | E36: Vendor No. 2 | F36: 2018-10-13 | G36: 1060 | H36: MIFPUC-1 | I36: Baldwin Fl | J36: 74.02 | M36: =IF(AND(F36>='A - Contractor Summary'!$C$36,F36<='A - Contractor Summary'!$C$38),"Yes",IF(F36<'A - Contractor Summary'!$C$36,"No",IF(F36>'A - Contractor Summary'!$C$39,"",""))) -> No | Q36: 74.02 | U36: 1
B37: 24 | C37: Spreadsheet | D37: 279 | E37: Vendor No. 2 | F37: 2018-10-13 | G37: 1060 | H37: MIFPUC-1 | I37: Midway Fl | J37: 67.2 | M37: =IF(AND(F37>='A - Contractor Summary'!$C$36,F37<='A - Contractor Summary'!$C$38),"Yes",IF(F37<'A - Contractor Summary'!$C$36,"No",IF(F37>'A - Contractor Summary'!$C$39,"",""))) -> No | Q37: 67.2 | U37: 1
B38: 25 | C38: Spreadsheet | D38: 297 | E38: Vendor No. 2 | F38: 2018-10-13 | G38: 1060 | H38: MIFPUC-1 | I38: Baldwin Fl | J38: 132.14 | M38: =IF(AND(F38>='A - Contractor Summary'!$C$36,F38<='A - Contractor Summary'!$C$38),"Yes",IF(F38<'A - Contractor Summary'!$C$36,"No",IF(F38>'A - Contractor Summary'!$C$39,"",""))) -> No | Q38: 132.14 | U38: 1
B39: 26 | C39: Spreadsheet | D39: 297 | E39: Vendor No. 2 | F39: 2018-10-13 | G39: 1060 | H39: MIFPUC-1 | I39: Baldwin Fl | J39: 25.02 | M39: =IF(AND(F39>='A - Contractor Summary'!$C$36,F39<='A - Contractor Summary'!$C$38),"Yes",IF(F39<'A - Contractor Summary'!$C$36,"No",IF(F39>'A - Contractor Summary'!$C$39,"",""))) -> No | Q39: 25.02 | U39: 1
B40: 27 | C40: Spreadsheet | D40: 297 | E40: Vendor No. 2 | F40: 2018-10-13 | G40: 1060 | H40: MIFPUC-1 | I40: Baldwin Fl | J40: 22.52 | M40: =IF(AND(F40>='A - Contractor Summary'!$C$36,F40<='A - Contractor Summary'!$C$38),"Yes",IF(F40<'A - Contractor Summary'!$C$36,"No",IF(F40>'A - Contractor Summary'!$C$39,"",""))) -> No | N40: =IF(OR(M40="Yes",M40="No")*AND(F40<'A - Contractor Summary'!$C$39),"",IF(AND(F40>'A - Contractor Summary'!$C$39,F40<'A - Contractor Summary'!$C$42),"Yes",IF(F40>'A - Contractor Summary'!$C$42,"No","Needs Review"))) ->  | P40: No | Q40: 22.52 | R40: 0 | U40: 1
B41: 28 | C41: Spreadsheet | D41: 297 | E41: Vendor No. 2 | F41: 2018-10-13 | G41: 1060 | H41: MIFPUC-1 | I41: Midway Fl | J41: 47.7 | M41: =IF(AND(F41>='A - Contractor Summary'!$C$36,F41<='A - Contractor Summary'!$C$38),"Yes",IF(F41<'A - Contractor Summary'!$C$36,"No",IF(F41>'A - Contractor Summary'!$C$39,"",""))) -> No | N41: =IF(OR(M41="Yes",M41="No")*AND(F41<'A - Contractor Summary'!$C$39),"",IF(AND(F41>'A - Contractor Summary'!$C$39,F41<'A - Contractor Summary'!$C$42),"Yes",IF(F41>'A - Contractor Summary'!$C$42,"No","Needs Review"))) ->  | P41: No | Q41: 47.7 | R41: 0 | U41: 1
B42: 29 | C42: Spreadsheet | D42: 47 | E42: Vendor No. 2 | F42: 2018-10-11 | G42: 1009 | H42: MIFPUC-1 | I42: Callahan Fl | J42: 30.05 | M42: =IF(AND(F42>='A - Contractor Summary'!$C$36,F42<='A - Contractor Summary'!$C$38),"Yes",IF(F42<'A - Contractor Summary'!$C$36,"No",IF(F42>'A - Contractor Summary'!$C$39,"",""))) -> No | N42: =IF(OR(M42="Yes",M42="No")*AND(F42<'A - Contractor Summary'!$C$39),"",IF(AND(F42>'A - Contractor Summary'!$C$39,F42<'A - Contractor Summary'!$C$42),"Yes",IF(F42>'A - Contractor Summary'!$C$42,"No","Needs Review"))) ->  | P42: No | Q42: 30.05 | R42: 0 | U42: 1
B43: 30 | C43: Spreadsheet | D43: 106 | E43: Vendor No. 2 | F43: 2018-10-11 | G43: 1009 | H43: MIFPUC-1 | I43: Milton Fl | J43: 77.09 | M43: =IF(AND(F43>='A - Contractor Summary'!$C$36,F43<='A - Contractor Summary'!$C$38),"Yes",IF(F43<'A - Contractor Summary'!$C$36,"No",IF(F43>'A - Contractor Summary'!$C$39,"",""))) -> No | N43: =IF(OR(M43="Yes",M43="No")*AND(F43<'A - Contractor Summary'!$C$39),"",IF(AND(F43>'A - Contractor Summary'!$C$39,F43<'A - Contractor Summary'!$C$42),"Yes",IF(F43>'A - Contractor Summary'!$C$42,"No","Needs Review"))) ->  | P43: No | Q43: 77.09 | R43: 0 | U43: 1
B44: 31 | C44: Spreadsheet | D44: 204 | E44: Vendor No. 2 | F44: 2018-10-11 | G44: 1009 | H44: MIFPUC-1 | I44: Jacksonville Fl | J44: 54.45 | M44: =IF(AND(F44>='A - Contractor Summary'!$C$36,F44<='A - Contractor Summary'!$C$38),"Yes",IF(F44<'A - Contractor Summary'!$C$36,"No",IF(F44>'A - Contractor Summary'!$C$39,"",""))) -> No | N44: =IF(OR(M44="Yes",M44="No")*AND(F44<'A - Contractor Summary'!$C$39),"",IF(AND(F44>'A - Contractor Summary'!$C$39,F44<'A - Contractor Summary'!$C$42),"Yes",IF(F44>'A - Contractor Summary'!$C$42,"No","Needs Review"))) ->  | P44: No | Q44: 54.45 | R44: 0 | U44: 1
B45: 32 | C45: Spreadsheet | D45: 227 | E45: Vendor No. 2 | F45: 2018-10-11 | G45: 1009 | H45: MIFPUC-1 | I45: Jacksonville Fl | J45: 82.22 | M45: =IF(AND(F45>='A - Contractor Summary'!$C$36,F45<='A - Contractor Summary'!$C$38),"Yes",IF(F45<'A - Contractor Summary'!$C$36,"No",IF(F45>'A - Contractor Summary'!$C$39,"",""))) -> No | N45: =IF(OR(M45="Yes",M45="No")*AND(F45<'A - Contractor Summary'!$C$39),"",IF(AND(F45>'A - Contractor Summary'!$C$39,F45<'A - Contractor Summary'!$C$42),"Yes",IF(F45>'A - Contractor Summary'!$C$42,"No","Needs Review"))) ->  | P45: No | Q45: 82.22 | R45: 0 | U45: 1
B46: 33 | C46: Spreadsheet | D46: 289 | E46: Vendor No. 2 | F46: 2018-10-11 | G46: 8035 | H46: MIFPUC-1 | I46: St Augustine Fl | J46: 26.05 | M46: =IF(AND(F46>='A - Contractor Summary'!$C$36,F46<='A - Contractor Summary'!$C$38),"Yes",IF(F46<'A - Contractor Summary'!$C$36,"No",IF(F46>'A - Contractor Summary'!$C$39,"",""))) -> No | N46: =IF(OR(M46="Yes",M46="No")*AND(F46<'A - Contractor Summary'!$C$39),"",IF(AND(F46>'A - Contractor Summary'!$C$39,F46<'A - Contractor Summary'!$C$42),"Yes",IF(F46>'A - Contractor Summary'!$C$42,"No","Needs Review"))) ->  | P46: No | Q46: 26.05 | R46: 0 | U46: 1
B47: 34 | C47: Spreadsheet | D47: 294 | E47: Vendor No. 2 | F47: 2018-10-11 | G47: 1009 | H47: MIFPUC-1 | I47: Ocala Fl | J47: 102.71 | M47: =IF(AND(F47>='A - Contractor Summary'!$C$36,F47<='A - Contractor Summary'!$C$38),"Yes",IF(F47<'A - Contractor Summary'!$C$36,"No",IF(F47>'A - Contractor Summary'!$C$39,"",""))) -> No | N47: =IF(OR(M47="Yes",M47="No")*AND(F47<'A - Contractor Summary'!$C$39),"",IF(AND(F47>'A - Contractor Summary'!$C$39,F47<'A - Contractor Summary'!$C$42),"Yes",IF(F47>'A - Contractor Summary'!$C$42,"No","Needs Review"))) ->  | P47: No | Q47: 102.71 | R47: 0 | U47: 1
B48: 35 | C48: Spreadsheet | D48: 294 | E48: Vendor No. 2 | F48: 2018-10-11 | G48: 1009 | H48: MIFPUC-1 | I48: Ocala Fl | J48: 36.68 | M48: =IF(AND(F48>='A - Contractor Summary'!$C$36,F48<='A - Contractor Summary'!$C$38),"Yes",IF(F48<'A - Contractor Summary'!$C$36,"No",IF(F48>'A - Contractor Summary'!$C$39,"",""))) -> No | N48: =IF(OR(M48="Yes",M48="No")*AND(F48<'A - Contractor Summary'!$C$39),"",IF(AND(F48>'A - Contractor Summary'!$C$39,F48<'A - Contractor Summary'!$C$42),"Yes",IF(F48>'A - Contractor Summary'!$C$42,"No","Needs Review"))) ->  | P48: No | Q48: 36.68 | R48: 0 | U48: 1
B49: 36 | C49: Spreadsheet | D49: 294 | E49: Vendor No. 2 | F49: 2018-10-11 | G49: 1009 | H49: MIFPUC-1 | I49: Ocala Fl | J49: 62.16 | M49: =IF(AND(F49>='A - Contractor Summary'!$C$36,F49<='A - Contractor Summary'!$C$38),"Yes",IF(F49<'A - Contractor Summary'!$C$36,"No",IF(F49>'A - Contractor Summary'!$C$39,"",""))) -> No | N49: =IF(OR(M49="Yes",M49="No")*AND(F49<'A - Contractor Summary'!$C$39),"",IF(AND(F49>'A - Contractor Summary'!$C$39,F49<'A - Contractor Summary'!$C$42),"Yes",IF(F49>'A - Contractor Summary'!$C$42,"No","Needs Review"))) ->  | P49: No | Q49: 62.16 | R49: 0 | U49: 1
B50: 37 | C50: Spreadsheet | D50: 294 | E50: Vendor No. 2 | F50: 2018-10-11 | G50: 1009 | H50: MIFPUC-1 | I50: Ruskin Fl | J50: 74.81 | M50: =IF(AND(F50>='A - Contractor Summary'!$C$36,F50<='A - Contractor Summary'!$C$38),"Yes",IF(F50<'A - Contractor Summary'!$C$36,"No",IF(F50>'A - Contractor Summary'!$C$39,"",""))) -> No | N50: =IF(OR(M50="Yes",M50="No")*AND(F50<'A - Contractor Summary'!$C$39),"",IF(AND(F50>'A - Contractor Summary'!$C$39,F50<'A - Contractor Summary'!$C$42),"Yes",IF(F50>'A - Contractor Summary'!$C$42,"No","Needs Review"))) ->  | P50: No | Q50: 74.81 | R50: 0 | U50: 1
B51: 38 | C51: Spreadsheet | D51: 294 | E51: Vendor No. 2 | F51: 2018-10-11 | G51: 1009 | H51: MIFPUC-1 | I51: Ruskin Fl | J51: 77.42 | M51: =IF(AND(F51>='A - Contractor Summary'!$C$36,F51<='A - Contractor Summary'!$C$38),"Yes",IF(F51<'A - Contractor Summary'!$C$36,"No",IF(F51>'A - Contractor Summary'!$C$39,"",""))) -> No | N51: =IF(OR(M51="Yes",M51="No")*AND(F51<'A - Contractor Summary'!$C$39),"",IF(AND(F51>'A - Contractor Summary'!$C$39,F51<'A - Contractor Summary'!$C$42),"Yes",IF(F51>'A - Contractor Summary'!$C$42,"No","Needs Review"))) ->  | P51: No | Q51: 77.42 | R51: 0 | U51: 1
B52: 39 | C52: Spreadsheet | D52: 299 | E52: Vendor No. 2 | F52: 2018-10-11 | G52: 1009 | H52: MIFPUC-1 | I52: Jacksonville Fl | J52: 62.9 | M52: =IF(AND(F52>='A - Contractor Summary'!$C$36,F52<='A - Contractor Summary'!$C$38),"Yes",IF(F52<'A - Contractor Summary'!$C$36,"No",IF(F52>'A - Contractor Summary'!$C$39,"",""))) -> No | N52: =IF(OR(M52="Yes",M52="No")*AND(F52<'A - Contractor Summary'!$C$39),"",IF(AND(F52>'A - Contractor Summary'!$C$39,F52<'A - Contractor Summary'!$C$42),"Yes",IF(F52>'A - Contractor Summary'!$C$42,"No","Needs Review"))) ->  | P52: No | Q52: 62.9 | R52: 0 | U52: 1
B53: 40 | C53: Spreadsheet | D53: 300 | E53: Vendor No. 2 | F53: 2018-10-11 | G53: 1009 | H53: MIFPUC-1 | I53: Jacksonville Fl | J53: 84.98 | M53: =IF(AND(F53>='A - Contractor Summary'!$C$36,F53<='A - Contractor Summary'!$C$38),"Yes",IF(F53<'A - Contractor Summary'!$C$36,"No",IF(F53>'A - Contractor Summary'!$C$39,"",""))) -> No | N53: =IF(OR(M53="Yes",M53="No")*AND(F53<'A - Contractor Summary'!$C$39),"",IF(AND(F53>'A - Contractor Summary'!$C$39,F53<'A - Contractor Summary'!$C$42),"Yes",IF(F53>'A - Contractor Summary'!$C$42,"No","Needs Review"))) ->  | P53: No | Q53: 84.98 | R53: =IF(P53="ED Review",#REF!,0) -> 0 | U53: 1
B54: 41 | C54: Spreadsheet | D54: 303 | E54: Vendor No. 2 | F54: 2018-10-11 | G54: 1009 | H54: MIFPUC-1 | I54: St Augustine Fl | J54: 69.11 | M54: =IF(AND(F54>='A - Contractor Summary'!$C$36,F54<='A - Contractor Summary'!$C$38),"Yes",IF(F54<'A - Contractor Summary'!$C$36,"No",IF(F54>'A - Contractor Summary'!$C$39,"",""))) -> No | N54: =IF(OR(M54="Yes",M54="No")*AND(F54<'A - Contractor Summary'!$C$39),"",IF(AND(F54>'A - Contractor Summary'!$C$39,F54<'A - Contractor Summary'!$C$42),"Yes",IF(F54>'A - Contractor Summary'!$C$42,"No","Needs Review"))) ->  | P54: No | Q54: 69.11 | R54: =IF(P54="ED Review",#REF!,0) -> 0 | U54: 1
B55: 42 | C55: Spreadsheet | D55: 304 | E55: Vendor No. 2 | F55: 2018-10-11 | G55: 1009 | H55: MIFPUC-1 | I55: St Augustine Fl | J55: 5.88 | M55: =IF(AND(F55>='A - Contractor Summary'!$C$36,F55<='A - Contractor Summary'!$C$38),"Yes",IF(F55<'A - Contractor Summary'!$C$36,"No",IF(F55>'A - Contractor Summary'!$C$39,"",""))) -> No | N55: =IF(OR(M55="Yes",M55="No")*AND(F55<'A - Contractor Summary'!$C$39),"",IF(AND(F55>'A - Contractor Summary'!$C$39,F55<'A - Contractor Summary'!$C$42),"Yes",IF(F55>'A - Contractor Summary'!$C$42,"No","Needs Review"))) ->  | P55: No | Q55: 5.88 | R55: =IF(P55="ED Review",#REF!,0) -> 0 | U55: 1
B56: 43 | C56: Spreadsheet | D56: 306 | E56: Vendor No. 2 | F56: 2018-10-11 | G56: 1009 | H56: MIFPUC-1 | I56: Jacksonville Fl | J56: 113.45 | M56: =IF(AND(F56>='A - Contractor Summary'!$C$36,F56<='A - Contractor Summary'!$C$38),"Yes",IF(F56<'A - Contractor Summary'!$C$36,"No",IF(F56>'A - Contractor Summary'!$C$39,"",""))) -> No | N56: =IF(OR(M56="Yes",M56="No")*AND(F56<'A - Contractor Summary'!$C$39),"",IF(AND(F56>'A - Contractor Summary'!$C$39,F56<'A - Contractor Summary'!$C$42),"Yes",IF(F56>'A - Contractor Summary'!$C$42,"No","Needs Review"))) ->  | P56: No | Q56: 113.45 | R56: =IF(P56="ED Review",#REF!,0) -> 0 | U56: 1
B57: 44 | C57: Spreadsheet | D57: 317 | E57: Vendor No. 2 | F57: 2018-10-11 | G57: 3752 | H57: MIFPUC-1 | I57: Miami Garden Fl | J57: 87.01 | M57: =IF(AND(F57>='A - Contractor Summary'!$C$36,F57<='A - Contractor Summary'!$C$38),"Yes",IF(F57<'A - Contractor Summary'!$C$36,"No",IF(F57>'A - Contractor Summary'!$C$39,"",""))) -> No | N57: =IF(OR(M57="Yes",M57="No")*AND(F57<'A - Contractor Summary'!$C$39),"",IF(AND(F57>'A - Contractor Summary'!$C$39,F57<'A - Contractor Summary'!$C$42),"Yes",IF(F57>'A - Contractor Summary'!$C$42,"No","Needs Review"))) ->  | P57: No | Q57: 87.01 | R57: =IF(P57="ED Review",#REF!,0) -> 0 | U57: 1
B58: 45 | C58: Spreadsheet | D58: 318 | E58: Vendor No. 2 | F58: 2018-10-11 | G58: 1009 | H58: MIFPUC-1 | I58: Jacksonville Fl | J58: 112.76 | M58: =IF(AND(F58>='A - Contractor Summary'!$C$36,F58<='A - Contractor Summary'!$C$38),"Yes",IF(F58<'A - Contractor Summary'!$C$36,"No",IF(F58>'A - Contractor Summary'!$C$39,"",""))) -> No | N58: =IF(OR(M58="Yes",M58="No")*AND(F58<'A - Contractor Summary'!$C$39),"",IF(AND(F58>'A - Contractor Summary'!$C$39,F58<'A - Contractor Summary'!$C$42),"Yes",IF(F58>'A - Contractor Summary'!$C$42,"No","Needs Review"))) ->  | P58: No | Q58: 112.76 | R58: =IF(P58="ED Review",#REF!,0) -> 0 | U58: 1
B59: 46 | C59: Spreadsheet | D59: 319 | E59: Vendor No. 2 | F59: 2018-10-11 | G59: 1009 | H59: MIFPUC-1 | I59: St Augustine Fl | J59: 23.36 | M59: =IF(AND(F59>='A - Contractor Summary'!$C$36,F59<='A - Contractor Summary'!$C$38),"Yes",IF(F59<'A - Contractor Summary'!$C$36,"No",IF(F59>'A - Contractor Summary'!$C$39,"",""))) -> No | N59: =IF(OR(M59="Yes",M59="No")*AND(F59<'A - Contractor Summary'!$C$39),"",IF(AND(F59>'A - Contractor Summary'!$C$39,F59<'A - Contractor Summary'!$C$42),"Yes",IF(F59>'A - Contractor Summary'!$C$42,"No","Needs Review"))) ->  | P59: No | Q59: 23.36 | R59: =IF(P59="ED Review",#REF!,0) -> 0 | U59: 1
B60: 47 | C60: Spreadsheet | D60: 322 | E60: Vendor No. 2 | F60: 2018-10-11 | G60: 1009 | H60: MIFPUC-1 | I60: Callahan Fl | J60: 41.01 | M60: =IF(AND(F60>='A - Contractor Summary'!$C$36,F60<='A - Contractor Summary'!$C$38),"Yes",IF(F60<'A - Contractor Summary'!$C$36,"No",IF(F60>'A - Contractor Summary'!$C$39,"",""))) -> No | N60: =IF(OR(M60="Yes",M60="No")*AND(F60<'A - Contractor Summary'!$C$39),"",IF(AND(F60>'A - Contractor Summary'!$C$39,F60<'A - Contractor Summary'!$C$42),"Yes",IF(F60>'A - Contractor Summary'!$C$42,"No","Needs Review"))) ->  | P60: No | Q60: 41.01 | R60: =IF(P60="ED Review",#REF!,0) -> 0 | U60: 1
B61: 48 | C61: Spreadsheet | D61: 347 | E61: Vendor No. 2 | F61: 2018-10-11 | G61: 6471 | H61: MIFPUC-1 | I61: West Palm Fl | J61: 100 | M61: =IF(AND(F61>='A - Contractor Summary'!$C$36,F61<='A - Contractor Summary'!$C$38),"Yes",IF(F61<'A - Contractor Summary'!$C$36,"No",IF(F61>'A - Contractor Summary'!$C$39,"",""))) -> No | N61: =IF(OR(M61="Yes",M61="No")*AND(F61<'A - Contractor Summary'!$C$39),"",IF(AND(F61>'A - Contractor Summary'!$C$39,F61<'A - Contractor Summary'!$C$42),"Yes",IF(F61>'A - Contractor Summary'!$C$42,"No","Needs Review"))) ->  | P61: No | Q61: 100 | R61: =IF(P61="ED Review",#REF!,0) -> 0 | U61: 1
B62: 49 | C62: Spreadsheet | D62: 355 | E62: Vendor No. 2 | F62: 2018-10-11 | G62: 1009 | H62: MIFPUC-1 | I62: Fort Pierce Fl | J62: 89.78 | M62: =IF(AND(F62>='A - Contractor Summary'!$C$36,F62<='A - Contractor Summary'!$C$38),"Yes",IF(F62<'A - Contractor Summary'!$C$36,"No",IF(F62>'A - Contractor Summary'!$C$39,"",""))) -> No | N62: =IF(OR(M62="Yes",M62="No")*AND(F62<'A - Contractor Summary'!$C$39),"",IF(AND(F62>'A - Contractor Summary'!$C$39,F62<'A - Contractor Summary'!$C$42),"Yes",IF(F62>'A - Contractor Summary'!$C$42,"No","Needs Review"))) ->  | P62: No | Q62: 89.78 | R62: =IF(P62="ED Review",#REF!,0) -> 0 | U62: 1
B63: 50 | C63: Spreadsheet | D63: 35 | E63: Vendor No. 2 | F63: 2018-10-12 | G63: 3403 | H63: MIFPUC-1 | I63: Miami Garden Fl | J63: 50 | M63: =IF(AND(F63>='A - Contractor Summary'!$C$36,F63<='A - Contractor Summary'!$C$38),"Yes",IF(F63<'A - Contractor Summary'!$C$36,"No",IF(F63>'A - Contractor Summary'!$C$39,"",""))) -> No | N63: =IF(OR(M63="Yes",M63="No")*AND(F63<'A - Contractor Summary'!$C$39),"",IF(AND(F63>'A - Contractor Summary'!$C$39,F63<'A - Contractor Summary'!$C$42),"Yes",IF(F63>'A - Contractor Summary'!$C$42,"No","Needs Review"))) ->  | P63: No | Q63: 50 | R63: =IF(P63="ED Review",#REF!,0) -> 0 | U63: 1
B64: 51 | C64: Spreadsheet | D64: 47 | E64: Vendor No. 2 | F64: 2018-10-12 | G64: 1060 | H64: MIFPUC-1 | I64: Lamont Fl | J64: 107.61 | M64: =IF(AND(F64>='A - Contractor Summary'!$C$36,F64<='A - Contractor Summary'!$C$38),"Yes",IF(F64<'A - Contractor Summary'!$C$36,"No",IF(F64>'A - Contractor Summary'!$C$39,"",""))) -> No | N64: =IF(OR(M64="Yes",M64="No")*AND(F64<'A - Contractor Summary'!$C$39),"",IF(AND(F64>'A - Contractor Summary'!$C$39,F64<'A - Contractor Summary'!$C$42),"Yes",IF(F64>'A - Contractor Summary'!$C$42,"No","Needs Review"))) ->  | P64: No | Q64: 107.61 | R64: =IF(P64="ED Review",#REF!,0) -> 0 | U64: 1
B65: 52 | C65: Spreadsheet | D65: 151 | E65: Vendor No. 2 | F65: 2018-10-12 | G65: 1060 | H65: MIFPUC-1 | I65: Bushnell Fl | J65: 73.16 | M65: =IF(AND(F65>='A - Contractor Summary'!$C$36,F65<='A - Contractor Summary'!$C$38),"Yes",IF(F65<'A - Contractor Summary'!$C$36,"No",IF(F65>'A - Contractor Summary'!$C$39,"",""))) -> No | N65: =IF(OR(M65="Yes",M65="No")*AND(F65<'A - Contractor Summary'!$C$39),"",IF(AND(F65>'A - Contractor Summary'!$C$39,F65<'A - Contractor Summary'!$C$42),"Yes",IF(F65>'A - Contractor Summary'!$C$42,"No","Needs Review"))) ->  | P65: No | Q65: 73.16 | R65: =IF(P65="ED Review",#REF!,0) -> 0 | U65: 1
B66: 53 | C66: Spreadsheet | D66: 204 | E66: Vendor No. 2 | F66: 2018-10-12 | G66: 1060 | H66: MIFPUC-1 | I66: Lamont Fl | J66: 57.1 | M66: =IF(AND(F66>='A - Contractor Summary'!$C$36,F66<='A - Contractor Summary'!$C$38),"Yes",IF(F66<'A - Contractor Summary'!$C$36,"No",IF(F66>'A - Contractor Summary'!$C$39,"",""))) -> No | N66: =IF(OR(M66="Yes",M66="No")*AND(F66<'A - Contractor Summary'!$C$39),"",IF(AND(F66>'A - Contractor Summary'!$C$39,F66<'A - Contractor Summary'!$C$42),"Yes",IF(F66>'A - Contractor Summary'!$C$42,"No","Needs Review"))) ->  | P66: No | Q66: 57.1 | R66: =IF(P66="ED Review",#REF!,0) -> 0 | U66: 1
B67: 54 | C67: Spreadsheet | D67: 209 | E67: Vendor No. 2 | F67: 2018-10-12 | G67: 1060 | H67: MIFPUC-1 | I67: Live Oak Fl | J67: 141.04 | M67: =IF(AND(F67>='A - Contractor Summary'!$C$36,F67<='A - Contractor Summary'!$C$38),"Yes",IF(F67<'A - Contractor Summary'!$C$36,"No",IF(F67>'A - Contractor Summary'!$C$39,"",""))) -> No | N67: =IF(OR(M67="Yes",M67="No")*AND(F67<'A - Contractor Summary'!$C$39),"",IF(AND(F67>'A - Contractor Summary'!$C$39,F67<'A - Contractor Summary'!$C$42),"Yes",IF(F67>'A - Contractor Summary'!$C$42,"No","Needs Review"))) ->  | P67: No | Q67: 141.04 | R67: =IF(P67="ED Review",#REF!,0) -> 0 | U67: 1
B68: 55 | C68: Spreadsheet | D68: 227 | E68: Vendor No. 2 | F68: 2018-10-12 | G68: 1060 | H68: MIFPUC-1 | I68: Lamont Fl | J68: 43.26 | M68: =IF(AND(F68>='A - Contractor Summary'!$C$36,F68<='A - Contractor Summary'!$C$38),"Yes",IF(F68<'A - Contractor Summary'!$C$36,"No",IF(F68>'A - Contractor Summary'!$C$39,"",""))) -> No | N68: =IF(OR(M68="Yes",M68="No")*AND(F68<'A - Contractor Summary'!$C$39),"",IF(AND(F68>'A - Contractor Summary'!$C$39,F68<'A - Contractor Summary'!$C$42),"Yes",IF(F68>'A - Contractor Summary'!$C$42,"No","Needs Review"))) ->  | P68: No | Q68: 43.26 | R68: =IF(P68="ED Review",#REF!,0) -> 0 | U68: 1
B69: 56 | C69: Spreadsheet | D69: 275 | E69: Vendor No. 2 | F69: 2018-10-12 | G69: 1061 | H69: MIFPUC-1 | I69: Miami Garden Fl | J69: 50 | M69: =IF(AND(F69>='A - Contractor Summary'!$C$36,F69<='A - Contractor Summary'!$C$38),"Yes",IF(F69<'A - Contractor Summary'!$C$36,"No",IF(F69>'A - Contractor Summary'!$C$39,"",""))) -> No | N69: =IF(OR(M69="Yes",M69="No")*AND(F69<'A - Contractor Summary'!$C$39),"",IF(AND(F69>'A - Contractor Summary'!$C$39,F69<'A - Contractor Summary'!$C$42),"Yes",IF(F69>'A - Contractor Summary'!$C$42,"No","Needs Review"))) ->  | P69: No | Q69: 50 | R69: =IF(P69="ED Review",#REF!,0) -> 0 | U69: 1
B70: 57 | C70: Spreadsheet | D70: 276 | E70: Vendor No. 2 | F70: 2018-10-12 | G70: 1060 | H70: MIFPUC-1 | I70: Miami Garden Fl | J70: 0.66 | M70: =IF(AND(F70>='A - Contractor Summary'!$C$36,F70<='A - Contractor Summary'!$C$38),"Yes",IF(F70<'A - Contractor Summary'!$C$36,"No",IF(F70>'A - Contractor Summary'!$C$39,"",""))) -> No | N70: =IF(OR(M70="Yes",M70="No")*AND(F70<'A - Contractor Summary'!$C$39),"",IF(AND(F70>'A - Contractor Summary'!$C$39,F70<'A - Contractor Summary'!$C$42),"Yes",IF(F70>'A - Contractor Summary'!$C$42,"No","Needs Review"))) ->  | P70: No | Q70: 0.66 | R70: =IF(P70="ED Review",#REF!,0) -> 0 | U70: 1
B71: 58 | C71: Spreadsheet | D71: 276 | E71: Vendor No. 2 | F71: 2018-10-12 | G71: 1060 | H71: MIFPUC-1 | I71: Miami Garden Fl | J71: 40 | M71: =IF(AND(F71>='A - Contractor Summary'!$C$36,F71<='A - Contractor Summary'!$C$38),"Yes",IF(F71<'A - Contractor Summary'!$C$36,"No",IF(F71>'A - Contractor Summary'!$C$39,"",""))) -> No | N71: =IF(OR(M71="Yes",M71="No")*AND(F71<'A - Contractor Summary'!$C$39),"",IF(AND(F71>'A - Contractor Summary'!$C$39,F71<'A - Contractor Summary'!$C$42),"Yes",IF(F71>'A - Contractor Summary'!$C$42,"No","Needs Review"))) ->  | P71: No | Q71: 40 | R71: =IF(P71="ED Review",#REF!,0) -> 0 | U71: 1
B72: 59 | C72: Spreadsheet | D72: 279 | E72: Vendor No. 2 | F72: 2018-10-12 | G72: 1060 | H72: MIFPUC-1 | I72: Miami Garden Fl | J72: 144.38 | M72: =IF(AND(F72>='A - Contractor Summary'!$C$36,F72<='A - Contractor Summary'!$C$38),"Yes",IF(F72<'A - Contractor Summary'!$C$36,"No",IF(F72>'A - Contractor Summary'!$C$39,"",""))) -> No | N72: =IF(OR(M72="Yes",M72="No")*AND(F72<'A - Contractor Summary'!$C$39),"",IF(AND(F72>'A - Contractor Summary'!$C$39,F72<'A - Contractor Summary'!$C$42),"Yes",IF(F72>'A - Contractor Summary'!$C$42,"No","Needs Review"))) ->  | P72: No | Q72: 144.38 | R72: =IF(P72="ED Review",#REF!,0) -> 0 | U72: 1
B73: 60 | C73: Spreadsheet | D73: 282 | E73: Vendor No. 2 | F73: 2018-10-12 | G73: 1060 | H73: MIFPUC-1 | I73: Atlantic Beach Fl | J73: 34.33 | M73: =IF(AND(F73>='A - Contractor Summary'!$C$36,F73<='A - Contractor Summary'!$C$38),"Yes",IF(F73<'A - Contractor Summary'!$C$36,"No",IF(F73>'A - Contractor Summary'!$C$39,"",""))) -> No | N73: =IF(OR(M73="Yes",M73="No")*AND(F73<'A - Contractor Summary'!$C$39),"",IF(AND(F73>'A - Contractor Summary'!$C$39,F73<'A - Contractor Summary'!$C$42),"Yes",IF(F73>'A - Contractor Summary'!$C$42,"No","Needs Review"))) ->  | P73: No | Q73: 34.33 | R73: =IF(P73="ED Review",#REF!,0) -> 0 | U73: 1
B74: 61 | C74: Spreadsheet | D74: 286 | E74: Vendor No. 2 | F74: 2018-10-12 | G74: 1060 | H74: MIFPUC-1 | I74: Lamont Fl | J74: 103.38 | M74: =IF(AND(F74>='A - Contractor Summary'!$C$36,F74<='A - Contractor Summary'!$C$38),"Yes",IF(F74<'A - Contractor Summary'!$C$36,"No",IF(F74>'A - Contractor Summary'!$C$39,"",""))) -> No | N74: =IF(OR(M74="Yes",M74="No")*AND(F74<'A - Contractor Summary'!$C$39),"",IF(AND(F74>'A - Contractor Summary'!$C$39,F74<'A - Contractor Summary'!$C$42),"Yes",IF(F74>'A - Contractor Summary'!$C$42,"No","Needs Review"))) ->  | P74: No | Q74: 103.38 | R74: =IF(P74="ED Review",#REF!,0) -> 0 | U74: 1
B75: 62 | C75: Spreadsheet | D75: 289 | E75: Vendor No. 2 | F75: 2018-10-12 | G75: 1060 | H75: MIFPUC-1 | I75: Lamont Fl | J75: 47.65 | M75: =IF(AND(F75>='A - Contractor Summary'!$C$36,F75<='A - Contractor Summary'!$C$38),"Yes",IF(F75<'A - Contractor Summary'!$C$36,"No",IF(F75>'A - Contractor Summary'!$C$39,"",""))) -> No | Q75: 47.65 | U75: 1
B76: 63 | C76: Spreadsheet | D76: 289 | E76: Vendor No. 2 | F76: 2018-10-12 | G76: 1060 | H76: MIFPUC-1 | I76: Lamont Fl | J76: 91.77 | M76: =IF(AND(F76>='A - Contractor Summary'!$C$36,F76<='A - Contractor Summary'!$C$38),"Yes",IF(F76<'A - Contractor Summary'!$C$36,"No",IF(F76>'A - Contractor Summary'!$C$39,"",""))) -> No | Q76: 91.77 | U76: 1
B77: 64 | C77: Spreadsheet | D77: 297 | E77: Vendor No. 2 | F77: 2018-10-12 | G77: 1060 | H77: MIFPUC-1 | I77: Miami Garden Fl | J77: 90 | M77: =IF(AND(F77>='A - Contractor Summary'!$C$36,F77<='A - Contractor Summary'!$C$38),"Yes",IF(F77<'A - Contractor Summary'!$C$36,"No",IF(F77>'A - Contractor Summary'!$C$39,"",""))) -> No | Q77: 90 | U77: 1
B78: 65 | C78: Spreadsheet | D78: 299 | E78: Vendor No. 2 | F78: 2018-10-12 | G78: 1060 | H78: MIFPUC-1 | I78: Atlantic Beach Fl | J78: 16.12 | M78: =IF(AND(F78>='A - Contractor Summary'!$C$36,F78<='A - Contractor Summary'!$C$38),"Yes",IF(F78<'A - Contractor Summary'!$C$36,"No",IF(F78>'A - Contractor Summary'!$C$39,"",""))) -> No | Q78: =+J78 -> 16.12 | U78: 1
B79: 66 | C79: Spreadsheet | D79: 299 | E79: Vendor No. 2 | F79: 2018-10-12 | G79: 1060 | H79: MIFPUC-1 | I79: Monticello Fl | J79: 56.79 | M79: =IF(AND(F79>='A - Contractor Summary'!$C$36,F79<='A - Contractor Summary'!$C$38),"Yes",IF(F79<'A - Contractor Summary'!$C$36,"No",IF(F79>'A - Contractor Summary'!$C$39,"",""))) -> No | Q79: 56.79 | U79: 1
B80: 67 | C80: Spreadsheet | D80: 300 | E80: Vendor No. 2 | F80: 2018-10-12 | G80: 1060 | H80: MIFPUC-1 | I80: Live Oak Fl | J80: 51.39 | M80: =IF(AND(F80>='A - Contractor Summary'!$C$36,F80<='A - Contractor Summary'!$C$38),"Yes",IF(F80<'A - Contractor Summary'!$C$36,"No",IF(F80>'A - Contractor Summary'!$C$39,"",""))) -> No | Q80: 51.39 | U80: 1
B81: 68 | C81: Spreadsheet | D81: 303 | E81: Vendor No. 2 | F81: 2018-10-12 | G81: 1060 | H81: MIFPUC-1 | I81: Lamont Fl | J81: 34 | M81: =IF(AND(F81>='A - Contractor Summary'!$C$36,F81<='A - Contractor Summary'!$C$38),"Yes",IF(F81<'A - Contractor Summary'!$C$36,"No",IF(F81>'A - Contractor Summary'!$C$39,"",""))) -> No | Q81: 34 | U81: 1
B82: 69 | C82: Spreadsheet | D82: 304 | E82: Vendor No. 2 | F82: 2018-10-12 | G82: 1060 | H82: MIFPUC-1 | I82: Lamont Fl | J82: 205.13 | M82: =IF(AND(F82>='A - Contractor Summary'!$C$36,F82<='A - Contractor Summary'!$C$38),"Yes",IF(F82<'A - Contractor Summary'!$C$36,"No",IF(F82>'A - Contractor Summary'!$C$39,"",""))) -> No | Q82: 205.13 | U82: 1
B83: 70 | C83: Spreadsheet | D83: 306 | E83: Vendor No. 2 | F83: 2018-10-12 | G83: 1060 | H83: MIFPUC-1 | I83: Live Oak Fl | J83: 77.45 | M83: =IF(AND(F83>='A - Contractor Summary'!$C$36,F83<='A - Contractor Summary'!$C$38),"Yes",IF(F83<'A - Contractor Summary'!$C$36,"No",IF(F83>'A - Contractor Summary'!$C$39,"",""))) -> No | Q83: 77.45 | U83: 1
B84: 71 | C84: Spreadsheet | D84: 308 | E84: Vendor No. 2 | F84: 2018-10-12 | G84: 1060 | H84: MIFPUC-1 | I84: Atlantic Beach Fl | J84: 30.18 | M84: =IF(AND(F84>='A - Contractor Summary'!$C$36,F84<='A - Contractor Summary'!$C$38),"Yes",IF(F84<'A - Contractor Summary'!$C$36,"No",IF(F84>'A - Contractor Summary'!$C$39,"",""))) -> No | Q84: 30.18 | U84: 1
B85: 72 | C85: Spreadsheet | D85: 308 | E85: Vendor No. 2 | F85: 2018-10-12 | G85: 1060 | H85: MIFPUC-1 | I85: Lamont Fl | J85: 46.62 | M85: =IF(AND(F85>='A - Contractor Summary'!$C$36,F85<='A - Contractor Summary'!$C$38),"Yes",IF(F85<'A - Contractor Summary'!$C$36,"No",IF(F85>'A - Contractor Summary'!$C$39,"",""))) -> No | Q85: 46.62 | U85: 1
B86: 73 | C86: Spreadsheet | D86: 310 | E86: Vendor No. 2 | F86: 2018-10-12 | G86: 1060 | H86: MIFPUC-1 | I86: Live Oak Fl | J86: 47.41 | M86: =IF(AND(F86>='A - Contractor Summary'!$C$36,F86<='A - Contractor Summary'!$C$38),"Yes",IF(F86<'A - Contractor Summary'!$C$36,"No",IF(F86>'A - Contractor Summary'!$C$39,"",""))) -> No | Q86: 47.41 | U86: 1
B87: 74 | C87: Spreadsheet | D87: 318 | E87: Vendor No. 2 | F87: 2018-10-12 | G87: 1060 | H87: MIFPUC-1 | I87: Atlantic Beach Fl | J87: 31.98 | M87: =IF(AND(F87>='A - Contractor Summary'!$C$36,F87<='A - Contractor Summary'!$C$38),"Yes",IF(F87<'A - Contractor Summary'!$C$36,"No",IF(F87>'A - Contractor Summary'!$C$39,"",""))) -> No | Q87: 31.98 | U87: 1
B88: 75 | C88: Spreadsheet | D88: 318 | E88: Vendor No. 2 | F88: 2018-10-12 | G88: 1060 | H88: MIFPUC-1 | I88: Monticello Fl | J88: 125.89 | M88: =IF(AND(F88>='A - Contractor Summary'!$C$36,F88<='A - Contractor Summary'!$C$38),"Yes",IF(F88<'A - Contractor Summary'!$C$36,"No",IF(F88>'A - Contractor Summary'!$C$39,"",""))) -> No | Q88: 125.89 | U88: 1
B89: 76 | C89: Spreadsheet | D89: 319 | E89: Vendor No. 2 | F89: 2018-10-12 | G89: 1060 | H89: MIFPUC-1 | I89: Lamont Fl | J89: 59.27 | M89: =IF(AND(F89>='A - Contractor Summary'!$C$36,F89<='A - Contractor Summary'!$C$38),"Yes",IF(F89<'A - Contractor Summary'!$C$36,"No",IF(F89>'A - Contractor Summary'!$C$39,"",""))) -> No | Q89: 59.27 | U89: 1
B90: 77 | C90: Spreadsheet | D90: 320 | E90: Vendor No. 2 | F90: 2018-10-12 | G90: 1060 | H90: MIFPUC-1 | I90: Live Oak Fl | J90: 103.54 | M90: =IF(AND(F90>='A - Contractor Summary'!$C$36,F90<='A - Contractor Summary'!$C$38),"Yes",IF(F90<'A - Contractor Summary'!$C$36,"No",IF(F90>'A - Contractor Summary'!$C$39,"",""))) -> No | Q90: 103.54 | U90: 1
B91: 78 | C91: Spreadsheet | D91: 321 | E91: Vendor No. 2 | F91: 2018-10-12 | G91: 1009 | H91: MIFPUC-1 | I91: Gainsville Fl | J91: 35.73 | M91: =IF(AND(F91>='A - Contractor Summary'!$C$36,F91<='A - Contractor Summary'!$C$38),"Yes",IF(F91<'A - Contractor Summary'!$C$36,"No",IF(F91>'A - Contractor Summary'!$C$39,"",""))) -> No | Q91: 35.73 | U91: 1
B92: 79 | C92: Spreadsheet | D92: 322 | E92: Vendor No. 2 | F92: 2018-10-12 | G92: 1060 | H92: MIFPUC-1 | I92: Lamont Fl | J92: 96.08 | M92: =IF(AND(F92>='A - Contractor Summary'!$C$36,F92<='A - Contractor Summary'!$C$38),"Yes",IF(F92<'A - Contractor Summary'!$C$36,"No",IF(F92>'A - Contractor Summary'!$C$39,"",""))) -> No | Q92: 96.08 | U92: 1
C93: Spreadsheet | D93: 322 | E93: Vendor No. 2 | F93: 2018-10-12 | G93: 1060 | H93: MIFPUC-1 | I93: Lamont Fl | J93: 57.89 | M93: =IF(AND(F93>='A - Contractor Summary'!$C$36,F93<='A - Contractor Summary'!$C$38),"Yes",IF(F93<'A - Contractor Summary'!$C$36,"No",IF(F93>'A - Contractor Summary'!$C$39,"",""))) -> No | Q93: 57.89 | U93: 1
C94: Spreadsheet | D94: 323 | E94: Vendor No. 2 | F94: 2018-10-12 | G94: 1473 | H94: MIFPUC-1 | I94: Atlantic Beach Fl | J94: 53.78 | M94: =IF(AND(F94>='A - Contractor Summary'!$C$36,F94<='A - Contractor Summary'!$C$38),"Yes",IF(F94<'A - Contractor Summary'!$C$36,"No",IF(F94>'A - Contractor Summary'!$C$39,"",""))) -> No | Q94: 53.78 | U94: 1
C95: Spreadsheet | D95: 323 | E95: Vendor No. 2 | F95: 2018-10-12 | G95: 1060 | H95: MIFPUC-1 | I95: Lamont Fl | J95: 123.77 | M95: =IF(AND(F95>='A - Contractor Summary'!$C$36,F95<='A - Contractor Summary'!$C$38),"Yes",IF(F95<'A - Contractor Summary'!$C$36,"No",IF(F95>'A - Contractor Summary'!$C$39,"",""))) -> No | Q95: 123.77 | U95: 1
C96: Spreadsheet | D96: 324 | E96: Vendor No. 2 | F96: 2018-10-12 | G96: 1060 | H96: MIFPUC-1 | I96: Lamont Fl | J96: 101.81 | M96: =IF(AND(F96>='A - Contractor Summary'!$C$36,F96<='A - Contractor Summary'!$C$38),"Yes",IF(F96<'A - Contractor Summary'!$C$36,"No",IF(F96>'A - Contractor Summary'!$C$39,"",""))) -> No | Q96: 101.81 | U96: 1
C97: Spreadsheet | D97: 355 | E97: Vendor No. 2 | F97: 2018-10-12 | G97: 1060 | H97: MIFPUC-1 | I97: Jacksonville Fl | J97: 48.35 | M97: =IF(AND(F97>='A - Contractor Summary'!$C$36,F97<='A - Contractor Summary'!$C$38),"Yes",IF(F97<'A - Contractor Summary'!$C$36,"No",IF(F97>'A - Contractor Summary'!$C$39,"",""))) -> No | Q97: 48.35 | U97: 1
C98: Spreadsheet | D98: 35 | E98: Vendor No. 2 | F98: 2018-10-13 | G98: 1060 | H98: MIFPUC-1 | I98: Baldwin Fl | J98: 115.03 | M98: =IF(AND(F98>='A - Contractor Summary'!$C$36,F98<='A - Contractor Summary'!$C$38),"Yes",IF(F98<'A - Contractor Summary'!$C$36,"No",IF(F98>'A - Contractor Summary'!$C$39,"",""))) -> No | Q98: 115.03 | U98: 1
C99: Spreadsheet | D99: 63 | E99: Vendor No. 2 | F99: 2018-10-13 | G99: 1060 | H99: MIFPUC-1 | I99: Baldwin Fl | J99: 69 | M99: =IF(AND(F99>='A - Contractor Summary'!$C$36,F99<='A - Contractor Summary'!$C$38),"Yes",IF(F99<'A - Contractor Summary'!$C$36,"No",IF(F99>'A - Contractor Summary'!$C$39,"",""))) -> No | Q99: 69 | U99: 1
C100: Spreadsheet | D100: 118 | E100: Vendor No. 2 | F100: 2018-10-13 | G100: 1060 | H100: MIFPUC-1 | I100: Jacksonville Fl | J100: 57.87 | M100: =IF(AND(F100>='A - Contractor Summary'!$C$36,F100<='A - Contractor Summary'!$C$38),"Yes",IF(F100<'A - Contractor Summary'!$C$36,"No",IF(F100>'A - Contractor Summary'!$C$39,"",""))) -> No | Q100: 57.87 | U100: 1
C101: Spreadsheet | D101: 118 | E101: Vendor No. 2 | F101: 2018-10-13 | G101: 1060 | H101: MIFPUC-1 | I101: Lamont Fl | J101: 300 | M101: =IF(AND(F101>='A - Contractor Summary'!$C$36,F101<='A - Contractor Summary'!$C$38),"Yes",IF(F101<'A - Contractor Summary'!$C$36,"No",IF(F101>'A - Contractor Summary'!$C$39,"",""))) -> No | Q101: 300 | U101: 1
C102: Spreadsheet | D102: 130 | E102: Vendor No. 2 | F102: 2018-10-13 | G102: 1060 | H102: MIFPUC-1 | I102: Baldwin Fl | J102: 67.04 | M102: =IF(AND(F102>='A - Contractor Summary'!$C$36,F102<='A - Contractor Summary'!$C$38),"Yes",IF(F102<'A - Contractor Summary'!$C$36,"No",IF(F102>'A - Contractor Summary'!$C$39,"",""))) -> No | Q102: 67.04 | U102: 1
C103: Spreadsheet | D103: 184 | E103: Vendor No. 2 | F103: 2018-10-13 | G103: 1060 | H103: MIFPUC-1 | I103: Lamont Fl | J103: 77.22 | M103: =IF(AND(F103>='A - Contractor Summary'!$C$36,F103<='A - Contractor Summary'!$C$38),"Yes",IF(F103<'A - Contractor Summary'!$C$36,"No",IF(F103>'A - Contractor Summary'!$C$39,"",""))) -> No | Q103: 77.22 | U103: 1
C104: Spreadsheet | D104: 281 | E104: Vendor No. 2 | F104: 2018-10-12 | G104: 1060 | H104: MIFPUC-1 | I104: Lamont Fl | J104: 41.75 | M104: =IF(AND(F104>='A - Contractor Summary'!$C$36,F104<='A - Contractor Summary'!$C$38),"Yes",IF(F104<'A - Contractor Summary'!$C$36,"No",IF(F104>'A - Contractor Summary'!$C$39,"",""))) -> No | Q104: 41.75 | U104: 1
C105: Spreadsheet | D105: 292 | E105: Vendor No. 2 | F105: 2018-10-12 | G105: 1060 | H105: MIFPUC-1 | I105: Jacksonville Fl | J105: 36.64 | M105: =IF(AND(F105>='A - Contractor Summary'!$C$36,F105<='A - Contractor Summary'!$C$38),"Yes",IF(F105<'A - Contractor Summary'!$C$36,"No",IF(F105>'A - Contractor Summary'!$C$39,"",""))) -> No | Q105: 36.64 | U105: 1
C106: Spreadsheet | D106: 14 | E106: Vendor No. 2 | F106: 2018-10-11 | G106: 1009 | H106: MIFPUC-1 | I106: St Augustine Fl | J106: 53.6 | M106: =IF(AND(F106>='A - Contractor Summary'!$C$36,F106<='A - Contractor Summary'!$C$38),"Yes",IF(F106<'A - Contractor Summary'!$C$36,"No",IF(F106>'A - Contractor Summary'!$C$39,"",""))) -> No | Q106: 53.6 | U106: 1
C107: Spreadsheet | D107: 136 | E107: Vendor No. 2 | F107: 2018-10-11 | G107: 1009 | H107: MIFPUC-1 | I107: Callahan Fl | J107: 34.94 | M107: =IF(AND(F107>='A - Contractor Summary'!$C$36,F107<='A - Contractor Summary'!$C$38),"Yes",IF(F107<'A - Contractor Summary'!$C$36,"No",IF(F107>'A - Contractor Summary'!$C$39,"",""))) -> No | Q107: 34.94 | U107: 1
C108: Spreadsheet | D108: 183 | E108: Vendor No. 2 | F108: 2018-10-11 | G108: 1009 | H108: MIFPUC-1 | I108: Callahan Fl | J108: 33.64 | M108: =IF(AND(F108>='A - Contractor Summary'!$C$36,F108<='A - Contractor Summary'!$C$38),"Yes",IF(F108<'A - Contractor Summary'!$C$36,"No",IF(F108>'A - Contractor Summary'!$C$39,"",""))) -> No | Q108: 33.64 | U108: 1
C109: Spreadsheet | D109: 199 | E109: Vendor No. 2 | F109: 2018-10-11 | G109: 1009 | H109: MIFPUC-1 | I109: St Augustine Fl | J109: 76.42 | M109: =IF(AND(F109>='A - Contractor Summary'!$C$36,F109<='A - Contractor Summary'!$C$38),"Yes",IF(F109<'A - Contractor Summary'!$C$36,"No",IF(F109>'A - Contractor Summary'!$C$39,"",""))) -> No | Q109: 76.42 | U109: 1
C110: Spreadsheet | D110: 220 | E110: Vendor No. 2 | F110: 2018-10-11 | G110: 1009 | H110: MIFPUC-1 | I110: St Augustine Fl | J110: 51.58 | M110: =IF(AND(F110>='A - Contractor Summary'!$C$36,F110<='A - Contractor Summary'!$C$38),"Yes",IF(F110<'A - Contractor Summary'!$C$36,"No",IF(F110>'A - Contractor Summary'!$C$39,"",""))) -> No | Q110: 51.58 | U110: 1
C111: Spreadsheet | D111: 282 | E111: Vendor No. 2 | F111: 2018-10-11 | G111: 1009 | H111: MIFPUC-1 | I111: Callahan Fl | J111: 34.5 | M111: =IF(AND(F111>='A - Contractor Summary'!$C$36,F111<='A - Contractor Summary'!$C$38),"Yes",IF(F111<'A - Contractor Summary'!$C$36,"No",IF(F111>'A - Contractor Summary'!$C$39,"",""))) -> No | Q111: 34.5 | U111: 1
C112: Spreadsheet | D112: 285 | E112: Vendor No. 2 | F112: 2018-10-11 | G112: 1009 | H112: MIFPUC-1 | I112: Callahan Fl | J112: 41.07 | M112: =IF(AND(F112>='A - Contractor Summary'!$C$36,F112<='A - Contractor Summary'!$C$38),"Yes",IF(F112<'A - Contractor Summary'!$C$36,"No",IF(F112>'A - Contractor Summary'!$C$39,"",""))) -> No | Q112: 41.07 | U112: 1
C113: Spreadsheet | D113: 291 | E113: Vendor No. 2 | F113: 2018-10-11 | G113: 1009 | H113: MIFPUC-1 | I113: Callahan Fl | J113: 40.01 | M113: =IF(AND(F113>='A - Contractor Summary'!$C$36,F113<='A - Contractor Summary'!$C$38),"Yes",IF(F113<'A - Contractor Summary'!$C$36,"No",IF(F113>'A - Contractor Summary'!$C$39,"",""))) -> No | Q113: 40.01 | U113: 1
C114: Spreadsheet | D114: 292 | E114: Vendor No. 2 | F114: 2018-10-11 | G114: 1009 | H114: MIFPUC-1 | I114: Jacksonville Fl | J114: 65.27 | M114: =IF(AND(F114>='A - Contractor Summary'!$C$36,F114<='A - Contractor Summary'!$C$38),"Yes",IF(F114<'A - Contractor Summary'!$C$36,"No",IF(F114>'A - Contractor Summary'!$C$39,"",""))) -> No | Q114: 65.27 | U114: 1
C115: Spreadsheet | D115: 317 | E115: Vendor No. 2 | F115: 2018-10-11 | G115: 3752 | H115: MIFPUC-1 | I115: Miami Garden Fl | J115: 14.01 | M115: =IF(AND(F115>='A - Contractor Summary'!$C$36,F115<='A - Contractor Summary'!$C$38),"Yes",IF(F115<'A - Contractor Summary'!$C$36,"No",IF(F115>'A - Contractor Summary'!$C$39,"",""))) -> No | Q115: 14.01 | U115: 1
C116: Spreadsheet | D116: 14 | E116: Vendor No. 2 | F116: 2018-10-12 | G116: 1060 | H116: MIFPUC-1 | I116: Lamont Fl | J116: 41.45 | M116: =IF(AND(F116>='A - Contractor Summary'!$C$36,F116<='A - Contractor Summary'!$C$38),"Yes",IF(F116<'A - Contractor Summary'!$C$36,"No",IF(F116>'A - Contractor Summary'!$C$39,"",""))) -> No | Q116: 41.45 | U116: 1
C117: Spreadsheet | D117: 153 | E117: Vendor No. 2 | F117: 2018-10-12 | G117: 1009 | H117: MIFPUC-1 | I117: Gainsville Fl | J117: 12.91 | M117: =IF(AND(F117>='A - Contractor Summary'!$C$36,F117<='A - Contractor Summary'!$C$38),"Yes",IF(F117<'A - Contractor Summary'!$C$36,"No",IF(F117>'A - Contractor Summary'!$C$39,"",""))) -> No | Q117: 12.91 | U117: 1
C118: Spreadsheet | D118: 183 | E118: Vendor No. 2 | F118: 2018-10-12 | G118: 1060 | H118: MIFPUC-1 | I118: Macclenny Fl | J118: 27.51 | M118: =IF(AND(F118>='A - Contractor Summary'!$C$36,F118<='A - Contractor Summary'!$C$38),"Yes",IF(F118<'A - Contractor Summary'!$C$36,"No",IF(F118>'A - Contractor Summary'!$C$39,"",""))) -> No | Q118: 27.51 | U118: 1
C119: Spreadsheet | D119: 183 | E119: Vendor No. 2 | F119: 2018-10-12 | G119: 1060 | H119: MIFPUC-1 | I119: Lamont Fl | J119: 23.12 | M119: =IF(AND(F119>='A - Contractor Summary'!$C$36,F119<='A - Contractor Summary'!$C$38),"Yes",IF(F119<'A - Contractor Summary'!$C$36,"No",IF(F119>'A - Contractor Summary'!$C$39,"",""))) -> No | Q119: 23.12 | U119: 1
C120: Spreadsheet | D120: 199 | E120: Vendor No. 2 | F120: 2018-10-12 | G120: 1060 | H120: MIFPUC-1 | I120: Lamont Fl | J120: 36.29 | M120: =IF(AND(F120>='A - Contractor Summary'!$C$36,F120<='A - Contractor Summary'!$C$38),"Yes",IF(F120<'A - Contractor Summary'!$C$36,"No",IF(F120>'A - Contractor Summary'!$C$39,"",""))) -> No | Q120: 36.29 | U120: 1
C121: Spreadsheet | D121: 220 | E121: Vendor No. 2 | F121: 2018-10-12 | G121: 1060 | H121: MIFPUC-1 | I121: Lamont Fl | J121: 36.31 | M121: =IF(AND(F121>='A - Contractor Summary'!$C$36,F121<='A - Contractor Summary'!$C$38),"Yes",IF(F121<'A - Contractor Summary'!$C$36,"No",IF(F121>'A - Contractor Summary'!$C$39,"",""))) -> No | Q121: 36.31 | U121: 1
C122: Spreadsheet | D122: 282 | E122: Vendor No. 2 | F122: 2018-10-12 | G122: 1060 | H122: MIFPUC-1 | I122: Atlantic Beach Fl | J122: 24.35 | M122: =IF(AND(F122>='A - Contractor Summary'!$C$36,F122<='A - Contractor Summary'!$C$38),"Yes",IF(F122<'A - Contractor Summary'!$C$36,"No",IF(F122>'A - Contractor Summary'!$C$39,"",""))) -> No | Q122: 24.35 | U122: 1
C123: Spreadsheet | D123: 282 | E123: Vendor No. 2 | F123: 2018-10-12 | G123: 1060 | H123: MIFPUC-1 | I123: Lamont Fl | J123: 23.97 | M123: =IF(AND(F123>='A - Contractor Summary'!$C$36,F123<='A - Contractor Summary'!$C$38),"Yes",IF(F123<'A - Contractor Summary'!$C$36,"No",IF(F123>'A - Contractor Summary'!$C$39,"",""))) -> No | Q123: 23.97 | U123: 1
C124: Spreadsheet | D124: 284 | E124: Vendor No. 2 | F124: 2018-10-12 | G124: 1060 | H124: MIFPUC-1 | I124: Lamont Fl | J124: 30.86 | M124: =IF(AND(F124>='A - Contractor Summary'!$C$36,F124<='A - Contractor Summary'!$C$38),"Yes",IF(F124<'A - Contractor Summary'!$C$36,"No",IF(F124>'A - Contractor Summary'!$C$39,"",""))) -> No | Q124: 30.86 | U124: 1
C125: Spreadsheet | D125: 291 | E125: Vendor No. 2 | F125: 2018-10-12 | G125: 1060 | H125: MIFPUC-1 | I125: Live Oak Fl | J125: 38.59 | M125: =IF(AND(F125>='A - Contractor Summary'!$C$36,F125<='A - Contractor Summary'!$C$38),"Yes",IF(F125<'A - Contractor Summary'!$C$36,"No",IF(F125>'A - Contractor Summary'!$C$39,"",""))) -> No | Q125: 38.59 | U125: 1
C126: Spreadsheet | D126: 349 | E126: Vendor No. 2 | F126: 2018-10-12 | G126: 1060 | H126: MIFPUC-1 | I126: Stuart Fl | J126: 63.6 | M126: =IF(AND(F126>='A - Contractor Summary'!$C$36,F126<='A - Contractor Summary'!$C$38),"Yes",IF(F126<'A - Contractor Summary'!$C$36,"No",IF(F126>'A - Contractor Summary'!$C$39,"",""))) -> No | Q126: 63.6 | U126: 1
C127: Spreadsheet | D127: 349 | E127: Vendor No. 2 | F127: 2018-10-13 | G127: 1060 | H127: MIFPUC-1 | I127: Baldwin Fl | J127: 41.12 | M127: =IF(AND(F127>='A - Contractor Summary'!$C$36,F127<='A - Contractor Summary'!$C$38),"Yes",IF(F127<'A - Contractor Summary'!$C$36,"No",IF(F127>'A - Contractor Summary'!$C$39,"",""))) -> No | Q127: 41.12 | U127: 1
C128: Spreadsheet | D128: 349 | E128: Vendor No. 2 | F128: 2018-10-13 | G128: 5259 | H128: MIFPUC-1 | I128: Midway Fl | J128: 17.92 | M128: =IF(AND(F128>='A - Contractor Summary'!$C$36,F128<='A - Contractor Summary'!$C$38),"Yes",IF(F128<'A - Contractor Summary'!$C$36,"No",IF(F128>'A - Contractor Summary'!$C$39,"",""))) -> No | Q128: 17.92 | U128: 1
C129: Spreadsheet | D129: 21 | E129: Vendor No. 2 | F129: 2018-10-26 | G129: 1009 | H129: MIFPUC-3 | I129: Montegomery Al | J129: 100.19 | M129: =IF(AND(F129>='A - Contractor Summary'!$C$36,F129<='A - Contractor Summary'!$C$38),"Yes",IF(F129<'A - Contractor Summary'!$C$36,"No",IF(F129>'A - Contractor Summary'!$C$39,"",""))) -> No | Q129: 100.19 | U129: 1
C130: Spreadsheet | D130: 38 | E130: Vendor No. 2 | F130: 2018-10-24 | G130: 7048 | H130: MIFPUC-3 | I130: Miami Garden Fl | J130: 75.29 | M130: =IF(AND(F130>='A - Contractor Summary'!$C$36,F130<='A - Contractor Summary'!$C$38),"Yes",IF(F130<'A - Contractor Summary'!$C$36,"No",IF(F130>'A - Contractor Summary'!$C$39,"",""))) -> No | Q130: 75.29 | U130: 1
C131: Spreadsheet | D131: 106 | E131: Vendor No. 2 | F131: 2018-10-24 | G131: 4305 | H131: MIFPUC-3 | I131: Niceville Fl | J131: 89.99 | M131: =IF(AND(F131>='A - Contractor Summary'!$C$36,F131<='A - Contractor Summary'!$C$38),"Yes",IF(F131<'A - Contractor Summary'!$C$36,"No",IF(F131>'A - Contractor Summary'!$C$39,"",""))) -> No | Q131: 89.99 | U131: 1
C132: Spreadsheet | D132: 118 | E132: Vendor No. 2 | F132: 2018-10-24 | G132: 7011 | H132: MIFPUC-3 | I132: Marianna Fl | J132: 60 | M132: =IF(AND(F132>='A - Contractor Summary'!$C$36,F132<='A - Contractor Summary'!$C$38),"Yes",IF(F132<'A - Contractor Summary'!$C$36,"No",IF(F132>'A - Contractor Summary'!$C$39,"",""))) -> No | Q132: 60 | U132: 1
C133: Spreadsheet | D133: 347 | E133: Vendor No. 2 | F133: 2018-10-15 | G133: 6471 | H133: MIFPUC-2 | I133: Dothan Al | J133: 136.15 | M133: =IF(AND(F133>='A - Contractor Summary'!$C$36,F133<='A - Contractor Summary'!$C$38),"Yes",IF(F133<'A - Contractor Summary'!$C$36,"No",IF(F133>'A - Contractor Summary'!$C$39,"",""))) -> No | Q133: 136.15 | U133: 1
C134: Spreadsheet | D134: 38 | E134: Vendor No. 2 | F134: 2018-10-16 | G134: 1060 | H134: MIFPUC-2 | I134: Smyrna Fl | J134: 93.89 | M134: =IF(AND(F134>='A - Contractor Summary'!$C$36,F134<='A - Contractor Summary'!$C$38),"Yes",IF(F134<'A - Contractor Summary'!$C$36,"No",IF(F134>'A - Contractor Summary'!$C$39,"",""))) -> No | Q134: 93.89 | U134: 1
C135: Spreadsheet | D135: 38 | E135: Vendor No. 2 | F135: 2018-10-16 | G135: 1060 | H135: MIFPUC-2 | I135: Lamont Fl | J135: 48.62 | M135: =IF(AND(F135>='A - Contractor Summary'!$C$36,F135<='A - Contractor Summary'!$C$38),"Yes",IF(F135<'A - Contractor Summary'!$C$36,"No",IF(F135>'A - Contractor Summary'!$C$39,"",""))) -> No | Q135: 48.62 | U135: 1
C136: Spreadsheet | D136: 38 | E136: Vendor No. 2 | F136: 2018-10-17 | G136: 1060 | H136: MIFPUC-2 | I136: Ocoee Fl | J136: 76.56 | M136: =IF(AND(F136>='A - Contractor Summary'!$C$36,F136<='A - Contractor Summary'!$C$38),"Yes",IF(F136<'A - Contractor Summary'!$C$36,"No",IF(F136>'A - Contractor Summary'!$C$39,"",""))) -> No | Q136: 76.56 | U136: 1
C137: Spreadsheet | D137: 274 | E137: Vendor No. 2 | F137: 2018-10-17 | G137: 3752 | H137: MIFPUC-2 | I137: Okeechhobee Fl | J137: 84.47 | M137: =IF(AND(F137>='A - Contractor Summary'!$C$36,F137<='A - Contractor Summary'!$C$38),"Yes",IF(F137<'A - Contractor Summary'!$C$36,"No",IF(F137>'A - Contractor Summary'!$C$39,"",""))) -> No | Q137: 84.47 | U137: 1
C138: Spreadsheet | D138: 294 | E138: Vendor No. 2 | F138: 2018-10-17 | G138: 1009 | H138: MIFPUC-2 | I138: Atlantic Beach Fl | J138: 60.92 | M138: =IF(AND(F138>='A - Contractor Summary'!$C$36,F138<='A - Contractor Summary'!$C$38),"Yes",IF(F138<'A - Contractor Summary'!$C$36,"No",IF(F138>'A - Contractor Summary'!$C$39,"",""))) -> No | Q138: 60.92 | U138: 1
C139: Spreadsheet | D139: 294 | E139: Vendor No. 2 | F139: 2018-10-17 | G139: 1009 | H139: MIFPUC-2 | I139: Jacksonville Fl | J139: 102.04 | M139: =IF(AND(F139>='A - Contractor Summary'!$C$36,F139<='A - Contractor Summary'!$C$38),"Yes",IF(F139<'A - Contractor Summary'!$C$36,"No",IF(F139>'A - Contractor Summary'!$C$39,"",""))) -> No | Q139: 102.04 | U139: 1
C140: Spreadsheet | D140: 305 | E140: Vendor No. 2 | F140: 2018-10-17 | G140: 1009 | H140: MIFPUC-2 | I140: Atlantic Beach Fl | J140: 62.25 | M140: =IF(AND(F140>='A - Contractor Summary'!$C$36,F140<='A - Contractor Summary'!$C$38),"Yes",IF(F140<'A - Contractor Summary'!$C$36,"No",IF(F140>'A - Contractor Summary'!$C$39,"",""))) -> No | Q140: 62.25 | U140: 1
C141: Spreadsheet | D141: 321 | E141: Vendor No. 2 | F141: 2018-10-17 | G141: 1009 | H141: MIFPUC-2 | I141: Jacksonville Fl | J141: 68.37 | M141: =IF(AND(F141>='A - Contractor Summary'!$C$36,F141<='A - Contractor Summary'!$C$38),"Yes",IF(F141<'A - Contractor Summary'!$C$36,"No",IF(F141>'A - Contractor Summary'!$C$39,"",""))) -> No | Q141: 68.37 | U141: 1
C142: Spreadsheet | D142: 39 | E142: Vendor No. 2 | F142: 2018-10-18 | G142: 1060 | H142: MIFPUC-2 | I142: Live Oak Fl | J142: 103.21 | M142: =IF(AND(F142>='A - Contractor Summary'!$C$36,F142<='A - Contractor Summary'!$C$38),"Yes",IF(F142<'A - Contractor Summary'!$C$36,"No",IF(F142>'A - Contractor Summary'!$C$39,"",""))) -> No | Q142: =+J142 -> 103.21 | U142: 1
C143: Spreadsheet | D143: 39 | E143: Vendor No. 2 | F143: 2018-10-18 | G143: 1060 | H143: MIFPUC-2 | I143: Marianna Fl | J143: 44.18 | M143: =IF(AND(F143>='A - Contractor Summary'!$C$36,F143<='A - Contractor Summary'!$C$38),"Yes",IF(F143<'A - Contractor Summary'!$C$36,"No",IF(F143>'A - Contractor Summary'!$C$39,"",""))) -> No | Q143: 44.18 | U143: 1
C144: Spreadsheet | D144: 153 | E144: Vendor No. 2 | F144: 2018-10-18 | G144: 1009 | H144: MIFPUC-2 | I144: Madison Fl | J144: 49.76 | M144: =IF(AND(F144>='A - Contractor Summary'!$C$36,F144<='A - Contractor Summary'!$C$38),"Yes",IF(F144<'A - Contractor Summary'!$C$36,"No",IF(F144>'A - Contractor Summary'!$C$39,"",""))) -> No | Q144: 49.76 | U144: 1
C145: Spreadsheet | D145: 294 | E145: Vendor No. 2 | F145: 2018-10-18 | G145: 1009 | H145: MIFPUC-2 | I145: Madison Fl | J145: 38.68 | M145: =IF(AND(F145>='A - Contractor Summary'!$C$36,F145<='A - Contractor Summary'!$C$38),"Yes",IF(F145<'A - Contractor Summary'!$C$36,"No",IF(F145>'A - Contractor Summary'!$C$39,"",""))) -> No | Q145: 38.68 | U145: 1
C146: Spreadsheet | D146: 321 | E146: Vendor No. 2 | F146: 2018-10-18 | G146: 1009 | H146: MIFPUC-2 | I146: Midway Fl | J146: 70.73 | M146: =IF(AND(F146>='A - Contractor Summary'!$C$36,F146<='A - Contractor Summary'!$C$38),"Yes",IF(F146<'A - Contractor Summary'!$C$36,"No",IF(F146>'A - Contractor Summary'!$C$39,"",""))) -> No | Q146: 70.73 | U146: 1
C147: Spreadsheet | D147: 321 | E147: Vendor No. 2 | F147: 2018-10-18 | G147: 1009 | H147: MIFPUC-2 | I147: Midway Fl | J147: 93.7 | M147: =IF(AND(F147>='A - Contractor Summary'!$C$36,F147<='A - Contractor Summary'!$C$38),"Yes",IF(F147<'A - Contractor Summary'!$C$36,"No",IF(F147>'A - Contractor Summary'!$C$39,"",""))) -> No | Q147: 93.7 | U147: 1
C148: Spreadsheet | D148: 274 | E148: Vendor No. 2 | F148: 2018-10-19 | G148: 3752 | H148: MIFPUC-2 | I148: Miami Garden Fl | J148: 76.86 | M148: =IF(AND(F148>='A - Contractor Summary'!$C$36,F148<='A - Contractor Summary'!$C$38),"Yes",IF(F148<'A - Contractor Summary'!$C$36,"No",IF(F148>'A - Contractor Summary'!$C$39,"",""))) -> No | Q148: 76.86 | U148: 1
C149: Spreadsheet | D149: 276 | E149: Vendor No. 2 | F149: 2018-10-19 | G149: 1060 | H149: MIFPUC-2 | I149: Okeechhobee Fl | J149: 127.91 | M149: =IF(AND(F149>='A - Contractor Summary'!$C$36,F149<='A - Contractor Summary'!$C$38),"Yes",IF(F149<'A - Contractor Summary'!$C$36,"No",IF(F149>'A - Contractor Summary'!$C$39,"",""))) -> No | Q149: 127.91 | U149: 1
C150: Spreadsheet | D150: 276 | E150: Vendor No. 2 | F150: 2018-10-20 | G150: 1060 | H150: MIFPUC-2 | I150: Miami Garden Fl | J150: 52.73 | M150: =IF(AND(F150>='A - Contractor Summary'!$C$36,F150<='A - Contractor Summary'!$C$38),"Yes",IF(F150<'A - Contractor Summary'!$C$36,"No",IF(F150>'A - Contractor Summary'!$C$39,"",""))) -> No | Q150: 52.73 | U150: 1
C151: Spreadsheet | D151: 276 | E151: Vendor No. 2 | F151: 2018-10-20 | G151: 1060 | H151: MIFPUC-2 | I151: Miami Garden Fl | J151: 152.27 | M151: =IF(AND(F151>='A - Contractor Summary'!$C$36,F151<='A - Contractor Summary'!$C$38),"Yes",IF(F151<'A - Contractor Summary'!$C$36,"No",IF(F151>'A - Contractor Summary'!$C$39,"",""))) -> No | Q151: 152.27 | U151: 1
C152: Spreadsheet | D152: 317 | E152: Vendor No. 2 | F152: 2018-10-20 | G152: 1060 | H152: MIFPUC-2 | I152: Clermont Fl | J152: 115.77 | M152: =IF(AND(F152>='A - Contractor Summary'!$C$36,F152<='A - Contractor Summary'!$C$38),"Yes",IF(F152<'A - Contractor Summary'!$C$36,"No",IF(F152>'A - Contractor Summary'!$C$39,"",""))) -> No | Q152: 115.77 | U152: 1
C153: Spreadsheet | D153: 317 | E153: Vendor No. 2 | F153: 2018-10-20 | G153: 1060 | H153: MIFPUC-2 | I153: Lamont Fl | J153: 77.13 | M153: =IF(AND(F153>='A - Contractor Summary'!$C$36,F153<='A - Contractor Summary'!$C$38),"Yes",IF(F153<'A - Contractor Summary'!$C$36,"No",IF(F153>'A - Contractor Summary'!$C$39,"",""))) -> No | Q153: 77.13 | U153: 1
C154: Spreadsheet | D154: 347 | E154: Vendor No. 2 | F154: 2018-10-20 | G154: 6471 | H154: MIFPUC-2 | I154: Midway Fl | J154: 80.58 | M154: =IF(AND(F154>='A - Contractor Summary'!$C$36,F154<='A - Contractor Summary'!$C$38),"Yes",IF(F154<'A - Contractor Summary'!$C$36,"No",IF(F154>'A - Contractor Summary'!$C$39,"",""))) -> No | Q154: 80.58 | U154: 1
C155: Spreadsheet | D155: 347 | E155: Vendor No. 2 | F155: 2018-10-16 | G155: 6471 | H155: MIFPUC-2 | I155: Albany Ga | J155: 110 | M155: =IF(AND(F155>='A - Contractor Summary'!$C$36,F155<='A - Contractor Summary'!$C$38),"Yes",IF(F155<'A - Contractor Summary'!$C$36,"No",IF(F155>'A - Contractor Summary'!$C$39,"",""))) -> No | Q155: 110 | U155: 1
C156: Spreadsheet | D156: 39 | E156: Vendor No. 2 | F156: 2018-10-17 | G156: 1060 | H156: MIFPUC-2 | I156: Kingsland Ga | J156: 53.55 | M156: =IF(AND(F156>='A - Contractor Summary'!$C$36,F156<='A - Contractor Summary'!$C$38),"Yes",IF(F156<'A - Contractor Summary'!$C$36,"No",IF(F156>'A - Contractor Summary'!$C$39,"",""))) -> No | Q156: 53.55 | U156: 1
C157: Spreadsheet | D157: 347 | E157: Vendor No. 2 | F157: 2018-10-18 | G157: 6471 | H157: MIFPUC-2 | I157: Albany Ga | J157: 71.3 | M157: =IF(AND(F157>='A - Contractor Summary'!$C$36,F157<='A - Contractor Summary'!$C$38),"Yes",IF(F157<'A - Contractor Summary'!$C$36,"No",IF(F157>'A - Contractor Summary'!$C$39,"",""))) -> No | Q157: 71.3 | U157: 1
C158: Spreadsheet | D158: 14 | E158: Vendor No. 2 | F158: 2018-11-05 | G158: 1060 | H158: MIFPUC-5 | I158: Wilwood Fl | J158: 59.77 | M158: =IF(AND(F158>='A - Contractor Summary'!$C$36,F158<='A - Contractor Summary'!$C$38),"Yes",IF(F158<'A - Contractor Summary'!$C$36,"No",IF(F158>'A - Contractor Summary'!$C$39,"",""))) -> No | Q158: 59.77 | U158: 1
C159: Spreadsheet | D159: 14 | E159: Vendor No. 2 | F159: 2018-11-05 | G159: 1060 | H159: MIFPUC-5 | I159: Lake Worth Fl | J159: 39.33 | M159: =IF(AND(F159>='A - Contractor Summary'!$C$36,F159<='A - Contractor Summary'!$C$38),"Yes",IF(F159<'A - Contractor Summary'!$C$36,"No",IF(F159>'A - Contractor Summary'!$C$39,"",""))) -> No | Q159: 39.33 | U159: 1
C160: Spreadsheet | D160: 38 | E160: Vendor No. 2 | F160: 2018-11-05 | G160: 7048 | H160: MIFPUC-5 | I160: Lake Wales Fl | J160: 65.16 | M160: =IF(AND(F160>='A - Contractor Summary'!$C$36,F160<='A - Contractor Summary'!$C$38),"Yes",IF(F160<'A - Contractor Summary'!$C$36,"No",IF(F160>'A - Contractor Summary'!$C$39,"",""))) -> No | Q160: 65.16 | U160: 1
C161: Spreadsheet | D161: 47 | E161: Vendor No. 2 | F161: 2018-11-05 | G161: 1060 | H161: MIFPUC-5 | I161: Reddick Fl | J161: 121.34 | M161: =IF(AND(F161>='A - Contractor Summary'!$C$36,F161<='A - Contractor Summary'!$C$38),"Yes",IF(F161<'A - Contractor Summary'!$C$36,"No",IF(F161>'A - Contractor Summary'!$C$39,"",""))) -> No | Q161: 121.34 | U161: 1
C162: Spreadsheet | D162: 47 | E162: Vendor No. 2 | F162: 2018-11-05 | G162: 1060 | H162: MIFPUC-5 | I162: Lake Worth Fl | J162: 100 | M162: =IF(AND(F162>='A - Contractor Summary'!$C$36,F162<='A - Contractor Summary'!$C$38),"Yes",IF(F162<'A - Contractor Summary'!$C$36,"No",IF(F162>'A - Contractor Summary'!$C$39,"",""))) -> No | Q162: 100 | U162: 1
C163: Spreadsheet | D163: 63 | E163: Vendor No. 2 | F163: 2018-11-05 | G163: 1060 | H163: MIFPUC-5 | I163: Marianna Fl | J163: 65.59 | M163: =IF(AND(F163>='A - Contractor Summary'!$C$36,F163<='A - Contractor Summary'!$C$38),"Yes",IF(F163<'A - Contractor Summary'!$C$36,"No",IF(F163>'A - Contractor Summary'!$C$39,"",""))) -> No | Q163: 65.59 | U163: 1
C164: Spreadsheet | D164: 63 | E164: Vendor No. 2 | F164: 2018-11-05 | G164: 1060 | H164: MIFPUC-5 | I164: Ocala Fl | J164: 48.65 | M164: =IF(AND(F164>='A - Contractor Summary'!$C$36,F164<='A - Contractor Summary'!$C$38),"Yes",IF(F164<'A - Contractor Summary'!$C$36,"No",IF(F164>'A - Contractor Summary'!$C$39,"",""))) -> No | Q164: 48.65 | U164: 1
C165: Spreadsheet | D165: 63 | E165: Vendor No. 2 | F165: 2018-11-05 | G165: 1060 | H165: MIFPUC-5 | I165: Ocala Fl | J165: 42.55 | M165: =IF(AND(F165>='A - Contractor Summary'!$C$36,F165<='A - Contractor Summary'!$C$38),"Yes",IF(F165<'A - Contractor Summary'!$C$36,"No",IF(F165>'A - Contractor Summary'!$C$39,"",""))) -> No | Q165: 42.55 | U165: 1
C166: Spreadsheet | D166: 63 | E166: Vendor No. 2 | F166: 2018-11-05 | G166: 1060 | H166: MIFPUC-5 | I166: Naples Fl | J166: 42.72 | M166: =IF(AND(F166>='A - Contractor Summary'!$C$36,F166<='A - Contractor Summary'!$C$38),"Yes",IF(F166<'A - Contractor Summary'!$C$36,"No",IF(F166>'A - Contractor Summary'!$C$39,"",""))) -> No | Q166: 42.72 | U166: 1
C167: Spreadsheet | D167: 63 | E167: Vendor No. 2 | F167: 2018-11-05 | G167: 1060 | H167: MIFPUC-5 | I167: Naples Fl | J167: 33 | M167: =IF(AND(F167>='A - Contractor Summary'!$C$36,F167<='A - Contractor Summary'!$C$38),"Yes",IF(F167<'A - Contractor Summary'!$C$36,"No",IF(F167>'A - Contractor Summary'!$C$39,"",""))) -> No | Q167: 33 | U167: 1
C168: Spreadsheet | D168: 63 | E168: Vendor No. 2 | F168: 2018-11-05 | G168: 1060 | H168: MIFPUC-5 | I168: Homestead Fl | J168: 45.58 | M168: =IF(AND(F168>='A - Contractor Summary'!$C$36,F168<='A - Contractor Summary'!$C$38),"Yes",IF(F168<'A - Contractor Summary'!$C$36,"No",IF(F168>'A - Contractor Summary'!$C$39,"",""))) -> No | Q168: 45.58 | U168: 1
C169: Spreadsheet | D169: 118 | E169: Vendor No. 2 | F169: 2018-11-05 | G169: 1060 | H169: MIFPUC-5 | I169: Marianna Fl | J169: 86.45 | M169: =IF(AND(F169>='A - Contractor Summary'!$C$36,F169<='A - Contractor Summary'!$C$38),"Yes",IF(F169<'A - Contractor Summary'!$C$36,"No",IF(F169>'A - Contractor Summary'!$C$39,"",""))) -> No | Q169: 86.45 | U169: 1
C170: Spreadsheet | D170: 118 | E170: Vendor No. 2 | F170: 2018-11-05 | G170: 1060 | H170: MIFPUC-5 | I170: Wilwood Fl | J170: 60 | M170: =IF(AND(F170>='A - Contractor Summary'!$C$36,F170<='A - Contractor Summary'!$C$38),"Yes",IF(F170<'A - Contractor Summary'!$C$36,"No",IF(F170>'A - Contractor Summary'!$C$39,"",""))) -> No | Q170: 60 | U170: 1
C171: Spreadsheet | D171: 130 | E171: Vendor No. 2 | F171: 2018-11-05 | G171: 1060 | H171: MIFPUC-5 | I171: Lake City Fl | J171: 146.63 | M171: =IF(AND(F171>='A - Contractor Summary'!$C$36,F171<='A - Contractor Summary'!$C$38),"Yes",IF(F171<'A - Contractor Summary'!$C$36,"No",IF(F171>'A - Contractor Summary'!$C$39,"",""))) -> No | Q171: 146.63 | U171: 1
C172: Spreadsheet | D172: 130 | E172: Vendor No. 2 | F172: 2018-11-05 | G172: 1060 | H172: MIFPUC-5 | I172: Okeechhobee Fl | J172: 100 | M172: =IF(AND(F172>='A - Contractor Summary'!$C$36,F172<='A - Contractor Summary'!$C$38),"Yes",IF(F172<'A - Contractor Summary'!$C$36,"No",IF(F172>'A - Contractor Summary'!$C$39,"",""))) -> No | Q172: 100 | U172: 1
C173: Spreadsheet | D173: 135 | E173: Vendor No. 2 | F173: 2018-11-05 | G173: 1060 | H173: MIFPUC-5 | I173: Reddick Fl | J173: 113.01 | M173: =IF(AND(F173>='A - Contractor Summary'!$C$36,F173<='A - Contractor Summary'!$C$38),"Yes",IF(F173<'A - Contractor Summary'!$C$36,"No",IF(F173>'A - Contractor Summary'!$C$39,"",""))) -> No | Q173: 113.01 | U173: 1
C174: Spreadsheet | D174: 135 | E174: Vendor No. 2 | F174: 2018-11-05 | G174: 1060 | H174: MIFPUC-5 | I174: Reddick Fl | J174: 167.6 | M174: =IF(AND(F174>='A - Contractor Summary'!$C$36,F174<='A - Contractor Summary'!$C$38),"Yes",IF(F174<'A - Contractor Summary'!$C$36,"No",IF(F174>'A - Contractor Summary'!$C$39,"",""))) -> No | Q174: 167.6 | U174: 1
C175: Spreadsheet | D175: 136 | E175: Vendor No. 2 | F175: 2018-11-05 | G175: 1060 | H175: MIFPUC-5 | I175: Marianna Fl | J175: 22.53 | M175: =IF(AND(F175>='A - Contractor Summary'!$C$36,F175<='A - Contractor Summary'!$C$38),"Yes",IF(F175<'A - Contractor Summary'!$C$36,"No",IF(F175>'A - Contractor Summary'!$C$39,"",""))) -> No | Q175: 22.53 | U175: 1
C176: Spreadsheet | D176: 136 | E176: Vendor No. 2 | F176: 2018-11-05 | G176: 1060 | H176: MIFPUC-5 | I176: Lake City Fl | J176: 141.33 | M176: =IF(AND(F176>='A - Contractor Summary'!$C$36,F176<='A - Contractor Summary'!$C$38),"Yes",IF(F176<'A - Contractor Summary'!$C$36,"No",IF(F176>'A - Contractor Summary'!$C$39,"",""))) -> No | Q176: 141.33 | U176: 1
C177: Spreadsheet | D177: 136 | E177: Vendor No. 2 | F177: 2018-11-05 | G177: 1060 | H177: MIFPUC-5 | I177: Ocoee Fl | J177: 34.39 | M177: =IF(AND(F177>='A - Contractor Summary'!$C$36,F177<='A - Contractor Summary'!$C$38),"Yes",IF(F177<'A - Contractor Summary'!$C$36,"No",IF(F177>'A - Contractor Summary'!$C$39,"",""))) -> No | Q177: 34.39 | U177: 1
C178: Spreadsheet | D178: 151 | E178: Vendor No. 2 | F178: 2018-11-05 | G178: 1060 | H178: MIFPUC-5 | I178: Bushnell Fl | J178: 117.6 | M178: =IF(AND(F178>='A - Contractor Summary'!$C$36,F178<='A - Contractor Summary'!$C$38),"Yes",IF(F178<'A - Contractor Summary'!$C$36,"No",IF(F178>'A - Contractor Summary'!$C$39,"",""))) -> No | Q178: 117.6 | U178: 1
C179: Spreadsheet | D179: 183 | E179: Vendor No. 2 | F179: 2018-11-05 | G179: 1060 | H179: MIFPUC-5 | I179: Tampa Fl | J179: 57.26 | M179: =IF(AND(F179>='A - Contractor Summary'!$C$36,F179<='A - Contractor Summary'!$C$38),"Yes",IF(F179<'A - Contractor Summary'!$C$36,"No",IF(F179>'A - Contractor Summary'!$C$39,"",""))) -> No | Q179: 57.26 | U179: 1
C180: Spreadsheet | D180: 184 | E180: Vendor No. 2 | F180: 2018-11-05 | G180: 1060 | H180: MIFPUC-5 | I180: Lake Worth Fl | J180: 80 | M180: =IF(AND(F180>='A - Contractor Summary'!$C$36,F180<='A - Contractor Summary'!$C$38),"Yes",IF(F180<'A - Contractor Summary'!$C$36,"No",IF(F180>'A - Contractor Summary'!$C$39,"",""))) -> No | Q180: 80 | U180: 1
C181: Spreadsheet | D181: 199 | E181: Vendor No. 2 | F181: 2018-11-05 | G181: 1060 | H181: MIFPUC-5 | I181: Marianna Fl | J181: 72.8 | M181: =IF(AND(F181>='A - Contractor Summary'!$C$36,F181<='A - Contractor Summary'!$C$38),"Yes",IF(F181<'A - Contractor Summary'!$C$36,"No",IF(F181>'A - Contractor Summary'!$C$39,"",""))) -> No | Q181: 72.8 | U181: 1
C182: Spreadsheet | D182: 199 | E182: Vendor No. 2 | F182: 2018-11-05 | G182: 1060 | H182: MIFPUC-5 | I182: Saint Cloud Fl | J182: 50.35 | M182: =IF(AND(F182>='A - Contractor Summary'!$C$36,F182<='A - Contractor Summary'!$C$38),"Yes",IF(F182<'A - Contractor Summary'!$C$36,"No",IF(F182>'A - Contractor Summary'!$C$39,"",""))) -> No | Q182: 50.35 | U182: 1
C183: Spreadsheet | D183: 204 | E183: Vendor No. 2 | F183: 2018-11-05 | G183: 1060 | H183: MIFPUC-5 | I183: Wildwood Fl | J183: 102.66 | M183: =IF(AND(F183>='A - Contractor Summary'!$C$36,F183<='A - Contractor Summary'!$C$38),"Yes",IF(F183<'A - Contractor Summary'!$C$36,"No",IF(F183>'A - Contractor Summary'!$C$39,"",""))) -> No | Q183: 102.66 | U183: 1
C184: Spreadsheet | D184: 204 | E184: Vendor No. 2 | F184: 2018-11-05 | G184: 1009 | H184: MIFPUC-5 | I184: Riverview Fl | J184: 0.06 | M184: =IF(AND(F184>='A - Contractor Summary'!$C$36,F184<='A - Contractor Summary'!$C$38),"Yes",IF(F184<'A - Contractor Summary'!$C$36,"No",IF(F184>'A - Contractor Summary'!$C$39,"",""))) -> No | Q184: 0.06 | U184: 1
C185: Spreadsheet | D185: 204 | E185: Vendor No. 2 | F185: 2018-11-05 | G185: 1009 | H185: MIFPUC-5 | I185: Riverview Fl | J185: 255.73 | M185: =IF(AND(F185>='A - Contractor Summary'!$C$36,F185<='A - Contractor Summary'!$C$38),"Yes",IF(F185<'A - Contractor Summary'!$C$36,"No",IF(F185>'A - Contractor Summary'!$C$39,"",""))) -> No | Q185: 255.73 | U185: 1
C186: Spreadsheet | D186: 204 | E186: Vendor No. 2 | F186: 2018-11-05 | G186: 1060 | H186: MIFPUC-5 | I186: Florida City Fl | J186: 76.78 | M186: =IF(AND(F186>='A - Contractor Summary'!$C$36,F186<='A - Contractor Summary'!$C$38),"Yes",IF(F186<'A - Contractor Summary'!$C$36,"No",IF(F186>'A - Contractor Summary'!$C$39,"",""))) -> No | Q186: 76.78 | U186: 1
C187: Spreadsheet | D187: 209 | E187: Vendor No. 2 | F187: 2018-11-05 | G187: 1060 | H187: MIFPUC-5 | I187: Lake City Fl | J187: 129.5 | M187: =IF(AND(F187>='A - Contractor Summary'!$C$36,F187<='A - Contractor Summary'!$C$38),"Yes",IF(F187<'A - Contractor Summary'!$C$36,"No",IF(F187>'A - Contractor Summary'!$C$39,"",""))) -> No | Q187: 129.5 | U187: 1
C188: Spreadsheet | D188: 209 | E188: Vendor No. 2 | F188: 2018-11-05 | G188: 1060 | H188: MIFPUC-5 | I188: Saint Cloud Fl | J188: 39.92 | M188: =IF(AND(F188>='A - Contractor Summary'!$C$36,F188<='A - Contractor Summary'!$C$38),"Yes",IF(F188<'A - Contractor Summary'!$C$36,"No",IF(F188>'A - Contractor Summary'!$C$39,"",""))) -> No | Q188: 39.92 | U188: 1
C189: Spreadsheet | D189: 209 | E189: Vendor No. 2 | F189: 2018-11-05 | G189: 1060 | H189: MIFPUC-5 | I189: Saint Cloud Fl | J189: 55.84 | M189: =IF(AND(F189>='A - Contractor Summary'!$C$36,F189<='A - Contractor Summary'!$C$38),"Yes",IF(F189<'A - Contractor Summary'!$C$36,"No",IF(F189>'A - Contractor Summary'!$C$39,"",""))) -> No | Q189: 55.84 | U189: 1
C190: Spreadsheet | D190: 227 | E190: Vendor No. 2 | F190: 2018-11-05 | G190: 1060 | H190: MIFPUC-5 | I190: Marianna Fl | J190: 109.52 | M190: =IF(AND(F190>='A - Contractor Summary'!$C$36,F190<='A - Contractor Summary'!$C$38),"Yes",IF(F190<'A - Contractor Summary'!$C$36,"No",IF(F190>'A - Contractor Summary'!$C$39,"",""))) -> No | Q190: 109.52 | U190: 1
C191: Spreadsheet | D191: 227 | E191: Vendor No. 2 | F191: 2018-11-05 | G191: 1026 | H191: MIFPUC-5 | I191: Ocala Fl | J191: 115.97 | M191: =IF(AND(F191>='A - Contractor Summary'!$C$36,F191<='A - Contractor Summary'!$C$38),"Yes",IF(F191<'A - Contractor Summary'!$C$36,"No",IF(F191>'A - Contractor Summary'!$C$39,"",""))) -> No | Q191: 115.97 | U191: 1
C192: Spreadsheet | D192: 227 | E192: Vendor No. 2 | F192: 2018-11-05 | G192: 1026 | H192: MIFPUC-5 | I192: Port Saint Fl | J192: 91.16 | M192: =IF(AND(F192>='A - Contractor Summary'!$C$36,F192<='A - Contractor Summary'!$C$38),"Yes",IF(F192<'A - Contractor Summary'!$C$36,"No",IF(F192>'A - Contractor Summary'!$C$39,"",""))) -> No | Q192: 91.16 | U192: 1
C193: Spreadsheet | D193: 274 | E193: Vendor No. 2 | F193: 2018-11-05 | G193: 1060 | H193: MIFPUC-5 | I193: Miami Garden Fl | J193: 103.41 | M193: =IF(AND(F193>='A - Contractor Summary'!$C$36,F193<='A - Contractor Summary'!$C$38),"Yes",IF(F193<'A - Contractor Summary'!$C$36,"No",IF(F193>'A - Contractor Summary'!$C$39,"",""))) -> No | Q193: 103.41 | U193: 1
C194: Spreadsheet | D194: 274 | E194: Vendor No. 2 | F194: 2018-11-05 | G194: 3752 | H194: MIFPUC-5 | I194: Miami Garden Fl | J194: 93 | M194: =IF(AND(F194>='A - Contractor Summary'!$C$36,F194<='A - Contractor Summary'!$C$38),"Yes",IF(F194<'A - Contractor Summary'!$C$36,"No",IF(F194>'A - Contractor Summary'!$C$39,"",""))) -> No | Q194: 93 | U194: 1
C195: Spreadsheet | D195: 274 | E195: Vendor No. 2 | F195: 2018-11-05 | G195: 3752 | H195: MIFPUC-5 | I195: Opa Locka Fl | J195: 25.55 | M195: =IF(AND(F195>='A - Contractor Summary'!$C$36,F195<='A - Contractor Summary'!$C$38),"Yes",IF(F195<'A - Contractor Summary'!$C$36,"No",IF(F195>'A - Contractor Summary'!$C$39,"",""))) -> No | Q195: 25.55 | U195: 1
C196: Spreadsheet | D196: 275 | E196: Vendor No. 2 | F196: 2018-11-05 | G196: 1601 | H196: MIFPUC-5 | I196: Saint Cloud Fl | J196: 100 | M196: =IF(AND(F196>='A - Contractor Summary'!$C$36,F196<='A - Contractor Summary'!$C$38),"Yes",IF(F196<'A - Contractor Summary'!$C$36,"No",IF(F196>'A - Contractor Summary'!$C$39,"",""))) -> No | Q196: 100 | U196: 1
C197: Spreadsheet | D197: 276 | E197: Vendor No. 2 | F197: 2018-11-05 | G197: 1060 | H197: MIFPUC-5 | I197: Ocoee Fl | J197: 132.03 | M197: =IF(AND(F197>='A - Contractor Summary'!$C$36,F197<='A - Contractor Summary'!$C$38),"Yes",IF(F197<'A - Contractor Summary'!$C$36,"No",IF(F197>'A - Contractor Summary'!$C$39,"",""))) -> No | Q197: 132.03 | U197: 1
C198: Spreadsheet | D198: 279 | E198: Vendor No. 2 | F198: 2018-11-05 | G198: 1060 | H198: MIFPUC-5 | I198: Marianna Fl | J198: 124.72 | M198: =IF(AND(F198>='A - Contractor Summary'!$C$36,F198<='A - Contractor Summary'!$C$38),"Yes",IF(F198<'A - Contractor Summary'!$C$36,"No",IF(F198>'A - Contractor Summary'!$C$39,"",""))) -> No | Q198: 124.72 | U198: 1
C199: Spreadsheet | D199: 279 | E199: Vendor No. 2 | F199: 2018-11-05 | G199: 1060 | H199: MIFPUC-5 | I199: Alachua Fl | J199: 103.9 | Q199: 103.9 | U199: 1
C200: Spreadsheet | D200: 279 | E200: Vendor No. 2 | F200: 2018-11-05 | G200: 1060 | H200: MIFPUC-5 | I200: Okeechhobee Fl | J200: 96.79 | M200: =IF(AND(F200>='A - Contractor Summary'!$C$36,F200<='A - Contractor Summary'!$C$38),"Yes",IF(F200<'A - Contractor Summary'!$C$36,"No",IF(F200>'A - Contractor Summary'!$C$39,"",""))) -> No | Q200: 96.79 | U200: 1
C201: Spreadsheet | D201: 281 | E201: Vendor No. 2 | F201: 2018-11-05 | G201: 1060 | H201: MIFPUC-5 | I201: Reddick Fl | J201: 60.87 | M201: =IF(AND(F201>='A - Contractor Summary'!$C$36,F201<='A - Contractor Summary'!$C$38),"Yes",IF(F201<'A - Contractor Summary'!$C$36,"No",IF(F201>'A - Contractor Summary'!$C$39,"",""))) -> No | Q201: 60.87 | U201: 1
C202: Spreadsheet | D202: 281 | E202: Vendor No. 2 | F202: 2018-11-05 | G202: 1060 | H202: MIFPUC-5 | I202: West Palm Fl | J202: 250.05 | M202: =IF(AND(F202>='A - Contractor Summary'!$C$36,F202<='A - Contractor Summary'!$C$38),"Yes",IF(F202<'A - Contractor Summary'!$C$36,"No",IF(F202>'A - Contractor Summary'!$C$39,"",""))) -> No | Q202: 250.05 | U202: 1
C203: Spreadsheet | D203: 282 | E203: Vendor No. 2 | F203: 2018-11-05 | G203: 1060 | H203: MIFPUC-5 | I203: Port Saint Fl | J203: 79.23 | M203: =IF(AND(F203>='A - Contractor Summary'!$C$36,F203<='A - Contractor Summary'!$C$38),"Yes",IF(F203<'A - Contractor Summary'!$C$36,"No",IF(F203>'A - Contractor Summary'!$C$39,"",""))) -> No | Q203: 79.23 | U203: 1
C204: Spreadsheet | D204: 284 | E204: Vendor No. 2 | F204: 2018-11-05 | G204: 1060 | H204: MIFPUC-5 | I204: Okeechhobee Fl | J204: 63.24 | M204: =IF(AND(F204>='A - Contractor Summary'!$C$36,F204<='A - Contractor Summary'!$C$38),"Yes",IF(F204<'A - Contractor Summary'!$C$36,"No",IF(F204>'A - Contractor Summary'!$C$39,"",""))) -> No | Q204: 63.24 | U204: 1
C205: Spreadsheet | D205: 286 | E205: Vendor No. 2 | F205: 2018-11-05 | G205: 1060 | H205: MIFPUC-5 | I205: Lamont Fl | J205: 59.34 | M205: =IF(AND(F205>='A - Contractor Summary'!$C$36,F205<='A - Contractor Summary'!$C$38),"Yes",IF(F205<'A - Contractor Summary'!$C$36,"No",IF(F205>'A - Contractor Summary'!$C$39,"",""))) -> No | Q205: 59.34 | U205: 1
C206: Spreadsheet | D206: 286 | E206: Vendor No. 2 | F206: 2018-11-05 | G206: 1060 | H206: MIFPUC-5 | I206: Reddick Fl | J206: 64.63 | M206: =IF(AND(F206>='A - Contractor Summary'!$C$36,F206<='A - Contractor Summary'!$C$38),"Yes",IF(F206<'A - Contractor Summary'!$C$36,"No",IF(F206>'A - Contractor Summary'!$C$39,"",""))) -> No | Q206: =+J206 -> 64.63 | U206: 1
... 156 more rows

Sheet F - Meals
B2: Meal Charges
B4: Test Plan: (A) Obtain support of individual charges. (B) Enter Yes/No if receipt is itemized. (C) Enter Yes/No if proof of payment has been provided. (D) Ensure charges fall between the dates the vendor was mobilized and the date they arrived. (E) Ensure charges are prior to the date the vendor arrived home or was released to another utility. (F) Ensure the location of charge was reasonable (G) Determine the amount(s) to be reviewed, allowed and/or disallowed. (H) For charges which required further review, document review and include why it was determined to be allowed/disallowed via a tickmark.
B9: a | C9: Check figure should equal $0. Cell will appear yellow if discrepancies are noted.
C11: A | L11: B | M11: C | N11: D | O11: E | P11: F | Q11: G | T11: H
B12: Support Reviewed | N12: Conclusions
B13: # | C13: Type of Support | D13: Support Identifier | E13: Company | F13: Crew | G13: Date | H13: Person | I13: Restaurant Name | J13: Location | K13: $ Total | L13: Itemized Receipt | M13: Proof of Payment | N13: Reasonable based on Mobilization date(s) | O13: Reasonable based on Demobilization date(s) | P13: Locations Reasonable | Q13: Conclusion | R13: $ Allowable Charge | S13: $ To Be Reviewed | T13: Reviewed - Allowable Charge | U13: Reviewed - Unallowable Charge | V13: Tickmarks
B14: 1 | N14: =IF(AND(G14>='A - Contractor Summary'!$C$36,G14<='A - Contractor Summary'!$C$38),"Yes",IF(G14<'A - Contractor Summary'!$C$36,"No",IF(G14>'A - Contractor Summary'!$C$39,"",""))) -> No | O14: =IF(OR(N14="Yes",N14="No")*AND(G14<'A - Contractor Summary'!$C$39),"",IF(AND(G14>'A - Contractor Summary'!$C$39,G14<'A - Contractor Summary'!$C$42),"Yes",IF(G14>'A - Contractor Summary'!$C$42,"No","Needs Review"))) ->  | P14: Yes | Q14: =IF(AND(P14="Yes",L14="Yes",M14="Yes")*OR(O14="Yes",N14="Yes"),"Yes",IF(OR(L14="No",N14="No",O14="No",P14="No",M14="No"),"No","Needs Review")) -> No | R14: =IF(Q14="Yes",K14,0) -> 0 | S14: =IF(Q14="Needs Review",K14,0) -> 0
B15: 2 | N15: =IF(AND(G15>='A - Contractor Summary'!$C$36,G15<='A - Contractor Summary'!$C$38),"Yes",IF(G15<'A - Contractor Summary'!$C$36,"No",IF(G15>'A - Contractor Summary'!$C$39,"",""))) -> No | O15: =IF(OR(N15="Yes",N15="No")*AND(G15<'A - Contractor Summary'!$C$39),"",IF(AND(G15>'A - Contractor Summary'!$C$39,G15<'A - Contractor Summary'!$C$42),"Yes",IF(G15>'A - Contractor Summary'!$C$42,"No","Needs Review"))) ->  | P15: Yes | Q15: No | R15: 0 | S15: 0
B16: 3 | N16: =IF(AND(G16>='A - Contractor Summary'!$C$36,G16<='A - Contractor Summary'!$C$38),"Yes",IF(G16<'A - Contractor Summary'!$C$36,"No",IF(G16>'A - Contractor Summary'!$C$39,"",""))) -> No | O16: =IF(OR(N16="Yes",N16="No")*AND(G16<'A - Contractor Summary'!$C$39),"",IF(AND(G16>'A - Contractor Summary'!$C$39,G16<'A - Contractor Summary'!$C$42),"Yes",IF(G16>'A - Contractor Summary'!$C$42,"No","Needs Review"))) ->  | P16: Yes | Q16: No | R16: 0 | S16: 0
B17: 4 | N17: =IF(AND(G17>='A - Contractor Summary'!$C$36,G17<='A - Contractor Summary'!$C$38),"Yes",IF(G17<'A - Contractor Summary'!$C$36,"No",IF(G17>'A - Contractor Summary'!$C$39,"",""))) -> No | O17: =IF(OR(N17="Yes",N17="No")*AND(G17<'A - Contractor Summary'!$C$39),"",IF(AND(G17>'A - Contractor Summary'!$C$39,G17<'A - Contractor Summary'!$C$42),"Yes",IF(G17>'A - Contractor Summary'!$C$42,"No","Needs Review"))) ->  | P17: Yes | Q17: No | R17: 0 | S17: 0
B18: 5 | N18: =IF(AND(G18>='A - Contractor Summary'!$C$36,G18<='A - Contractor Summary'!$C$38),"Yes",IF(G18<'A - Contractor Summary'!$C$36,"No",IF(G18>'A - Contractor Summary'!$C$39,"",""))) -> No | O18: =IF(OR(N18="Yes",N18="No")*AND(G18<'A - Contractor Summary'!$C$39),"",IF(AND(G18>'A - Contractor Summary'!$C$39,G18<'A - Contractor Summary'!$C$42),"Yes",IF(G18>'A - Contractor Summary'!$C$42,"No","Needs Review"))) ->  | P18: No | Q18: No | R18: 0 | S18: 0
B19: 6 | N19: =IF(AND(G19>='A - Contractor Summary'!$C$36,G19<='A - Contractor Summary'!$C$38),"Yes",IF(G19<'A - Contractor Summary'!$C$36,"No",IF(G19>'A - Contractor Summary'!$C$39,"",""))) -> No | O19: =IF(OR(N19="Yes",N19="No")*AND(G19<'A - Contractor Summary'!$C$39),"",IF(AND(G19>'A - Contractor Summary'!$C$39,G19<'A - Contractor Summary'!$C$42),"Yes",IF(G19>'A - Contractor Summary'!$C$42,"No","Needs Review"))) ->  | P19: Yes | Q19: No | R19: 0 | S19: 0
B20: 7 | N20: =IF(AND(G20>='A - Contractor Summary'!$C$36,G20<='A - Contractor Summary'!$C$38),"Yes",IF(G20<'A - Contractor Summary'!$C$36,"No",IF(G20>'A - Contractor Summary'!$C$39,"",""))) -> No | O20: =IF(OR(N20="Yes",N20="No")*AND(G20<'A - Contractor Summary'!$C$39),"",IF(AND(G20>'A - Contractor Summary'!$C$39,G20<'A - Contractor Summary'!$C$42),"Yes",IF(G20>'A - Contractor Summary'!$C$42,"No","Needs Review"))) ->  | P20: Yes | Q20: No | R20: 0 | S20: 0
B21: 8 | N21: =IF(AND(G21>='A - Contractor Summary'!$C$36,G21<='A - Contractor Summary'!$C$38),"Yes",IF(G21<'A - Contractor Summary'!$C$36,"No",IF(G21>'A - Contractor Summary'!$C$39,"",""))) -> No | O21: =IF(OR(N21="Yes",N21="No")*AND(G21<'A - Contractor Summary'!$C$39),"",IF(AND(G21>'A - Contractor Summary'!$C$39,G21<'A - Contractor Summary'!$C$42),"Yes",IF(G21>'A - Contractor Summary'!$C$42,"No","Needs Review"))) ->  | P21: Yes | Q21: No | R21: 0 | S21: 0
B22: 9 | N22: =IF(AND(G22>='A - Contractor Summary'!$C$36,G22<='A - Contractor Summary'!$C$38),"Yes",IF(G22<'A - Contractor Summary'!$C$36,"No",IF(G22>'A - Contractor Summary'!$C$39,"",""))) -> No | O22: =IF(OR(N22="Yes",N22="No")*AND(G22<'A - Contractor Summary'!$C$39),"",IF(AND(G22>'A - Contractor Summary'!$C$39,G22<'A - Contractor Summary'!$C$42),"Yes",IF(G22>'A - Contractor Summary'!$C$42,"No","Needs Review"))) ->  | P22: Yes | Q22: No | R22: 0 | S22: 0
B23: 10 | N23: =IF(AND(G23>='A - Contractor Summary'!$C$36,G23<='A - Contractor Summary'!$C$38),"Yes",IF(G23<'A - Contractor Summary'!$C$36,"No",IF(G23>'A - Contractor Summary'!$C$39,"",""))) -> No | O23: =IF(OR(N23="Yes",N23="No")*AND(G23<'A - Contractor Summary'!$C$39),"",IF(AND(G23>'A - Contractor Summary'!$C$39,G23<'A - Contractor Summary'!$C$42),"Yes",IF(G23>'A - Contractor Summary'!$C$42,"No","Needs Review"))) ->  | P23: Yes | Q23: No | R23: 0 | S23: 0
B24: 11 | N24: =IF(AND(G24>='A - Contractor Summary'!$C$36,G24<='A - Contractor Summary'!$C$38),"Yes",IF(G24<'A - Contractor Summary'!$C$36,"No",IF(G24>'A - Contractor Summary'!$C$39,"",""))) -> No | O24: =IF(OR(N24="Yes",N24="No")*AND(G24<'A - Contractor Summary'!$C$39),"",IF(AND(G24>'A - Contractor Summary'!$C$39,G24<'A - Contractor Summary'!$C$42),"Yes",IF(G24>'A - Contractor Summary'!$C$42,"No","Needs Review"))) ->  | P24: Yes | Q24: No | R24: 0 | S24: 0
B25: 12 | N25: =IF(AND(G25>='A - Contractor Summary'!$C$36,G25<='A - Contractor Summary'!$C$38),"Yes",IF(G25<'A - Contractor Summary'!$C$36,"No",IF(G25>'A - Contractor Summary'!$C$39,"",""))) -> No | O25: =IF(OR(N25="Yes",N25="No")*AND(G25<'A - Contractor Summary'!$C$39),"",IF(AND(G25>'A - Contractor Summary'!$C$39,G25<'A - Contractor Summary'!$C$42),"Yes",IF(G25>'A - Contractor Summary'!$C$42,"No","Needs Review"))) ->  | P25: Yes | Q25: No | R25: 0 | S25: 0
B26: 13 | N26: =IF(AND(G26>='A - Contractor Summary'!$C$36,G26<='A - Contractor Summary'!$C$38),"Yes",IF(G26<'A - Contractor Summary'!$C$36,"No",IF(G26>'A - Contractor Summary'!$C$39,"",""))) -> No | O26: =IF(OR(N26="Yes",N26="No")*AND(G26<'A - Contractor Summary'!$C$39),"",IF(AND(G26>'A - Contractor Summary'!$C$39,G26<'A - Contractor Summary'!$C$42),"Yes",IF(G26>'A - Contractor Summary'!$C$42,"No","Needs Review"))) ->  | P26: Yes | Q26: No | R26: 0 | S26: 0
